Workbook

Sheet Vejledning
A1: Hvis der i filen kommer nedenstående "SIKKERHEDSRISIKO", følg denne vejledning:
A18: Gem filen lokalt på PC'en
A19: Find filen i stifinderen:
A29: Højreklip på filen og nedenstående kommer frem:
A51: Tryk på "Egenskaber" og nedenstående kommer frem:
A73: Sæt flueben i "Fjern blokering"
A74: Tryk på "Anvend"
A75: Tryk på "OK"
A76: Åben filen igen
A78: Når nedenstående kommer frem, tryk på "Aktiver indhold".
A93: Nu skulle det gerne være muligt at opdatere filen
A95: Vælg din kommune i fanen "Kommune" som vist nedenstående, tryk på pilene og filen opdateres
A112: Hvis du får denne boks frem:
A134: Sæt flueben i 'Ignorer kontrol af beskyttelsesniveauer for denne fil. At ignorere beskyttelsesniveauer kan give en uautoriseret person adgang til følsomme eller fortrolige data.'
A136: Nu skulle det gerne være muligt at opdatere filen
A138: Vælg din kommune i fanen "Kommune" som vist nedenstående, tryk på pilene og filen opdateres

Sheet DK middel
D1: DMI graddage 2023
D2: Version 1.3, 06-01-23
D3: Bemærk:
D4: 1) Arket virker kun i Excel 2016 eller nyere version.
D5: 2) Ved åbning kan det være nødvendigt at trykke "Aktiver redigering / indhold / makroer". Arket henter udelukkende oplysninger fra DMI Frie Data via API-link, og sender ikke nogle informationer.
D6: 3) Når arket opdateres første gang, kommer en boks med overskriten "Få adgang til webindhold", hvor der skal trykkes "Opret forbindelse".
D7: 4) Herefter kommer en boks med overskriften "Niveauer for beskyttelse af personlige oplysninger", hvor der kan sættes flueben i "Ignorer kontrol af beskyttelsesniveauer…" og trykkes gem.
D8: 5) Gemmes Excelarket herefter, skulle ovenstående ikke være nødvendigt ved åbning og opdatering fremover.
D9: 6) Er der en rød bjælke med "SIKKERHEDSRISIKO …blokeret makroer" se fanen "Vejledning"
D10: 7) Graddageværdien for en dag er typisk til rådighed i løbet af den næste hverdag. Referencetemperaturen er 17 grader (der tælles graddage, når døgnmiddeltemperaturen er under 17 grader).
D11: Tryk på opdater (pilene) for at hente nyeste dagsværdier fra DMI-server:
H13: Vælg år i celle herunder og tryk opdater:
K14: DK middel
D15: Dato | E15: DK middel 2023 | G15: DK middel historisk | H15: 2022 | K15: Normalår: | L15: =AVERAGE(L19:L29) -> 2943.718182
D16: Sum for år: | E16: =SUM(E17:E381) -> 1796.5 | G16: Sum for år: | H16: =SUM(H17:H382) -> 2833.4 | K16: (middel af 2012-2022)
D17: 2023-01-01 | E17: 9.3 | G17: 2022-01-01 | H17: 9.5
D18: 2023-01-02 | E18: 10.3 | G18: 2022-01-02 | H18: 8.9 | K18: År | L18: Graddage
D19: 2023-01-03 | E19: 12.8 | G19: 2022-01-03 | H19: 10.1 | K19: 2012 | L19: 3235.4
D20: 2023-01-04 | E20: 10 | G20: 2022-01-04 | H20: 14 | K20: 2013 | L20: 3208.8
D21: 2023-01-05 | E21: 13.9 | G21: 2022-01-05 | H21: 14.8 | K21: 2014 | L21: 2663.5
D22: 2023-01-06 | E22: 11.7 | G22: 2022-01-06 | H22: 17 | K22: 2015 | L22: 2921.8
D23: 2023-01-07 | E23: 9.9 | G23: 2022-01-07 | H23: 14.8 | K23: 2016 | L23: 2998.9
D24: 2023-01-08 | E24: 10.3 | G24: 2022-01-08 | H24: 15 | K24: 2017 | L24: 2971.4
D25: 2023-01-09 | E25: 11.6 | G25: 2022-01-09 | H25: 15.9 | K25: 2018 | L25: 2887.5
D26: 2023-01-10 | E26: 11.7 | G26: 2022-01-10 | H26: 15.1 | K26: 2019 | L26: 2847.3
D27: 2023-01-11 | E27: 10.3 | G27: 2022-01-11 | H27: 14.8 | K27: 2020 | L27: 2714.5
D28: 2023-01-12 | E28: 11.3 | G28: 2022-01-12 | H28: 12.7 | K28: 2021 | L28: 3098.4
D29: 2023-01-13 | E29: 10.6 | G29: 2022-01-13 | H29: 10 | K29: 2022 | L29: 2833.4
D30: 2023-01-14 | E30: 11.3 | G30: 2022-01-14 | H30: 11.6
D31: 2023-01-15 | E31: 11.9 | G31: 2022-01-15 | H31: 15 | K31: Bemærk: Årsværdierne passer ikke helt med summen i H16 pga. afrunding af dagsværdierne.
D32: 2023-01-16 | E32: 13.4 | G32: 2022-01-16 | H32: 12.3
D33: 2023-01-17 | E33: 14.7 | G33: 2022-01-17 | H33: 12.7
D34: 2023-01-18 | E34: 15.8 | G34: 2022-01-18 | H34: 12.5
D35: 2023-01-19 | E35: 15.8 | G35: 2022-01-19 | H35: 12.6
D36: 2023-01-20 | E36: 16.5 | G36: 2022-01-20 | H36: 16
D37: 2023-01-21 | E37: 17.1 | G37: 2022-01-21 | H37: 14.7
D38: 2023-01-22 | E38: 17.7 | G38: 2022-01-22 | H38: 13.1
D39: 2023-01-23 | E39: 17.2 | G39: 2022-01-23 | H39: 11.1
D40: 2023-01-24 | E40: 15.5 | G40: 2022-01-24 | H40: 11.9
D41: 2023-01-25 | E41: 14.6 | G41: 2022-01-25 | H41: 11.4
D42: 2023-01-26 | E42: 13.9 | G42: 2022-01-26 | H42: 11.6
D43: 2023-01-27 | E43: 17.4 | G43: 2022-01-27 | H43: 11
D44: 2023-01-28 | E44: 15.4 | G44: 2022-01-28 | H44: 13
D45: 2023-01-29 | E45: 12.5 | G45: 2022-01-29 | H45: 10.4
D46: 2023-01-30 | E46: 12.6 | G46: 2022-01-30 | H46: 12.4
D47: 2023-01-31 | E47: 13.2 | G47: 2022-01-31 | H47: 15.3
D48: 2023-02-01 | E48: 12.8 | G48: 2022-02-01 | H48: 13.2
D49: 2023-02-02 | E49: 14.9 | G49: 2022-02-02 | H49: 13.3
D50: 2023-02-03 | E50: 12.8 | G50: 2022-02-03 | H50: 11.6
D51: 2023-02-04 | E51: 17.2 | G51: 2022-02-04 | H51: 12.4
D52: 2023-02-05 | E52: 15.6 | G52: 2022-02-05 | H52: 13.1
D53: 2023-02-06 | E53: 15.6 | G53: 2022-02-06 | H53: 13.5
D54: 2023-02-07 | E54: 14.7 | G54: 2022-02-07 | H54: 13.2
D55: 2023-02-08 | E55: 15.2 | G55: 2022-02-08 | H55: 10.9
D56: 2023-02-09 | E56: 13.8 | G56: 2022-02-09 | H56: 11.3
D57: 2023-02-10 | E57: 12.1 | G57: 2022-02-10 | H57: 13.3
D58: 2023-02-11 | E58: 9.9 | G58: 2022-02-11 | H58: 15.4
D59: 2023-02-12 | E59: 10.4 | G59: 2022-02-12 | H59: 14.6
D60: 2023-02-13 | E60: 11 | G60: 2022-02-13 | H60: 13.5
D61: 2023-02-14 | E61: 13.2 | G61: 2022-02-14 | H61: 10.6
D62: 2023-02-15 | E62: 14.3 | G62: 2022-02-15 | H62: 11.9
D63: 2023-02-16 | E63: 12.1 | G63: 2022-02-16 | H63: 12
D64: 2023-02-17 | E64: 10.1 | G64: 2022-02-17 | H64: 12.2
D65: 2023-02-18 | E65: 12.5 | G65: 2022-02-18 | H65: 13.5
D66: 2023-02-19 | E66: 13.4 | G66: 2022-02-19 | H66: 13.3
D67: 2023-02-20 | E67: 10.2 | G67: 2022-02-20 | H67: 13.5
D68: 2023-02-21 | E68: 11.2 | G68: 2022-02-21 | H68: 12.3
D69: 2023-02-22 | E69: 12.9 | G69: 2022-02-22 | H69: 13.4
D70: 2023-02-23 | E70: 12.5 | G70: 2022-02-23 | H70: 11.4
D71: 2023-02-24 | E71: 13.1 | G71: 2022-02-24 | H71: 12.6
D72: 2023-02-25 | E72: 15.7 | G72: 2022-02-25 | H72: 13.4
D73: 2023-02-26 | E73: 15.9 | G73: 2022-02-26 | H73: 14.3
D74: 2023-02-27 | E74: 14.3 | G74: 2022-02-27 | H74: 15
D75: 2023-02-28 | E75: 14.7 | G75: 2022-02-28 | H75: 14.1
D76: 2023-03-01 | E76: 15.5 | G76: 2022-03-01 | H76: 14.8
D77: 2023-03-02 | E77: 14.7 | G77: 2022-03-02 | H77: 15.4
D78: 2023-03-03 | E78: 13.7 | G78: 2022-03-03 | H78: 15.6
D79: 2023-03-04 | E79: 14 | G79: 2022-03-04 | H79: 16.1
D80: 2023-03-05 | E80: 17 | G80: 2022-03-05 | H80: 16.7
D81: 2023-03-06 | E81: 17.3 | G81: 2022-03-06 | H81: 15.6
D82: 2023-03-07 | E82: 17 | G82: 2022-03-07 | H82: 15.5
D83: 2023-03-08 | E83: 18.9 | G83: 2022-03-08 | H83: 14.9
D84: 2023-03-09 | E84: 18.1 | G84: 2022-03-09 | H84: 15.6
D85: 2023-03-10 | E85: 17.6 | G85: 2022-03-10 | H85: 13.7
D86: 2023-03-11 | E86: 17 | G86: 2022-03-11 | H86: 13.7
D87: 2023-03-12 | E87: 16.2 | G87: 2022-03-12 | H87: 13
D88: 2023-03-13 | E88: 9.9 | G88: 2022-03-13 | H88: 12.4
D89: 2023-03-14 | E89: 12.7 | G89: 2022-03-14 | H89: 11.9
D90: 2023-03-15 | E90: 14.7 | G90: 2022-03-15 | H90: 12.6
D91: 2023-03-16 | E91: 14.1 | G91: 2022-03-16 | H91: 14.2
D92: 2023-03-17 | E92: 11.2 | G92: 2022-03-17 | H92: 12.5
D93: 2023-03-18 | E93: 9.7 | G93: 2022-03-18 | H93: 11.6
D94: 2023-03-19 | E94: 9.8 | G94: 2022-03-19 | H94: 12.8
D95: 2023-03-20 | E95: 11.1 | G95: 2022-03-20 | H95: 12.9
D96: 2023-03-21 | E96: 11.5 | G96: 2022-03-21 | H96: 11.5
D97: 2023-03-22 | E97: 9.3 | G97: 2022-03-22 | H97: 11.6
D98: 2023-03-23 | E98: 8.9 | G98: 2022-03-23 | H98: 11.8
D99: 2023-03-24 | E99: 9 | G99: 2022-03-24 | H99: 10.7
D100: 2023-03-25 | E100: 9.8 | G100: 2022-03-25 | H100: 9
D101: 2023-03-26 | E101: 13.5 | G101: 2022-03-26 | H101: 8.9
D102: 2023-03-27 | E102: 16 | G102: 2022-03-27 | H102: 11.2
D103: 2023-03-28 | E103: 15.4 | G103: 2022-03-28 | H103: 10.7
D104: 2023-03-29 | E104: 12.5 | G104: 2022-03-29 | H104: 13
D105: 2023-03-30 | E105: 10.3 | G105: 2022-03-30 | H105: 15.9
D106: 2023-03-31 | E106: 10.7 | G106: 2022-03-31 | H106: 16
D107: 2023-04-01 | E107: 13.7 | G107: 2022-04-01 | H107: 15.7
D108: 2023-04-02 | E108: 13.8 | G108: 2022-04-02 | H108: 16
D109: 2023-04-03 | E109: 14.5 | G109: 2022-04-03 | H109: 13.9
D110: 2023-04-04 | E110: 13.9 | G110: 2022-04-04 | H110: 12
D111: 2023-04-05 | E111: 13.1 | G111: 2022-04-05 | H111: 13.3
D112: 2023-04-06 | E112: 12.4 | G112: 2022-04-06 | H112: 12.4
D113: 2023-04-07 | E113: 12.1 | G113: 2022-04-07 | H113: 11.4
D114: 2023-04-08 | E114: 9.6 | G114: 2022-04-08 | H114: 13.4
D115: 2023-04-09 | E115: 9.8 | G115: 2022-04-09 | H115: 12.5
D116: 2023-04-10 | E116: 8.8 | G116: 2022-04-10 | H116: 12.5
D117: 2023-04-11 | E117: 9 | G117: 2022-04-11 | H117: 12.4
D118: 2023-04-12 | E118: 10.5 | G118: 2022-04-12 | H118: 12
D119: 2023-04-13 | E119: 9.9 | G119: 2022-04-13 | H119: 7.7
D120: 2023-04-14 | E120: 9.9 | G120: 2022-04-14 | H120: 8.9
D121: 2023-04-15 | E121: 7.9 | G121: 2022-04-15 | H121: 10.7
D122: 2023-04-16 | E122: 7.9 | G122: 2022-04-16 | H122: 10.7
D123: 2023-04-17 | E123: 8.2 | G123: 2022-04-17 | H123: 9.8
D124: 2023-04-18 | E124: 8.5 | G124: 2022-04-18 | H124: 8.9
D125: 2023-04-19 | E125: 8.4 | G125: 2022-04-19 | H125: 8.1
D126: 2023-04-20 | E126: 7.2 | G126: 2022-04-20 | H126: 7.3
D127: 2023-04-21 | E127: 6.6 | G127: 2022-04-21 | H127: 6.9
D128: 2023-04-22 | E128: 5.9 | G128: 2022-04-22 | H128: 6.3
D129: 2023-04-23 | E129: 6.4 | G129: 2022-04-23 | H129: 7.4
D130: 2023-04-24 | E130: 7.5 | G130: 2022-04-24 | H130: 8.5
D131: 2023-04-25 | E131: 10.6 | G131: 2022-04-25 | H131: 9.6
D132: 2023-04-26 | E132: 11.3 | G132: 2022-04-26 | H132: 9.6
D133: 2023-04-27 | E133: 11.3 | G133: 2022-04-27 | H133: 9
D134: 2023-04-28 | E134: 10.7 | G134: 2022-04-28 | H134: 8.9
D135: 2023-04-29 | E135: 9.5 | G135: 2022-04-29 | H135: 8.9
D136: 2023-04-30 | E136: 10.5 | G136: 2022-04-30 | H136: 8.6
D137: 2023-05-01 | E137: 7.6 | G137: 2022-05-01 | H137: 8.6
D138: 2023-05-02 | E138: 9.6 | G138: 2022-05-02 | H138: 8.6
D139: 2023-05-03 | E139: 9.7 | G139: 2022-05-03 | H139: 7.4
D140: 2023-05-04 | E140: 9.6 | G140: 2022-05-04 | H140: 8.1
D141: 2023-05-05 | E141: 9.8 | G141: 2022-05-05 | H141: 8.4
D142: 2023-05-06 | E142: 10.2 | G142: 2022-05-06 | H142: 6.1
D143: 2023-05-07 | E143: 7.8 | G143: 2022-05-07 | H143: 5.9
D144: 2023-05-08 | E144: 5.9 | G144: 2022-05-08 | H144: 7.1
D145: 2023-05-09 | E145: 4.1 | G145: 2022-05-09 | H145: 5.6
D146: 2023-05-10 | E146: 4 | G146: 2022-05-10 | H146: 4.3
D147: 2023-05-11 | E147: 4.7 | G147: 2022-05-11 | H147: 5.8
D148: 2023-05-12 | E148: 2.5 | G148: 2022-05-12 | H148: 5.9
D149: 2023-05-13 | E149: 3.3 | G149: 2022-05-13 | H149: 6.1
D150: 2023-05-14 | E150: 3 | G150: 2022-05-14 | H150: 5.3
D151: 2023-05-15 | E151: 4 | G151: 2022-05-15 | H151: 5.6
D152: 2023-05-16 | E152: 7.3 | G152: 2022-05-16 | H152: 5.1
D153: 2023-05-17 | E153: 8.9 | G153: 2022-05-17 | H153: 3.4
D154: 2023-05-18 | E154: 7.8 | G154: 2022-05-18 | H154: 2.4
D155: 2023-05-19 | E155: 6.4 | G155: 2022-05-19 | H155: 1.9
D156: 2023-05-20 | E156: 4.9 | G156: 2022-05-20 | H156: 3.8
D157: 2023-05-21 | E157: 2.3 | G157: 2022-05-21 | H157: 5.4
D158: 2023-05-22 | E158: 0.5 | G158: 2022-05-22 | H158: 4.3
D159: 2023-05-23 | E159: 5.4 | G159: 2022-05-23 | H159: 2.9
D160: 2023-05-24 | E160: 4.3 | G160: 2022-05-24 | H160: 3.7
D161: 2023-05-25 | E161: 5.5 | G161: 2022-05-25 | H161: 4.4
D162: 2023-05-26 | E162: 6.1 | G162: 2022-05-26 | H162: 4.6
D163: 2023-05-27 | E163: 5.9 | G163: 2022-05-27 | H163: 6.6
D164: 2023-05-28 | E164: 5.4 | G164: 2022-05-28 | H164: 5.4
D165: 2023-05-29 | E165: 5.7 | G165: 2022-05-29 | H165: 5.6
D166: 2023-05-30 | E166: 3.1 | G166: 2022-05-30 | H166: 6.7
D167: 2023-05-31 | E167: 4.1 | G167: 2022-05-31 | H167: 5.9
D168: 2023-06-01 | E168: 4 | G168: 2022-06-01 | H168: 6
D169: 2023-06-02 | E169: 4.3 | G169: 2022-06-02 | H169: 6.1
D170: 2023-06-03 | E170: 4.7 | G170: 2022-06-03 | H170: 5.3
D171: 2023-06-04 | E171: 4.8 | G171: 2022-06-04 | H171: 3.9
D172: 2023-06-05 | E172: 3.7 | G172: 2022-06-05 | H172: 2.8
D173: 2023-06-06 | E173: 3.3 | G173: 2022-06-06 | H173: 2.2
D174: 2023-06-07 | E174: 3.4 | G174: 2022-06-07 | H174: 4.1
D175: 2023-06-08 | E175: 2.9 | G175: 2022-06-08 | H175: 3.5
D176: 2023-06-09 | E176: 2 | G176: 2022-06-09 | H176: 2.2
D177: 2023-06-10 | E177: 0.6 | G177: 2022-06-10 | H177: 1.8
D178: 2023-06-11 | E178: 0.4 | G178: 2022-06-11 | H178: 1.4
D179: 2023-06-12 | E179: 0.2 | G179: 2022-06-12 | H179: 2.5
D180: 2023-06-13 | E180: 0.2 | G180: 2022-06-13 | H180: 4.1
D181: 2023-06-14 | E181: 0.1 | G181: 2022-06-14 | H181: 3.2
D182: 2023-06-15 | E182: 0.2 | G182: 2022-06-15 | H182: 3.1
D183: 2023-06-16 | E183: 0 | G183: 2022-06-16 | H183: 2
D184: 2023-06-17 | E184: 0 | G184: 2022-06-17 | H184: 1.4
D185: 2023-06-18 | E185: 0 | G185: 2022-06-18 | H185: 0.8
D186: 2023-06-19 | E186: 0 | G186: 2022-06-19 | H186: 4.1
D187: 2023-06-20 | E187: 0 | G187: 2022-06-20 | H187: 4
D188: 2023-06-21 | E188: 0 | G188: 2022-06-21 | H188: 2.5
D189: 2023-06-22 | E189: 0 | G189: 2022-06-22 | H189: 2.6
D190: 2023-06-23 | E190: 0.5 | G190: 2022-06-23 | H190: 0.9
D191: 2023-06-24 | E191: 0 | G191: 2022-06-24 | H191: 0
D192: 2023-06-25 | E192: 0 | G192: 2022-06-25 | H192: 0
D193: 2023-06-26 | E193: 0 | G193: 2022-06-26 | H193: 0
D194: 2023-06-27 | E194: 1.3 | G194: 2022-06-27 | H194: 1.8
D195: 2023-06-28 | E195: 0.4 | G195: 2022-06-28 | H195: 0.8
D196: 2023-06-29 | E196: 0 | G196: 2022-06-29 | H196: 0
D197: 2023-06-30 | E197: 0.9 | G197: 2022-06-30 | H197: 0
D198: 2023-07-01 | E198: 1.6 | G198: 2022-07-01 | H198: 0.2
D199: 2023-07-02 | E199: 2.3 | G199: 2022-07-02 | H199: 0.3
D200: 2023-07-03 | E200: 3.1 | G200: 2022-07-03 | H200: 0.1
D201: 2023-07-04 | E201: 3.6 | G201: 2022-07-04 | H201: 1.6
... 180 more rows

Sheet DK middel Normalår
D1: ='DK middel'!D1 -> DMI graddage 2023
D2: ='DK middel'!D2 -> Version 1.3, 06-01-23
D4: DK middel
D5: Normalår: | E5: ='DK middel'!$L$15 -> 2943.718182
D6: Middel af 2012-2022.
D8: Normal-dage for normalåret
D9: Middel af hver dag i årene 2012-2022.
D10: Summen af dagene passer ikke med årsværdien 2944 pga. værdien for d. 29. februar (skudår), medmindre værdien for 29. februar divideres med 4.
D11: Derefter vil summen stadig afvige med ca. 1,4 pga. afrunding af værdierne.
D13: Dag: | E13: Januar | F13: Februar | G13: Marts | H13: April | I13: Maj | J13: Juni | K13: Juli | L13: August | M13: September | N13: Oktober | O13: November | P13: December
D14: 1 | E14: 12.5 | F14: 15.6 | G14: 14.6 | H14: 12.1 | I14: 8.9 | J14: 3.3 | K14: 1.4 | L14: 0.9 | M14: 2.2 | N14: 4.9 | O14: 7.4 | P14: 13.2
D15: 2 | E15: 14.2 | F15: 16.3 | G15: 14.8 | H15: 11.4 | I15: 8.6 | J15: 2.9 | K15: 2 | L15: 0.6 | M15: 2.2 | N15: 4.8 | O15: 7.8 | P15: 14.2
D16: 3 | E16: 14.3 | F16: 16.9 | G16: 14.5 | H16: 11.7 | I16: 8.9 | J16: 2.2 | K16: 1.9 | L16: 0.6 | M16: 1.9 | N16: 4.9 | O16: 9.3 | P16: 13.2
D17: 4 | E17: 13.9 | F17: 17 | G17: 14.6 | H17: 11.2 | I17: 8.8 | J17: 2.5 | K17: 1.4 | L17: 0.7 | M17: 1.9 | N17: 5.6 | O17: 9.5 | P17: 13.1
D18: 5 | E18: 15 | F18: 16.7 | G18: 14.4 | H18: 11.4 | I18: 8.2 | J18: 2.4 | K18: 1.2 | L18: 0.4 | M18: 2.2 | N18: 5.9 | O18: 9.3 | P18: 13.1
D19: 6 | E19: 15.4 | F19: 16.4 | G19: 14.3 | H19: 10.4 | I19: 7.3 | J19: 2.2 | K19: 1.6 | L19: 0.4 | M19: 2.3 | N19: 6.3 | O19: 9.7 | P19: 13
D20: 7 | E20: 14.2 | F20: 15.9 | G20: 14.1 | H20: 10.2 | I20: 6.4 | J20: 2.8 | K20: 1.3 | L20: 0.5 | M20: 2.2 | N20: 6.9 | O20: 10 | P20: 12.8
D21: 8 | E21: 13.7 | F21: 15.7 | G21: 14 | H21: 10.3 | I21: 6.3 | J21: 2.8 | K21: 1.3 | L21: 0.8 | M21: 2.4 | N21: 6.7 | O21: 10.2 | P21: 12.7
D22: 9 | E22: 13.7 | F22: 15.5 | G22: 13.4 | H22: 10.6 | I22: 4.9 | J22: 2.8 | K22: 1.7 | L22: 1 | M22: 2.3 | N22: 6.7 | O22: 9.9 | P22: 12.5
D23: 10 | E23: 14 | F23: 16.1 | G23: 13.6 | H23: 11.1 | I23: 5.2 | J23: 2.5 | K23: 1.7 | L23: 1.2 | M23: 1.9 | N23: 7 | O23: 9.7 | P23: 13
D24: 11 | E24: 13.6 | F24: 16.7 | G24: 13.7 | H24: 10.9 | I24: 5.9 | J24: 2.4 | K24: 1.4 | L24: 1.5 | M24: 2 | N24: 6.5 | O24: 10.2 | P24: 13.9
D25: 12 | E25: 14 | F25: 16.9 | G25: 13.6 | H25: 10.8 | I25: 6.8 | J25: 2.5 | K25: 1.4 | L25: 1.4 | M25: 2.4 | N25: 6.9 | O25: 10.4 | P25: 14.7
D26: 13 | E26: 15.2 | F26: 17 | G26: 13.7 | H26: 10.9 | I26: 6.8 | J26: 2.4 | K26: 1.8 | L26: 1.3 | M26: 2.6 | N26: 7 | O26: 10.8 | P26: 13.7
D27: 14 | E27: 15.7 | F27: 16.5 | G27: 13.3 | H27: 10.7 | I27: 6.8 | J27: 2.6 | K27: 1.8 | L27: 1.2 | M27: 2.4 | N27: 6.7 | O27: 10.2 | P27: 13.9
D28: 15 | E28: 15.6 | F28: 15.3 | G28: 13.1 | H28: 9.9 | I28: 6.3 | J28: 2.7 | K28: 1.7 | L28: 0.8 | M28: 2.7 | N28: 6.9 | O28: 9.5 | P28: 13
D29: 16 | E29: 15.6 | F29: 14.7 | G29: 13 | H29: 10.2 | I29: 6.1 | J29: 2.3 | K29: 1.3 | L29: 1 | M29: 3.3 | N29: 7 | O29: 9.9 | P29: 13.2
D30: 17 | E30: 16.3 | F30: 14.4 | G30: 13 | H30: 9.7 | I30: 5.5 | J30: 2 | K30: 1.2 | L30: 0.8 | M30: 3.8 | N30: 6.6 | O30: 11 | P30: 12.9
D31: 18 | E31: 15.7 | F31: 14.2 | G31: 13.2 | H31: 9 | I31: 4.9 | J31: 1.8 | K31: 0.8 | L31: 0.9 | M31: 4 | N31: 6.9 | O31: 9.9 | P31: 12.1
D32: 19 | E32: 15.8 | F32: 14.4 | G32: 13.8 | H32: 8.2 | I32: 4.4 | J32: 1.9 | K32: 0.8 | L32: 1.3 | M32: 4.3 | N32: 7 | O32: 10.6 | P32: 12.1
D33: 20 | E33: 16.3 | F33: 14.3 | G33: 12.5 | H33: 7.6 | I33: 4.3 | J33: 2.1 | K33: 0.9 | L33: 1.2 | M33: 4.2 | N33: 6.4 | O33: 11.9 | P33: 12.7
D34: 21 | E34: 16.1 | F34: 14 | G34: 12.5 | H34: 7.8 | I34: 3.6 | J34: 2.6 | K34: 0.9 | L34: 1.3 | M34: 3.9 | N34: 6.8 | O34: 12.4 | P34: 12.5
D35: 22 | E35: 16.4 | F35: 14.2 | G35: 13.1 | H35: 7.7 | I35: 3.6 | J35: 2.6 | K35: 0.9 | L35: 0.9 | M35: 4.4 | N35: 6.6 | O35: 11.6 | P35: 12.2
D36: 23 | E36: 16.9 | F36: 14.5 | G36: 13.1 | H36: 8.1 | I36: 4.1 | J36: 2.2 | K36: 0.8 | L36: 1.1 | M36: 4.3 | N36: 7 | O36: 11.5 | P36: 12.2
D37: 24 | E37: 16.3 | F37: 14 | G37: 12.8 | H37: 8.8 | I37: 4.4 | J37: 2.5 | K37: 0.7 | L37: 1.3 | M37: 4.3 | N37: 7.3 | O37: 11.3 | P37: 12.5
D38: 25 | E38: 16.4 | F38: 14.3 | G38: 12.3 | H38: 8.8 | I38: 4 | J38: 2.3 | K38: 0.6 | L38: 1.5 | M38: 4.2 | N38: 7.4 | O38: 12.2 | P38: 12.8
D39: 26 | E39: 16.6 | F39: 14.4 | G39: 11.4 | H39: 8.9 | I39: 3.8 | J39: 2 | K39: 0.5 | L39: 1.2 | M39: 3.8 | N39: 7.7 | O39: 12.3 | P39: 13.5
D40: 27 | E40: 15.5 | F40: 14.9 | G40: 12.3 | H40: 8.9 | I40: 3.7 | J40: 2.1 | K40: 0.5 | L40: 1.4 | M40: 3.5 | N40: 7.8 | O40: 11.9 | P40: 13.4
D41: 28 | E41: 15.4 | F41: 14.5 | G41: 11.9 | H41: 8.9 | I41: 4.2 | J41: 1.8 | K41: 0.5 | L41: 1.6 | M41: 4.2 | N41: 8 | O41: 13.1 | P41: 14.2
D42: 29 | E42: 15.6 | F42: 13.2 | G42: 11.9 | H42: 8.4 | I42: 4.6 | J42: 1.5 | K42: 1.1 | L42: 1.2 | M42: 4.3 | N42: 9.2 | O42: 13.8 | P42: 13.3
D43: 30 | E43: 15.6 | G43: 11.8 | H43: 8.1 | I43: 3.3 | J43: 1.7 | K43: 0.9 | L43: 1.3 | M43: 4.7 | N43: 9.2 | O43: 13.6 | P43: 12.6
D44: 31 | E44: 15.8 | G44: 12.1 | I44: 3.1 | K44: 1 | L44: 1.8 | N44: 8 | P44: 11.9

Sheet Kommune
D1: DMI graddage 2023
D2: Version 1.3, 06-01-23
D3: Bemærk:
D4: 1) Arket virker kun i Excel 2016 eller nyere version.
D5: 2) Ved åbning kan det være nødvendigt at trykke "Aktiver redigering / indhold / makroer". Arket henter udelukkende oplysninger fra DMI Frie Data via API-link, og sender ikke nogle informationer.
D6: 3) Når arket opdateres første gang, kommer en boks med overskriten "Få adgang til webindhold", hvor der skal trykkes "Opret forbindelse".
D7: 4) Herefter kommer en boks med overskriften "Niveauer for beskyttelse af personlige oplysninger", hvor der kan sættes flueben i "Ignorer kontrol af beskyttelsesniveauer…" og trykkes gem.
D8: 5) Gemmes Excelarket herefter, skulle ovenstående ikke være nødvendigt ved åbning og opdatering fremover.
D9: 6) Er der en rød bjælke med "SIKKERHEDSRISIKO …blokeret makroer" se fanen "Vejledning"
D10: 7) Graddageværdien for en dag er typisk til rådighed i løbet af den næste hverdag. Referencetemperaturen er 17 grader (der tælles graddage, når døgnmiddeltemperaturen er under 17 grader).
D11: Vælg din kommune, tryk på opdater (pilene) for at hente nyeste dagsværdier fra DMI-server:
E14: Vælg kommune i celle herunder og tryk opdater: | G14: Kolding historisk | H14: Vælg år i celle herunder og tryk opdater:
K15: Kolding
D16: Dag | E16: Kolding | H16: 2022 | K16: Normalår: | L16: =AVERAGE(L19:L29) -> 2902.454545
D17: Sum for år: | E17: =SUM(E18:E382) -> 1735.9 | G17: Sum for år: | H17: =SUM(H18:H383) -> 2766.3 | K17: ='DK middel'!K16 -> (middel af 2012-2022)
D18: 2023-01-01 | E18: 8.2 | G18: 2022-01-01 | H18: 8.2 | K18: År | L18: Graddage
D19: 2023-01-02 | E19: 10.3 | G19: 2022-01-02 | H19: 8.5 | K19: 2012 | L19: 3259.4
D20: 2023-01-03 | E20: 12.8 | G20: 2022-01-03 | H20: 9.4 | K20: 2013 | L20: 3232.5
D21: 2023-01-04 | E21: 9.4 | G21: 2022-01-04 | H21: 13.4 | K21: 2014 | L21: 2603.6
D22: 2023-01-05 | E22: 13.3 | G22: 2022-01-05 | H22: 14.5 | K22: 2015 | L22: 2868.5
D23: 2023-01-06 | E23: 10.6 | G23: 2022-01-06 | H23: 17.1 | K23: 2016 | L23: 2946.8
D24: 2023-01-07 | E24: 9.3 | G24: 2022-01-07 | H24: 14.4 | K24: 2017 | L24: 2906
D25: 2023-01-08 | E25: 10.4 | G25: 2022-01-08 | H25: 14.7 | K25: 2018 | L25: 2832.2
D26: 2023-01-09 | E26: 11.6 | G26: 2022-01-09 | H26: 15.8 | K26: 2019 | L26: 2782.8
D27: 2023-01-10 | E27: 11.5 | G27: 2022-01-10 | H27: 15 | K27: 2020 | L27: 2683
D28: 2023-01-11 | E28: 9.8 | G28: 2022-01-11 | H28: 14.1 | K28: 2021 | L28: 3043.8
D29: 2023-01-12 | E29: 10.8 | G29: 2022-01-12 | H29: 12.3 | K29: 2022 | L29: 2768.4
D30: 2023-01-13 | E30: 10.3 | G30: 2022-01-13 | H30: 10.1
D31: 2023-01-14 | E31: 10.9 | G31: 2022-01-14 | H31: 11.3 | K31: Bemærk: Årsværdierne passer ikke helt med summen i H17 pga. afrunding af dagsværdierne.
D32: 2023-01-15 | E32: 11.6 | G32: 2022-01-15 | H32: 14.8
D33: 2023-01-16 | E33: 13.3 | G33: 2022-01-16 | H33: 12.1
D34: 2023-01-17 | E34: 15.1 | G34: 2022-01-17 | H34: 12.2
D35: 2023-01-18 | E35: 16 | G35: 2022-01-18 | H35: 11.6
D36: 2023-01-19 | E36: 15.8 | G36: 2022-01-19 | H36: 12.4
D37: 2023-01-20 | E37: 16.9 | G37: 2022-01-20 | H37: 16.2
D38: 2023-01-21 | E38: 16.9 | G38: 2022-01-21 | H38: 14.8
D39: 2023-01-22 | E39: 17.2 | G39: 2022-01-22 | H39: 11.5
D40: 2023-01-23 | E40: 16.6 | G40: 2022-01-23 | H40: 10.7
D41: 2023-01-24 | E41: 15.4 | G41: 2022-01-24 | H41: 11.8
D42: 2023-01-25 | E42: 15 | G42: 2022-01-25 | H42: 11
D43: 2023-01-26 | E43: 13.4 | G43: 2022-01-26 | H43: 11.5
D44: 2023-01-27 | E44: 17 | G44: 2022-01-27 | H44: 10.6
D45: 2023-01-28 | E45: 16.1 | G45: 2022-01-28 | H45: 12.8
D46: 2023-01-29 | E46: 12.5 | G46: 2022-01-29 | H46: 9.9
D47: 2023-01-30 | E47: 12.4 | G47: 2022-01-30 | H47: 11.9
D48: 2023-01-31 | E48: 12.5 | G48: 2022-01-31 | H48: 14.7
D49: 2023-02-01 | E49: 12.4 | G49: 2022-02-01 | H49: 12.4
D50: 2023-02-02 | E50: 13.6 | G50: 2022-02-02 | H50: 12.2
D51: 2023-02-03 | E51: 11.4 | G51: 2022-02-03 | H51: 10.9
D52: 2023-02-04 | E52: 16.4 | G52: 2022-02-04 | H52: 12.3
D53: 2023-02-05 | E53: 15.5 | G53: 2022-02-05 | H53: 12.8
D54: 2023-02-06 | E54: 15.7 | G54: 2022-02-06 | H54: 12.8
D55: 2023-02-07 | E55: 15.5 | G55: 2022-02-07 | H55: 13.1
D56: 2023-02-08 | E56: 16.2 | G56: 2022-02-08 | H56: 10.3
D57: 2023-02-09 | E57: 14 | G57: 2022-02-09 | H57: 10.6
D58: 2023-02-10 | E58: 11.6 | G58: 2022-02-10 | H58: 13.1
D59: 2023-02-11 | E59: 9.3 | G59: 2022-02-11 | H59: 15.4
D60: 2023-02-12 | E60: 10.1 | G60: 2022-02-12 | H60: 15
D61: 2023-02-13 | E61: 10.9 | G61: 2022-02-13 | H61: 13.5
D62: 2023-02-14 | E62: 13.1 | G62: 2022-02-14 | H62: 9.5
D63: 2023-02-15 | E63: 14.3 | G63: 2022-02-15 | H63: 11.7
D64: 2023-02-16 | E64: 11.7 | G64: 2022-02-16 | H64: 10.6
D65: 2023-02-17 | E65: 9.4 | G65: 2022-02-17 | H65: 11.6
D66: 2023-02-18 | E66: 12.4 | G66: 2022-02-18 | H66: 13.2
D67: 2023-02-19 | E67: 13.3 | G67: 2022-02-19 | H67: 13
D68: 2023-02-20 | E68: 9.7 | G68: 2022-02-20 | H68: 13
D69: 2023-02-21 | E69: 11 | G69: 2022-02-21 | H69: 11.7
D70: 2023-02-22 | E70: 11.7 | G70: 2022-02-22 | H70: 12.6
D71: 2023-02-23 | E71: 11.7 | G71: 2022-02-23 | H71: 11.1
D72: 2023-02-24 | E72: 12.3 | G72: 2022-02-24 | H72: 12.8
D73: 2023-02-25 | E73: 15.6 | G73: 2022-02-25 | H73: 13.1
D74: 2023-02-26 | E74: 16.3 | G74: 2022-02-26 | H74: 14.3
D75: 2023-02-27 | E75: 13.8 | G75: 2022-02-27 | H75: 14.9
D76: 2023-02-28 | E76: 14.4 | G76: 2022-02-28 | H76: 13.6
D77: 2023-03-01 | E77: 15.6 | G77: 2022-03-01 | H77: 14.9
D78: 2023-03-02 | E78: 14.4 | G78: 2022-03-02 | H78: 15.4
D79: 2023-03-03 | E79: 12.7 | G79: 2022-03-03 | H79: 16
D80: 2023-03-04 | E80: 12.9 | G80: 2022-03-04 | H80: 16.7
D81: 2023-03-05 | E81: 16.3 | G81: 2022-03-05 | H81: 16.5
D82: 2023-03-06 | E82: 16.6 | G82: 2022-03-06 | H82: 15.8
D83: 2023-03-07 | E83: 16.6 | G83: 2022-03-07 | H83: 15.8
D84: 2023-03-08 | E84: 18.1 | G84: 2022-03-08 | H84: 14.6
D85: 2023-03-09 | E85: 17.9 | G85: 2022-03-09 | H85: 13.4
D86: 2023-03-10 | E86: 17.3 | G86: 2022-03-10 | H86: 13.3
D87: 2023-03-11 | E87: 17 | G87: 2022-03-11 | H87: 13.2
D88: 2023-03-12 | E88: 15.9 | G88: 2022-03-12 | H88: 12.8
D89: 2023-03-13 | E89: 8.8 | G89: 2022-03-13 | H89: 12.2
D90: 2023-03-14 | E90: 12.6 | G90: 2022-03-14 | H90: 11.4
D91: 2023-03-15 | E91: 14.3 | G91: 2022-03-15 | H91: 11.8
D92: 2023-03-16 | E92: 13 | G92: 2022-03-16 | H92: 15.2
D93: 2023-03-17 | E93: 9.7 | G93: 2022-03-17 | H93: 12.2
D94: 2023-03-18 | E94: 8.8 | G94: 2022-03-18 | H94: 10.8
D95: 2023-03-19 | E95: 9 | G95: 2022-03-19 | H95: 12.9
D96: 2023-03-20 | E96: 10.7 | G96: 2022-03-20 | H96: 12.3
D97: 2023-03-21 | E97: 9.9 | G97: 2022-03-21 | H97: 10.9
D98: 2023-03-22 | E98: 8.5 | G98: 2022-03-22 | H98: 10.5
D99: 2023-03-23 | E99: 8.2 | G99: 2022-03-23 | H99: 10.2
D100: 2023-03-24 | E100: 8.4 | G100: 2022-03-24 | H100: 10
D101: 2023-03-25 | E101: 9.2 | G101: 2022-03-25 | H101: 8.8
D102: 2023-03-26 | E102: 12.6 | G102: 2022-03-26 | H102: 8
D103: 2023-03-27 | E103: 15.7 | G103: 2022-03-27 | H103: 11.2
D104: 2023-03-28 | E104: 15.4 | G104: 2022-03-28 | H104: 10.7
D105: 2023-03-29 | E105: 11.9 | G105: 2022-03-29 | H105: 13
D106: 2023-03-30 | E106: 9.1 | G106: 2022-03-30 | H106: 16.2
D107: 2023-03-31 | E107: 9 | G107: 2022-03-31 | H107: 15.1
D108: 2023-04-01 | E108: 13.1 | G108: 2022-04-01 | H108: 15.4
D109: 2023-04-02 | E109: 13.6 | G109: 2022-04-02 | H109: 15.8
D110: 2023-04-03 | E110: 14.8 | G110: 2022-04-03 | H110: 14.2
D111: 2023-04-04 | E111: 14.3 | G111: 2022-04-04 | H111: 11.5
D112: 2023-04-05 | E112: 12.5 | G112: 2022-04-05 | H112: 13.1
D113: 2023-04-06 | E113: 11.7 | G113: 2022-04-06 | H113: 11.4
D114: 2023-04-07 | E114: 11.6 | G114: 2022-04-07 | H114: 10.7
D115: 2023-04-08 | E115: 9.2 | G115: 2022-04-08 | H115: 13.1
D116: 2023-04-09 | E116: 9.5 | G116: 2022-04-09 | H116: 12.8
D117: 2023-04-10 | E117: 7.9 | G117: 2022-04-10 | H117: 13
D118: 2023-04-11 | E118: 8.5 | G118: 2022-04-11 | H118: 12.4
D119: 2023-04-12 | E119: 10.6 | G119: 2022-04-12 | H119: 11.2
D120: 2023-04-13 | E120: 10.3 | G120: 2022-04-13 | H120: 6.6
D121: 2023-04-14 | E121: 9.7 | G121: 2022-04-14 | H121: 8.9
D122: 2023-04-15 | E122: 7.5 | G122: 2022-04-15 | H122: 10
D123: 2023-04-16 | E123: 7.4 | G123: 2022-04-16 | H123: 9.1
D124: 2023-04-17 | E124: 7.9 | G124: 2022-04-17 | H124: 9.5
D125: 2023-04-18 | E125: 9.1 | G125: 2022-04-18 | H125: 8.6
D126: 2023-04-19 | E126: 8.7 | G126: 2022-04-19 | H126: 8.2
D127: 2023-04-20 | E127: 6.9 | G127: 2022-04-20 | H127: 7.8
D128: 2023-04-21 | E128: 6.2 | G128: 2022-04-21 | H128: 7.6
D129: 2023-04-22 | E129: 5.4 | G129: 2022-04-22 | H129: 6.8
D130: 2023-04-23 | E130: 5.9 | G130: 2022-04-23 | H130: 7.4
D131: 2023-04-24 | E131: 7.2 | G131: 2022-04-24 | H131: 8.6
D132: 2023-04-25 | E132: 11 | G132: 2022-04-25 | H132: 9.4
D133: 2023-04-26 | E133: 11.7 | G133: 2022-04-26 | H133: 9.7
D134: 2023-04-27 | E134: 11.5 | G134: 2022-04-27 | H134: 8.8
D135: 2023-04-28 | E135: 10.5 | G135: 2022-04-28 | H135: 8.5
D136: 2023-04-29 | E136: 8.8 | G136: 2022-04-29 | H136: 9
D137: 2023-04-30 | E137: 10.3 | G137: 2022-04-30 | H137: 8.1
D138: 2023-05-01 | E138: 6.7 | G138: 2022-05-01 | H138: 9.1
D139: 2023-05-02 | E139: 9.8 | G139: 2022-05-02 | H139: 8.9
D140: 2023-05-03 | E140: 9.7 | G140: 2022-05-03 | H140: 6.4
D141: 2023-05-04 | E141: 9.8 | G141: 2022-05-04 | H141: 8.4
D142: 2023-05-05 | E142: 9 | G142: 2022-05-05 | H142: 9
D143: 2023-05-06 | E143: 10.7 | G143: 2022-05-06 | H143: 6.6
D144: 2023-05-07 | E144: 7.2 | G144: 2022-05-07 | H144: 5.7
D145: 2023-05-08 | E145: 5.6 | G145: 2022-05-08 | H145: 6.6
D146: 2023-05-09 | E146: 3.7 | G146: 2022-05-09 | H146: 5
D147: 2023-05-10 | E147: 4.2 | G147: 2022-05-10 | H147: 3.7
D148: 2023-05-11 | E148: 5.2 | G148: 2022-05-11 | H148: 5.8
D149: 2023-05-12 | E149: 1.8 | G149: 2022-05-12 | H149: 5.5
D150: 2023-05-13 | E150: 2.5 | G150: 2022-05-13 | H150: 5.7
D151: 2023-05-14 | E151: 2.4 | G151: 2022-05-14 | H151: 4.8
D152: 2023-05-15 | E152: 3.6 | G152: 2022-05-15 | H152: 5.4
D153: 2023-05-16 | E153: 7.7 | G153: 2022-05-16 | H153: 4
D154: 2023-05-17 | E154: 8.9 | G154: 2022-05-17 | H154: 2.3
D155: 2023-05-18 | E155: 6.7 | G155: 2022-05-18 | H155: 1.3
D156: 2023-05-19 | E156: 5.9 | G156: 2022-05-19 | H156: 1.1
D157: 2023-05-20 | E157: 4.9 | G157: 2022-05-20 | H157: 3.1
D158: 2023-05-21 | E158: 2.2 | G158: 2022-05-21 | H158: 4.9
D159: 2023-05-22 | E159: 0 | G159: 2022-05-22 | H159: 3.7
D160: 2023-05-23 | E160: 5.5 | G160: 2022-05-23 | H160: 2.2
D161: 2023-05-24 | E161: 4.1 | G161: 2022-05-24 | H161: 3.5
D162: 2023-05-25 | E162: 5.2 | G162: 2022-05-25 | H162: 4.2
D163: 2023-05-26 | E163: 6 | G163: 2022-05-26 | H163: 4.1
D164: 2023-05-27 | E164: 5.8 | G164: 2022-05-27 | H164: 6.5
D165: 2023-05-28 | E165: 5.6 | G165: 2022-05-28 | H165: 5.8
D166: 2023-05-29 | E166: 5.5 | G166: 2022-05-29 | H166: 5.8
D167: 2023-05-30 | E167: 2.6 | G167: 2022-05-30 | H167: 7
D168: 2023-05-31 | E168: 4.1 | G168: 2022-05-31 | H168: 5.9
D169: 2023-06-01 | E169: 3.5 | G169: 2022-06-01 | H169: 6
D170: 2023-06-02 | E170: 3.8 | G170: 2022-06-02 | H170: 6.2
D171: 2023-06-03 | E171: 3.9 | G171: 2022-06-03 | H171: 4.5
D172: 2023-06-04 | E172: 4.9 | G172: 2022-06-04 | H172: 3.9
D173: 2023-06-05 | E173: 4 | G173: 2022-06-05 | H173: 2.9
D174: 2023-06-06 | E174: 3.7 | G174: 2022-06-06 | H174: 1.8
D175: 2023-06-07 | E175: 3.6 | G175: 2022-06-07 | H175: 4.9
D176: 2023-06-08 | E176: 2.6 | G176: 2022-06-08 | H176: 3.6
D177: 2023-06-09 | E177: 2.1 | G177: 2022-06-09 | H177: 2
D178: 2023-06-10 | E178: 0.5 | G178: 2022-06-10 | H178: 1.6
D179: 2023-06-11 | E179: 0 | G179: 2022-06-11 | H179: 1.3
D180: 2023-06-12 | E180: 0 | G180: 2022-06-12 | H180: 2.4
D181: 2023-06-13 | E181: 0.1 | G181: 2022-06-13 | H181: 4.2
D182: 2023-06-14 | E182: 0 | G182: 2022-06-14 | H182: 3.3
D183: 2023-06-15 | E183: 0.5 | G183: 2022-06-15 | H183: 2.9
D184: 2023-06-16 | E184: 0 | G184: 2022-06-16 | H184: 1.7
D185: 2023-06-17 | E185: 0 | G185: 2022-06-17 | H185: 0.8
D186: 2023-06-18 | E186: 0 | G186: 2022-06-18 | H186: 0
D187: 2023-06-19 | E187: 0 | G187: 2022-06-19 | H187: 4.2
D188: 2023-06-20 | E188: 0 | G188: 2022-06-20 | H188: 4
D189: 2023-06-21 | E189: 0 | G189: 2022-06-21 | H189: 2.8
D190: 2023-06-22 | E190: 0 | G190: 2022-06-22 | H190: 2.5
D191: 2023-06-23 | E191: 0 | G191: 2022-06-23 | H191: 0.8
D192: 2023-06-24 | E192: 0 | G192: 2022-06-24 | H192: 0
D193: 2023-06-25 | E193: 0 | G193: 2022-06-25 | H193: 0
D194: 2023-06-26 | E194: 0 | G194: 2022-06-26 | H194: 0
D195: 2023-06-27 | E195: 1 | G195: 2022-06-27 | H195: 2.1
D196: 2023-06-28 | E196: 0.2 | G196: 2022-06-28 | H196: 0.7
D197: 2023-06-29 | E197: 0 | G197: 2022-06-29 | H197: 0
D198: 2023-06-30 | E198: 0.7 | G198: 2022-06-30 | H198: 0
D199: 2023-07-01 | E199: 1.3 | G199: 2022-07-01 | H199: 0.1
D200: 2023-07-02 | E200: 2.3 | G200: 2022-07-02 | H200: 0.4
D201: 2023-07-03 | E201: 3 | G201: 2022-07-03 | H201: 0
D202: 2023-07-04 | E202: 3.4 | G202: 2022-07-04 | H202: 1.3
... 180 more rows

Sheet Kommune Normalår
D1: ='DK middel'!D1 -> DMI graddage 2023
D2: ='DK middel'!D2 -> Version 1.3, 06-01-23
D4: Kolding kommune
D5: Normalår: | E5: 2902.454545
D6: Middel af 2012-2022.
D8: Normal-dage for normalåret til kommunen valgt på fanen "Kommune"
D9: Middel af hver dag i årene 2012-2022.
D10: Summen af dagene passer ikke med årsværdien for normalåret pga. værdien for d. 29. februar (skudår), medmindre værdien for 29. februar divideres med 4.
D11: Derefter vil summen stadig afvige lidt pga. afrunding af værdierne.
D13: Dag: | E13: Januar | F13: Februar | G13: Marts | H13: April | I13: Maj | J13: Juni | K13: Juli | L13: August | M13: September | N13: Oktober | O13: November | P13: December
D14: 1 | E14: 12.00909091 | F14: 15.36363636 | G14: 14.15454545 | H14: 12.00909091 | I14: 8.418181818 | J14: 3.327272727 | K14: 1.518181818 | L14: 0.8454545455 | M14: 2.290909091 | N14: 4.363636364 | O14: 7.327272727 | P14: 13.25454545
D15: 2 | E15: 13.6 | F15: 15.8 | G15: 14.30909091 | H15: 11.36363636 | I15: 8.572727273 | J15: 3.063636364 | K15: 1.772727273 | L15: 0.5 | M15: 2.418181818 | N15: 4.927272727 | O15: 8.127272727 | P15: 14.2
D16: 3 | E16: 14.30909091 | F16: 17 | G16: 14.78181818 | H16: 11.59090909 | I16: 8.409090909 | J16: 2.190909091 | K16: 1.554545455 | L16: 0.2727272727 | M16: 2.127272727 | N16: 5.118181818 | O16: 8.572727273 | P16: 13.34545455
D17: 4 | E17: 14.27272727 | F17: 16.6 | G17: 14.46363636 | H17: 11.50909091 | I17: 8.645454545 | J17: 1.772727273 | K17: 1.654545455 | L17: 0.5363636364 | M17: 2.009090909 | N17: 5.409090909 | O17: 8.836363636 | P17: 13.01818182
D18: 5 | E18: 14.72727273 | F18: 16.73636364 | G18: 13.76363636 | H18: 11.11818182 | I18: 8.627272727 | J18: 2.427272727 | K18: 1.472727273 | L18: 0.8454545455 | M18: 1.672727273 | N18: 5.554545455 | O18: 8.881818182 | P18: 13.13636364
D19: 6 | E19: 15.02727273 | F19: 16.33636364 | G19: 14.18181818 | H19: 10.61818182 | I19: 7.154545455 | J19: 1.981818182 | K19: 1.236363636 | L19: 0.5 | M19: 2.181818182 | N19: 5.736363636 | O19: 9.145454545 | P19: 13.20909091
D20: 7 | E20: 14.2 | F20: 15.78181818 | G20: 13.93636364 | H20: 10.29090909 | I20: 6.336363636 | J20: 2.463636364 | K20: 1.018181818 | L20: 0.5272727273 | M20: 2.454545455 | N20: 6.590909091 | O20: 8.781818182 | P20: 13.33636364
D21: 8 | E21: 13.49090909 | F21: 15.67272727 | G21: 13.70909091 | H21: 10.02727273 | I21: 6.336363636 | J21: 2.609090909 | K21: 1.281818182 | L21: 0.7818181818 | M21: 2.8 | N21: 7.445454545 | O21: 9.390909091 | P21: 12.38181818
D22: 9 | E22: 13.12727273 | F22: 15.60909091 | G22: 13.06363636 | H22: 9.836363636 | I22: 5.636363636 | J22: 2.927272727 | K22: 1.909090909 | L22: 1.1 | M22: 2.7 | N22: 6.945454545 | O22: 9.427272727 | P22: 11.81818182
D23: 10 | E23: 13.83636364 | F23: 15.7 | G23: 13.07272727 | H23: 10.08181818 | I23: 4.372727273 | J23: 2.672727273 | K23: 1.845454545 | L23: 1.345454545 | M23: 1.7 | N23: 6.590909091 | O23: 9.745454545 | P23: 12.50909091
D24: 11 | E24: 14.25454545 | F24: 16.14545455 | G24: 13.46363636 | H24: 10.57272727 | I24: 4.690909091 | J24: 2.527272727 | K24: 1.718181818 | L24: 1.563636364 | M24: 1.990909091 | N24: 6.681818182 | O24: 9.7 | P24: 13.91818182
D25: 12 | E25: 13.55454545 | F25: 16.6 | G25: 13.14545455 | H25: 11.38181818 | I25: 6.772727273 | J25: 2.190909091 | K25: 1.690909091 | L25: 1.518181818 | M25: 2.5 | N25: 6.6 | O25: 10.42727273 | P25: 14.98181818
D26: 13 | E26: 14.73636364 | F26: 17.19090909 | G26: 13.16363636 | H26: 10.52727273 | I26: 7.054545455 | J26: 2.536363636 | K26: 1.9 | L26: 1.509090909 | M26: 2.427272727 | N26: 7.045454545 | O26: 10.87272727 | P26: 13.72727273
D27: 14 | E27: 15.05454545 | F27: 16.6 | G27: 12.95454545 | H27: 10.53636364 | I27: 7.081818182 | J27: 2.745454545 | K27: 1.681818182 | L27: 1.172727273 | M27: 2.636363636 | N27: 6.881818182 | O27: 10.41818182 | P27: 13.85454545
D28: 15 | E28: 15.45454545 | F28: 15.98181818 | G28: 13.24545455 | H28: 9.972727273 | I28: 6.4 | J28: 2.536363636 | K28: 1.990909091 | L28: 0.9090909091 | M28: 2.827272727 | N28: 6.218181818 | O28: 9.754545455 | P28: 13.2
D29: 16 | E29: 15.01818182 | F29: 14.97272727 | G29: 12.73636364 | H29: 10.54545455 | I29: 6.463636364 | J29: 2.309090909 | K29: 1.5 | L29: 1.027272727 | M29: 2.963636364 | N29: 6.372727273 | O29: 9.345454545 | P29: 12.94545455
D30: 17 | E30: 15.68181818 | F30: 14.30909091 | G30: 12.81818182 | H30: 9.8 | I30: 5.118181818 | J30: 2.227272727 | K30: 1.272727273 | L30: 1.081818182 | M30: 3.209090909 | N30: 6.427272727 | O30: 10.95454545 | P30: 12.78181818
D31: 18 | E31: 15.23636364 | F31: 13.86363636 | G31: 12.99090909 | H31: 9.436363636 | I31: 4.772727273 | J31: 1.836363636 | K31: 0.9727272727 | L31: 0.7727272727 | M31: 4.072727273 | N31: 6.172727273 | O31: 10.51818182 | P31: 11.90909091
D32: 19 | E32: 15.57272727 | F32: 14 | G32: 13.13636364 | H32: 8.345454545 | I32: 4.663636364 | J32: 2 | K32: 0.6909090909 | L32: 1.472727273 | M32: 4.363636364 | N32: 6.581818182 | O32: 10.29090909 | P32: 11.59090909
D33: 20 | E33: 16.83636364 | F33: 14.10909091 | G33: 12.6 | H33: 7.363636364 | I33: 4.327272727 | J33: 1.863636364 | K33: 0.6272727273 | L33: 1.272727273 | M33: 4.236363636 | N33: 6.736363636 | O33: 11.48181818 | P33: 12.28181818
D34: 21 | E34: 16.33636364 | F34: 13.83636364 | G34: 12.58181818 | H34: 7.090909091 | I34: 3.472727273 | J34: 1.845454545 | K34: 0.7818181818 | L34: 1.209090909 | M34: 4.018181818 | N34: 6.536363636 | O34: 12.5 | P34: 12.32727273
D35: 22 | E35: 15.85454545 | F35: 13.61818182 | G35: 12.58181818 | H35: 7.481818182 | I35: 3.181818182 | J35: 2.563636364 | K35: 0.9454545455 | L35: 1.427272727 | M35: 4.109090909 | N35: 6.254545455 | O35: 11.50909091 | P35: 11.77272727
D36: 23 | E36: 16.44545455 | F36: 14.11818182 | G36: 13.04545455 | H36: 8.490909091 | I36: 4.081818182 | J36: 2.509090909 | K36: 1.072727273 | L36: 1.009090909 | M36: 4.309090909 | N36: 6.709090909 | O36: 11.66363636 | P36: 11.51818182
D37: 24 | E37: 16.05454545 | F37: 14.18181818 | G37: 12.69090909 | H37: 8.2 | I37: 4.2 | J37: 2.890909091 | K37: 0.9 | L37: 0.8636363636 | M37: 4.145454545 | N37: 6.981818182 | O37: 11.54545455 | P37: 11.74545455
D38: 25 | E38: 16.28181818 | F38: 14.02727273 | G38: 12.01818182 | H38: 8.545454545 | I38: 3.772727273 | J38: 2.490909091 | K38: 0.5818181818 | L38: 1.290909091 | M38: 4.027272727 | N38: 7.236363636 | O38: 12.05454545 | P38: 12.55454545
D39: 26 | E39: 16.73636364 | F39: 13.93636364 | G39: 11.60909091 | H39: 8.572727273 | I39: 3.3 | J39: 2.236363636 | K39: 0.5363636364 | L39: 1.581818182 | M39: 4.172727273 | N39: 7.618181818 | O39: 11.79090909 | P39: 13.92727273
D40: 27 | E40: 15.61818182 | F40: 14.86363636 | G40: 12.07272727 | H40: 9.036363636 | I40: 3.690909091 | J40: 1.909090909 | K40: 0.4 | L40: 1.463636364 | M40: 4.2 | N40: 7.118181818 | O40: 11.75454545 | P40: 13.41818182
D41: 28 | E41: 14.75454545 | F41: 14.46363636 | G41: 11.74545455 | H41: 9.018181818 | I41: 3.818181818 | J41: 1.972727273 | K41: 0.5727272727 | L41: 1.663636364 | M41: 3.127272727 | N41: 7.409090909 | O41: 13.12727273 | P41: 14.04545455
D42: 29 | E42: 15.42727273 | F42: 13.46666667 | G42: 11.64545455 | H42: 8.445454545 | I42: 4.790909091 | J42: 1.245454545 | K42: 0.7818181818 | L42: 1.572727273 | M42: 4.018181818 | N42: 8.963636364 | O42: 13.64545455 | P42: 13.46363636
D43: 30 | E43: 15.77272727 | G43: 11.8 | H43: 7.790909091 | I43: 3.845454545 | J43: 1.663636364 | K43: 1.145454545 | L43: 1.327272727 | M43: 4.609090909 | N43: 9.427272727 | O43: 14.15454545 | P43: 13.03636364
D44: 31 | E44: 16.1 | G44: 11.48181818 | I44: 3.2 | K44: 1.172727273 | L44: 1.827272727 | N44: 7.890909091 | P44: 11.57272727

Sheet Ark1 (hidden)

Sheet Ark2 (hidden)

Sheet Forespørgsel8 (hidden)
A1: geometry | B1: id | C1: type | D1: calculatedAt | E1: created | F1: from | G1: parameterId | H1: qcStatus | I1: timeResolution | J1: to | K1: value
A2: [Record] | B2: eb1bb32b-cbca-92fe-3f07-10027ed438ef | C2: Feature | D2: 2016-10-26T17:52:56.276000 | E2: 2023-05-22T11:53:25.394364+00:00 | F2: 2011-01-01T00:00:00.001000+01:00 | G2: acc_heating_degree_days_17 | H2: manual | I2: day | J2: 2011-01-02T00:00:00+01:00 | K2: 14.8 | M2: 2011-01-01T00:00:00.001000+01:00 | N2: =DATE(9999,MID(M2,6,2),MID(M2,9,2)) -> 9999-01-01 | O2: 9999-01-01 | P2: 14.8 | S2: Januar | T2: Februar | U2: Marts | V2: April | W2: Maj | X2: Juni | Y2: Juli | Z2: August | AA2: September | AB2: Oktober | AC2: November | AD2: December
A3: [Record] | B3: 47791e62-e6b4-d0ae-289b-570309f37a44 | C3: Feature | D3: 2016-10-26T17:52:51.247000 | E3: 2023-05-22T11:53:25.377870+00:00 | F3: 2011-01-02T00:00:00.001000+01:00 | G3: acc_heating_degree_days_17 | H3: manual | I3: day | J3: 2011-01-03T00:00:00+01:00 | K3: 18.7 | M3: 2011-01-02T00:00:00.001000+01:00 | N3: =DATE(9999,MID(M3,6,2),MID(M3,9,2)) -> 9999-01-02 | O3: 9999-01-02 | P3: 18.7 | R3: 1 | S3: =SUMIF($O$2:$O$4018,"="&O2,$P$2:$P$4018)/11 -> 12.00909091 | T3: =SUMIF($O$2:$O$4018,"="&O33,$P$2:$P$4018)/11 -> 15.36363636 | U3: =SUMIF($O$2:$O$4018,"="&O61,$P$2:$P$4018)/11 -> 14.15454545 | V3: =SUMIF($O$2:$O$4018,"="&O92,$P$2:$P$4018)/11 -> 12.00909091 | W3: =SUMIF($O$2:$O$4018,"="&O122,$P$2:$P$4018)/11 -> 8.418181818 | X3: =SUMIF($O$2:$O$4018,"="&O153,$P$2:$P$4018)/11 -> 3.327272727 | Y3: =SUMIF($O$2:$O$4018,"="&O183,$P$2:$P$4018)/11 -> 1.518181818 | Z3: =SUMIF($O$2:$O$4018,"="&O214,$P$2:$P$4018)/11 -> 0.8454545455 | AA3: =SUMIF($O$2:$O$4018,"="&O245,$P$2:$P$4018)/11 -> 2.290909091 | AB3: =SUMIF($O$2:$O$4018,"="&O275,$P$2:$P$4018)/11 -> 4.363636364 | AC3: =SUMIF($O$2:$O$4018,"="&O306,$P$2:$P$4018)/11 -> 7.327272727 | AD3: =SUMIF($O$2:$O$4018,"="&O336,$P$2:$P$4018)/11 -> 13.25454545
A4: [Record] | B4: 5724620a-e0d2-04a6-af67-08c4a3b334c5 | C4: Feature | D4: 2016-10-26T17:52:46.245000 | E4: 2023-05-22T11:53:25.367269+00:00 | F4: 2011-01-03T00:00:00.001000+01:00 | G4: acc_heating_degree_days_17 | H4: manual | I4: day | J4: 2011-01-04T00:00:00+01:00 | K4: 20.6 | M4: 2011-01-03T00:00:00.001000+01:00 | N4: =DATE(9999,MID(M4,6,2),MID(M4,9,2)) -> 9999-01-03 | O4: 9999-01-03 | P4: 20.6 | R4: 2 | S4: =SUMIF($O$2:$O$4018,"="&O3,$P$2:$P$4018)/11 -> 13.6 | T4: =SUMIF($O$2:$O$4018,"="&O34,$P$2:$P$4018)/11 -> 15.8 | U4: =SUMIF($O$2:$O$4018,"="&O62,$P$2:$P$4018)/11 -> 14.30909091 | V4: =SUMIF($O$2:$O$4018,"="&O93,$P$2:$P$4018)/11 -> 11.36363636 | W4: =SUMIF($O$2:$O$4018,"="&O123,$P$2:$P$4018)/11 -> 8.572727273 | X4: =SUMIF($O$2:$O$4018,"="&O154,$P$2:$P$4018)/11 -> 3.063636364 | Y4: =SUMIF($O$2:$O$4018,"="&O184,$P$2:$P$4018)/11 -> 1.772727273 | Z4: =SUMIF($O$2:$O$4018,"="&O215,$P$2:$P$4018)/11 -> 0.5 | AA4: =SUMIF($O$2:$O$4018,"="&O246,$P$2:$P$4018)/11 -> 2.418181818 | AB4: =SUMIF($O$2:$O$4018,"="&O276,$P$2:$P$4018)/11 -> 4.927272727 | AC4: =SUMIF($O$2:$O$4018,"="&O307,$P$2:$P$4018)/11 -> 8.127272727 | AD4: =SUMIF($O$2:$O$4018,"="&O337,$P$2:$P$4018)/11 -> 14.2
A5: [Record] | B5: e5f2fdae-d251-48be-5f33-d73b0ae7f66b | C5: Feature | D5: 2016-10-26T17:52:41.057000 | E5: 2023-05-22T11:53:48.807274+00:00 | F5: 2011-01-04T00:00:00.001000+01:00 | G5: acc_heating_degree_days_17 | H5: manual | I5: day | J5: 2011-01-05T00:00:00+01:00 | K5: 17.5 | M5: 2011-01-04T00:00:00.001000+01:00 | N5: 9999-01-04 | O5: 9999-01-04 | P5: 17.5 | R5: 3 | S5: =SUMIF($O$2:$O$4018,"="&O4,$P$2:$P$4018)/11 -> 14.30909091 | T5: 17 | U5: 14.78181818 | V5: 11.59090909 | W5: 8.409090909 | X5: 2.190909091 | Y5: 1.554545455 | Z5: 0.2727272727 | AA5: 2.127272727 | AB5: 5.118181818 | AC5: 8.572727273 | AD5: 13.34545455
A6: [Record] | B6: 56be02fc-8638-1fab-e052-48367197cadc | C6: Feature | D6: 2016-10-26T17:52:11.070000 | E6: 2023-05-22T11:53:48.807163+00:00 | F6: 2011-01-05T00:00:00.001000+01:00 | G6: acc_heating_degree_days_17 | H6: manual | I6: day | J6: 2011-01-06T00:00:00+01:00 | K6: 19 | M6: 2011-01-05T00:00:00.001000+01:00 | N6: 9999-01-05 | O6: 9999-01-05 | P6: 19 | R6: 4 | S6: 14.27272727 | T6: 16.6 | U6: 14.46363636 | V6: 11.50909091 | W6: 8.645454545 | X6: 1.772727273 | Y6: 1.654545455 | Z6: 0.5363636364 | AA6: 2.009090909 | AB6: 5.409090909 | AC6: 8.836363636 | AD6: 13.01818182
A7: [Record] | B7: ffe17ee9-2aed-d920-d902-b966abb32f83 | C7: Feature | D7: 2016-10-26T18:03:21.079000 | E7: 2023-05-22T11:53:48.807492+00:00 | F7: 2011-01-06T00:00:00.001000+01:00 | G7: acc_heating_degree_days_17 | H7: manual | I7: day | J7: 2011-01-07T00:00:00+01:00 | K7: 17.1 | M7: 2011-01-06T00:00:00.001000+01:00 | N7: 9999-01-06 | O7: 9999-01-06 | P7: 17.1 | R7: 5 | S7: 14.72727273 | T7: 16.73636364 | U7: 13.76363636 | V7: 11.11818182 | W7: 8.627272727 | X7: 2.427272727 | Y7: 1.472727273 | Z7: 0.8454545455 | AA7: 1.672727273 | AB7: 5.554545455 | AC7: 8.881818182 | AD7: 13.13636364
A8: [Record] | B8: a66b9cd2-09e8-e849-311f-a727ffff8100 | C8: Feature | D8: 2016-10-26T18:03:15.394000 | E8: 2023-05-22T11:54:10.502010+00:00 | F8: 2011-01-07T00:00:00.001000+01:00 | G8: acc_heating_degree_days_17 | H8: manual | I8: day | J8: 2011-01-08T00:00:00+01:00 | K8: 17.2 | M8: 2011-01-07T00:00:00.001000+01:00 | N8: 9999-01-07 | O8: 9999-01-07 | P8: 17.2 | R8: 6 | S8: 15.02727273 | T8: 16.33636364 | U8: 14.18181818 | V8: 10.61818182 | W8: 7.154545455 | X8: 1.981818182 | Y8: 1.236363636 | Z8: 0.5 | AA8: 2.181818182 | AB8: 5.736363636 | AC8: 9.145454545 | AD8: 13.20909091
A9: [Record] | B9: 74dbf002-fd53-b5f7-86b9-92bbbaa0087d | C9: Feature | D9: 2016-10-26T18:03:09.691000 | E9: 2023-05-22T11:54:10.501893+00:00 | F9: 2011-01-08T00:00:00.001000+01:00 | G9: acc_heating_degree_days_17 | H9: manual | I9: day | J9: 2011-01-09T00:00:00+01:00 | K9: 13.5 | M9: 2011-01-08T00:00:00.001000+01:00 | N9: 9999-01-08 | O9: 9999-01-08 | P9: 13.5 | R9: 7 | S9: 14.2 | T9: 15.78181818 | U9: 13.93636364 | V9: 10.29090909 | W9: 6.336363636 | X9: 2.463636364 | Y9: 1.018181818 | Z9: 0.5272727273 | AA9: 2.454545455 | AB9: 6.590909091 | AC9: 8.781818182 | AD9: 13.33636364
A10: [Record] | B10: ea72548e-d946-4281-918a-b36bbd03015e | C10: Feature | D10: 2016-10-26T18:03:02.631000 | E10: 2023-05-22T11:54:10.501784+00:00 | F10: 2011-01-09T00:00:00.001000+01:00 | G10: acc_heating_degree_days_17 | H10: manual | I10: day | J10: 2011-01-10T00:00:00+01:00 | K10: 15.3 | M10: 2011-01-09T00:00:00.001000+01:00 | N10: 9999-01-09 | O10: 9999-01-09 | P10: 15.3 | R10: 8 | S10: 13.49090909 | T10: 15.67272727 | U10: 13.70909091 | V10: 10.02727273 | W10: 6.336363636 | X10: 2.609090909 | Y10: 1.281818182 | Z10: 0.7818181818 | AA10: 2.8 | AB10: 7.445454545 | AC10: 9.390909091 | AD10: 12.38181818
A11: [Record] | B11: 2edfec41-5085-a9d0-da8b-6adc60a4604f | C11: Feature | D11: 2016-10-26T18:02:56.729000 | E11: 2023-05-22T11:54:31.902098+00:00 | F11: 2011-01-10T00:00:00.001000+01:00 | G11: acc_heating_degree_days_17 | H11: manual | I11: day | J11: 2011-01-11T00:00:00+01:00 | K11: 16.3 | M11: 2011-01-10T00:00:00.001000+01:00 | N11: 9999-01-10 | O11: 9999-01-10 | P11: 16.3 | R11: 9 | S11: 13.12727273 | T11: 15.60909091 | U11: 13.06363636 | V11: 9.836363636 | W11: 5.636363636 | X11: 2.927272727 | Y11: 1.909090909 | Z11: 1.1 | AA11: 2.7 | AB11: 6.945454545 | AC11: 9.427272727 | AD11: 11.81818182
A12: [Record] | B12: f04937f6-c388-5e01-768b-3e77de9ef84e | C12: Feature | D12: 2016-10-26T18:02:51.032000 | E12: 2023-05-22T11:54:31.901990+00:00 | F12: 2011-01-11T00:00:00.001000+01:00 | G12: acc_heating_degree_days_17 | H12: manual | I12: day | J12: 2011-01-12T00:00:00+01:00 | K12: 18 | M12: 2011-01-11T00:00:00.001000+01:00 | N12: 9999-01-11 | O12: 9999-01-11 | P12: 18 | R12: 10 | S12: 13.83636364 | T12: 15.7 | U12: 13.07272727 | V12: 10.08181818 | W12: 4.372727273 | X12: 2.672727273 | Y12: 1.845454545 | Z12: 1.345454545 | AA12: 1.7 | AB12: 6.590909091 | AC12: 9.745454545 | AD12: 12.50909091
A13: [Record] | B13: b5b73b6c-bc80-76c3-65ac-3343ae376c42 | C13: Feature | D13: 2016-10-26T18:02:45.383000 | E13: 2023-05-22T11:54:31.901882+00:00 | F13: 2011-01-12T00:00:00.001000+01:00 | G13: acc_heating_degree_days_17 | H13: manual | I13: day | J13: 2011-01-13T00:00:00+01:00 | K13: 15.5 | M13: 2011-01-12T00:00:00.001000+01:00 | N13: 9999-01-12 | O13: 9999-01-12 | P13: 15.5 | R13: 11 | S13: 14.25454545 | T13: 16.14545455 | U13: 13.46363636 | V13: 10.57272727 | W13: 4.690909091 | X13: 2.527272727 | Y13: 1.718181818 | Z13: 1.563636364 | AA13: 1.990909091 | AB13: 6.681818182 | AC13: 9.7 | AD13: 13.91818182
A14: [Record] | B14: 854ed7e2-cc2d-4385-b130-6673dced5681 | C14: Feature | D14: 2016-10-26T18:02:39.890000 | E14: 2023-05-22T11:54:55.239214+00:00 | F14: 2011-01-13T00:00:00.001000+01:00 | G14: acc_heating_degree_days_17 | H14: manual | I14: day | J14: 2011-01-14T00:00:00+01:00 | K14: 16 | M14: 2011-01-13T00:00:00.001000+01:00 | N14: 9999-01-13 | O14: 9999-01-13 | P14: 16 | R14: 12 | S14: 13.55454545 | T14: 16.6 | U14: 13.14545455 | V14: 11.38181818 | W14: 6.772727273 | X14: 2.190909091 | Y14: 1.690909091 | Z14: 1.518181818 | AA14: 2.5 | AB14: 6.6 | AC14: 10.42727273 | AD14: 14.98181818
A15: [Record] | B15: 8cdd192e-b324-6d6c-f44f-d6341227117e | C15: Feature | D15: 2016-10-26T18:02:34.182000 | E15: 2023-05-22T11:54:55.239104+00:00 | F15: 2011-01-14T00:00:00.001000+01:00 | G15: acc_heating_degree_days_17 | H15: manual | I15: day | J15: 2011-01-15T00:00:00+01:00 | K15: 13.8 | M15: 2011-01-14T00:00:00.001000+01:00 | N15: 9999-01-14 | O15: 9999-01-14 | P15: 13.8 | R15: 13 | S15: 14.73636364 | T15: 17.19090909 | U15: 13.16363636 | V15: 10.52727273 | W15: 7.054545455 | X15: 2.536363636 | Y15: 1.9 | Z15: 1.509090909 | AA15: 2.427272727 | AB15: 7.045454545 | AC15: 10.87272727 | AD15: 13.72727273
A16: [Record] | B16: 049e493a-c6ab-0c1c-ca16-155d8edb7fa2 | C16: Feature | D16: 2016-10-26T18:02:28.462000 | E16: 2023-05-22T11:54:55.238992+00:00 | F16: 2011-01-15T00:00:00.001000+01:00 | G16: acc_heating_degree_days_17 | H16: manual | I16: day | J16: 2011-01-16T00:00:00+01:00 | K16: 12.7 | M16: 2011-01-15T00:00:00.001000+01:00 | N16: 9999-01-15 | O16: 9999-01-15 | P16: 12.7 | R16: 14 | S16: 15.05454545 | T16: 16.6 | U16: 12.95454545 | V16: 10.53636364 | W16: 7.081818182 | X16: 2.745454545 | Y16: 1.681818182 | Z16: 1.172727273 | AA16: 2.636363636 | AB16: 6.881818182 | AC16: 10.41818182 | AD16: 13.85454545
A17: [Record] | B17: b5e3d63c-5a4d-8c02-7c22-e6405f7ae887 | C17: Feature | D17: 2016-10-26T18:02:22.824000 | E17: 2023-05-22T11:55:21.242122+00:00 | F17: 2011-01-16T00:00:00.001000+01:00 | G17: acc_heating_degree_days_17 | H17: manual | I17: day | J17: 2011-01-17T00:00:00+01:00 | K17: 10.7 | M17: 2011-01-16T00:00:00.001000+01:00 | N17: 9999-01-16 | O17: 9999-01-16 | P17: 10.7 | R17: 15 | S17: 15.45454545 | T17: 15.98181818 | U17: 13.24545455 | V17: 9.972727273 | W17: 6.4 | X17: 2.536363636 | Y17: 1.990909091 | Z17: 0.9090909091 | AA17: 2.827272727 | AB17: 6.218181818 | AC17: 9.754545455 | AD17: 13.2
A18: [Record] | B18: f86b4b08-3a10-ecca-a0f0-11c1d5466377 | C18: Feature | D18: 2016-10-26T18:02:16.846000 | E18: 2023-05-22T11:55:21.222945+00:00 | F18: 2011-01-17T00:00:00.001000+01:00 | G18: acc_heating_degree_days_17 | H18: manual | I18: day | J18: 2011-01-18T00:00:00+01:00 | K18: 12.8 | M18: 2011-01-17T00:00:00.001000+01:00 | N18: 9999-01-17 | O18: 9999-01-17 | P18: 12.8 | R18: 16 | S18: 15.01818182 | T18: 14.97272727 | U18: 12.73636364 | V18: 10.54545455 | W18: 6.463636364 | X18: 2.309090909 | Y18: 1.5 | Z18: 1.027272727 | AA18: 2.963636364 | AB18: 6.372727273 | AC18: 9.345454545 | AD18: 12.94545455
A19: [Record] | B19: 95b11fc8-9149-6080-da79-ccf293420a7a | C19: Feature | D19: 2016-10-26T18:02:10.887000 | E19: 2023-05-22T11:55:21.217559+00:00 | F19: 2011-01-18T00:00:00.001000+01:00 | G19: acc_heating_degree_days_17 | H19: manual | I19: day | J19: 2011-01-19T00:00:00+01:00 | K19: 13.9 | M19: 2011-01-18T00:00:00.001000+01:00 | N19: 9999-01-18 | O19: 9999-01-18 | P19: 13.9 | R19: 17 | S19: 15.68181818 | T19: 14.30909091 | U19: 12.81818182 | V19: 9.8 | W19: 5.118181818 | X19: 2.227272727 | Y19: 1.272727273 | Z19: 1.081818182 | AA19: 3.209090909 | AB19: 6.427272727 | AC19: 10.95454545 | AD19: 12.78181818
A20: [Record] | B20: 67d7aa15-e48e-49c5-24e3-dc0849c3f5b9 | C20: Feature | D20: 2016-10-26T18:02:03.009000 | E20: 2023-05-22T11:55:33.038624+00:00 | F20: 2011-01-19T00:00:00.001000+01:00 | G20: acc_heating_degree_days_17 | H20: manual | I20: day | J20: 2011-01-20T00:00:00+01:00 | K20: 15.2 | M20: 2011-01-19T00:00:00.001000+01:00 | N20: 9999-01-19 | O20: 9999-01-19 | P20: 15.2 | R20: 18 | S20: 15.23636364 | T20: 13.86363636 | U20: 12.99090909 | V20: 9.436363636 | W20: 4.772727273 | X20: 1.836363636 | Y20: 0.9727272727 | Z20: 0.7727272727 | AA20: 4.072727273 | AB20: 6.172727273 | AC20: 10.51818182 | AD20: 11.90909091
A21: [Record] | B21: 8e3f616a-bf4f-49e4-7d77-528edaecc939 | C21: Feature | D21: 2016-10-26T18:01:56.684000 | E21: 2023-05-22T11:55:33.028550+00:00 | F21: 2011-01-20T00:00:00.001000+01:00 | G21: acc_heating_degree_days_17 | H21: manual | I21: day | J21: 2011-01-21T00:00:00+01:00 | K21: 18.3 | M21: 2011-01-20T00:00:00.001000+01:00 | N21: 9999-01-20 | O21: 9999-01-20 | P21: 18.3 | R21: 19 | S21: 15.57272727 | T21: 14 | U21: 13.13636364 | V21: 8.345454545 | W21: 4.663636364 | X21: 2 | Y21: 0.6909090909 | Z21: 1.472727273 | AA21: 4.363636364 | AB21: 6.581818182 | AC21: 10.29090909 | AD21: 11.59090909
A22: [Record] | B22: 64ac7bc4-22d3-f1e8-a58c-36b75bd973c0 | C22: Feature | D22: 2016-10-26T18:01:51.313000 | E22: 2023-05-22T11:55:33.017049+00:00 | F22: 2011-01-21T00:00:00.001000+01:00 | G22: acc_heating_degree_days_17 | H22: manual | I22: day | J22: 2011-01-22T00:00:00+01:00 | K22: 18.9 | M22: 2011-01-21T00:00:00.001000+01:00 | N22: 9999-01-21 | O22: 9999-01-21 | P22: 18.9 | R22: 20 | S22: 16.83636364 | T22: 14.10909091 | U22: 12.6 | V22: 7.363636364 | W22: 4.327272727 | X22: 1.863636364 | Y22: 0.6272727273 | Z22: 1.272727273 | AA22: 4.236363636 | AB22: 6.736363636 | AC22: 11.48181818 | AD22: 12.28181818
A23: [Record] | B23: 2ead82bf-f788-742e-11f9-73c80b733551 | C23: Feature | D23: 2016-10-26T18:01:46.007000 | E23: 2023-05-22T11:55:44.311030+00:00 | F23: 2011-01-22T00:00:00.001000+01:00 | G23: acc_heating_degree_days_17 | H23: manual | I23: day | J23: 2011-01-23T00:00:00+01:00 | K23: 16 | M23: 2011-01-22T00:00:00.001000+01:00 | N23: 9999-01-22 | O23: 9999-01-22 | P23: 16 | R23: 21 | S23: 16.33636364 | T23: 13.83636364 | U23: 12.58181818 | V23: 7.090909091 | W23: 3.472727273 | X23: 1.845454545 | Y23: 0.7818181818 | Z23: 1.209090909 | AA23: 4.018181818 | AB23: 6.536363636 | AC23: 12.5 | AD23: 12.32727273
A24: [Record] | B24: 2ae795ee-1366-8c91-79d8-6f44b0acebb8 | C24: Feature | D24: 2016-10-26T18:01:40.682000 | E24: 2023-05-22T11:55:44.302931+00:00 | F24: 2011-01-23T00:00:00.001000+01:00 | G24: acc_heating_degree_days_17 | H24: manual | I24: day | J24: 2011-01-24T00:00:00+01:00 | K24: 15.8 | M24: 2011-01-23T00:00:00.001000+01:00 | N24: 9999-01-23 | O24: 9999-01-23 | P24: 15.8 | R24: 22 | S24: 15.85454545 | T24: 13.61818182 | U24: 12.58181818 | V24: 7.481818182 | W24: 3.181818182 | X24: 2.563636364 | Y24: 0.9454545455 | Z24: 1.427272727 | AA24: 4.109090909 | AB24: 6.254545455 | AC24: 11.50909091 | AD24: 11.77272727
A25: [Record] | B25: cb342633-c8ef-e548-6752-fde6baac791a | C25: Feature | D25: 2016-10-26T18:01:35.190000 | E25: 2023-05-22T11:55:44.283187+00:00 | F25: 2011-01-24T00:00:00.001000+01:00 | G25: acc_heating_degree_days_17 | H25: manual | I25: day | J25: 2011-01-25T00:00:00+01:00 | K25: 14.3 | M25: 2011-01-24T00:00:00.001000+01:00 | N25: 9999-01-24 | O25: 9999-01-24 | P25: 14.3 | R25: 23 | S25: 16.44545455 | T25: 14.11818182 | U25: 13.04545455 | V25: 8.490909091 | W25: 4.081818182 | X25: 2.509090909 | Y25: 1.072727273 | Z25: 1.009090909 | AA25: 4.309090909 | AB25: 6.709090909 | AC25: 11.66363636 | AD25: 11.51818182
A26: [Record] | B26: 87467bc5-1979-42a3-0a6d-317a9a18cc2b | C26: Feature | D26: 2016-10-26T18:01:29.531000 | E26: 2023-05-22T11:56:06.974178+00:00 | F26: 2011-01-25T00:00:00.001000+01:00 | G26: acc_heating_degree_days_17 | H26: manual | I26: day | J26: 2011-01-26T00:00:00+01:00 | K26: 15 | M26: 2011-01-25T00:00:00.001000+01:00 | N26: 9999-01-25 | O26: 9999-01-25 | P26: 15 | R26: 24 | S26: 16.05454545 | T26: 14.18181818 | U26: 12.69090909 | V26: 8.2 | W26: 4.2 | X26: 2.890909091 | Y26: 0.9 | Z26: 0.8636363636 | AA26: 4.145454545 | AB26: 6.981818182 | AC26: 11.54545455 | AD26: 11.74545455
A27: [Record] | B27: 660ecdbd-a746-6e70-47f9-e1d0034028df | C27: Feature | D27: 2016-10-26T18:01:24.042000 | E27: 2023-05-22T11:56:06.964964+00:00 | F27: 2011-01-26T00:00:00.001000+01:00 | G27: acc_heating_degree_days_17 | H27: manual | I27: day | J27: 2011-01-27T00:00:00+01:00 | K27: 19.1 | M27: 2011-01-26T00:00:00.001000+01:00 | N27: 9999-01-26 | O27: 9999-01-26 | P27: 19.1 | R27: 25 | S27: 16.28181818 | T27: 14.02727273 | U27: 12.01818182 | V27: 8.545454545 | W27: 3.772727273 | X27: 2.490909091 | Y27: 0.5818181818 | Z27: 1.290909091 | AA27: 4.027272727 | AB27: 7.236363636 | AC27: 12.05454545 | AD27: 12.55454545
A28: [Record] | B28: 10e16252-0ae0-e594-31ed-fc232eb56739 | C28: Feature | D28: 2016-10-26T18:01:18.464000 | E28: 2023-05-22T11:56:06.958509+00:00 | F28: 2011-01-27T00:00:00.001000+01:00 | G28: acc_heating_degree_days_17 | H28: manual | I28: day | J28: 2011-01-28T00:00:00+01:00 | K28: 21.5 | M28: 2011-01-27T00:00:00.001000+01:00 | N28: 9999-01-27 | O28: 9999-01-27 | P28: 21.5 | R28: 26 | S28: 16.73636364 | T28: 13.93636364 | U28: 11.60909091 | V28: 8.572727273 | W28: 3.3 | X28: 2.236363636 | Y28: 0.5363636364 | Z28: 1.581818182 | AA28: 4.172727273 | AB28: 7.618181818 | AC28: 11.79090909 | AD28: 13.92727273
A29: [Record] | B29: 404656bb-e503-6d08-13ba-4133ff2310f6 | C29: Feature | D29: 2016-10-26T18:01:12.967000 | E29: 2023-05-22T11:56:21.357058+00:00 | F29: 2011-01-28T00:00:00.001000+01:00 | G29: acc_heating_degree_days_17 | H29: manual | I29: day | J29: 2011-01-29T00:00:00+01:00 | K29: 20.7 | M29: 2011-01-28T00:00:00.001000+01:00 | N29: 9999-01-28 | O29: 9999-01-28 | P29: 20.7 | R29: 27 | S29: 15.61818182 | T29: 14.86363636 | U29: 12.07272727 | V29: 9.036363636 | W29: 3.690909091 | X29: 1.909090909 | Y29: 0.4 | Z29: 1.463636364 | AA29: 4.2 | AB29: 7.118181818 | AC29: 11.75454545 | AD29: 13.41818182
A30: [Record] | B30: e2ff4707-bfb7-5153-0945-1dd5b3279631 | C30: Feature | D30: 2016-10-26T18:01:07.341000 | E30: 2023-05-22T11:56:21.348443+00:00 | F30: 2011-01-29T00:00:00.001000+01:00 | G30: acc_heating_degree_days_17 | H30: manual | I30: day | J30: 2011-01-30T00:00:00+01:00 | K30: 18.6 | M30: 2011-01-29T00:00:00.001000+01:00 | N30: 9999-01-29 | O30: 9999-01-29 | P30: 18.6 | R30: 28 | S30: 14.75454545 | T30: =SUMIF($O$2:$O$4018,"="&O60,$P$2:$P$4018)/11 -> 14.46363636 | U30: 11.74545455 | V30: 9.018181818 | W30: 3.818181818 | X30: 1.972727273 | Y30: 0.5727272727 | Z30: 1.663636364 | AA30: 3.127272727 | AB30: 7.409090909 | AC30: 13.12727273 | AD30: 14.04545455
A31: [Record] | B31: 9ca15272-30b8-9dc2-5805-a6afb1356d43 | C31: Feature | D31: 2016-10-26T18:00:59.946000 | E31: 2023-05-22T11:56:21.335839+00:00 | F31: 2011-01-30T00:00:00.001000+01:00 | G31: acc_heating_degree_days_17 | H31: manual | I31: day | J31: 2011-01-31T00:00:00+01:00 | K31: 18.4 | M31: 2011-01-30T00:00:00.001000+01:00 | N31: 9999-01-30 | O31: 9999-01-30 | P31: 18.4 | R31: 29 | S31: 15.42727273 | T31: =SUMIF($O$2:$O$4018,"=29-02-9999",$P$2:$P$4018)/3 -> 13.46666667 | U31: 11.64545455 | V31: 8.445454545 | W31: 4.790909091 | X31: 1.245454545 | Y31: 0.7818181818 | Z31: 1.572727273 | AA31: 4.018181818 | AB31: 8.963636364 | AC31: 13.64545455 | AD31: 13.46363636
A32: [Record] | B32: a3c81ce4-8eea-b5b9-edcd-3e3ee2efdeac | C32: Feature | D32: 2016-10-26T18:00:54.412000 | E32: 2023-05-22T11:56:35.447449+00:00 | F32: 2011-01-31T00:00:00.001000+01:00 | G32: acc_heating_degree_days_17 | H32: manual | I32: day | J32: 2011-02-01T00:00:00+01:00 | K32: 17.9 | M32: 2011-01-31T00:00:00.001000+01:00 | N32: 9999-01-31 | O32: 9999-01-31 | P32: 17.9 | R32: 30 | S32: 15.77272727 | U32: 11.8 | V32: 7.790909091 | W32: 3.845454545 | X32: 1.663636364 | Y32: 1.145454545 | Z32: 1.327272727 | AA32: 4.609090909 | AB32: 9.427272727 | AC32: 14.15454545 | AD32: 13.03636364
A33: [Record] | B33: e40cc78a-0f18-0b1e-1619-5e10343260e9 | C33: Feature | D33: 2016-10-26T18:00:48.650000 | E33: 2023-05-22T11:56:35.434825+00:00 | F33: 2011-02-01T00:00:00.001000+01:00 | G33: acc_heating_degree_days_17 | H33: manual | I33: day | J33: 2011-02-02T00:00:00+01:00 | K33: 15.5 | M33: 2011-02-01T00:00:00.001000+01:00 | N33: 9999-02-01 | O33: 9999-02-01 | P33: 15.5 | R33: 31 | S33: 16.1 | U33: 11.48181818 | W33: 3.2 | Y33: 1.172727273 | Z33: 1.827272727 | AB33: 7.890909091 | AD33: 11.57272727
A34: [Record] | B34: c61e065d-f913-158c-fe26-1ac12acc2f7c | C34: Feature | D34: 2016-10-26T18:00:43.118000 | E34: 2023-05-22T11:56:35.421111+00:00 | F34: 2011-02-02T00:00:00.001000+01:00 | G34: acc_heating_degree_days_17 | H34: manual | I34: day | J34: 2011-02-03T00:00:00+01:00 | K34: 14.3 | M34: 2011-02-02T00:00:00.001000+01:00 | N34: 9999-02-02 | O34: 9999-02-02 | P34: 14.3
A35: [Record] | B35: afa01bf7-619f-7d7c-3752-cb3739610cde | C35: Feature | D35: 2016-10-26T18:00:37.201000 | E35: 2023-05-22T11:56:55.581913+00:00 | F35: 2011-02-03T00:00:00.001000+01:00 | G35: acc_heating_degree_days_17 | H35: manual | I35: day | J35: 2011-02-04T00:00:00+01:00 | K35: 13.2 | M35: 2011-02-03T00:00:00.001000+01:00 | N35: 9999-02-03 | O35: 9999-02-03 | P35: 13.2
A36: [Record] | B36: cea0e7a4-f5a4-a6f8-a7e9-e95f23fc55c0 | C36: Feature | D36: 2016-10-26T18:00:31.424000 | E36: 2023-05-22T11:56:55.581803+00:00 | F36: 2011-02-04T00:00:00.001000+01:00 | G36: acc_heating_degree_days_17 | H36: manual | I36: day | J36: 2011-02-05T00:00:00+01:00 | K36: 11.9 | M36: 2011-02-04T00:00:00.001000+01:00 | N36: 9999-02-04 | O36: 9999-02-04 | P36: 11.9
A37: [Record] | B37: 64dec3df-0b82-2da2-018b-3a13fb118a6f | C37: Feature | D37: 2016-10-26T18:00:25.503000 | E37: 2023-05-22T11:56:55.581691+00:00 | F37: 2011-02-05T00:00:00.001000+01:00 | G37: acc_heating_degree_days_17 | H37: manual | I37: day | J37: 2011-02-06T00:00:00+01:00 | K37: 11 | M37: 2011-02-05T00:00:00.001000+01:00 | N37: 9999-02-05 | O37: 9999-02-05 | P37: 11
A38: [Record] | B38: 760098fa-1ad1-3c9e-bd22-ee2d0cf6bbaa | C38: Feature | D38: 2016-10-26T18:00:18.998000 | E38: 2023-05-22T11:57:07.286390+00:00 | F38: 2011-02-06T00:00:00.001000+01:00 | G38: acc_heating_degree_days_17 | H38: manual | I38: day | J38: 2011-02-07T00:00:00+01:00 | K38: 12.6 | M38: 2011-02-06T00:00:00.001000+01:00 | N38: 9999-02-06 | O38: 9999-02-06 | P38: 12.6
A39: [Record] | B39: df8161e0-dedf-bb6c-5a79-67229077f020 | C39: Feature | D39: 2016-10-26T18:00:12.017000 | E39: 2023-05-22T11:57:07.215942+00:00 | F39: 2011-02-07T00:00:00.001000+01:00 | G39: acc_heating_degree_days_17 | H39: manual | I39: day | J39: 2011-02-08T00:00:00+01:00 | K39: 11.7 | M39: 2011-02-07T00:00:00.001000+01:00 | N39: 9999-02-07 | O39: 9999-02-07 | P39: 11.7
A40: [Record] | B40: 677d9816-50fc-8da8-9a93-2da153d02418 | C40: Feature | D40: 2016-10-26T18:00:01.122000 | E40: 2023-05-22T11:57:07.199413+00:00 | F40: 2011-02-08T00:00:00.001000+01:00 | G40: acc_heating_degree_days_17 | H40: manual | I40: day | J40: 2011-02-09T00:00:00+01:00 | K40: 12.5 | M40: 2011-02-08T00:00:00.001000+01:00 | N40: 9999-02-08 | O40: 9999-02-08 | P40: 12.5
A41: [Record] | B41: 7133d9aa-3f40-aa24-8fed-4e84dd7af5bf | C41: Feature | D41: 2016-10-26T17:59:55.811000 | E41: 2023-05-22T11:57:22.081853+00:00 | F41: 2011-02-09T00:00:00.001000+01:00 | G41: acc_heating_degree_days_17 | H41: manual | I41: day | J41: 2011-02-10T00:00:00+01:00 | K41: 13.8 | M41: 2011-02-09T00:00:00.001000+01:00 | N41: 9999-02-09 | O41: 9999-02-09 | P41: 13.8
A42: [Record] | B42: fbfe945b-e05b-51ef-d5ab-0568630c93ee | C42: Feature | D42: 2016-10-26T17:59:50.527000 | E42: 2023-05-22T11:57:22.064694+00:00 | F42: 2011-02-10T00:00:00.001000+01:00 | G42: acc_heating_degree_days_17 | H42: manual | I42: day | J42: 2011-02-11T00:00:00+01:00 | K42: 13.3 | M42: 2011-02-10T00:00:00.001000+01:00 | N42: 9999-02-10 | O42: 9999-02-10 | P42: 13.3
A43: [Record] | B43: d7d5b7c9-1592-bb1f-9a59-e7b9e6e04c4e | C43: Feature | D43: 2016-10-26T17:59:45.391000 | E43: 2023-05-22T11:57:22.069321+00:00 | F43: 2011-02-11T00:00:00.001000+01:00 | G43: acc_heating_degree_days_17 | H43: manual | I43: day | J43: 2011-02-12T00:00:00+01:00 | K43: 14.5 | M43: 2011-02-11T00:00:00.001000+01:00 | N43: 9999-02-11 | O43: 9999-02-11 | P43: 14.5
A44: [Record] | B44: d19f9810-c6b7-4b9e-dfb4-f7b926cbb29a | C44: Feature | D44: 2016-10-26T17:59:40.059000 | E44: 2023-05-22T11:57:39.898759+00:00 | F44: 2011-02-12T00:00:00.001000+01:00 | G44: acc_heating_degree_days_17 | H44: manual | I44: day | J44: 2011-02-13T00:00:00+01:00 | K44: 18.6 | M44: 2011-02-12T00:00:00.001000+01:00 | N44: 9999-02-12 | O44: 9999-02-12 | P44: 18.6
A45: [Record] | B45: 993fd898-7455-932f-b25a-e485f5f76d4d | C45: Feature | D45: 2016-10-26T17:59:34.936000 | E45: 2023-05-22T11:57:39.882214+00:00 | F45: 2011-02-13T00:00:00.001000+01:00 | G45: acc_heating_degree_days_17 | H45: manual | I45: day | J45: 2011-02-14T00:00:00+01:00 | K45: 17.7 | M45: 2011-02-13T00:00:00.001000+01:00 | N45: 9999-02-13 | O45: 9999-02-13 | P45: 17.7
A46: [Record] | B46: 93a735ba-5ed1-1735-50e9-4091404d11fc | C46: Feature | D46: 2016-10-26T17:59:29.740000 | E46: 2023-05-22T11:57:39.885768+00:00 | F46: 2011-02-14T00:00:00.001000+01:00 | G46: acc_heating_degree_days_17 | H46: manual | I46: day | J46: 2011-02-15T00:00:00+01:00 | K46: 18 | M46: 2011-02-14T00:00:00.001000+01:00 | N46: 9999-02-14 | O46: 9999-02-14 | P46: 18
A47: [Record] | B47: fe394f37-bbdf-d8fb-9c2a-8c537f14da0d | C47: Feature | D47: 2016-10-26T17:59:24.385000 | E47: 2023-05-22T11:57:51.619683+00:00 | F47: 2011-02-15T00:00:00.001000+01:00 | G47: acc_heating_degree_days_17 | H47: manual | I47: day | J47: 2011-02-16T00:00:00+01:00 | K47: 19.4 | M47: 2011-02-15T00:00:00.001000+01:00 | N47: 9999-02-15 | O47: 9999-02-15 | P47: 19.4
A48: [Record] | B48: d5304c12-4f15-f35b-7147-4133952f304d | C48: Feature | D48: 2016-10-26T17:59:19.053000 | E48: 2023-05-22T11:57:51.611069+00:00 | F48: 2011-02-16T00:00:00.001000+01:00 | G48: acc_heating_degree_days_17 | H48: manual | I48: day | J48: 2011-02-17T00:00:00+01:00 | K48: 19 | M48: 2011-02-16T00:00:00.001000+01:00 | N48: 9999-02-16 | O48: 9999-02-16 | P48: 19
A49: [Record] | B49: 1567070a-cec3-cdd1-5e34-b7ff8bb8efd3 | C49: Feature | D49: 2016-10-26T17:59:13.889000 | E49: 2023-05-22T11:57:51.606797+00:00 | F49: 2011-02-17T00:00:00.001000+01:00 | G49: acc_heating_degree_days_17 | H49: manual | I49: day | J49: 2011-02-18T00:00:00+01:00 | K49: 18.2 | M49: 2011-02-17T00:00:00.001000+01:00 | N49: 9999-02-17 | O49: 9999-02-17 | P49: 18.2
A50: [Record] | B50: 3ffc89f3-a106-f1ac-a0a1-cbfb8c0011b5 | C50: Feature | D50: 2016-10-26T17:59:08.510000 | E50: 2023-05-22T11:58:02.849013+00:00 | F50: 2011-02-18T00:00:00.001000+01:00 | G50: acc_heating_degree_days_17 | H50: manual | I50: day | J50: 2011-02-19T00:00:00+01:00 | K50: 18.8 | M50: 2011-02-18T00:00:00.001000+01:00 | N50: 9999-02-18 | O50: 9999-02-18 | P50: 18.8
A51: [Record] | B51: ac46f991-70a3-f567-688c-05147e22942b | C51: Feature | D51: 2016-10-26T17:59:01.473000 | E51: 2023-05-22T11:58:02.837480+00:00 | F51: 2011-02-19T00:00:00.001000+01:00 | G51: acc_heating_degree_days_17 | H51: manual | I51: day | J51: 2011-02-20T00:00:00+01:00 | K51: 20.9 | M51: 2011-02-19T00:00:00.001000+01:00 | N51: 9999-02-19 | O51: 9999-02-19 | P51: 20.9
A52: [Record] | B52: 75db1207-fdb2-f3e1-188c-771ab9f73377 | C52: Feature | D52: 2016-10-26T17:58:56.377000 | E52: 2023-05-22T11:58:02.823829+00:00 | F52: 2011-02-20T00:00:00.001000+01:00 | G52: acc_heating_degree_days_17 | H52: manual | I52: day | J52: 2011-02-21T00:00:00+01:00 | K52: 21.5 | M52: 2011-02-20T00:00:00.001000+01:00 | N52: 9999-02-20 | O52: 9999-02-20 | P52: 21.5
A53: [Record] | B53: ea73dc03-c632-7dad-5775-71ea04853026 | C53: Feature | D53: 2016-10-26T17:58:51.256000 | E53: 2023-05-22T11:58:14.263232+00:00 | F53: 2011-02-21T00:00:00.001000+01:00 | G53: acc_heating_degree_days_17 | H53: manual | I53: day | J53: 2011-02-22T00:00:00+01:00 | K53: 21.3 | M53: 2011-02-21T00:00:00.001000+01:00 | N53: 9999-02-21 | O53: 9999-02-21 | P53: 21.3
A54: [Record] | B54: 321984fe-f165-81d4-ff86-dd8475d5c1ae | C54: Feature | D54: 2016-10-26T17:58:46.143000 | E54: 2023-05-22T11:58:14.322707+00:00 | F54: 2011-02-22T00:00:00.001000+01:00 | G54: acc_heating_degree_days_17 | H54: manual | I54: day | J54: 2011-02-23T00:00:00+01:00 | K54: 21.4 | M54: 2011-02-22T00:00:00.001000+01:00 | N54: 9999-02-22 | O54: 9999-02-22 | P54: 21.4
A55: [Record] | B55: faee72a8-9117-55a8-88cc-6be0cacf671f | C55: Feature | D55: 2016-10-26T17:58:11.889000 | E55: 2023-05-22T11:58:14.310395+00:00 | F55: 2011-02-23T00:00:00.001000+01:00 | G55: acc_heating_degree_days_17 | H55: manual | I55: day | J55: 2011-02-24T00:00:00+01:00 | K55: 21.9 | M55: 2011-02-23T00:00:00.001000+01:00 | N55: 9999-02-23 | O55: 9999-02-23 | P55: 21.9
A56: [Record] | B56: db642db1-b2ce-e7ce-7a18-33cd29cd2444 | C56: Feature | D56: 2016-10-26T18:09:18.338000 | E56: 2023-05-22T11:58:34.918838+00:00 | F56: 2011-02-24T00:00:00.001000+01:00 | G56: acc_heating_degree_days_17 | H56: manual | I56: day | J56: 2011-02-25T00:00:00+01:00 | K56: 19.3 | M56: 2011-02-24T00:00:00.001000+01:00 | N56: 9999-02-24 | O56: 9999-02-24 | P56: 19.3
A57: [Record] | B57: fafbb14e-2c13-7fa7-14f0-fb1a025eca15 | C57: Feature | D57: 2016-10-26T18:09:07.204000 | E57: 2023-05-22T11:58:34.918730+00:00 | F57: 2011-02-25T00:00:00.001000+01:00 | G57: acc_heating_degree_days_17 | H57: manual | I57: day | J57: 2011-02-26T00:00:00+01:00 | K57: 16.6 | M57: 2011-02-25T00:00:00.001000+01:00 | N57: 9999-02-25 | O57: 9999-02-25 | P57: 16.6
A58: [Record] | B58: 631a9573-0bfd-a9b4-566a-026319a07e8d | C58: Feature | D58: 2016-10-26T18:08:53.286000 | E58: 2023-05-22T11:58:34.918620+00:00 | F58: 2011-02-26T00:00:00.001000+01:00 | G58: acc_heating_degree_days_17 | H58: manual | I58: day | J58: 2011-02-27T00:00:00+01:00 | K58: 15.8 | M58: 2011-02-26T00:00:00.001000+01:00 | N58: 9999-02-26 | O58: 9999-02-26 | P58: 15.8
A59: [Record] | B59: 829380a4-ceb0-7488-b71d-a7d6f24d2684 | C59: Feature | D59: 2016-10-26T18:08:42.595000 | E59: 2023-05-22T11:58:55.285861+00:00 | F59: 2011-02-27T00:00:00.001000+01:00 | G59: acc_heating_degree_days_17 | H59: manual | I59: day | J59: 2011-02-28T00:00:00+01:00 | K59: 18.5 | M59: 2011-02-27T00:00:00.001000+01:00 | N59: 9999-02-27 | O59: 9999-02-27 | P59: 18.5
A60: [Record] | B60: 35485a2a-5ce6-1766-0d10-d5876a8738fe | C60: Feature | D60: 2016-10-26T18:08:26.533000 | E60: 2023-05-22T11:58:55.285750+00:00 | F60: 2011-02-28T00:00:00.001000+01:00 | G60: acc_heating_degree_days_17 | H60: manual | I60: day | J60: 2011-03-01T00:00:00+01:00 | K60: 17.9 | M60: 2011-02-28T00:00:00.001000+01:00 | N60: 9999-02-28 | O60: 9999-02-28 | P60: 17.9
A61: [Record] | B61: 933a9936-93b3-c992-d3ab-4e44cc15e8d7 | C61: Feature | D61: 2016-10-26T18:08:15.865000 | E61: 2023-05-22T11:58:55.285637+00:00 | F61: 2011-03-01T00:00:00.001000+01:00 | G61: acc_heating_degree_days_17 | H61: manual | I61: day | J61: 2011-03-02T00:00:00+01:00 | K61: 17.7 | M61: 2011-03-01T00:00:00.001000+01:00 | N61: 9999-03-01 | O61: 9999-03-01 | P61: 17.7
A62: [Record] | B62: d5641d05-471d-fbda-a93b-da2dbc492bd1 | C62: Feature | D62: 2016-10-26T18:08:02.608000 | E62: 2023-05-22T11:59:16.105320+00:00 | F62: 2011-03-02T00:00:00.001000+01:00 | G62: acc_heating_degree_days_17 | H62: manual | I62: day | J62: 2011-03-03T00:00:00+01:00 | K62: 18.8 | M62: 2011-03-02T00:00:00.001000+01:00 | N62: 9999-03-02 | O62: 9999-03-02 | P62: 18.8
A63: [Record] | B63: 19526aa4-28ea-125f-9b1f-6ea3d227c3cd | C63: Feature | D63: 2016-10-26T18:07:50.997000 | E63: 2023-05-22T11:59:16.105208+00:00 | F63: 2011-03-03T00:00:00.001000+01:00 | G63: acc_heating_degree_days_17 | H63: manual | I63: day | J63: 2011-03-04T00:00:00+01:00 | K63: 19.2 | M63: 2011-03-03T00:00:00.001000+01:00 | N63: 9999-03-03 | O63: 9999-03-03 | P63: 19.2
A64: [Record] | B64: a6855471-080f-338b-52d3-f794eb4753c1 | C64: Feature | D64: 2016-10-26T18:07:45.378000 | E64: 2023-05-22T11:59:16.105092+00:00 | F64: 2011-03-04T00:00:00.001000+01:00 | G64: acc_heating_degree_days_17 | H64: manual | I64: day | J64: 2011-03-05T00:00:00+01:00 | K64: 16.5 | M64: 2011-03-04T00:00:00.001000+01:00 | N64: 9999-03-04 | O64: 9999-03-04 | P64: 16.5
A65: [Record] | B65: c38ce56f-1934-9697-fbda-aaf663a10bd8 | C65: Feature | D65: 2016-10-26T18:07:34.082000 | E65: 2023-05-22T11:59:37.612975+00:00 | F65: 2011-03-05T00:00:00.001000+01:00 | G65: acc_heating_degree_days_17 | H65: manual | I65: day | J65: 2011-03-06T00:00:00+01:00 | K65: 13.9 | M65: 2011-03-05T00:00:00.001000+01:00 | N65: 9999-03-05 | O65: 9999-03-05 | P65: 13.9
A66: [Record] | B66: bf1439cc-2d2d-c036-14a7-1b783cb7fd2f | C66: Feature | D66: 2016-10-26T18:07:17.404000 | E66: 2023-05-22T11:59:37.612848+00:00 | F66: 2011-03-06T00:00:00.001000+01:00 | G66: acc_heating_degree_days_17 | H66: manual | I66: day | J66: 2011-03-07T00:00:00+01:00 | K66: 16.7 | M66: 2011-03-06T00:00:00.001000+01:00 | N66: 9999-03-06 | O66: 9999-03-06 | P66: 16.7
A67: [Record] | B67: 3445fc76-b62f-964e-45fd-4747da6f10c9 | C67: Feature | D67: 2016-10-26T18:07:11.810000 | E67: 2023-05-22T11:59:37.612720+00:00 | F67: 2011-03-07T00:00:00.001000+01:00 | G67: acc_heating_degree_days_17 | H67: manual | I67: day | J67: 2011-03-08T00:00:00+01:00 | K67: 16.7 | M67: 2011-03-07T00:00:00.001000+01:00 | N67: =DATE(9999,MID(M67,6,2),MID(M67,9,2)) -> 9999-03-07 | O67: 9999-03-07 | P67: 16.7
A68: [Record] | B68: 52319e25-fbec-8be2-b476-859a4e40a902 | C68: Feature | D68: 2016-10-26T18:06:58.329000 | E68: 2023-05-22T11:59:49.237128+00:00 | F68: 2011-03-08T00:00:00.001000+01:00 | G68: acc_heating_degree_days_17 | H68: manual | I68: day | J68: 2011-03-09T00:00:00+01:00 | K68: 15.6 | M68: 2011-03-08T00:00:00.001000+01:00 | N68: 9999-03-08 | O68: 9999-03-08 | P68: 15.6
A69: [Record] | B69: 06a5ec45-edff-b09e-227d-2e9ecc4f7340 | C69: Feature | D69: 2016-10-26T18:06:47.606000 | E69: 2023-05-22T11:59:49.222128+00:00 | F69: 2011-03-09T00:00:00.001000+01:00 | G69: acc_heating_degree_days_17 | H69: manual | I69: day | J69: 2011-03-10T00:00:00+01:00 | K69: 14.8 | M69: 2011-03-09T00:00:00.001000+01:00 | N69: 9999-03-09 | O69: 9999-03-09 | P69: 14.8
A70: [Record] | B70: 8d0efd5d-0d26-b6c3-2326-2c91c05f63dd | C70: Feature | D70: 2016-10-26T18:06:36.299000 | E70: 2023-05-22T11:59:49.216155+00:00 | F70: 2011-03-10T00:00:00.001000+01:00 | G70: acc_heating_degree_days_17 | H70: manual | I70: day | J70: 2011-03-11T00:00:00+01:00 | K70: 12.8 | M70: 2011-03-10T00:00:00.001000+01:00 | N70: 9999-03-10 | O70: 9999-03-10 | P70: 12.8
A71: [Record] | B71: 207caf7b-015c-440c-6feb-07c97a3e4510 | C71: Feature | D71: 2016-10-26T18:06:30.549000 | E71: 2023-05-22T12:00:13.371864+00:00 | F71: 2011-03-11T00:00:00.001000+01:00 | G71: acc_heating_degree_days_17 | H71: manual | I71: day | J71: 2011-03-12T00:00:00+01:00 | K71: 13.3 | M71: 2011-03-11T00:00:00.001000+01:00 | N71: 9999-03-11 | O71: 9999-03-11 | P71: 13.3
A72: [Record] | B72: e34e322e-c2d9-80c9-8c57-d26d5eb9b1ab | C72: Feature | D72: 2016-10-26T18:06:24.559000 | E72: 2023-05-22T12:00:13.338024+00:00 | F72: 2011-03-12T00:00:00.001000+01:00 | G72: acc_heating_degree_days_17 | H72: manual | I72: day | J72: 2011-03-13T00:00:00+01:00 | K72: 11.8 | M72: 2011-03-12T00:00:00.001000+01:00 | N72: 9999-03-12 | O72: 9999-03-12 | P72: 11.8
A73: [Record] | B73: 94053a21-9585-161d-b426-c2d56f91df87 | C73: Feature | D73: 2016-10-26T18:06:16.267000 | E73: 2023-05-22T12:00:13.331479+00:00 | F73: 2011-03-13T00:00:00.001000+01:00 | G73: acc_heating_degree_days_17 | H73: manual | I73: day | J73: 2011-03-14T00:00:00+01:00 | K73: 10.4 | M73: 2011-03-13T00:00:00.001000+01:00 | N73: 9999-03-13 | O73: 9999-03-13 | P73: 10.4
A74: [Record] | B74: 04f7dc04-1591-47d4-ccc8-59140ed5425e | C74: Feature | D74: 2016-10-26T18:06:10.025000 | E74: 2023-05-22T12:00:24.799131+00:00 | F74: 2011-03-14T00:00:00.001000+01:00 | G74: acc_heating_degree_days_17 | H74: manual | I74: day | J74: 2011-03-15T00:00:00+01:00 | K74: 10 | M74: 2011-03-14T00:00:00.001000+01:00 | N74: 9999-03-14 | O74: 9999-03-14 | P74: 10
A75: [Record] | B75: 92bcbf6c-e8d0-213c-2a2a-263a807fce0c | C75: Feature | D75: 2016-10-26T18:06:01.121000 | E75: 2023-05-22T12:00:24.793150+00:00 | F75: 2011-03-15T00:00:00.001000+01:00 | G75: acc_heating_degree_days_17 | H75: manual | I75: day | J75: 2011-03-16T00:00:00+01:00 | K75: 14.3 | M75: 2011-03-15T00:00:00.001000+01:00 | N75: 9999-03-15 | O75: 9999-03-15 | P75: 14.3
A76: [Record] | B76: 3e50876c-93c3-9e35-9556-6a764b5e93bd | C76: Feature | D76: 2016-10-26T18:05:55.949000 | E76: 2023-05-22T12:00:24.768812+00:00 | F76: 2011-03-16T00:00:00.001000+01:00 | G76: acc_heating_degree_days_17 | H76: manual | I76: day | J76: 2011-03-17T00:00:00+01:00 | K76: 15.9 | M76: 2011-03-16T00:00:00.001000+01:00 | N76: 9999-03-16 | O76: 9999-03-16 | P76: 15.9
A77: [Record] | B77: aa373a90-720f-5d3a-cbe1-cec8cb9b57f6 | C77: Feature | D77: 2016-10-26T18:05:50.420000 | E77: 2023-05-22T12:00:36.480531+00:00 | F77: 2011-03-17T00:00:00.001000+01:00 | G77: acc_heating_degree_days_17 | H77: manual | I77: day | J77: 2011-03-18T00:00:00+01:00 | K77: 15.2 | M77: 2011-03-17T00:00:00.001000+01:00 | N77: 9999-03-17 | O77: 9999-03-17 | P77: 15.2
A78: [Record] | B78: ab7a4254-8b38-63c2-a071-3b5bec44cea6 | C78: Feature | D78: 2016-10-26T18:05:44.867000 | E78: 2023-05-22T12:00:36.475031+00:00 | F78: 2011-03-18T00:00:00.001000+01:00 | G78: acc_heating_degree_days_17 | H78: manual | I78: day | J78: 2011-03-19T00:00:00+01:00 | K78: 14.2 | M78: 2011-03-18T00:00:00.001000+01:00 | N78: 9999-03-18 | O78: 9999-03-18 | P78: 14.2
A79: [Record] | B79: 59855fe3-457d-9283-e333-38250719e085 | C79: Feature | D79: 2016-10-26T18:05:39.365000 | E79: 2023-05-22T12:00:36.466361+00:00 | F79: 2011-03-19T00:00:00.001000+01:00 | G79: acc_heating_degree_days_17 | H79: manual | I79: day | J79: 2011-03-20T00:00:00+01:00 | K79: 13.4 | M79: 2011-03-19T00:00:00.001000+01:00 | N79: 9999-03-19 | O79: 9999-03-19 | P79: 13.4
A80: [Record] | B80: b49a1933-a545-1cba-56f1-380b7e57d636 | C80: Feature | D80: 2016-10-26T18:05:33.940000 | E80: 2023-05-22T12:00:56.588376+00:00 | F80: 2011-03-20T00:00:00.001000+01:00 | G80: acc_heating_degree_days_17 | H80: manual | I80: day | J80: 2011-03-21T00:00:00+01:00 | K80: 14.1 | M80: 2011-03-20T00:00:00.001000+01:00 | N80: 9999-03-20 | O80: 9999-03-20 | P80: 14.1
A81: [Record] | B81: f15cc08a-e4ad-0b76-058c-f2894ecf696a | C81: Feature | D81: 2016-10-26T18:05:28.075000 | E81: 2023-05-22T12:00:56.588265+00:00 | F81: 2011-03-21T00:00:00.001000+01:00 | G81: acc_heating_degree_days_17 | H81: manual | I81: day | J81: 2011-03-22T00:00:00+01:00 | K81: 12.1 | M81: 2011-03-21T00:00:00.001000+01:00 | N81: 9999-03-21 | O81: 9999-03-21 | P81: 12.1
A82: [Record] | B82: bb9ad8eb-a4c2-d34d-0c59-4e865c659a30 | C82: Feature | D82: 2016-10-26T18:05:22.233000 | E82: 2023-05-22T12:00:56.588153+00:00 | F82: 2011-03-22T00:00:00.001000+01:00 | G82: acc_heating_degree_days_17 | H82: manual | I82: day | J82: 2011-03-23T00:00:00+01:00 | K82: 9.6 | M82: 2011-03-22T00:00:00.001000+01:00 | N82: 9999-03-22 | O82: 9999-03-22 | P82: 9.6
A83: [Record] | B83: 9b52e62c-b032-1425-704f-9040bdcb7422 | C83: Feature | D83: 2016-10-26T18:05:14.376000 | E83: 2023-05-22T12:01:19.798516+00:00 | F83: 2011-03-23T00:00:00.001000+01:00 | G83: acc_heating_degree_days_17 | H83: manual | I83: day | J83: 2011-03-24T00:00:00+01:00 | K83: 10.9 | M83: 2011-03-23T00:00:00.001000+01:00 | N83: 9999-03-23 | O83: 9999-03-23 | P83: 10.9
A84: [Record] | B84: 0cb20aa1-840f-922d-7112-ded23ec68144 | C84: Feature | D84: 2016-10-26T18:05:04.451000 | E84: 2023-05-22T12:01:19.790870+00:00 | F84: 2011-03-24T00:00:00.001000+01:00 | G84: acc_heating_degree_days_17 | H84: manual | I84: day | J84: 2011-03-25T00:00:00+01:00 | K84: 8.9 | M84: 2011-03-24T00:00:00.001000+01:00 | N84: 9999-03-24 | O84: 9999-03-24 | P84: 8.9
A85: [Record] | B85: 95057309-26ad-8eaf-9e25-2dec7f1495bd | C85: Feature | D85: 2016-10-26T18:04:57.656000 | E85: 2023-05-22T12:01:19.780722+00:00 | F85: 2011-03-25T00:00:00.001000+01:00 | G85: acc_heating_degree_days_17 | H85: manual | I85: day | J85: 2011-03-26T00:00:00+01:00 | K85: 11.6 | M85: 2011-03-25T00:00:00.001000+01:00 | N85: 9999-03-25 | O85: 9999-03-25 | P85: 11.6
A86: [Record] | B86: 5b63c5f6-c878-6df7-a683-d9d4278eeed1 | C86: Feature | D86: 2016-10-26T18:04:52.545000 | E86: 2023-05-22T12:01:38.759382+00:00 | F86: 2011-03-26T00:00:00.001000+01:00 | G86: acc_heating_degree_days_17 | H86: manual | I86: day | J86: 2011-03-27T00:00:00+01:00 | K86: 15.8 | M86: 2011-03-26T00:00:00.001000+01:00 | N86: 9999-03-26 | O86: 9999-03-26 | P86: 15.8
A87: [Record] | B87: e600140d-605a-71f5-2399-76f92568b346 | C87: Feature | D87: 2016-10-26T18:04:47.375000 | E87: 2023-05-22T12:01:38.751433+00:00 | F87: 2011-03-27T00:00:00.001000+01:00 | G87: acc_heating_degree_days_17 | H87: manual | I87: day | J87: 2011-03-28T00:00:00+02:00 | K87: 15.3 | M87: 2011-03-27T00:00:00.001000+01:00 | N87: 9999-03-27 | O87: 9999-03-27 | P87: 15.3
A88: [Record] | B88: ad9b8b8d-f30b-1375-f118-91b40776f198 | C88: Feature | D88: 2016-10-26T18:04:42.023000 | E88: 2023-05-22T12:01:38.744540+00:00 | F88: 2011-03-28T00:00:00.001000+02:00 | G88: acc_heating_degree_days_17 | H88: manual | I88: day | J88: 2011-03-29T00:00:00+02:00 | K88: 12.5 | M88: 2011-03-28T00:00:00.001000+02:00 | N88: 9999-03-28 | O88: 9999-03-28 | P88: 12.5
A89: [Record] | B89: 7bfff281-2bbf-c063-d4b2-1ee492aaf798 | C89: Feature | D89: 2016-10-26T18:04:11.507000 | E89: 2023-05-22T12:01:50.234472+00:00 | F89: 2011-03-29T00:00:00.001000+02:00 | G89: acc_heating_degree_days_17 | H89: manual | I89: day | J89: 2011-03-30T00:00:00+02:00 | K89: 12.4 | M89: 2011-03-29T00:00:00.001000+02:00 | N89: 9999-03-29 | O89: 9999-03-29 | P89: 12.4
A90: [Record] | B90: 6c54131c-de9d-e277-5518-b6d7ea78917a | C90: Feature | D90: 2016-10-26T18:15:22.551000 | E90: 2023-05-22T12:01:50.329937+00:00 | F90: 2011-03-30T00:00:00.001000+02:00 | G90: acc_heating_degree_days_17 | H90: manual | I90: day | J90: 2011-03-31T00:00:00+02:00 | K90: 11.4 | M90: 2011-03-30T00:00:00.001000+02:00 | N90: 9999-03-30 | O90: 9999-03-30 | P90: 11.4
A91: [Record] | B91: 93fd215c-60be-bb1d-541d-be39371dd287 | C91: Feature | D91: 2016-10-26T18:15:13.087000 | E91: 2023-05-22T12:01:50.259011+00:00 | F91: 2011-03-31T00:00:00.001000+02:00 | G91: acc_heating_degree_days_17 | H91: manual | I91: day | J91: 2011-04-01T00:00:00+02:00 | K91: 9.4 | M91: 2011-03-31T00:00:00.001000+02:00 | N91: 9999-03-31 | O91: 9999-03-31 | P91: 9.4
A92: [Record] | B92: 602a1204-34c3-1c5c-eb54-b912bd288e16 | C92: Feature | D92: 2016-10-26T18:15:00.373000 | E92: 2023-05-22T12:02:10.595891+00:00 | F92: 2011-04-01T00:00:00.001000+02:00 | G92: acc_heating_degree_days_17 | H92: manual | I92: day | J92: 2011-04-02T00:00:00+02:00 | K92: 8.4 | M92: 2011-04-01T00:00:00.001000+02:00 | N92: 9999-04-01 | O92: 9999-04-01 | P92: 8.4
A93: [Record] | B93: 9e3e3907-cbdb-7674-9f1f-2c6a2887bcb8 | C93: Feature | D93: 2016-10-26T18:14:54.740000 | E93: 2023-05-22T12:02:10.595781+00:00 | F93: 2011-04-02T00:00:00.001000+02:00 | G93: acc_heating_degree_days_17 | H93: manual | I93: day | J93: 2011-04-03T00:00:00+02:00 | K93: 4.5 | M93: 2011-04-02T00:00:00.001000+02:00 | N93: 9999-04-02 | O93: 9999-04-02 | P93: 4.5
A94: [Record] | B94: 090159d4-fca6-d67a-ba7b-9aa5e422d69e | C94: Feature | D94: 2016-10-26T18:14:49.463000 | E94: 2023-05-22T12:02:10.595669+00:00 | F94: 2011-04-03T00:00:00.001000+02:00 | G94: acc_heating_degree_days_17 | H94: manual | I94: day | J94: 2011-04-04T00:00:00+02:00 | K94: 7.9 | M94: 2011-04-03T00:00:00.001000+02:00 | N94: 9999-04-03 | O94: 9999-04-03 | P94: 7.9
A95: [Record] | B95: b1527410-86c1-8bad-eae4-df1deb6a853a | C95: Feature | D95: 2016-10-26T18:14:43.915000 | E95: 2023-05-22T12:02:22.453520+00:00 | F95: 2011-04-04T00:00:00.001000+02:00 | G95: acc_heating_degree_days_17 | H95: manual | I95: day | J95: 2011-04-05T00:00:00+02:00 | K95: 9.6 | M95: 2011-04-04T00:00:00.001000+02:00 | N95: 9999-04-04 | O95: 9999-04-04 | P95: 9.6
A96: [Record] | B96: 6651e4d5-6769-4f65-1f49-2514bc29eb1f | C96: Feature | D96: 2016-10-26T18:14:38.434000 | E96: 2023-05-22T12:02:22.460371+00:00 | F96: 2011-04-05T00:00:00.001000+02:00 | G96: acc_heating_degree_days_17 | H96: manual | I96: day | J96: 2011-04-06T00:00:00+02:00 | K96: 9.6 | M96: 2011-04-05T00:00:00.001000+02:00 | N96: 9999-04-05 | O96: 9999-04-05 | P96: 9.6
A97: [Record] | B97: 84395440-19b0-0247-bf86-8e5007cd930b | C97: Feature | D97: 2016-10-26T18:14:32.883000 | E97: 2023-05-22T12:02:22.444775+00:00 | F97: 2011-04-06T00:00:00.001000+02:00 | G97: acc_heating_degree_days_17 | H97: manual | I97: day | J97: 2011-04-07T00:00:00+02:00 | K97: 7.8 | M97: 2011-04-06T00:00:00.001000+02:00 | N97: 9999-04-06 | O97: 9999-04-06 | P97: 7.8
A98: [Record] | B98: 6b488203-c27c-558f-3fce-7d249ce838db | C98: Feature | D98: 2016-10-26T18:14:27.461000 | E98: 2023-05-22T12:02:34.142620+00:00 | F98: 2011-04-07T00:00:00.001000+02:00 | G98: acc_heating_degree_days_17 | H98: manual | I98: day | J98: 2011-04-08T00:00:00+02:00 | K98: 8.3 | M98: 2011-04-07T00:00:00.001000+02:00 | N98: 9999-04-07 | O98: 9999-04-07 | P98: 8.3
A99: [Record] | B99: 93d8c6bc-f474-6979-3f1b-96130988ee9e | C99: Feature | D99: 2016-10-26T18:14:22.354000 | E99: 2023-05-22T12:02:34.139482+00:00 | F99: 2011-04-08T00:00:00.001000+02:00 | G99: acc_heating_degree_days_17 | H99: manual | I99: day | J99: 2011-04-09T00:00:00+02:00 | K99: 9.1 | M99: 2011-04-08T00:00:00.001000+02:00 | N99: 9999-04-08 | O99: 9999-04-08 | P99: 9.1
A100: [Record] | B100: 4fe0987b-672e-dfa9-8721-79870e719449 | C100: Feature | D100: 2016-10-26T18:14:17.166000 | E100: 2023-05-22T12:02:34.086061+00:00 | F100: 2011-04-09T00:00:00.001000+02:00 | G100: acc_heating_degree_days_17 | H100: manual | I100: day | J100: 2011-04-10T00:00:00+02:00 | K100: 8.8 | M100: 2011-04-09T00:00:00.001000+02:00 | N100: 9999-04-09 | O100: 9999-04-09 | P100: 8.8
A101: [Record] | B101: 49afa9bd-5970-1fbe-a26c-6287391cda5b | C101: Feature | D101: 2016-10-26T18:14:11.847000 | E101: 2023-05-22T12:02:54.267853+00:00 | F101: 2011-04-10T00:00:00.001000+02:00 | G101: acc_heating_degree_days_17 | H101: manual | I101: day | J101: 2011-04-11T00:00:00+02:00 | K101: 8.5 | M101: 2011-04-10T00:00:00.001000+02:00 | N101: 9999-04-10 | O101: 9999-04-10 | P101: 8.5
A102: [Record] | B102: 3d787039-6626-e0e3-a169-a6a994823016 | C102: Feature | D102: 2016-10-26T18:14:05.627000 | E102: 2023-05-22T12:02:54.267731+00:00 | F102: 2011-04-11T00:00:00.001000+02:00 | G102: acc_heating_degree_days_17 | H102: manual | I102: day | J102: 2011-04-12T00:00:00+02:00 | K102: 8.1 | M102: 2011-04-11T00:00:00.001000+02:00 | N102: 9999-04-11 | O102: 9999-04-11 | P102: 8.1
A103: [Record] | B103: c41f3492-bc5c-3db5-c37e-d3b9860b53f7 | C103: Feature | D103: 2016-10-26T18:13:59.157000 | E103: 2023-05-22T12:02:54.267623+00:00 | F103: 2011-04-12T00:00:00.001000+02:00 | G103: acc_heating_degree_days_17 | H103: manual | I103: day | J103: 2011-04-13T00:00:00+02:00 | K103: 9.6 | M103: 2011-04-12T00:00:00.001000+02:00 | N103: 9999-04-12 | O103: 9999-04-12 | P103: 9.6
A104: [Record] | B104: ebe0b82a-97fd-3111-c4ca-98f427b36e04 | C104: Feature | D104: 2016-10-26T18:13:54.113000 | E104: 2023-05-22T12:03:15.949722+00:00 | F104: 2011-04-13T00:00:00.001000+02:00 | G104: acc_heating_degree_days_17 | H104: manual | I104: day | J104: 2011-04-14T00:00:00+02:00 | K104: 9.9 | M104: 2011-04-13T00:00:00.001000+02:00 | N104: 9999-04-13 | O104: 9999-04-13 | P104: 9.9
A105: [Record] | B105: b8a5fe8e-929c-2751-e4a9-3de355e6f218 | C105: Feature | D105: 2016-10-26T18:13:49.034000 | E105: 2023-05-22T12:03:15.949603+00:00 | F105: 2011-04-14T00:00:00.001000+02:00 | G105: acc_heating_degree_days_17 | H105: manual | I105: day | J105: 2011-04-15T00:00:00+02:00 | K105: 11.5 | M105: 2011-04-14T00:00:00.001000+02:00 | N105: 9999-04-14 | O105: 9999-04-14 | P105: 11.5
A106: [Record] | B106: cfdee323-d771-69bb-c821-acc3de7f9580 | C106: Feature | D106: 2016-10-26T18:13:44.023000 | E106: 2023-05-22T12:03:15.949492+00:00 | F106: 2011-04-15T00:00:00.001000+02:00 | G106: acc_heating_degree_days_17 | H106: manual | I106: day | J106: 2011-04-16T00:00:00+02:00 | K106: 9.1 | M106: 2011-04-15T00:00:00.001000+02:00 | N106: 9999-04-15 | O106: 9999-04-15 | P106: 9.1
A107: [Record] | B107: a3568b39-b3e9-cf13-6cc8-331765af8685 | C107: Feature | D107: 2016-10-26T18:13:38.944000 | E107: 2023-05-22T12:03:27.228542+00:00 | F107: 2011-04-16T00:00:00.001000+02:00 | G107: acc_heating_degree_days_17 | H107: manual | I107: day | J107: 2011-04-17T00:00:00+02:00 | K107: 8.6 | M107: 2011-04-16T00:00:00.001000+02:00 | N107: 9999-04-16 | O107: 9999-04-16 | P107: 8.6
A108: [Record] | B108: 660651a6-e4d7-d2b6-d3c2-e26a26a9b671 | C108: Feature | D108: 2016-10-26T18:13:33.892000 | E108: 2023-05-22T12:03:27.215547+00:00 | F108: 2011-04-17T00:00:00.001000+02:00 | G108: acc_heating_degree_days_17 | H108: manual | I108: day | J108: 2011-04-18T00:00:00+02:00 | K108: 8 | M108: 2011-04-17T00:00:00.001000+02:00 | N108: 9999-04-17 | O108: 9999-04-17 | P108: 8
A109: [Record] | B109: ac63b37c-0f93-9745-2621-77528a695e2a | C109: Feature | D109: 2016-10-26T18:13:28.945000 | E109: 2023-05-22T12:03:27.203948+00:00 | F109: 2011-04-18T00:00:00.001000+02:00 | G109: acc_heating_degree_days_17 | H109: manual | I109: day | J109: 2011-04-19T00:00:00+02:00 | K109: 7.6 | M109: 2011-04-18T00:00:00.001000+02:00 | N109: 9999-04-18 | O109: 9999-04-18 | P109: 7.6
A110: [Record] | B110: 56a93f51-c9de-7bc2-5e25-190a5827b786 | C110: Feature | D110: 2016-10-26T18:13:23.890000 | E110: 2023-05-22T12:03:38.607062+00:00 | F110: 2011-04-19T00:00:00.001000+02:00 | G110: acc_heating_degree_days_17 | H110: manual | I110: day | J110: 2011-04-20T00:00:00+02:00 | K110: 5.1 | M110: 2011-04-19T00:00:00.001000+02:00 | N110: 9999-04-19 | O110: 9999-04-19 | P110: 5.1
A111: [Record] | B111: ac6f998a-6b32-2e6f-9615-6d6cdc08ad63 | C111: Feature | D111: 2016-10-26T18:13:18.926000 | E111: 2023-05-22T12:03:38.585796+00:00 | F111: 2011-04-20T00:00:00.001000+02:00 | G111: acc_heating_degree_days_17 | H111: manual | I111: day | J111: 2011-04-21T00:00:00+02:00 | K111: 3.6 | M111: 2011-04-20T00:00:00.001000+02:00 | N111: 9999-04-20 | O111: 9999-04-20 | P111: 3.6
A112: [Record] | B112: ab5880a7-414c-5714-209c-8c77b78b8436 | C112: Feature | D112: 2016-10-26T18:13:14.052000 | E112: 2023-05-22T12:03:38.571359+00:00 | F112: 2011-04-21T00:00:00.001000+02:00 | G112: acc_heating_degree_days_17 | H112: manual | I112: day | J112: 2011-04-22T00:00:00+02:00 | K112: 2.7 | M112: 2011-04-21T00:00:00.001000+02:00 | N112: 9999-04-21 | O112: 9999-04-21 | P112: 2.7
A113: [Record] | B113: 69295c1e-4b4b-21b2-6809-fed799544597 | C113: Feature | D113: 2016-10-26T18:13:08.920000 | E113: 2023-05-22T12:03:50.459688+00:00 | F113: 2011-04-22T00:00:00.001000+02:00 | G113: acc_heating_degree_days_17 | H113: manual | I113: day | J113: 2011-04-23T00:00:00+02:00 | K113: 2.9 | M113: 2011-04-22T00:00:00.001000+02:00 | N113: 9999-04-22 | O113: 9999-04-22 | P113: 2.9
A114: [Record] | B114: 63ac3c1b-bcc9-a80a-bf2b-dca14b1713a5 | C114: Feature | D114: 2016-10-26T18:13:01.026000 | E114: 2023-05-22T12:03:50.447667+00:00 | F114: 2011-04-23T00:00:00.001000+02:00 | G114: acc_heating_degree_days_17 | H114: manual | I114: day | J114: 2011-04-24T00:00:00+02:00 | K114: 3.2 | M114: 2011-04-23T00:00:00.001000+02:00 | N114: 9999-04-23 | O114: 9999-04-23 | P114: 3.2
A115: [Record] | B115: 5290db66-0472-f994-fdc3-0ae415cf2083 | C115: Feature | D115: 2016-10-26T18:12:56.127000 | E115: 2023-05-22T12:03:50.431813+00:00 | F115: 2011-04-24T00:00:00.001000+02:00 | G115: acc_heating_degree_days_17 | H115: manual | I115: day | J115: 2011-04-25T00:00:00+02:00 | K115: 4.1 | M115: 2011-04-24T00:00:00.001000+02:00 | N115: 9999-04-24 | O115: 9999-04-24 | P115: 4.1
A116: [Record] | B116: aa1a9d5a-7136-0ef8-3267-0dd32065cafc | C116: Feature | D116: 2016-10-26T18:12:51.192000 | E116: 2023-05-22T12:04:01.800753+00:00 | F116: 2011-04-25T00:00:00.001000+02:00 | G116: acc_heating_degree_days_17 | H116: manual | I116: day | J116: 2011-04-26T00:00:00+02:00 | K116: 3.7 | M116: 2011-04-25T00:00:00.001000+02:00 | N116: 9999-04-25 | O116: 9999-04-25 | P116: 3.7
A117: [Record] | B117: 4c77344c-7862-82ee-674b-6905af63d004 | C117: Feature | D117: 2016-10-26T18:12:46.293000 | E117: 2023-05-22T12:04:01.785257+00:00 | F117: 2011-04-26T00:00:00.001000+02:00 | G117: acc_heating_degree_days_17 | H117: manual | I117: day | J117: 2011-04-27T00:00:00+02:00 | K117: 3.6 | M117: 2011-04-26T00:00:00.001000+02:00 | N117: 9999-04-26 | O117: 9999-04-26 | P117: 3.6
A118: [Record] | B118: bbd4a1c6-8878-d567-730c-366a8381f2cd | C118: Feature | D118: 2016-10-26T18:12:41.392000 | E118: 2023-05-22T12:04:01.780499+00:00 | F118: 2011-04-27T00:00:00.001000+02:00 | G118: acc_heating_degree_days_17 | H118: manual | I118: day | J118: 2011-04-28T00:00:00+02:00 | K118: 4.9 | M118: 2011-04-27T00:00:00.001000+02:00 | N118: 9999-04-27 | O118: 9999-04-27 | P118: 4.9
A119: [Record] | B119: 8c7d68e8-6357-1964-8332-c797fe990561 | C119: Feature | D119: 2016-10-26T18:12:36.441000 | E119: 2023-05-22T12:04:23.126828+00:00 | F119: 2011-04-28T00:00:00.001000+02:00 | G119: acc_heating_degree_days_17 | H119: manual | I119: day | J119: 2011-04-29T00:00:00+02:00 | K119: 4.7 | M119: 2011-04-28T00:00:00.001000+02:00 | N119: 9999-04-28 | O119: 9999-04-28 | P119: 4.7
A120: [Record] | B120: 036045e5-8057-4a0e-485e-05b8822d97c5 | C120: Feature | D120: 2016-10-26T18:12:31.567000 | E120: 2023-05-22T12:04:23.126658+00:00 | F120: 2011-04-29T00:00:00.001000+02:00 | G120: acc_heating_degree_days_17 | H120: manual | I120: day | J120: 2011-04-30T00:00:00+02:00 | K120: 4.9 | M120: 2011-04-29T00:00:00.001000+02:00 | N120: 9999-04-29 | O120: 9999-04-29 | P120: 4.9
A121: [Record] | B121: 386c362f-cf23-42ff-1950-f1c3be75bf9c | C121: Feature | D121: 2016-10-26T18:12:26.460000 | E121: 2023-05-22T12:04:23.126488+00:00 | F121: 2011-04-30T00:00:00.001000+02:00 | G121: acc_heating_degree_days_17 | H121: manual | I121: day | J121: 2011-05-01T00:00:00+02:00 | K121: 6 | M121: 2011-04-30T00:00:00.001000+02:00 | N121: 9999-04-30 | O121: 9999-04-30 | P121: 6
A122: [Record] | B122: 344d20d4-40dc-f0d4-7bd5-1a29ec9b608a | C122: Feature | D122: 2016-10-26T18:12:21.646000 | E122: 2023-05-22T12:04:44.189487+00:00 | F122: 2011-05-01T00:00:00.001000+02:00 | G122: acc_heating_degree_days_17 | H122: manual | I122: day | J122: 2011-05-02T00:00:00+02:00 | K122: 8.3 | M122: 2011-05-01T00:00:00.001000+02:00 | N122: 9999-05-01 | O122: 9999-05-01 | P122: 8.3
A123: [Record] | B123: e1739c9a-fc4c-3325-6903-50af53f15e65 | C123: Feature | D123: 2016-10-26T18:12:16.756000 | E123: 2023-05-22T12:04:44.189361+00:00 | F123: 2011-05-02T00:00:00.001000+02:00 | G123: acc_heating_degree_days_17 | H123: manual | I123: day | J123: 2011-05-03T00:00:00+02:00 | K123: 10.1 | M123: 2011-05-02T00:00:00.001000+02:00 | N123: 9999-05-02 | O123: 9999-05-02 | P123: 10.1
A124: [Record] | B124: 11e11ecf-e0c7-602f-124e-f008de4deb6e | C124: Feature | D124: 2016-10-26T18:12:11.823000 | E124: 2023-05-22T12:04:44.189243+00:00 | F124: 2011-05-03T00:00:00.001000+02:00 | G124: acc_heating_degree_days_17 | H124: manual | I124: day | J124: 2011-05-04T00:00:00+02:00 | K124: 11.4 | M124: 2011-05-03T00:00:00.001000+02:00 | N124: 9999-05-03 | O124: 9999-05-03 | P124: 11.4
A125: [Record] | B125: 665c8ea5-920d-39b8-0a9e-6e2eacfdc713 | C125: Feature | D125: 2016-10-26T18:12:07.044000 | E125: 2023-05-22T12:05:07.615434+00:00 | F125: 2011-05-04T00:00:00.001000+02:00 | G125: acc_heating_degree_days_17 | H125: manual | I125: day | J125: 2011-05-05T00:00:00+02:00 | K125: 11 | M125: 2011-05-04T00:00:00.001000+02:00 | N125: 9999-05-04 | O125: 9999-05-04 | P125: 11
A126: [Record] | B126: 8cfd4a87-e66a-f517-32a7-0174f244a47f | C126: Feature | D126: 2016-10-26T18:11:59.989000 | E126: 2023-05-22T12:05:07.613931+00:00 | F126: 2011-05-05T00:00:00.001000+02:00 | G126: acc_heating_degree_days_17 | H126: manual | I126: day | J126: 2011-05-06T00:00:00+02:00 | K126: 9 | M126: 2011-05-05T00:00:00.001000+02:00 | N126: 9999-05-05 | O126: 9999-05-05 | P126: 9
A127: [Record] | B127: 676823f5-a9d1-9b02-3e0f-73f3050f3735 | C127: Feature | D127: 2016-10-26T18:11:55.176000 | E127: 2023-05-22T12:05:07.612693+00:00 | F127: 2011-05-06T00:00:00.001000+02:00 | G127: acc_heating_degree_days_17 | H127: manual | I127: day | J127: 2011-05-07T00:00:00+02:00 | K127: 6 | M127: 2011-05-06T00:00:00.001000+02:00 | N127: 9999-05-06 | O127: 9999-05-06 | P127: 6
A128: [Record] | B128: b4c42b7a-8a5a-1335-b4c2-475a3d6e0ebd | C128: Feature | D128: 2016-10-26T18:11:50.349000 | E128: 2023-05-22T12:05:19.005146+00:00 | F128: 2011-05-07T00:00:00.001000+02:00 | G128: acc_heating_degree_days_17 | H128: manual | I128: day | J128: 2011-05-08T00:00:00+02:00 | K128: 2.8 | M128: 2011-05-07T00:00:00.001000+02:00 | N128: 9999-05-07 | O128: 9999-05-07 | P128: 2.8
A129: [Record] | B129: a0a129b3-e8a7-2bee-89e4-d81d81b413b8 | C129: Feature | D129: 2016-10-26T18:11:45.065000 | E129: 2023-05-22T12:05:18.989415+00:00 | F129: 2011-05-08T00:00:00.001000+02:00 | G129: acc_heating_degree_days_17 | H129: manual | I129: day | J129: 2011-05-09T00:00:00+02:00 | K129: 3.6 | M129: 2011-05-08T00:00:00.001000+02:00 | N129: 9999-05-08 | O129: 9999-05-08 | P129: 3.6
A130: [Record] | B130: 2d8bc8d4-adf0-e4f6-b2dc-f4b8f6ddf46e | C130: Feature | D130: 2016-10-26T18:11:40.209000 | E130: 2023-05-22T12:05:18.981381+00:00 | F130: 2011-05-09T00:00:00.001000+02:00 | G130: acc_heating_degree_days_17 | H130: manual | I130: day | J130: 2011-05-10T00:00:00+02:00 | K130: 1.5 | M130: 2011-05-09T00:00:00.001000+02:00 | N130: 9999-05-09 | O130: 9999-05-09 | P130: 1.5
A131: [Record] | B131: 0a517ef0-cce7-77bd-2edc-21b628d1cb05 | C131: Feature | D131: 2016-10-26T18:11:35.127000 | E131: 2023-05-22T12:05:39.018277+00:00 | F131: 2011-05-10T00:00:00.001000+02:00 | G131: acc_heating_degree_days_17 | H131: manual | I131: day | J131: 2011-05-11T00:00:00+02:00 | K131: 1.1 | M131: 2011-05-10T00:00:00.001000+02:00 | N131: =DATE(9999,MID(M131,6,2),MID(M131,9,2)) -> 9999-05-10 | O131: 9999-05-10 | P131: 1.1
A132: [Record] | B132: 23532ac1-3364-c34e-77d8-5d24dc9bfdbb | C132: Feature | D132: 2016-10-26T18:11:30.156000 | E132: 2023-05-22T12:05:39.018167+00:00 | F132: 2011-05-11T00:00:00.001000+02:00 | G132: acc_heating_degree_days_17 | H132: manual | I132: day | J132: 2011-05-12T00:00:00+02:00 | K132: 2.6 | M132: 2011-05-11T00:00:00.001000+02:00 | N132: 9999-05-11 | O132: 9999-05-11 | P132: 2.6
A133: [Record] | B133: fa6c1a41-d5fa-5419-b557-0bfe79233587 | C133: Feature | D133: 2016-10-26T18:11:24.868000 | E133: 2023-05-22T12:05:39.018058+00:00 | F133: 2011-05-12T00:00:00.001000+02:00 | G133: acc_heating_degree_days_17 | H133: manual | I133: day | J133: 2011-05-13T00:00:00+02:00 | K133: 5 | M133: 2011-05-12T00:00:00.001000+02:00 | N133: 9999-05-12 | O133: 9999-05-12 | P133: 5
A134: [Record] | B134: 860a2155-26ca-2665-e696-de270a8d707f | C134: Feature | D134: 2016-10-26T18:11:19.507000 | E134: 2023-05-22T12:06:01.429447+00:00 | F134: 2011-05-13T00:00:00.001000+02:00 | G134: acc_heating_degree_days_17 | H134: manual | I134: day | J134: 2011-05-14T00:00:00+02:00 | K134: 5.9 | M134: 2011-05-13T00:00:00.001000+02:00 | N134: 9999-05-13 | O134: 9999-05-13 | P134: 5.9
A135: [Record] | B135: db85e814-9f40-ae72-df58-4d6198d49f9c | C135: Feature | D135: 2016-10-26T18:11:14.314000 | E135: 2023-05-22T12:06:01.413480+00:00 | F135: 2011-05-14T00:00:00.001000+02:00 | G135: acc_heating_degree_days_17 | H135: manual | I135: day | J135: 2011-05-15T00:00:00+02:00 | K135: 7.8 | M135: 2011-05-14T00:00:00.001000+02:00 | N135: 9999-05-14 | O135: 9999-05-14 | P135: 7.8
A136: [Record] | B136: f02fb61c-6367-1b4c-4d51-d9f36c3e5ab1 | C136: Feature | D136: 2016-10-26T18:11:09.232000 | E136: 2023-05-22T12:06:01.399018+00:00 | F136: 2011-05-15T00:00:00.001000+02:00 | G136: acc_heating_degree_days_17 | H136: manual | I136: day | J136: 2011-05-16T00:00:00+02:00 | K136: 7.6 | M136: 2011-05-15T00:00:00.001000+02:00 | N136: 9999-05-15 | O136: 9999-05-15 | P136: 7.6
A137: [Record] | B137: e7708c1c-f35b-dbb3-eaa1-ce2d21df0e05 | C137: Feature | D137: 2016-10-26T18:11:00.641000 | E137: 2023-05-22T12:06:21.787692+00:00 | F137: 2011-05-16T00:00:00.001000+02:00 | G137: acc_heating_degree_days_17 | H137: manual | I137: day | J137: 2011-05-17T00:00:00+02:00 | K137: 6.8 | M137: 2011-05-16T00:00:00.001000+02:00 | N137: 9999-05-16 | O137: 9999-05-16 | P137: 6.8
A138: [Record] | B138: 8f505ad7-a518-a38b-dbb0-f6bdc08dec00 | C138: Feature | D138: 2016-10-26T18:10:55.318000 | E138: 2023-05-22T12:06:21.797185+00:00 | F138: 2011-05-17T00:00:00.001000+02:00 | G138: acc_heating_degree_days_17 | H138: manual | I138: day | J138: 2011-05-18T00:00:00+02:00 | K138: 5.5 | M138: 2011-05-17T00:00:00.001000+02:00 | N138: 9999-05-17 | O138: 9999-05-17 | P138: 5.5
A139: [Record] | B139: 09abf797-b137-3ffa-f7f8-1d61f205eb59 | C139: Feature | D139: 2016-10-26T18:10:22.863000 | E139: 2023-05-22T12:06:21.775780+00:00 | F139: 2011-05-18T00:00:00.001000+02:00 | G139: acc_heating_degree_days_17 | H139: manual | I139: day | J139: 2011-05-19T00:00:00+02:00 | K139: 4.5 | M139: 2011-05-18T00:00:00.001000+02:00 | N139: 9999-05-18 | O139: 9999-05-18 | P139: 4.5
A140: [Record] | B140: b784a526-7710-003d-9127-b295ebab6c3d | C140: Feature | D140: 2016-10-26T18:21:18.513000 | E140: 2023-05-22T12:06:33.466655+00:00 | F140: 2011-05-19T00:00:00.001000+02:00 | G140: acc_heating_degree_days_17 | H140: manual | I140: day | J140: 2011-05-20T00:00:00+02:00 | K140: 4.5 | M140: 2011-05-19T00:00:00.001000+02:00 | N140: 9999-05-19 | O140: 9999-05-19 | P140: 4.5
A141: [Record] | B141: 1ec3d567-66c2-1862-d82b-60fdf13c86d6 | C141: Feature | D141: 2016-10-26T18:21:12.783000 | E141: 2023-05-22T12:06:33.450655+00:00 | F141: 2011-05-20T00:00:00.001000+02:00 | G141: acc_heating_degree_days_17 | H141: manual | I141: day | J141: 2011-05-21T00:00:00+02:00 | K141: 6.2 | M141: 2011-05-20T00:00:00.001000+02:00 | N141: 9999-05-20 | O141: 9999-05-20 | P141: 6.2
A142: [Record] | B142: 61d259ed-7503-486f-95b8-23531ea0048d | C142: Feature | D142: 2016-10-26T18:21:07.315000 | E142: 2023-05-22T12:06:33.445738+00:00 | F142: 2011-05-21T00:00:00.001000+02:00 | G142: acc_heating_degree_days_17 | H142: manual | I142: day | J142: 2011-05-22T00:00:00+02:00 | K142: 3.6 | M142: 2011-05-21T00:00:00.001000+02:00 | N142: 9999-05-21 | O142: 9999-05-21 | P142: 3.6
A143: [Record] | B143: 6a603406-a73a-1c5f-35c6-e6d6aaf47fd0 | C143: Feature | D143: 2016-10-26T18:20:59.288000 | E143: 2023-05-22T12:06:53.323493+00:00 | F143: 2011-05-22T00:00:00.001000+02:00 | G143: acc_heating_degree_days_17 | H143: manual | I143: day | J143: 2011-05-23T00:00:00+02:00 | K143: 3.3 | M143: 2011-05-22T00:00:00.001000+02:00 | N143: 9999-05-22 | O143: 9999-05-22 | P143: 3.3
A144: [Record] | B144: 22f80c67-aa98-06e7-4fad-760f5ba5e4c0 | C144: Feature | D144: 2016-10-26T18:20:53.836000 | E144: 2023-05-22T12:06:53.323386+00:00 | F144: 2011-05-23T00:00:00.001000+02:00 | G144: acc_heating_degree_days_17 | H144: manual | I144: day | J144: 2011-05-24T00:00:00+02:00 | K144: 3.4 | M144: 2011-05-23T00:00:00.001000+02:00 | N144: 9999-05-23 | O144: 9999-05-23 | P144: 3.4
A145: [Record] | B145: 5f25fa2b-bda1-61e7-084f-ce70ee6c6b1c | C145: Feature | D145: 2016-10-26T18:20:47.883000 | E145: 2023-05-22T12:06:53.323278+00:00 | F145: 2011-05-24T00:00:00.001000+02:00 | G145: acc_heating_degree_days_17 | H145: manual | I145: day | J145: 2011-05-25T00:00:00+02:00 | K145: 5.6 | M145: 2011-05-24T00:00:00.001000+02:00 | N145: 9999-05-24 | O145: 9999-05-24 | P145: 5.6
A146: [Record] | B146: 53074934-6467-a34b-d668-37d7d2ba74ba | C146: Feature | D146: 2016-10-26T18:20:42.436000 | E146: 2023-05-22T12:07:04.665396+00:00 | F146: 2011-05-25T00:00:00.001000+02:00 | G146: acc_heating_degree_days_17 | H146: manual | I146: day | J146: 2011-05-26T00:00:00+02:00 | K146: 6.2 | M146: 2011-05-25T00:00:00.001000+02:00 | N146: 9999-05-25 | O146: 9999-05-25 | P146: 6.2
A147: [Record] | B147: c80dc42e-0ef4-9998-9337-e7db46acc459 | C147: Feature | D147: 2016-10-26T18:20:37.099000 | E147: 2023-05-22T12:07:04.663815+00:00 | F147: 2011-05-26T00:00:00.001000+02:00 | G147: acc_heating_degree_days_17 | H147: manual | I147: day | J147: 2011-05-27T00:00:00+02:00 | K147: 4.6 | M147: 2011-05-26T00:00:00.001000+02:00 | N147: 9999-05-26 | O147: 9999-05-26 | P147: 4.6
A148: [Record] | B148: a2e3631a-6edb-9a5e-d1fa-aba8b5efb9d9 | C148: Feature | D148: 2016-10-26T18:20:31.520000 | E148: 2023-05-22T12:07:04.652615+00:00 | F148: 2011-05-27T00:00:00.001000+02:00 | G148: acc_heating_degree_days_17 | H148: manual | I148: day | J148: 2011-05-28T00:00:00+02:00 | K148: 6 | M148: 2011-05-27T00:00:00.001000+02:00 | N148: 9999-05-27 | O148: 9999-05-27 | P148: 6
A149: [Record] | B149: 4b77771b-cca7-d361-3231-394211e81ed7 | C149: Feature | D149: 2016-10-26T18:20:25.437000 | E149: 2023-05-22T12:07:19.399479+00:00 | F149: 2011-05-28T00:00:00.001000+02:00 | G149: acc_heating_degree_days_17 | H149: manual | I149: day | J149: 2011-05-29T00:00:00+02:00 | K149: 6.7 | M149: 2011-05-28T00:00:00.001000+02:00 | N149: 9999-05-28 | O149: 9999-05-28 | P149: 6.7
A150: [Record] | B150: 4404baad-7843-f1fd-99a1-1c7304a544ef | C150: Feature | D150: 2016-10-26T18:20:19.397000 | E150: 2023-05-22T12:07:19.390752+00:00 | F150: 2011-05-29T00:00:00.001000+02:00 | G150: acc_heating_degree_days_17 | H150: manual | I150: day | J150: 2011-05-30T00:00:00+02:00 | K150: 5.8 | M150: 2011-05-29T00:00:00.001000+02:00 | N150: 9999-05-29 | O150: 9999-05-29 | P150: 5.8
A151: [Record] | B151: 01f2aa09-4c1b-6c7b-6235-259cb17e87d3 | C151: Feature | D151: 2016-10-26T18:20:13.746000 | E151: 2023-05-22T12:07:19.379638+00:00 | F151: 2011-05-30T00:00:00.001000+02:00 | G151: acc_heating_degree_days_17 | H151: manual | I151: day | J151: 2011-05-31T00:00:00+02:00 | K151: 1.9 | M151: 2011-05-30T00:00:00.001000+02:00 | N151: 9999-05-30 | O151: 9999-05-30 | P151: 1.9
A152: [Record] | B152: 021a1b89-a533-00d1-6774-16f5045a3574 | C152: Feature | D152: 2016-10-26T18:20:02.323000 | E152: 2023-05-22T12:07:31.041792+00:00 | F152: 2011-05-31T00:00:00.001000+02:00 | G152: acc_heating_degree_days_17 | H152: manual | I152: day | J152: 2011-06-01T00:00:00+02:00 | K152: 3.7 | M152: 2011-05-31T00:00:00.001000+02:00 | N152: 9999-05-31 | O152: 9999-05-31 | P152: 3.7
A153: [Record] | B153: 6dadd85f-c381-0ace-6d93-5c3666ec82df | C153: Feature | D153: 2016-10-26T18:19:56.035000 | E153: 2023-05-22T12:07:31.032369+00:00 | F153: 2011-06-01T00:00:00.001000+02:00 | G153: acc_heating_degree_days_17 | H153: manual | I153: day | J153: 2011-06-02T00:00:00+02:00 | K153: 5.1 | M153: 2011-06-01T00:00:00.001000+02:00 | N153: 9999-06-01 | O153: 9999-06-01 | P153: 5.1
A154: [Record] | B154: c2d7123c-7530-a30d-a6ec-34a1b3b30b73 | C154: Feature | D154: 2016-10-26T18:19:50.600000 | E154: 2023-05-22T12:07:31.020176+00:00 | F154: 2011-06-02T00:00:00.001000+02:00 | G154: acc_heating_degree_days_17 | H154: manual | I154: day | J154: 2011-06-03T00:00:00+02:00 | K154: 2.4 | M154: 2011-06-02T00:00:00.001000+02:00 | N154: 9999-06-02 | O154: 9999-06-02 | P154: 2.4
A155: [Record] | B155: f69864e2-13de-8465-9444-e8fa245bc1d7 | C155: Feature | D155: 2016-10-26T18:19:45.214000 | E155: 2023-05-22T12:07:51.307167+00:00 | F155: 2011-06-03T00:00:00.001000+02:00 | G155: acc_heating_degree_days_17 | H155: manual | I155: day | J155: 2011-06-04T00:00:00+02:00 | K155: 0.1 | M155: 2011-06-03T00:00:00.001000+02:00 | N155: 9999-06-03 | O155: 9999-06-03 | P155: 0.1
A156: [Record] | B156: d01917b7-e23a-168a-e1bb-14b97945c25a | C156: Feature | D156: 2016-10-26T18:19:39.875000 | E156: 2023-05-22T12:07:51.307055+00:00 | F156: 2011-06-04T00:00:00.001000+02:00 | G156: acc_heating_degree_days_17 | H156: manual | I156: day | J156: 2011-06-05T00:00:00+02:00 | K156: 0 | M156: 2011-06-04T00:00:00.001000+02:00 | N156: 9999-06-04 | O156: 9999-06-04 | P156: 0
A157: [Record] | B157: efd26c82-3680-46fb-b348-27c1c9720d99 | C157: Feature | D157: 2016-10-26T18:19:34.383000 | E157: 2023-05-22T12:07:51.306940+00:00 | F157: 2011-06-05T00:00:00.001000+02:00 | G157: acc_heating_degree_days_17 | H157: manual | I157: day | J157: 2011-06-06T00:00:00+02:00 | K157: 0 | M157: 2011-06-05T00:00:00.001000+02:00 | N157: 9999-06-05 | O157: 9999-06-05 | P157: 0
A158: [Record] | B158: a447d297-c944-04b3-87e4-4ddf732807df | C158: Feature | D158: 2016-10-26T18:19:28.957000 | E158: 2023-05-22T12:08:02.553730+00:00 | F158: 2011-06-06T00:00:00.001000+02:00 | G158: acc_heating_degree_days_17 | H158: manual | I158: day | J158: 2011-06-07T00:00:00+02:00 | K158: 0 | M158: 2011-06-06T00:00:00.001000+02:00 | N158: 9999-06-06 | O158: 9999-06-06 | P158: 0
A159: [Record] | B159: 5008874d-f8db-b7e5-fa49-caf7022912f3 | C159: Feature | D159: 2016-10-26T18:19:23.610000 | E159: 2023-05-22T12:08:02.543459+00:00 | F159: 2011-06-07T00:00:00.001000+02:00 | G159: acc_heating_degree_days_17 | H159: manual | I159: day | J159: 2011-06-08T00:00:00+02:00 | K159: 1.5 | M159: 2011-06-07T00:00:00.001000+02:00 | N159: 9999-06-07 | O159: 9999-06-07 | P159: 1.5
A160: [Record] | B160: a8443f5b-0b61-3595-a2fa-7e256b4d7a62 | C160: Feature | D160: 2016-10-26T18:19:18.221000 | E160: 2023-05-22T12:08:02.536830+00:00 | F160: 2011-06-08T00:00:00.001000+02:00 | G160: acc_heating_degree_days_17 | H160: manual | I160: day | J160: 2011-06-09T00:00:00+02:00 | K160: 1 | M160: 2011-06-08T00:00:00.001000+02:00 | N160: 9999-06-08 | O160: 9999-06-08 | P160: 1
A161: [Record] | B161: a09ca399-2623-5de0-aaed-7b4e3a768e7f | C161: Feature | D161: 2016-10-26T18:19:12.857000 | E161: 2023-05-22T12:08:14.055447+00:00 | F161: 2011-06-09T00:00:00.001000+02:00 | G161: acc_heating_degree_days_17 | H161: manual | I161: day | J161: 2011-06-10T00:00:00+02:00 | K161: 2.7 | M161: 2011-06-09T00:00:00.001000+02:00 | N161: 9999-06-09 | O161: 9999-06-09 | P161: 2.7
A162: [Record] | B162: a38fc3cb-7934-ca6b-873c-9a9c2b875b35 | C162: Feature | D162: 2016-10-26T18:19:07.530000 | E162: 2023-05-22T12:08:14.047775+00:00 | F162: 2011-06-10T00:00:00.001000+02:00 | G162: acc_heating_degree_days_17 | H162: manual | I162: day | J162: 2011-06-11T00:00:00+02:00 | K162: 3.5 | M162: 2011-06-10T00:00:00.001000+02:00 | N162: 9999-06-10 | O162: 9999-06-10 | P162: 3.5
A163: [Record] | B163: 04a18a47-7ca4-b2eb-fbfa-3cf5fb9840e4 | C163: Feature | D163: 2016-10-26T18:18:59.513000 | E163: 2023-05-22T12:08:14.036892+00:00 | F163: 2011-06-11T00:00:00.001000+02:00 | G163: acc_heating_degree_days_17 | H163: manual | I163: day | J163: 2011-06-12T00:00:00+02:00 | K163: 4.3 | M163: 2011-06-11T00:00:00.001000+02:00 | N163: 9999-06-11 | O163: 9999-06-11 | P163: 4.3
A164: [Record] | B164: d3f87e98-cd2e-f0f1-d629-6918a48dfdeb | C164: Feature | D164: 2016-10-26T18:18:54.340000 | E164: 2023-05-22T12:08:33.594794+00:00 | F164: 2011-06-12T00:00:00.001000+02:00 | G164: acc_heating_degree_days_17 | H164: manual | I164: day | J164: 2011-06-13T00:00:00+02:00 | K164: 3.9 | M164: 2011-06-12T00:00:00.001000+02:00 | N164: 9999-06-12 | O164: 9999-06-12 | P164: 3.9
A165: [Record] | B165: bed5e3c1-0058-d8b0-701b-8bef0a31f53b | C165: Feature | D165: 2016-10-26T18:18:49.012000 | E165: 2023-05-22T12:08:33.594687+00:00 | F165: 2011-06-13T00:00:00.001000+02:00 | G165: acc_heating_degree_days_17 | H165: manual | I165: day | J165: 2011-06-14T00:00:00+02:00 | K165: 2.2 | M165: 2011-06-13T00:00:00.001000+02:00 | N165: 9999-06-13 | O165: 9999-06-13 | P165: 2.2
A166: [Record] | B166: 6b206441-f11d-f2e0-8019-5b5f8ac1df06 | C166: Feature | D166: 2016-10-26T18:18:43.837000 | E166: 2023-05-22T12:08:33.594579+00:00 | F166: 2011-06-14T00:00:00.001000+02:00 | G166: acc_heating_degree_days_17 | H166: manual | I166: day | J166: 2011-06-15T00:00:00+02:00 | K166: 2.5 | M166: 2011-06-14T00:00:00.001000+02:00 | N166: 9999-06-14 | O166: 9999-06-14 | P166: 2.5
A167: [Record] | B167: 9f72a72b-1ca4-1fd2-3012-3f5668972039 | C167: Feature | D167: 2016-10-26T18:18:38.575000 | E167: 2023-05-22T12:08:53.003490+00:00 | F167: 2011-06-15T00:00:00.001000+02:00 | G167: acc_heating_degree_days_17 | H167: manual | I167: day | J167: 2011-06-16T00:00:00+02:00 | K167: 3.1 | M167: 2011-06-15T00:00:00.001000+02:00 | N167: 9999-06-15 | O167: 9999-06-15 | P167: 3.1
A168: [Record] | B168: 719ab75a-88d6-b42c-7283-98cb13e9bbba | C168: Feature | D168: 2016-10-26T18:18:33.410000 | E168: 2023-05-22T12:08:53.003383+00:00 | F168: 2011-06-16T00:00:00.001000+02:00 | G168: acc_heating_degree_days_17 | H168: manual | I168: day | J168: 2011-06-17T00:00:00+02:00 | K168: 1.7 | M168: 2011-06-16T00:00:00.001000+02:00 | N168: 9999-06-16 | O168: 9999-06-16 | P168: 1.7
A169: [Record] | B169: afe8e255-47b9-817b-5c30-4d0ac3b865ff | C169: Feature | D169: 2016-10-26T18:18:28.258000 | E169: 2023-05-22T12:08:53.003275+00:00 | F169: 2011-06-17T00:00:00.001000+02:00 | G169: acc_heating_degree_days_17 | H169: manual | I169: day | J169: 2011-06-18T00:00:00+02:00 | K169: 2.6 | M169: 2011-06-17T00:00:00.001000+02:00 | N169: 9999-06-17 | O169: 9999-06-17 | P169: 2.6
A170: [Record] | B170: cb265d78-f0cb-d24a-ab42-97509cd1ca15 | C170: Feature | D170: 2016-10-26T18:18:23.258000 | E170: 2023-05-22T12:09:04.323820+00:00 | F170: 2011-06-18T00:00:00.001000+02:00 | G170: acc_heating_degree_days_17 | H170: manual | I170: day | J170: 2011-06-19T00:00:00+02:00 | K170: 3.8 | M170: 2011-06-18T00:00:00.001000+02:00 | N170: 9999-06-18 | O170: 9999-06-18 | P170: 3.8
A171: [Record] | B171: bc7422b8-f8d7-bb4d-edde-95ffca9d1da4 | C171: Feature | D171: 2016-10-26T18:18:18.076000 | E171: 2023-05-22T12:09:04.317434+00:00 | F171: 2011-06-19T00:00:00.001000+02:00 | G171: acc_heating_degree_days_17 | H171: manual | I171: day | J171: 2011-06-20T00:00:00+02:00 | K171: 3.4 | M171: 2011-06-19T00:00:00.001000+02:00 | N171: 9999-06-19 | O171: 9999-06-19 | P171: 3.4
A172: [Record] | B172: 87bf6b8d-b75f-5887-f8c4-118f26ff8d0a | C172: Feature | D172: 2016-10-26T18:18:12.734000 | E172: 2023-05-22T12:09:04.305134+00:00 | F172: 2011-06-20T00:00:00.001000+02:00 | G172: acc_heating_degree_days_17 | H172: manual | I172: day | J172: 2011-06-21T00:00:00+02:00 | K172: 3 | M172: 2011-06-20T00:00:00.001000+02:00 | N172: 9999-06-20 | O172: 9999-06-20 | P172: 3
A173: [Record] | B173: 28b2dadf-2da3-31ca-55b3-2bcca55537a7 | C173: Feature | D173: 2016-10-26T18:18:07.698000 | E173: 2023-05-22T12:09:24.514135+00:00 | F173: 2011-06-21T00:00:00.001000+02:00 | G173: acc_heating_degree_days_17 | H173: manual | I173: day | J173: 2011-06-22T00:00:00+02:00 | K173: 2.3 | M173: 2011-06-21T00:00:00.001000+02:00 | N173: 9999-06-21 | O173: 9999-06-21 | P173: 2.3
A174: [Record] | B174: ea71ccbd-8ce1-6fc9-c99d-ee57aa28ebbb | C174: Feature | D174: 2016-10-26T18:18:00.268000 | E174: 2023-05-22T12:09:24.512349+00:00 | F174: 2011-06-22T00:00:00.001000+02:00 | G174: acc_heating_degree_days_17 | H174: manual | I174: day | J174: 2011-06-23T00:00:00+02:00 | K174: 1.4 | M174: 2011-06-22T00:00:00.001000+02:00 | N174: 9999-06-22 | O174: 9999-06-22 | P174: 1.4
A175: [Record] | B175: 2794440c-69d6-000f-5870-16f213c3edb8 | C175: Feature | D175: 2016-10-26T18:17:55.275000 | E175: 2023-05-22T12:09:24.532540+00:00 | F175: 2011-06-23T00:00:00.001000+02:00 | G175: acc_heating_degree_days_17 | H175: manual | I175: day | J175: 2011-06-24T00:00:00+02:00 | K175: 2.8 | M175: 2011-06-23T00:00:00.001000+02:00 | N175: 9999-06-23 | O175: 9999-06-23 | P175: 2.8
A176: [Record] | B176: 2d93a7ff-be3e-a646-d969-5fe0864cdad1 | C176: Feature | D176: 2016-10-26T18:17:50.238000 | E176: 2023-05-22T12:09:46.185068+00:00 | F176: 2011-06-24T00:00:00.001000+02:00 | G176: acc_heating_degree_days_17 | H176: manual | I176: day | J176: 2011-06-25T00:00:00+02:00 | K176: 4.4 | M176: 2011-06-24T00:00:00.001000+02:00 | N176: 9999-06-24 | O176: 9999-06-24 | P176: 4.4
A177: [Record] | B177: adeec8ae-755b-c923-6255-dc1d9cb709c2 | C177: Feature | D177: 2016-10-26T18:17:45.222000 | E177: 2023-05-22T12:09:46.184949+00:00 | F177: 2011-06-25T00:00:00.001000+02:00 | G177: acc_heating_degree_days_17 | H177: manual | I177: day | J177: 2011-06-26T00:00:00+02:00 | K177: 3.9 | M177: 2011-06-25T00:00:00.001000+02:00 | N177: 9999-06-25 | O177: 9999-06-25 | P177: 3.9
A178: [Record] | B178: 681b9934-27d3-e5af-151c-afc842e9d319 | C178: Feature | D178: 2016-10-26T18:17:40.243000 | E178: 2023-05-22T12:09:46.184840+00:00 | F178: 2011-06-26T00:00:00.001000+02:00 | G178: acc_heating_degree_days_17 | H178: manual | I178: day | J178: 2011-06-27T00:00:00+02:00 | K178: 1.1 | M178: 2011-06-26T00:00:00.001000+02:00 | N178: 9999-06-26 | O178: 9999-06-26 | P178: 1.1
A179: [Record] | B179: 4c2eb82e-9565-fb8e-60c1-c2956135e071 | C179: Feature | D179: 2016-10-26T18:17:35.277000 | E179: 2023-05-22T12:10:06.245223+00:00 | F179: 2011-06-27T00:00:00.001000+02:00 | G179: acc_heating_degree_days_17 | H179: manual | I179: day | J179: 2011-06-28T00:00:00+02:00 | K179: 0 | M179: 2011-06-27T00:00:00.001000+02:00 | N179: 9999-06-27 | O179: 9999-06-27 | P179: 0
A180: [Record] | B180: fb02f9bb-3862-82ea-35ea-dc7e04d8678f | C180: Feature | D180: 2016-10-26T18:17:30.097000 | E180: 2023-05-22T12:10:06.258530+00:00 | F180: 2011-06-28T00:00:00.001000+02:00 | G180: acc_heating_degree_days_17 | H180: manual | I180: day | J180: 2011-06-29T00:00:00+02:00 | K180: 0 | M180: 2011-06-28T00:00:00.001000+02:00 | N180: 9999-06-28 | O180: 9999-06-28 | P180: 0
A181: [Record] | B181: 41895587-ef07-a7cc-53e6-af719804be68 | C181: Feature | D181: 2016-10-26T18:17:24.909000 | E181: 2023-05-22T12:10:06.230274+00:00 | F181: 2011-06-29T00:00:00.001000+02:00 | G181: acc_heating_degree_days_17 | H181: manual | I181: day | J181: 2011-06-30T00:00:00+02:00 | K181: 0 | M181: 2011-06-29T00:00:00.001000+02:00 | N181: 9999-06-29 | O181: 9999-06-29 | P181: 0
A182: [Record] | B182: b4428ccf-4dcc-5cae-03e7-9273c2813722 | C182: Feature | D182: 2016-10-26T18:17:19.777000 | E182: 2023-05-22T12:10:26.184898+00:00 | F182: 2011-06-30T00:00:00.001000+02:00 | G182: acc_heating_degree_days_17 | H182: manual | I182: day | J182: 2011-07-01T00:00:00+02:00 | K182: 2.9 | M182: 2011-06-30T00:00:00.001000+02:00 | N182: 9999-06-30 | O182: 9999-06-30 | P182: 2.9
A183: [Record] | B183: 1654677b-4264-61d8-918b-23ac458566ea | C183: Feature | D183: 2016-10-26T18:17:14.500000 | E183: 2023-05-22T12:10:26.184785+00:00 | F183: 2011-07-01T00:00:00.001000+02:00 | G183: acc_heating_degree_days_17 | H183: manual | I183: day | J183: 2011-07-02T00:00:00+02:00 | K183: 3.8 | M183: 2011-07-01T00:00:00.001000+02:00 | N183: 9999-07-01 | O183: 9999-07-01 | P183: 3.8
A184: [Record] | B184: b8ba5d7d-80bb-2a28-0b00-1f3099cb12ac | C184: Feature | D184: 2016-10-26T18:17:09.203000 | E184: 2023-05-22T12:10:26.184676+00:00 | F184: 2011-07-02T00:00:00.001000+02:00 | G184: acc_heating_degree_days_17 | H184: manual | I184: day | J184: 2011-07-03T00:00:00+02:00 | K184: 3.3 | M184: 2011-07-02T00:00:00.001000+02:00 | N184: 9999-07-02 | O184: 9999-07-02 | P184: 3.3
A185: [Record] | B185: aa5a55f4-74cf-d262-d5b4-75de69764269 | C185: Feature | D185: 2016-10-26T18:17:00.399000 | E185: 2023-05-22T12:10:47.321778+00:00 | F185: 2011-07-03T00:00:00.001000+02:00 | G185: acc_heating_degree_days_17 | H185: manual | I185: day | J185: 2011-07-04T00:00:00+02:00 | K185: 1.5 | M185: 2011-07-03T00:00:00.001000+02:00 | N185: 9999-07-03 | O185: 9999-07-03 | P185: 1.5
A186: [Record] | B186: b2e92f70-550a-79a2-3fbe-7f02df6b7a6b | C186: Feature | D186: 2016-10-26T18:16:55.271000 | E186: 2023-05-22T12:10:47.321667+00:00 | F186: 2011-07-04T00:00:00.001000+02:00 | G186: acc_heating_degree_days_17 | H186: manual | I186: day | J186: 2011-07-05T00:00:00+02:00 | K186: 1.4 | M186: 2011-07-04T00:00:00.001000+02:00 | N186: 9999-07-04 | O186: 9999-07-04 | P186: 1.4
A187: [Record] | B187: da4fc530-a238-dfd1-493d-a8ea249b3708 | C187: Feature | D187: 2016-10-26T18:16:50.033000 | E187: 2023-05-22T12:10:47.321554+00:00 | F187: 2011-07-05T00:00:00.001000+02:00 | G187: acc_heating_degree_days_17 | H187: manual | I187: day | J187: 2011-07-06T00:00:00+02:00 | K187: 0.9 | M187: 2011-07-05T00:00:00.001000+02:00 | N187: 9999-07-05 | O187: 9999-07-05 | P187: 0.9
A188: [Record] | B188: 81f6970b-37af-5612-8116-c7085ea0dfd2 | C188: Feature | D188: 2016-10-26T18:16:44.712000 | E188: 2023-05-22T12:10:59.200286+00:00 | F188: 2011-07-06T00:00:00.001000+02:00 | G188: acc_heating_degree_days_17 | H188: manual | I188: day | J188: 2011-07-07T00:00:00+02:00 | K188: 0 | M188: 2011-07-06T00:00:00.001000+02:00 | N188: 9999-07-06 | O188: 9999-07-06 | P188: 0
A189: [Record] | B189: b338a51b-f913-4aa4-9142-5e275dec113b | C189: Feature | D189: 2016-10-26T18:16:14.053000 | E189: 2023-05-22T12:10:59.197837+00:00 | F189: 2011-07-07T00:00:00.001000+02:00 | G189: acc_heating_degree_days_17 | H189: manual | I189: day | J189: 2011-07-08T00:00:00+02:00 | K189: 0 | M189: 2011-07-07T00:00:00.001000+02:00 | N189: 9999-07-07 | O189: 9999-07-07 | P189: 0
A190: [Record] | B190: caa312b7-8b77-5dd4-42d5-8c9dc6c44f5b | C190: Feature | D190: 2016-10-26T18:27:25.720000 | E190: 2023-05-22T12:10:59.226552+00:00 | F190: 2011-07-08T00:00:00.001000+02:00 | G190: acc_heating_degree_days_17 | H190: manual | I190: day | J190: 2011-07-09T00:00:00+02:00 | K190: 0.6 | M190: 2011-07-08T00:00:00.001000+02:00 | N190: 9999-07-08 | O190: 9999-07-08 | P190: 0.6
A191: [Record] | B191: 870583fe-bdcb-a1e8-6312-6dda2d257c04 | C191: Feature | D191: 2016-10-26T18:27:19.963000 | E191: 2023-05-22T12:11:11.367750+00:00 | F191: 2011-07-09T00:00:00.001000+02:00 | G191: acc_heating_degree_days_17 | H191: manual | I191: day | J191: 2011-07-10T00:00:00+02:00 | K191: 0.6 | M191: 2011-07-09T00:00:00.001000+02:00 | N191: 9999-07-09 | O191: 9999-07-09 | P191: 0.6
A192: [Record] | B192: 1a27af3b-47e6-558e-17b7-3f1c59c36be2 | C192: Feature | D192: 2016-10-26T18:27:14.036000 | E192: 2023-05-22T12:11:11.361207+00:00 | F192: 2011-07-10T00:00:00.001000+02:00 | G192: acc_heating_degree_days_17 | H192: manual | I192: day | J192: 2011-07-11T00:00:00+02:00 | K192: 0.4 | M192: 2011-07-10T00:00:00.001000+02:00 | N192: 9999-07-10 | O192: 9999-07-10 | P192: 0.4
A193: [Record] | B193: 1bc3e426-967f-8ee7-0ad2-e8c8864ecd61 | C193: Feature | D193: 2016-10-26T18:27:07.686000 | E193: 2023-05-22T12:11:11.351446+00:00 | F193: 2011-07-11T00:00:00.001000+02:00 | G193: acc_heating_degree_days_17 | H193: manual | I193: day | J193: 2011-07-12T00:00:00+02:00 | K193: 1 | M193: 2011-07-11T00:00:00.001000+02:00 | N193: 9999-07-11 | O193: 9999-07-11 | P193: 1
A194: [Record] | B194: 204eecf5-2d1b-c580-766a-e67724e0e4d1 | C194: Feature | D194: 2016-10-26T18:26:58.818000 | E194: 2023-05-22T12:11:33.036240+00:00 | F194: 2011-07-12T00:00:00.001000+02:00 | G194: acc_heating_degree_days_17 | H194: manual | I194: day | J194: 2011-07-13T00:00:00+02:00 | K194: 1.5 | M194: 2011-07-12T00:00:00.001000+02:00 | N194: 9999-07-12 | O194: 9999-07-12 | P194: 1.5
A195: [Record] | B195: 2497cad8-ae5c-c425-d53b-b755beeaed61 | C195: Feature | D195: 2016-10-26T18:26:53.376000 | E195: 2023-05-22T12:11:33.036130+00:00 | F195: 2011-07-13T00:00:00.001000+02:00 | G195: acc_heating_degree_days_17 | H195: manual | I195: day | J195: 2011-07-14T00:00:00+02:00 | K195: 3.9 | M195: 2011-07-13T00:00:00.001000+02:00 | N195: =DATE(9999,MID(M195,6,2),MID(M195,9,2)) -> 9999-07-13 | O195: 9999-07-13 | P195: 3.9
A196: [Record] | B196: 1f4b8f6e-5765-8b79-64f6-265c2b304037 | C196: Feature | D196: 2016-10-26T18:26:48.181000 | E196: 2023-05-22T12:11:33.036015+00:00 | F196: 2011-07-14T00:00:00.001000+02:00 | G196: acc_heating_degree_days_17 | H196: manual | I196: day | J196: 2011-07-15T00:00:00+02:00 | K196: 2.1 | M196: 2011-07-14T00:00:00.001000+02:00 | N196: 9999-07-14 | O196: 9999-07-14 | P196: 2.1
A197: [Record] | B197: 8226dfe9-8e5f-7d04-0233-cbf4c46a577d | C197: Feature | D197: 2016-10-26T18:26:42.853000 | E197: 2023-05-22T12:11:53.560548+00:00 | F197: 2011-07-15T00:00:00.001000+02:00 | G197: acc_heating_degree_days_17 | H197: manual | I197: day | J197: 2011-07-16T00:00:00+02:00 | K197: 2.1 | M197: 2011-07-15T00:00:00.001000+02:00 | N197: 9999-07-15 | O197: 9999-07-15 | P197: 2.1
A198: [Record] | B198: 1eca9337-29d1-e84d-23fb-785b57539a1b | C198: Feature | D198: 2016-10-26T18:26:37.090000 | E198: 2023-05-22T12:11:53.560417+00:00 | F198: 2011-07-16T00:00:00.001000+02:00 | G198: acc_heating_degree_days_17 | H198: manual | I198: day | J198: 2011-07-17T00:00:00+02:00 | K198: 0.3 | M198: 2011-07-16T00:00:00.001000+02:00 | N198: 9999-07-16 | O198: 9999-07-16 | P198: 0.3
A199: [Record] | B199: 57adb25f-2994-ba43-0ccb-257b5c432a5e | C199: Feature | D199: 2016-10-26T18:26:31.332000 | E199: 2023-05-22T12:11:53.560305+00:00 | F199: 2011-07-17T00:00:00.001000+02:00 | G199: acc_heating_degree_days_17 | H199: manual | I199: day | J199: 2011-07-18T00:00:00+02:00 | K199: 0.8 | M199: 2011-07-17T00:00:00.001000+02:00 | N199: 9999-07-17 | O199: 9999-07-17 | P199: 0.8
A200: [Record] | B200: d748255a-765a-7fa8-9273-9958603e0d83 | C200: Feature | D200: 2016-10-26T18:26:25.676000 | E200: 2023-05-22T12:12:17.150073+00:00 | F200: 2011-07-18T00:00:00.001000+02:00 | G200: acc_heating_degree_days_17 | H200: manual | I200: day | J200: 2011-07-19T00:00:00+02:00 | K200: 1.8 | M200: 2011-07-18T00:00:00.001000+02:00 | N200: 9999-07-18 | O200: 9999-07-18 | P200: 1.8
... 3819 more rows

Sheet Forespørgsel7 (hidden)
A1: geometry | B1: id | C1: type | D1: calculatedAt | E1: created | F1: from | G1: parameterId | H1: qcStatus | I1: timeResolution | J1: to | K1: value | M1: Dato-formel kan ikke finde ud af skudår, så de er ændret manuelt i kolonne O. | S1: Sum tjek passer.
A2: [Record] | B2: 24249cbd-e2d7-d75b-1d24-87d87c424cae | C2: Feature | D2: 2016-11-18T10:27:21.740000 | E2: 2021-10-25T09:23:17.143991+00:00 | F2: 2012-01-01T00:00:00.001000+01:00 | G2: acc_heating_degree_days_17 | H2: manual | I2: day | J2: 2012-01-02T00:00:00+01:00 | K2: 10.7 | M2: 2011-01-01T00:00:00.001000+01:00 | N2: =DATE(9999,MID(M2,6,2),MID(M2,9,2)) -> 9999-01-01 | O2: 9999-01-01 | P2: 14.8 | S2: Januar | T2: Februar | U2: Marts | V2: April | W2: Maj | X2: Juni | Y2: Juli | Z2: August | AA2: September | AB2: Oktober | AC2: November | AD2: December
A3: [Record] | B3: b11391b0-a998-ff29-b592-873c5876d322 | C3: Feature | D3: 2016-11-18T10:27:21.815000 | E3: 2021-10-25T09:23:17.729243+00:00 | F3: 2012-01-02T00:00:00.001000+01:00 | G3: acc_heating_degree_days_17 | H3: manual | I3: day | J3: 2012-01-03T00:00:00+01:00 | K3: 11.2 | M3: 2011-01-02T00:00:00.001000+01:00 | N3: =DATE(9999,MID(M3,6,2),MID(M3,9,2)) -> 9999-01-02 | O3: 9999-01-02 | P3: 18.8 | R3: 1 | S3: =SUMIF($O$2:$O$4018,"="&O2,$P$2:$P$4018)/11 -> 12.47272727 | T3: =SUMIF($O$2:$O$4018,"="&O33,$P$2:$P$4018)/11 -> 15.6 | U3: =SUMIF($O$2:$O$4018,"="&O61,$P$2:$P$4018)/11 -> 14.63636364 | V3: =SUMIF($O$2:$O$4018,"="&O92,$P$2:$P$4018)/11 -> 12.10909091 | W3: =SUMIF($O$2:$O$4018,"="&O122,$P$2:$P$4018)/11 -> 8.909090909 | X3: =SUMIF($O$2:$O$4018,"="&O153,$P$2:$P$4018)/11 -> 3.263636364 | Y3: =SUMIF($O$2:$O$4018,"="&O183,$P$2:$P$4018)/11 -> 1.427272727 | Z3: =SUMIF($O$2:$O$4018,"="&O214,$P$2:$P$4018)/11 -> 0.8909090909 | AA3: =SUMIF($O$2:$O$4018,"="&O245,$P$2:$P$4018)/11 -> 2.236363636 | AB3: =SUMIF($O$2:$O$4018,"="&O275,$P$2:$P$4018)/11 -> 4.854545455 | AC3: =SUMIF($O$2:$O$4018,"="&O306,$P$2:$P$4018)/11 -> 7.363636364 | AD3: =SUMIF($O$2:$O$4018,"="&O336,$P$2:$P$4018)/11 -> 13.2
A4: [Record] | B4: ed535df4-0b41-4dbe-da22-65f5dca6df08 | C4: Feature | D4: 2016-11-18T10:27:21.895000 | E4: 2021-10-25T09:23:17.728966+00:00 | F4: 2012-01-03T00:00:00.001000+01:00 | G4: acc_heating_degree_days_17 | H4: manual | I4: day | J4: 2012-01-04T00:00:00+01:00 | K4: 12.2 | M4: 2011-01-03T00:00:00.001000+01:00 | N4: 9999-01-03 | O4: 9999-01-03 | P4: 20.7 | R4: 2 | S4: =SUMIF($O$2:$O$4018,"="&O3,$P$2:$P$4018)/11 -> 14.18181818 | T4: =SUMIF($O$2:$O$4018,"="&O34,$P$2:$P$4018)/11 -> 16.30909091 | U4: =SUMIF($O$2:$O$4018,"="&O62,$P$2:$P$4018)/11 -> 14.78181818 | V4: =SUMIF($O$2:$O$4018,"="&O93,$P$2:$P$4018)/11 -> 11.42727273 | W4: =SUMIF($O$2:$O$4018,"="&O123,$P$2:$P$4018)/11 -> 8.627272727 | X4: =SUMIF($O$2:$O$4018,"="&O154,$P$2:$P$4018)/11 -> 2.945454545 | Y4: =SUMIF($O$2:$O$4018,"="&O184,$P$2:$P$4018)/11 -> 1.981818182 | Z4: =SUMIF($O$2:$O$4018,"="&O215,$P$2:$P$4018)/11 -> 0.5545454545 | AA4: =SUMIF($O$2:$O$4018,"="&O246,$P$2:$P$4018)/11 -> 2.236363636 | AB4: =SUMIF($O$2:$O$4018,"="&O276,$P$2:$P$4018)/11 -> 4.8 | AC4: =SUMIF($O$2:$O$4018,"="&O307,$P$2:$P$4018)/11 -> 7.8 | AD4: =SUMIF($O$2:$O$4018,"="&O337,$P$2:$P$4018)/11 -> 14.22727273
A5: [Record] | B5: 555f7b69-5b1f-2f5f-5e1f-909413da0450 | C5: Feature | D5: 2016-11-18T10:27:21.970000 | E5: 2021-10-25T09:23:17.729082+00:00 | F5: 2012-01-04T00:00:00.001000+01:00 | G5: acc_heating_degree_days_17 | H5: manual | I5: day | J5: 2012-01-05T00:00:00+01:00 | K5: 11.6 | M5: 2011-01-04T00:00:00.001000+01:00 | N5: 9999-01-04 | O5: 9999-01-04 | P5: 17.3 | R5: 3 | S5: =SUMIF($O$2:$O$4018,"="&O4,$P$2:$P$4018)/11 -> 14.29090909 | T5: 16.90909091 | U5: 14.51818182 | V5: 11.70909091 | W5: 8.945454545 | X5: 2.209090909 | Y5: 1.909090909 | Z5: 0.6272727273 | AA5: 1.927272727 | AB5: 4.854545455 | AC5: 9.309090909 | AD5: 13.19090909
A6: [Record] | B6: 18116c30-678a-4d61-7213-490f6a96134e | C6: Feature | D6: 2016-11-18T10:27:22.086000 | E6: 2021-10-25T09:23:18.288961+00:00 | F6: 2012-01-05T00:00:00.001000+01:00 | G6: acc_heating_degree_days_17 | H6: manual | I6: day | J6: 2012-01-06T00:00:00+01:00 | K6: 13 | M6: 2011-01-05T00:00:00.001000+01:00 | N6: 9999-01-05 | O6: 9999-01-05 | P6: 18.2 | R6: 4 | S6: 13.89090909 | T6: 17.04545455 | U6: 14.56363636 | V6: 11.18181818 | W6: 8.790909091 | X6: 2.518181818 | Y6: 1.427272727 | Z6: 0.6636363636 | AA6: 1.881818182 | AB6: 5.645454545 | AC6: 9.454545455 | AD6: 13.10909091
A7: [Record] | B7: dd3db406-3b3b-3589-01b9-1f4188d6939f | C7: Feature | D7: 2016-11-18T10:27:22.174000 | E7: 2021-10-25T09:23:18.288846+00:00 | F7: 2012-01-06T00:00:00.001000+01:00 | G7: acc_heating_degree_days_17 | H7: manual | I7: day | J7: 2012-01-07T00:00:00+01:00 | K7: 14.8 | M7: 2011-01-06T00:00:00.001000+01:00 | N7: 9999-01-06 | O7: 9999-01-06 | P7: 17.3 | R7: 5 | S7: 15.02727273 | T7: 16.73636364 | U7: 14.38181818 | V7: 11.35454545 | W7: 8.236363636 | X7: 2.418181818 | Y7: 1.236363636 | Z7: 0.3636363636 | AA7: 2.2 | AB7: 5.9 | AC7: 9.272727273 | AD7: 13.10909091
A8: [Record] | B8: 68d77135-cb2b-0d9b-dbbd-701f52d54753 | C8: Feature | D8: 2016-11-18T10:27:22.263000 | E8: 2021-10-25T09:23:18.289193+00:00 | F8: 2012-01-07T00:00:00.001000+01:00 | G8: acc_heating_degree_days_17 | H8: manual | I8: day | J8: 2012-01-08T00:00:00+01:00 | K8: 11.7 | M8: 2011-01-07T00:00:00.001000+01:00 | N8: 9999-01-07 | O8: 9999-01-07 | P8: 17.2 | R8: 6 | S8: 15.41818182 | T8: 16.35454545 | U8: 14.26363636 | V8: 10.42727273 | W8: 7.263636364 | X8: 2.209090909 | Y8: 1.563636364 | Z8: 0.3818181818 | AA8: 2.254545455 | AB8: 6.290909091 | AC8: 9.745454545 | AD8: 12.96363636
A9: [Record] | B9: 5069cf9d-a8eb-de0a-e9a5-d6ab42be6be9 | C9: Feature | D9: 2016-11-18T10:27:22.351000 | E9: 2021-10-25T09:23:18.864950+00:00 | F9: 2012-01-08T00:00:00.001000+01:00 | G9: acc_heating_degree_days_17 | H9: manual | I9: day | J9: 2012-01-09T00:00:00+01:00 | K9: 13.2 | M9: 2011-01-08T00:00:00.001000+01:00 | N9: 9999-01-08 | O9: 9999-01-08 | P9: 14.3 | R9: 7 | S9: 14.20909091 | T9: 15.94545455 | U9: 14.08181818 | V9: 10.21818182 | W9: 6.409090909 | X9: 2.754545455 | Y9: 1.254545455 | Z9: 0.4818181818 | AA9: 2.218181818 | AB9: 6.881818182 | AC9: 9.972727273 | AD9: 12.83636364
A10: [Record] | B10: 71cf8573-7280-95ec-a6fc-97c70f09cd17 | C10: Feature | D10: 2016-11-18T10:27:22.434000 | E10: 2021-10-25T09:23:18.864834+00:00 | F10: 2012-01-09T00:00:00.001000+01:00 | G10: acc_heating_degree_days_17 | H10: manual | I10: day | J10: 2012-01-10T00:00:00+01:00 | K10: 13.9 | M10: 2011-01-09T00:00:00.001000+01:00 | N10: 9999-01-09 | O10: 9999-01-09 | P10: 15 | R10: 8 | S10: 13.65454545 | T10: 15.72727273 | U10: 14.00909091 | V10: 10.31818182 | W10: 6.281818182 | X10: 2.763636364 | Y10: 1.309090909 | Z10: 0.8272727273 | AA10: 2.372727273 | AB10: 6.654545455 | AC10: 10.21818182 | AD10: 12.7
A11: [Record] | B11: 3dc6998f-46bd-4467-7adc-86b9704a6520 | C11: Feature | D11: 2016-11-18T10:27:22.531000 | E11: 2021-10-25T09:23:18.864718+00:00 | F11: 2012-01-10T00:00:00.001000+01:00 | G11: acc_heating_degree_days_17 | H11: manual | I11: day | J11: 2012-01-11T00:00:00+01:00 | K11: 12 | M11: 2011-01-10T00:00:00.001000+01:00 | N11: 9999-01-10 | O11: 9999-01-10 | P11: 15.8 | R11: 9 | S11: 13.73636364 | T11: 15.53636364 | U11: 13.4 | V11: 10.59090909 | W11: 4.945454545 | X11: 2.763636364 | Y11: 1.690909091 | Z11: 0.9545454545 | AA11: 2.272727273 | AB11: 6.718181818 | AC11: 9.881818182 | AD11: 12.51818182
A12: [Record] | B12: 544f8d25-0122-4106-979d-30a5fd9de66b | C12: Feature | D12: 2016-11-18T10:27:22.627000 | E12: 2021-10-25T09:23:19.472676+00:00 | F12: 2012-01-11T00:00:00.001000+01:00 | G12: acc_heating_degree_days_17 | H12: manual | I12: day | J12: 2012-01-12T00:00:00+01:00 | K12: 10.7 | M12: 2011-01-11T00:00:00.001000+01:00 | N12: 9999-01-11 | O12: 9999-01-11 | P12: 17.5 | R12: 10 | S12: 14.04545455 | T12: 16.13636364 | U12: 13.58181818 | V12: 11.10909091 | W12: 5.236363636 | X12: 2.545454545 | Y12: 1.736363636 | Z12: 1.181818182 | AA12: 1.927272727 | AB12: 7 | AC12: 9.745454545 | AD12: 13
A13: [Record] | B13: 84d9d26d-ba7a-4135-5e6b-273fe540a36c | C13: Feature | D13: 2016-11-18T10:27:22.722000 | E13: 2021-10-25T09:23:19.472329+00:00 | F13: 2012-01-12T00:00:00.001000+01:00 | G13: acc_heating_degree_days_17 | H13: manual | I13: day | J13: 2012-01-13T00:00:00+01:00 | K13: 10.8 | M13: 2011-01-12T00:00:00.001000+01:00 | N13: 9999-01-12 | O13: 9999-01-12 | P13: 16.3 | R13: 11 | S13: 13.64545455 | T13: 16.67272727 | U13: 13.7 | V13: 10.9 | W13: 5.909090909 | X13: 2.436363636 | Y13: 1.418181818 | Z13: 1.509090909 | AA13: 2.036363636 | AB13: 6.490909091 | AC13: 10.19090909 | AD13: 13.91818182
A14: [Record] | B14: 185df7b9-f061-4f44-00f4-f3d6e6d84eb1 | C14: Feature | D14: 2016-11-18T10:27:22.820000 | E14: 2021-10-25T09:23:19.472446+00:00 | F14: 2012-01-13T00:00:00.001000+01:00 | G14: acc_heating_degree_days_17 | H14: manual | I14: day | J14: 2012-01-14T00:00:00+01:00 | K14: 13 | M14: 2011-01-13T00:00:00.001000+01:00 | N14: 9999-01-13 | O14: 9999-01-13 | P14: 16.5 | R14: 12 | S14: 13.97272727 | T14: 16.90909091 | U14: 13.60909091 | V14: 10.84545455 | W14: 6.8 | X14: 2.527272727 | Y14: 1.381818182 | Z14: 1.4 | AA14: 2.372727273 | AB14: 6.945454545 | AC14: 10.42727273 | AD14: 14.65454545
A15: [Record] | B15: d23e6a4b-174e-bc30-19bc-1a56ea950164 | C15: Feature | D15: 2016-11-18T10:27:22.939000 | E15: 2021-10-25T09:23:20.100708+00:00 | F15: 2012-01-14T00:00:00.001000+01:00 | G15: acc_heating_degree_days_17 | H15: manual | I15: day | J15: 2012-01-15T00:00:00+01:00 | K15: 15.3 | M15: 2011-01-14T00:00:00.001000+01:00 | N15: 9999-01-14 | O15: 9999-01-14 | P15: 15.4 | R15: 13 | S15: 15.15454545 | T15: 16.96363636 | U15: 13.71818182 | V15: 10.86363636 | W15: 6.8 | X15: 2.436363636 | Y15: 1.754545455 | Z15: 1.345454545 | AA15: 2.645454545 | AB15: 7.018181818 | AC15: 10.83636364 | AD15: 13.73636364
A16: [Record] | B16: cf754e97-44c9-6cc0-2f0a-3ceaf8693f03 | C16: Feature | D16: 2016-11-18T10:27:23.036000 | E16: 2021-10-25T09:23:20.100476+00:00 | F16: 2012-01-15T00:00:00.001000+01:00 | G16: acc_heating_degree_days_17 | H16: manual | I16: day | J16: 2012-01-16T00:00:00+01:00 | K16: 16.1 | M16: 2011-01-15T00:00:00.001000+01:00 | N16: 9999-01-15 | O16: 9999-01-15 | P16: 13.6 | R16: 14 | S16: 15.74545455 | T16: 16.52727273 | U16: 13.25454545 | V16: 10.73636364 | W16: 6.836363636 | X16: 2.563636364 | Y16: 1.790909091 | Z16: 1.181818182 | AA16: 2.436363636 | AB16: 6.745454545 | AC16: 10.19090909 | AD16: 13.85454545
A17: [Record] | B17: ee44a2dc-a6cc-90e8-0fae-4e2b215c986b | C17: Feature | D17: 2016-11-18T10:27:23.133000 | E17: 2021-10-25T09:23:20.100823+00:00 | F17: 2012-01-16T00:00:00.001000+01:00 | G17: acc_heating_degree_days_17 | H17: manual | I17: day | J17: 2012-01-17T00:00:00+01:00 | K17: 13.2 | M17: 2011-01-16T00:00:00.001000+01:00 | N17: 9999-01-16 | O17: 9999-01-16 | P17: 11.1 | R17: 15 | S17: 15.60909091 | T17: 15.34545455 | U17: 13.08181818 | V17: 9.927272727 | W17: 6.336363636 | X17: 2.727272727 | Y17: 1.709090909 | Z17: 0.7909090909 | AA17: 2.690909091 | AB17: 6.881818182 | AC17: 9.536363636 | AD17: 13.00909091
A18: [Record] | B18: c696d56e-7946-39b2-cc35-e8fb1eeb235f | C18: Feature | D18: 2016-11-18T10:27:23.222000 | E18: 2021-10-25T09:23:20.762735+00:00 | F18: 2012-01-17T00:00:00.001000+01:00 | G18: acc_heating_degree_days_17 | H18: manual | I18: day | J18: 2012-01-18T00:00:00+01:00 | K18: 13.8 | M18: 2011-01-17T00:00:00.001000+01:00 | N18: 9999-01-17 | O18: 9999-01-17 | P18: 12.9 | R18: 16 | S18: 15.56363636 | T18: 14.71818182 | U18: 13 | V18: 10.20909091 | W18: 6.118181818 | X18: 2.309090909 | Y18: 1.272727273 | Z18: 1.036363636 | AA18: 3.309090909 | AB18: 7.036363636 | AC18: 9.881818182 | AD18: 13.23636364
A19: [Record] | B19: 34cd331d-5f38-658a-b536-224e3c3dac4a | C19: Feature | D19: 2016-11-18T10:27:23.306000 | E19: 2021-10-25T09:23:20.762863+00:00 | F19: 2012-01-18T00:00:00.001000+01:00 | G19: acc_heating_degree_days_17 | H19: manual | I19: day | J19: 2012-01-19T00:00:00+01:00 | K19: 13 | M19: 2011-01-18T00:00:00.001000+01:00 | N19: 9999-01-18 | O19: 9999-01-18 | P19: 14.2 | R19: 17 | S19: 16.3 | T19: 14.36363636 | U19: 13.00909091 | V19: 9.663636364 | W19: 5.536363636 | X19: 2.018181818 | Y19: 1.181818182 | Z19: 0.7818181818 | AA19: 3.763636364 | AB19: 6.563636364 | AC19: 10.99090909 | AD19: 12.85454545
A20: [Record] | B20: f5a92072-defe-5ac8-41a5-a3e40dbcd6da | C20: Feature | D20: 2016-11-18T10:27:23.399000 | E20: 2021-10-25T09:23:20.762990+00:00 | F20: 2012-01-19T00:00:00.001000+01:00 | G20: acc_heating_degree_days_17 | H20: manual | I20: day | J20: 2012-01-20T00:00:00+01:00 | K20: 13.4 | M20: 2011-01-19T00:00:00.001000+01:00 | N20: 9999-01-19 | O20: 9999-01-19 | P20: 15.7 | R20: 18 | S20: 15.73636364 | T20: 14.16363636 | U20: 13.22727273 | V20: 8.981818182 | W20: 4.872727273 | X20: 1.818181818 | Y20: 0.8090909091 | Z20: 0.9363636364 | AA20: 4.018181818 | AB20: 6.863636364 | AC20: 9.945454545 | AD20: 12.1
A21: [Record] | B21: eda0c529-6b2d-517e-5395-326fb2b033dd | C21: Feature | D21: 2016-11-18T10:27:23.492000 | E21: 2021-10-25T09:23:21.348128+00:00 | F21: 2012-01-20T00:00:00.001000+01:00 | G21: acc_heating_degree_days_17 | H21: manual | I21: day | J21: 2012-01-21T00:00:00+01:00 | K21: 15.4 | M21: 2011-01-20T00:00:00.001000+01:00 | N21: 9999-01-20 | O21: 9999-01-20 | P21: 17.9 | R21: 19 | S21: 15.83636364 | T21: 14.44545455 | U21: 13.84545455 | V21: 8.2 | W21: 4.4 | X21: 1.909090909 | Y21: 0.7545454545 | Z21: 1.254545455 | AA21: 4.345454545 | AB21: 7.009090909 | AC21: 10.63636364 | AD21: 12.06363636
A22: [Record] | B22: 98e58fe9-0283-a150-bbc0-dce80edc98dc | C22: Feature | D22: 2016-11-18T10:27:23.571000 | E22: 2021-10-25T09:23:21.348246+00:00 | F22: 2012-01-21T00:00:00.001000+01:00 | G22: acc_heating_degree_days_17 | H22: manual | I22: day | J22: 2012-01-22T00:00:00+01:00 | K22: 15.1 | M22: 2011-01-21T00:00:00.001000+01:00 | N22: 9999-01-21 | O22: 9999-01-21 | P22: 18.2 | R22: 20 | S22: 16.28181818 | T22: 14.27272727 | U22: 12.54545455 | V22: 7.554545455 | W22: 4.3 | X22: 2.081818182 | Y22: 0.8545454545 | Z22: 1.218181818 | AA22: 4.209090909 | AB22: 6.354545455 | AC22: 11.88181818 | AD22: 12.66363636
A23: [Record] | B23: 2c81506d-dec2-dc29-e51d-240c8d042d19 | C23: Feature | D23: 2016-11-18T10:27:23.660000 | E23: 2021-10-25T09:23:21.348367+00:00 | F23: 2012-01-22T00:00:00.001000+01:00 | G23: acc_heating_degree_days_17 | H23: manual | I23: day | J23: 2012-01-23T00:00:00+01:00 | K23: 15.3 | M23: 2011-01-22T00:00:00.001000+01:00 | N23: 9999-01-22 | O23: 9999-01-22 | P23: 16.5 | R23: 21 | S23: 16.1 | T23: 13.96363636 | U23: 12.48181818 | V23: 7.781818182 | W23: 3.618181818 | X23: 2.609090909 | Y23: 0.8909090909 | Z23: 1.272727273 | AA23: 3.945454545 | AB23: 6.790909091 | AC23: 12.4 | AD23: 12.54545455
A24: [Record] | B24: 59e1680d-6925-72e0-649c-77c37290be1a | C24: Feature | D24: 2016-11-18T10:27:23.743000 | E24: 2021-10-25T09:23:21.919070+00:00 | F24: 2012-01-23T00:00:00.001000+01:00 | G24: acc_heating_degree_days_17 | H24: manual | I24: day | J24: 2012-01-24T00:00:00+01:00 | K24: 17.7 | M24: 2011-01-23T00:00:00.001000+01:00 | N24: 9999-01-23 | O24: 9999-01-23 | P24: 16.2 | R24: 22 | S24: 16.38181818 | T24: 14.23636364 | U24: 13.06363636 | V24: 7.709090909 | W24: 3.590909091 | X24: 2.572727273 | Y24: 0.9181818182 | Z24: 0.9090909091 | AA24: 4.372727273 | AB24: 6.645454545 | AC24: 11.56363636 | AD24: 12.20909091
A25: [Record] | B25: 7b50b24f-a0df-8015-5bd4-e558fb42e0f9 | C25: Feature | D25: 2016-11-18T10:27:23.832000 | E25: 2021-10-25T09:23:21.919186+00:00 | F25: 2012-01-24T00:00:00.001000+01:00 | G25: acc_heating_degree_days_17 | H25: manual | I25: day | J25: 2012-01-25T00:00:00+01:00 | K25: 18.9 | M25: 2011-01-24T00:00:00.001000+01:00 | N25: 9999-01-24 | O25: 9999-01-24 | P25: 15.2 | R25: 23 | S25: 16.86363636 | T25: 14.49090909 | U25: 13.14545455 | V25: 8.136363636 | W25: 4.145454545 | X25: 2.209090909 | Y25: 0.7545454545 | Z25: 1.063636364 | AA25: 4.281818182 | AB25: 7.045454545 | AC25: 11.46363636 | AD25: 12.22727273
A26: [Record] | B26: 7cee4b31-f968-8c51-fe74-30567666cce1 | C26: Feature | D26: 2016-11-18T10:27:23.917000 | E26: 2021-10-25T09:23:21.918953+00:00 | F26: 2012-01-25T00:00:00.001000+01:00 | G26: acc_heating_degree_days_17 | H26: manual | I26: day | J26: 2012-01-26T00:00:00+01:00 | K26: 19.3 | M26: 2011-01-25T00:00:00.001000+01:00 | N26: 9999-01-25 | O26: 9999-01-25 | P26: 15.4 | R26: 24 | S26: 16.33636364 | T26: 14.03636364 | U26: 12.76363636 | V26: 8.790909091 | W26: 4.418181818 | X26: 2.490909091 | Y26: 0.7181818182 | Z26: 1.327272727 | AA26: 4.263636364 | AB26: 7.263636364 | AC26: 11.25454545 | AD26: 12.53636364
A27: [Record] | B27: ce62a02b-3ca7-0c0d-98a0-a668ee1ec567 | C27: Feature | D27: 2016-11-18T10:27:24.001000 | E27: 2021-10-25T09:23:22.515847+00:00 | F27: 2012-01-26T00:00:00.001000+01:00 | G27: acc_heating_degree_days_17 | H27: manual | I27: day | J27: 2012-01-27T00:00:00+01:00 | K27: 16.9 | M27: 2011-01-26T00:00:00.001000+01:00 | N27: 9999-01-26 | O27: 9999-01-26 | P27: 19.9 | R27: 25 | S27: 16.44545455 | T27: 14.34545455 | U27: 12.3 | V27: 8.754545455 | W27: 3.981818182 | X27: 2.327272727 | Y27: 0.5909090909 | Z27: 1.472727273 | AA27: 4.245454545 | AB27: 7.354545455 | AC27: 12.18181818 | AD27: 12.82727273
A28: [Record] | B28: ae2b116a-811e-7234-47d3-d5f363786739 | C28: Feature | D28: 2016-11-18T10:27:24.102000 | E28: 2021-10-25T09:23:22.515716+00:00 | F28: 2012-01-27T00:00:00.001000+01:00 | G28: acc_heating_degree_days_17 | H28: manual | I28: day | J28: 2012-01-28T00:00:00+01:00 | K28: 17.6 | M28: 2011-01-27T00:00:00.001000+01:00 | N28: 9999-01-27 | O28: 9999-01-27 | P28: 21.6 | R28: 26 | S28: 16.58181818 | T28: 14.39090909 | U28: 11.37272727 | V28: 8.936363636 | W28: 3.8 | X28: 2.027272727 | Y28: 0.4909090909 | Z28: 1.236363636 | AA28: 3.836363636 | AB28: 7.672727273 | AC28: 12.27272727 | AD28: 13.47272727
A29: [Record] | B29: 5b108c76-0775-c410-94a5-b762909bdf50 | C29: Feature | D29: 2016-11-18T10:27:24.189000 | E29: 2021-10-25T09:23:22.515564+00:00 | F29: 2012-01-28T00:00:00.001000+01:00 | G29: acc_heating_degree_days_17 | H29: manual | I29: day | J29: 2012-01-29T00:00:00+01:00 | K29: 18.4 | M29: 2011-01-28T00:00:00.001000+01:00 | N29: 9999-01-28 | O29: 9999-01-28 | P29: 19.4 | R29: 27 | S29: 15.54545455 | T29: 14.93636364 | U29: 12.29090909 | V29: 8.890909091 | W29: 3.709090909 | X29: 2.063636364 | Y29: 0.5272727273 | Z29: 1.372727273 | AA29: 3.545454545 | AB29: 7.836363636 | AC29: 11.94545455 | AD29: 13.40909091
A30: [Record] | B30: c061dc5d-bb69-8763-e96e-e611eacf7f9b | C30: Feature | D30: 2016-11-18T10:27:24.275000 | E30: 2021-10-25T09:23:23.101918+00:00 | F30: 2012-01-29T00:00:00.001000+01:00 | G30: acc_heating_degree_days_17 | H30: manual | I30: day | J30: 2012-01-30T00:00:00+01:00 | K30: 18.6 | M30: 2011-01-29T00:00:00.001000+01:00 | N30: 9999-01-29 | O30: 9999-01-29 | P30: 17.1 | R30: 28 | S30: 15.4 | T30: =SUMIF($O$2:$O$4018,"="&O60,$P$2:$P$4018)/11 -> 14.51818182 | U30: 11.9 | V30: 8.918181818 | W30: 4.245454545 | X30: 1.781818182 | Y30: 0.5272727273 | Z30: 1.590909091 | AA30: 4.172727273 | AB30: 8.036363636 | AC30: 13.11818182 | AD30: 14.19090909
A31: [Record] | B31: 2a42549f-8284-f8d7-bf87-83431cd1e35b | C31: Feature | D31: 2016-11-18T10:27:24.358000 | E31: 2021-10-25T09:23:23.101794+00:00 | F31: 2012-01-30T00:00:00.001000+01:00 | G31: acc_heating_degree_days_17 | H31: manual | I31: day | J31: 2012-01-31T00:00:00+01:00 | K31: 18.5 | M31: 2011-01-30T00:00:00.001000+01:00 | N31: 9999-01-30 | O31: 9999-01-30 | P31: 18.2 | R31: 29 | S31: 15.55454545 | T31: =SUMIF($O$2:$O$4018,"=29-02-9999",$P$2:$P$4018)/3 -> 13.2 | U31: 11.91818182 | V31: 8.354545455 | W31: 4.627272727 | X31: 1.527272727 | Y31: 1.081818182 | Z31: 1.245454545 | AA31: 4.254545455 | AB31: 9.227272727 | AC31: 13.76363636 | AD31: 13.29090909
A32: [Record] | B32: 0929a0c5-6ecd-f2e7-b4ec-1246d6724c04 | C32: Feature | D32: 2016-11-18T10:27:24.447000 | E32: 2021-10-25T09:23:23.102039+00:00 | F32: 2012-01-31T00:00:00.001000+01:00 | G32: acc_heating_degree_days_17 | H32: manual | I32: day | J32: 2012-02-01T00:00:00+01:00 | K32: 19.7 | M32: 2011-01-31T00:00:00.001000+01:00 | N32: 9999-01-31 | O32: 9999-01-31 | P32: 17.8 | R32: 30 | S32: 15.60909091 | U32: 11.75454545 | V32: 8.109090909 | W32: 3.318181818 | X32: 1.681818182 | Y32: 0.9090909091 | Z32: 1.345454545 | AA32: 4.672727273 | AB32: 9.227272727 | AC32: 13.63636364 | AD32: 12.57272727
A33: [Record] | B33: 5d191b7e-db14-1cd3-ca24-530d4170b086 | C33: Feature | D33: 2016-11-18T10:27:24.555000 | E33: 2021-10-25T09:23:23.844768+00:00 | F33: 2012-02-01T00:00:00.001000+01:00 | G33: acc_heating_degree_days_17 | H33: manual | I33: day | J33: 2012-02-02T00:00:00+01:00 | K33: 20.4 | M33: 2011-02-01T00:00:00.001000+01:00 | N33: 9999-02-01 | O33: 9999-02-01 | P33: 15.5 | R33: 31 | S33: 15.83636364 | U33: 12.09090909 | W33: 3.127272727 | Y33: 1.036363636 | Z33: 1.772727273 | AB33: 8.036363636 | AD33: 11.9
A34: [Record] | B34: 4e410f42-ee56-b75b-d37f-746416dbaab9 | C34: Feature | D34: 2016-11-18T10:27:24.745000 | E34: 2021-10-25T09:23:23.844647+00:00 | F34: 2012-02-02T00:00:00.001000+01:00 | G34: acc_heating_degree_days_17 | H34: manual | I34: day | J34: 2012-02-03T00:00:00+01:00 | K34: 23.3 | M34: 2011-02-02T00:00:00.001000+01:00 | N34: 9999-02-02 | O34: 9999-02-02 | P34: 14.3
A35: [Record] | B35: 110c9f23-3bd6-b0d2-c525-d381741db0c3 | C35: Feature | D35: 2016-11-18T10:27:24.878000 | E35: 2021-10-25T09:23:23.844521+00:00 | F35: 2012-02-03T00:00:00.001000+01:00 | G35: acc_heating_degree_days_17 | H35: manual | I35: day | J35: 2012-02-04T00:00:00+01:00 | K35: 25.9 | M35: 2011-02-03T00:00:00.001000+01:00 | N35: 9999-02-03 | O35: 9999-02-03 | P35: 13.4
A36: [Record] | B36: e8ceead8-70c5-ada0-2c93-2599214f0196 | C36: Feature | D36: 2016-11-18T10:27:25.004000 | E36: 2021-10-25T09:23:24.502330+00:00 | F36: 2012-02-04T00:00:00.001000+01:00 | G36: acc_heating_degree_days_17 | H36: manual | I36: day | J36: 2012-02-05T00:00:00+01:00 | K36: 28.1 | M36: 2011-02-04T00:00:00.001000+01:00 | N36: 9999-02-04 | O36: 9999-02-04 | P36: 12.8
A37: [Record] | B37: 87792b48-3d1c-39ff-a1de-948114de73d6 | C37: Feature | D37: 2016-11-18T10:27:25.131000 | E37: 2021-10-25T09:23:24.502564+00:00 | F37: 2012-02-05T00:00:00.001000+01:00 | G37: acc_heating_degree_days_17 | H37: manual | I37: day | J37: 2012-02-06T00:00:00+01:00 | K37: 26.5 | M37: 2011-02-05T00:00:00.001000+01:00 | N37: 9999-02-05 | O37: 9999-02-05 | P37: 11
A38: [Record] | B38: 744fd1c0-e319-0dcd-c04d-b0008a80e566 | C38: Feature | D38: 2016-11-18T10:27:25.274000 | E38: 2021-10-25T09:23:24.502205+00:00 | F38: 2012-02-06T00:00:00.001000+01:00 | G38: acc_heating_degree_days_17 | H38: manual | I38: day | J38: 2012-02-07T00:00:00+01:00 | K38: 26.5 | M38: 2011-02-06T00:00:00.001000+01:00 | N38: 9999-02-06 | O38: 9999-02-06 | P38: 13.2
A39: [Record] | B39: 53fd5114-6e0e-4523-01f2-102bd0e5dc55 | C39: Feature | D39: 2016-11-18T10:27:25.400000 | E39: 2021-10-25T09:23:25.160717+00:00 | F39: 2012-02-07T00:00:00.001000+01:00 | G39: acc_heating_degree_days_17 | H39: manual | I39: day | J39: 2012-02-08T00:00:00+01:00 | K39: 26 | M39: 2011-02-07T00:00:00.001000+01:00 | N39: 9999-02-07 | O39: 9999-02-07 | P39: 12.5
A40: [Record] | B40: 935fdc48-c02f-3615-545e-a5d3a7c20946 | C40: Feature | D40: 2016-11-18T10:27:25.679000 | E40: 2021-10-25T09:23:25.160944+00:00 | F40: 2012-02-08T00:00:00.001000+01:00 | G40: acc_heating_degree_days_17 | H40: manual | I40: day | J40: 2012-02-09T00:00:00+01:00 | K40: 22.5 | M40: 2011-02-08T00:00:00.001000+01:00 | N40: 9999-02-08 | O40: 9999-02-08 | P40: 12.5
A41: [Record] | B41: 5f9c79c6-dd63-9b86-bdfc-86565d6aae77 | C41: Feature | D41: 2016-11-18T10:27:25.808000 | E41: 2021-10-25T09:23:25.160549+00:00 | F41: 2012-02-09T00:00:00.001000+01:00 | G41: acc_heating_degree_days_17 | H41: manual | I41: day | J41: 2012-02-10T00:00:00+01:00 | K41: 20.9 | M41: 2011-02-09T00:00:00.001000+01:00 | N41: 9999-02-09 | O41: 9999-02-09 | P41: 14
A42: [Record] | B42: dc726dcf-a2e1-e0be-3091-38261fa59a7b | C42: Feature | D42: 2016-11-18T10:27:25.959000 | E42: 2021-10-25T09:23:25.764513+00:00 | F42: 2012-02-10T00:00:00.001000+01:00 | G42: acc_heating_degree_days_17 | H42: manual | I42: day | J42: 2012-02-11T00:00:00+01:00 | K42: 23.4 | M42: 2011-02-10T00:00:00.001000+01:00 | N42: 9999-02-10 | O42: 9999-02-10 | P42: 13.4
A43: [Record] | B43: 3f377ddc-6df6-0c52-f2cb-dd9f1899240a | C43: Feature | D43: 2016-11-18T10:27:26.098000 | E43: 2021-10-25T09:23:25.764047+00:00 | F43: 2012-02-11T00:00:00.001000+01:00 | G43: acc_heating_degree_days_17 | H43: manual | I43: day | J43: 2012-02-12T00:00:00+01:00 | K43: 22.8 | M43: 2011-02-11T00:00:00.001000+01:00 | N43: 9999-02-11 | O43: 9999-02-11 | P43: 15.2
A44: [Record] | B44: cf70f6b2-c0c6-119f-0a80-03857a4d2ab1 | C44: Feature | D44: 2016-11-18T10:27:26.219000 | E44: 2021-10-25T09:23:25.764394+00:00 | F44: 2012-02-12T00:00:00.001000+01:00 | G44: acc_heating_degree_days_17 | H44: manual | I44: day | J44: 2012-02-13T00:00:00+01:00 | K44: 17.1 | M44: 2011-02-12T00:00:00.001000+01:00 | N44: 9999-02-12 | O44: 9999-02-12 | P44: 19.3
A45: [Record] | B45: dc064b40-808b-3460-b307-1ea0bc247706 | C45: Feature | D45: 2016-11-18T10:27:26.348000 | E45: 2021-10-25T09:23:26.359861+00:00 | F45: 2012-02-13T00:00:00.001000+01:00 | G45: acc_heating_degree_days_17 | H45: manual | I45: day | J45: 2012-02-14T00:00:00+01:00 | K45: 19.1 | M45: 2011-02-13T00:00:00.001000+01:00 | N45: 9999-02-13 | O45: 9999-02-13 | P45: 17.6
A46: [Record] | B46: 8f0edb23-9f1a-d933-9460-25329f6354d3 | C46: Feature | D46: 2016-11-18T10:27:26.478000 | E46: 2021-10-25T09:23:26.360209+00:00 | F46: 2012-02-14T00:00:00.001000+01:00 | G46: acc_heating_degree_days_17 | H46: manual | I46: day | J46: 2012-02-15T00:00:00+01:00 | K46: 15.9 | M46: 2011-02-14T00:00:00.001000+01:00 | N46: 9999-02-14 | O46: 9999-02-14 | P46: 18.1
A47: [Record] | B47: ec012d00-2ab4-1ccc-533d-80a7fbce8bca | C47: Feature | D47: 2016-11-18T10:27:26.599000 | E47: 2021-10-25T09:23:26.359744+00:00 | F47: 2012-02-15T00:00:00.001000+01:00 | G47: acc_heating_degree_days_17 | H47: manual | I47: day | J47: 2012-02-16T00:00:00+01:00 | K47: 14.5 | M47: 2011-02-15T00:00:00.001000+01:00 | N47: 9999-02-15 | O47: 9999-02-15 | P47: 19.2
A48: [Record] | B48: 2f9eb778-6ac0-d645-18a5-83416db4293a | C48: Feature | D48: 2016-11-18T10:27:26.725000 | E48: 2021-10-25T09:23:26.940496+00:00 | F48: 2012-02-16T00:00:00.001000+01:00 | G48: acc_heating_degree_days_17 | H48: manual | I48: day | J48: 2012-02-17T00:00:00+01:00 | K48: 15.8 | M48: 2011-02-16T00:00:00.001000+01:00 | N48: 9999-02-16 | O48: 9999-02-16 | P48: 19
A49: [Record] | B49: 681aa3a5-f144-8396-e24d-5a8974a3bc3d | C49: Feature | D49: 2016-11-18T10:27:26.850000 | E49: 2021-10-25T09:23:26.940159+00:00 | F49: 2012-02-17T00:00:00.001000+01:00 | G49: acc_heating_degree_days_17 | H49: manual | I49: day | J49: 2012-02-18T00:00:00+01:00 | K49: 13.4 | M49: 2011-02-17T00:00:00.001000+01:00 | N49: 9999-02-17 | O49: 9999-02-17 | P49: 18.2
A50: [Record] | B50: 77c8b43c-b6d0-8098-9d80-c0090eff5559 | C50: Feature | D50: 2016-11-18T10:27:26.994000 | E50: 2021-10-25T09:23:26.940644+00:00 | F50: 2012-02-18T00:00:00.001000+01:00 | G50: acc_heating_degree_days_17 | H50: manual | I50: day | J50: 2012-02-19T00:00:00+01:00 | K50: 13.6 | M50: 2011-02-18T00:00:00.001000+01:00 | N50: 9999-02-18 | O50: 9999-02-18 | P50: 19.3
A51: [Record] | B51: c0532169-2344-3798-c4b3-cc691cc322c1 | C51: Feature | D51: 2016-11-18T10:27:27.150000 | E51: 2021-10-25T09:23:27.520714+00:00 | F51: 2012-02-19T00:00:00.001000+01:00 | G51: acc_heating_degree_days_17 | H51: manual | I51: day | J51: 2012-02-20T00:00:00+01:00 | K51: 15.1 | M51: 2011-02-19T00:00:00.001000+01:00 | N51: 9999-02-19 | O51: 9999-02-19 | P51: 22
A52: [Record] | B52: b49e53e2-a18e-08fd-8d84-f176852db195 | C52: Feature | D52: 2016-11-18T10:27:27.273000 | E52: 2021-10-25T09:23:27.520947+00:00 | F52: 2012-02-20T00:00:00.001000+01:00 | G52: acc_heating_degree_days_17 | H52: manual | I52: day | J52: 2012-02-21T00:00:00+01:00 | K52: 15.2 | M52: 2011-02-20T00:00:00.001000+01:00 | N52: 9999-02-20 | O52: 9999-02-20 | P52: 22.7
A53: [Record] | B53: daf5ca1e-4cf1-a88d-33c3-7d2259513be9 | C53: Feature | D53: 2016-11-18T10:27:27.402000 | E53: 2021-10-25T09:23:27.520830+00:00 | F53: 2012-02-21T00:00:00.001000+01:00 | G53: acc_heating_degree_days_17 | H53: manual | I53: day | J53: 2012-02-22T00:00:00+01:00 | K53: 12.6 | M53: 2011-02-21T00:00:00.001000+01:00 | N53: 9999-02-21 | O53: 9999-02-21 | P53: 22.2
A54: [Record] | B54: 27ac4a3a-be7b-1eda-2ede-5fe75190e38c | C54: Feature | D54: 2016-11-18T10:27:27.615000 | E54: 2021-10-25T09:23:28.123491+00:00 | F54: 2012-02-22T00:00:00.001000+01:00 | G54: acc_heating_degree_days_17 | H54: manual | I54: day | J54: 2012-02-23T00:00:00+01:00 | K54: 11.9 | M54: 2011-02-22T00:00:00.001000+01:00 | N54: 9999-02-22 | O54: 9999-02-22 | P54: 21.5
A55: [Record] | B55: d16a7906-05af-a6bc-9f3b-8aaf729ab73f | C55: Feature | D55: 2016-11-18T10:27:27.737000 | E55: 2021-10-25T09:23:28.123724+00:00 | F55: 2012-02-23T00:00:00.001000+01:00 | G55: acc_heating_degree_days_17 | H55: manual | I55: day | J55: 2012-02-24T00:00:00+01:00 | K55: 10.9 | M55: 2011-02-23T00:00:00.001000+01:00 | N55: 9999-02-23 | O55: 9999-02-23 | P55: 22
A56: [Record] | B56: c6d1edf9-59b3-f326-0dfd-32081986facb | C56: Feature | D56: 2016-11-18T10:27:27.812000 | E56: 2021-10-25T09:23:28.123608+00:00 | F56: 2012-02-24T00:00:00.001000+01:00 | G56: acc_heating_degree_days_17 | H56: manual | I56: day | J56: 2012-02-25T00:00:00+01:00 | K56: 10.7 | M56: 2011-02-24T00:00:00.001000+01:00 | N56: 9999-02-24 | O56: 9999-02-24 | P56: 19.8
A57: [Record] | B57: 426a1bd0-9b25-0e47-d2e9-7206f7b4d4c7 | C57: Feature | D57: 2016-11-18T10:27:27.895000 | E57: 2021-10-25T09:23:28.663288+00:00 | F57: 2012-02-25T00:00:00.001000+01:00 | G57: acc_heating_degree_days_17 | H57: manual | I57: day | J57: 2012-02-26T00:00:00+01:00 | K57: 12 | M57: 2011-02-25T00:00:00.001000+01:00 | N57: 9999-02-25 | O57: 9999-02-25 | P57: 16.9
A58: [Record] | B58: 9059e84d-08b6-b672-8997-312989facaf8 | C58: Feature | D58: 2016-11-18T10:27:28.003000 | E58: 2021-10-25T09:23:28.663172+00:00 | F58: 2012-02-26T00:00:00.001000+01:00 | G58: acc_heating_degree_days_17 | H58: manual | I58: day | J58: 2012-02-27T00:00:00+01:00 | K58: 14.9 | M58: 2011-02-26T00:00:00.001000+01:00 | N58: 9999-02-26 | O58: 9999-02-26 | P58: 16.3
A59: [Record] | B59: 64d42cec-df4c-8fcd-f170-19036a916d37 | C59: Feature | D59: 2016-11-18T10:27:28.116000 | E59: 2021-10-25T09:23:28.663520+00:00 | F59: 2012-02-27T00:00:00.001000+01:00 | G59: acc_heating_degree_days_17 | H59: manual | I59: day | J59: 2012-02-28T00:00:00+01:00 | K59: 14.4 | M59: 2011-02-27T00:00:00.001000+01:00 | N59: 9999-02-27 | O59: 9999-02-27 | P59: 18.3
A60: [Record] | B60: 070a0def-1988-5307-101e-ad7aabf32123 | C60: Feature | D60: 2016-11-18T10:27:28.203000 | E60: 2021-10-25T09:23:29.287157+00:00 | F60: 2012-02-28T00:00:00.001000+01:00 | G60: acc_heating_degree_days_17 | H60: manual | I60: day | J60: 2012-02-29T00:00:00+01:00 | K60: 9.8 | M60: 2011-02-28T00:00:00.001000+01:00 | N60: 9999-02-28 | O60: 9999-02-28 | P60: 17.7
A61: [Record] | B61: 40b0a02a-0a9c-266a-490d-493e0ed2b72b | C61: Feature | D61: 2016-11-18T10:27:28.307000 | E61: 2021-10-25T09:23:29.286802+00:00 | F61: 2012-02-29T00:00:00.001000+01:00 | G61: acc_heating_degree_days_17 | H61: manual | I61: day | J61: 2012-03-01T00:00:00+01:00 | K61: 9.7 | M61: 2011-03-01T00:00:00.001000+01:00 | N61: 9999-03-01 | O61: 9999-03-01 | P61: 17.8
A62: [Record] | B62: 0dc54402-bdd6-6993-df13-15e875ed7830 | C62: Feature | D62: 2016-11-18T10:27:28.394000 | E62: 2021-10-25T09:23:29.286921+00:00 | F62: 2012-03-01T00:00:00.001000+01:00 | G62: acc_heating_degree_days_17 | H62: manual | I62: day | J62: 2012-03-02T00:00:00+01:00 | K62: 10.4 | M62: 2011-03-02T00:00:00.001000+01:00 | N62: 9999-03-02 | O62: 9999-03-02 | P62: 18.3
A63: [Record] | B63: f6648be9-c36d-cffc-0e29-92b169b05dda | C63: Feature | D63: 2016-11-18T10:27:28.466000 | E63: 2021-10-25T09:23:29.867116+00:00 | F63: 2012-03-02T00:00:00.001000+01:00 | G63: acc_heating_degree_days_17 | H63: manual | I63: day | J63: 2012-03-03T00:00:00+01:00 | K63: 11.9 | M63: 2011-03-03T00:00:00.001000+01:00 | N63: 9999-03-03 | O63: 9999-03-03 | P63: 18.2
A64: [Record] | B64: 93c7ac09-442e-980a-ce23-8f95e2032667 | C64: Feature | D64: 2016-11-18T10:27:28.547000 | E64: 2021-10-25T09:23:29.866771+00:00 | F64: 2012-03-03T00:00:00.001000+01:00 | G64: acc_heating_degree_days_17 | H64: manual | I64: day | J64: 2012-03-04T00:00:00+01:00 | K64: 13.8 | M64: 2011-03-04T00:00:00.001000+01:00 | N64: 9999-03-04 | O64: 9999-03-04 | P64: 15.7
A65: [Record] | B65: a123e847-b2b8-c7a1-fb34-3901084aa7c7 | C65: Feature | D65: 2016-11-18T10:27:28.663000 | E65: 2021-10-25T09:23:29.866887+00:00 | F65: 2012-03-04T00:00:00.001000+01:00 | G65: acc_heating_degree_days_17 | H65: manual | I65: day | J65: 2012-03-05T00:00:00+01:00 | K65: 14.4 | M65: 2011-03-05T00:00:00.001000+01:00 | N65: 9999-03-05 | O65: 9999-03-05 | P65: 14
A66: [Record] | B66: cc71d2c2-28a0-8791-1ca5-9cd8e68ec9e5 | C66: Feature | D66: 2016-11-18T10:27:28.761000 | E66: 2021-10-25T09:23:30.524162+00:00 | F66: 2012-03-05T00:00:00.001000+01:00 | G66: acc_heating_degree_days_17 | H66: manual | I66: day | J66: 2012-03-06T00:00:00+01:00 | K66: 15.1 | M66: 2011-03-06T00:00:00.001000+01:00 | N66: 9999-03-06 | O66: 9999-03-06 | P66: 17
A67: [Record] | B67: 50fb2e4b-d5f7-4ad4-0b41-ff7c28cf07fd | C67: Feature | D67: 2016-11-18T10:27:28.845000 | E67: 2021-10-25T09:23:30.523993+00:00 | F67: 2012-03-06T00:00:00.001000+01:00 | G67: acc_heating_degree_days_17 | H67: manual | I67: day | J67: 2012-03-07T00:00:00+01:00 | K67: 15.8 | M67: 2011-03-07T00:00:00.001000+01:00 | N67: =DATE(9999,MID(M67,6,2),MID(M67,9,2)) -> 9999-03-07 | O67: 9999-03-07 | P67: 16.7
A68: [Record] | B68: 0233e2e3-c4d3-25b2-f59d-a66df6782b70 | C68: Feature | D68: 2016-11-18T10:27:28.926000 | E68: 2021-10-25T09:23:30.523819+00:00 | F68: 2012-03-07T00:00:00.001000+01:00 | G68: acc_heating_degree_days_17 | H68: manual | I68: day | J68: 2012-03-08T00:00:00+01:00 | K68: 15.5 | M68: 2011-03-08T00:00:00.001000+01:00 | N68: 9999-03-08 | O68: 9999-03-08 | P68: 15.6
A69: [Record] | B69: dd4dcc0b-7d51-0e78-e384-58d6e3ce1983 | C69: Feature | D69: 2016-11-18T10:27:29.005000 | E69: 2021-10-25T09:23:31.119045+00:00 | F69: 2012-03-08T00:00:00.001000+01:00 | G69: acc_heating_degree_days_17 | H69: manual | I69: day | J69: 2012-03-09T00:00:00+01:00 | K69: 13.3 | M69: 2011-03-09T00:00:00.001000+01:00 | N69: 9999-03-09 | O69: 9999-03-09 | P69: 14.9
A70: [Record] | B70: 3ca1622f-295e-f455-9253-c6c0e29bc7b1 | C70: Feature | D70: 2016-11-18T10:27:29.089000 | E70: 2021-10-25T09:23:31.118928+00:00 | F70: 2012-03-09T00:00:00.001000+01:00 | G70: acc_heating_degree_days_17 | H70: manual | I70: day | J70: 2012-03-10T00:00:00+01:00 | K70: 12.1 | M70: 2011-03-10T00:00:00.001000+01:00 | N70: 9999-03-10 | O70: 9999-03-10 | P70: 13.3
A71: [Record] | B71: 5688b506-466b-8197-0bbc-f07c7f6ae30f | C71: Feature | D71: 2016-11-18T10:27:29.172000 | E71: 2021-10-25T09:23:31.119277+00:00 | F71: 2012-03-10T00:00:00.001000+01:00 | G71: acc_heating_degree_days_17 | H71: manual | I71: day | J71: 2012-03-11T00:00:00+01:00 | K71: 10.8 | M71: 2011-03-11T00:00:00.001000+01:00 | N71: 9999-03-11 | O71: 9999-03-11 | P71: 13.7
A72: [Record] | B72: 357da7c3-b49d-24b1-715b-a6c3ec140c49 | C72: Feature | D72: 2016-11-18T10:27:29.253000 | E72: 2021-10-25T09:23:31.770223+00:00 | F72: 2012-03-11T00:00:00.001000+01:00 | G72: acc_heating_degree_days_17 | H72: manual | I72: day | J72: 2012-03-12T00:00:00+01:00 | K72: 10.5 | M72: 2011-03-12T00:00:00.001000+01:00 | N72: 9999-03-12 | O72: 9999-03-12 | P72: 12.8
A73: [Record] | B73: 2d59b7cc-8de3-aa97-7609-0e252f692a80 | C73: Feature | D73: 2016-11-18T10:27:29.336000 | E73: 2021-10-25T09:23:31.769992+00:00 | F73: 2012-03-12T00:00:00.001000+01:00 | G73: acc_heating_degree_days_17 | H73: manual | I73: day | J73: 2012-03-13T00:00:00+01:00 | K73: 9.9 | M73: 2011-03-13T00:00:00.001000+01:00 | N73: 9999-03-13 | O73: 9999-03-13 | P73: 11.9
A74: [Record] | B74: 4a89d794-81d5-071e-b8a6-417e000b78c0 | C74: Feature | D74: 2016-11-18T10:27:29.430000 | E74: 2021-10-25T09:23:31.770108+00:00 | F74: 2012-03-13T00:00:00.001000+01:00 | G74: acc_heating_degree_days_17 | H74: manual | I74: day | J74: 2012-03-14T00:00:00+01:00 | K74: 9.8 | M74: 2011-03-14T00:00:00.001000+01:00 | N74: 9999-03-14 | O74: 9999-03-14 | P74: 11.4
A75: [Record] | B75: 8725d1a4-54cd-892f-2b9b-3181a0e10e44 | C75: Feature | D75: 2016-11-18T10:27:29.522000 | E75: 2021-10-25T09:23:32.365982+00:00 | F75: 2012-03-14T00:00:00.001000+01:00 | G75: acc_heating_degree_days_17 | H75: manual | I75: day | J75: 2012-03-15T00:00:00+01:00 | K75: 10.7 | M75: 2011-03-15T00:00:00.001000+01:00 | N75: 9999-03-15 | O75: 9999-03-15 | P75: 14.4
A76: [Record] | B76: d989bccd-9e91-973d-de63-89c6fc754db4 | C76: Feature | D76: 2016-11-18T10:27:29.613000 | E76: 2021-10-25T09:23:32.365637+00:00 | F76: 2012-03-15T00:00:00.001000+01:00 | G76: acc_heating_degree_days_17 | H76: manual | I76: day | J76: 2012-03-16T00:00:00+01:00 | K76: 12.4 | M76: 2011-03-16T00:00:00.001000+01:00 | N76: 9999-03-16 | O76: 9999-03-16 | P76: 16.2
A77: [Record] | B77: 4ffc5b09-18fc-f1fd-86b9-dc2c382b6816 | C77: Feature | D77: 2016-11-18T10:27:29.704000 | E77: 2021-10-25T09:23:32.365867+00:00 | F77: 2012-03-16T00:00:00.001000+01:00 | G77: acc_heating_degree_days_17 | H77: manual | I77: day | J77: 2012-03-17T00:00:00+01:00 | K77: 11.9 | M77: 2011-03-17T00:00:00.001000+01:00 | N77: 9999-03-17 | O77: 9999-03-17 | P77: 15.5
A78: [Record] | B78: 8a954fdc-01ba-5904-3041-85b9f500580e | C78: Feature | D78: 2016-11-18T10:27:29.796000 | E78: 2021-10-25T09:23:32.986612+00:00 | F78: 2012-03-17T00:00:00.001000+01:00 | G78: acc_heating_degree_days_17 | H78: manual | I78: day | J78: 2012-03-18T00:00:00+01:00 | K78: 10.5 | M78: 2011-03-18T00:00:00.001000+01:00 | N78: 9999-03-18 | O78: 9999-03-18 | P78: 14.9
A79: [Record] | B79: afdb01bf-ab84-0b16-12bc-3faea51cc3f5 | C79: Feature | D79: 2016-11-18T10:27:29.885000 | E79: 2021-10-25T09:23:32.986732+00:00 | F79: 2012-03-18T00:00:00.001000+01:00 | G79: acc_heating_degree_days_17 | H79: manual | I79: day | J79: 2012-03-19T00:00:00+01:00 | K79: 11.4 | M79: 2011-03-19T00:00:00.001000+01:00 | N79: 9999-03-19 | O79: 9999-03-19 | P79: 13.5
A80: [Record] | B80: 636370b1-5c69-425a-1c28-2144024bb461 | C80: Feature | D80: 2016-11-18T10:27:29.975000 | E80: 2021-10-25T09:23:32.986481+00:00 | F80: 2012-03-19T00:00:00.001000+01:00 | G80: acc_heating_degree_days_17 | H80: manual | I80: day | J80: 2012-03-20T00:00:00+01:00 | K80: 12.1 | M80: 2011-03-20T00:00:00.001000+01:00 | N80: 9999-03-20 | O80: 9999-03-20 | P80: 14.1
A81: [Record] | B81: b1ba496b-dad0-0bf7-ad2a-4288778c5dc3 | C81: Feature | D81: 2016-11-18T10:27:30.063000 | E81: 2021-10-25T09:23:33.586842+00:00 | F81: 2012-03-20T00:00:00.001000+01:00 | G81: acc_heating_degree_days_17 | H81: manual | I81: day | J81: 2012-03-21T00:00:00+01:00 | K81: 10.1 | M81: 2011-03-21T00:00:00.001000+01:00 | N81: 9999-03-21 | O81: 9999-03-21 | P81: 11.5
A82: [Record] | B82: 07bfd531-00dd-f527-a919-36f980b9e3dc | C82: Feature | D82: 2016-11-18T10:27:30.157000 | E82: 2021-10-25T09:23:33.586958+00:00 | F82: 2012-03-21T00:00:00.001000+01:00 | G82: acc_heating_degree_days_17 | H82: manual | I82: day | J82: 2012-03-22T00:00:00+01:00 | K82: 8.8 | M82: 2011-03-22T00:00:00.001000+01:00 | N82: 9999-03-22 | O82: 9999-03-22 | P82: 10
A83: [Record] | B83: 3cced3b6-ec5c-6820-bf81-9bb6c75bc76d | C83: Feature | D83: 2016-11-18T10:27:30.247000 | E83: 2021-10-25T09:23:33.586613+00:00 | F83: 2012-03-22T00:00:00.001000+01:00 | G83: acc_heating_degree_days_17 | H83: manual | I83: day | J83: 2012-03-23T00:00:00+01:00 | K83: 9.2 | M83: 2011-03-23T00:00:00.001000+01:00 | N83: 9999-03-23 | O83: 9999-03-23 | P83: 11.1
A84: [Record] | B84: 1428f109-6967-ece3-17f7-22c0c322f285 | C84: Feature | D84: 2016-11-18T10:27:30.335000 | E84: 2021-10-25T09:23:34.242515+00:00 | F84: 2012-03-23T00:00:00.001000+01:00 | G84: acc_heating_degree_days_17 | H84: manual | I84: day | J84: 2012-03-24T00:00:00+01:00 | K84: 10.7 | M84: 2011-03-24T00:00:00.001000+01:00 | N84: 9999-03-24 | O84: 9999-03-24 | P84: 9.6
A85: [Record] | B85: c1e51829-2568-f653-488a-c84e270403ee | C85: Feature | D85: 2016-11-18T10:27:30.419000 | E85: 2021-10-25T09:23:34.242863+00:00 | F85: 2012-03-24T00:00:00.001000+01:00 | G85: acc_heating_degree_days_17 | H85: manual | I85: day | J85: 2012-03-25T00:00:00+01:00 | K85: 11.7 | M85: 2011-03-25T00:00:00.001000+01:00 | N85: 9999-03-25 | O85: 9999-03-25 | P85: 12.1
A86: [Record] | B86: fb35d935-640c-85cd-03bb-025d218c2ee6 | C86: Feature | D86: 2016-11-18T10:27:30.507000 | E86: 2021-10-25T09:23:34.242631+00:00 | F86: 2012-03-25T00:00:00.001000+01:00 | G86: acc_heating_degree_days_17 | H86: manual | I86: day | J86: 2012-03-26T00:00:00+02:00 | K86: 9 | M86: 2011-03-26T00:00:00.001000+01:00 | N86: 9999-03-26 | O86: 9999-03-26 | P86: 15.8
A87: [Record] | B87: df9c8682-e559-dcf7-bb70-6c7e6c78cfc2 | C87: Feature | D87: 2016-11-18T10:27:30.593000 | E87: 2021-10-25T09:23:34.955050+00:00 | F87: 2012-03-26T00:00:00.001000+02:00 | G87: acc_heating_degree_days_17 | H87: manual | I87: day | J87: 2012-03-27T00:00:00+02:00 | K87: 10.4 | M87: 2011-03-27T00:00:00.001000+01:00 | N87: 9999-03-27 | O87: 9999-03-27 | P87: 15.1
A88: [Record] | B88: 44ce849b-5e66-6efc-2fd9-b67a61093521 | C88: Feature | D88: 2016-11-18T10:27:30.683000 | E88: 2021-10-25T09:23:34.954909+00:00 | F88: 2012-03-27T00:00:00.001000+02:00 | G88: acc_heating_degree_days_17 | H88: manual | I88: day | J88: 2012-03-28T00:00:00+02:00 | K88: 6.7 | M88: 2011-03-28T00:00:00.001000+02:00 | N88: 9999-03-28 | O88: 9999-03-28 | P88: 12.8
A89: [Record] | B89: 75597885-c2a9-33ab-f24f-ba0b1d970acb | C89: Feature | D89: 2016-11-18T10:27:30.785000 | E89: 2021-10-25T09:23:34.955171+00:00 | F89: 2012-03-28T00:00:00.001000+02:00 | G89: acc_heating_degree_days_17 | H89: manual | I89: day | J89: 2012-03-29T00:00:00+02:00 | K89: 8.3 | M89: 2011-03-29T00:00:00.001000+02:00 | N89: 9999-03-29 | O89: 9999-03-29 | P89: 12.3
A90: [Record] | B90: 5b8bcbb0-a648-00ab-4253-bec531b025ef | C90: Feature | D90: 2016-11-18T10:27:30.917000 | E90: 2021-10-25T09:23:35.651118+00:00 | F90: 2012-03-29T00:00:00.001000+02:00 | G90: acc_heating_degree_days_17 | H90: manual | I90: day | J90: 2012-03-30T00:00:00+02:00 | K90: 9.6 | M90: 2011-03-30T00:00:00.001000+02:00 | N90: 9999-03-30 | O90: 9999-03-30 | P90: 12.1
A91: [Record] | B91: e40d6f29-34b6-cf78-c6d6-2155b67dd655 | C91: Feature | D91: 2016-11-18T10:27:31.026000 | E91: 2021-10-25T09:23:35.650885+00:00 | F91: 2012-03-30T00:00:00.001000+02:00 | G91: acc_heating_degree_days_17 | H91: manual | I91: day | J91: 2012-03-31T00:00:00+02:00 | K91: 9.7 | M91: 2011-03-31T00:00:00.001000+02:00 | N91: 9999-03-31 | O91: 9999-03-31 | P91: 10.7
A92: [Record] | B92: dbdade38-9746-d7ec-1b8f-d163c44bb4bb | C92: Feature | D92: 2016-11-18T10:27:31.138000 | E92: 2021-10-25T09:23:35.651235+00:00 | F92: 2012-03-31T00:00:00.001000+02:00 | G92: acc_heating_degree_days_17 | H92: manual | I92: day | J92: 2012-04-01T00:00:00+02:00 | K92: 12.3 | M92: 2011-04-01T00:00:00.001000+02:00 | N92: 9999-04-01 | O92: 9999-04-01 | P92: 8.6
A93: [Record] | B93: 702374cf-d07a-b56d-cdec-f13608ecf697 | C93: Feature | D93: 2016-11-18T10:27:31.274000 | E93: 2021-10-25T09:23:36.282792+00:00 | F93: 2012-04-01T00:00:00.001000+02:00 | G93: acc_heating_degree_days_17 | H93: manual | I93: day | J93: 2012-04-02T00:00:00+02:00 | K93: 12.9 | M93: 2011-04-02T00:00:00.001000+02:00 | N93: 9999-04-02 | O93: 9999-04-02 | P93: 5.5
A94: [Record] | B94: 201185dd-8119-1cf6-5561-12180c930264 | C94: Feature | D94: 2016-11-18T10:27:31.400000 | E94: 2021-10-25T09:23:36.282908+00:00 | F94: 2012-04-02T00:00:00.001000+02:00 | G94: acc_heating_degree_days_17 | H94: manual | I94: day | J94: 2012-04-03T00:00:00+02:00 | K94: 14 | M94: 2011-04-03T00:00:00.001000+02:00 | N94: 9999-04-03 | O94: 9999-04-03 | P94: 8.2
A95: [Record] | B95: c656dfe1-99e4-e21f-7e6b-db590b1ec5ee | C95: Feature | D95: 2016-11-18T10:27:31.582000 | E95: 2021-10-25T09:23:36.283025+00:00 | F95: 2012-04-03T00:00:00.001000+02:00 | G95: acc_heating_degree_days_17 | H95: manual | I95: day | J95: 2012-04-04T00:00:00+02:00 | K95: 14.9 | M95: 2011-04-04T00:00:00.001000+02:00 | N95: 9999-04-04 | O95: 9999-04-04 | P95: 9.3
A96: [Record] | B96: 45d48dcb-0d27-d907-3649-bb34d11bc2da | C96: Feature | D96: 2016-11-18T10:27:31.821000 | E96: 2021-10-25T09:23:36.859035+00:00 | F96: 2012-04-04T00:00:00.001000+02:00 | G96: acc_heating_degree_days_17 | H96: manual | I96: day | J96: 2012-04-05T00:00:00+02:00 | K96: 13.8 | M96: 2011-04-05T00:00:00.001000+02:00 | N96: 9999-04-05 | O96: 9999-04-05 | P96: 9.8
A97: [Record] | B97: b348054a-47f6-8582-6123-6e992086fb74 | C97: Feature | D97: 2016-11-18T10:27:31.966000 | E97: 2021-10-25T09:23:36.858896+00:00 | F97: 2012-04-05T00:00:00.001000+02:00 | G97: acc_heating_degree_days_17 | H97: manual | I97: day | J97: 2012-04-06T00:00:00+02:00 | K97: 14.2 | M97: 2011-04-06T00:00:00.001000+02:00 | N97: 9999-04-06 | O97: 9999-04-06 | P97: 7.8
A98: [Record] | B98: 026b25dc-15d4-dc32-3142-3d6de67b77b1 | C98: Feature | D98: 2016-11-18T10:27:32.208000 | E98: 2021-10-25T09:23:36.858653+00:00 | F98: 2012-04-06T00:00:00.001000+02:00 | G98: acc_heating_degree_days_17 | H98: manual | I98: day | J98: 2012-04-07T00:00:00+02:00 | K98: 13.4 | M98: 2011-04-07T00:00:00.001000+02:00 | N98: 9999-04-07 | O98: 9999-04-07 | P98: 8.5
A99: [Record] | B99: c51e4360-49c4-80e3-c529-e92f29da94d5 | C99: Feature | D99: 2016-11-18T10:27:32.435000 | E99: 2021-10-25T09:23:37.530852+00:00 | F99: 2012-04-07T00:00:00.001000+02:00 | G99: acc_heating_degree_days_17 | H99: manual | I99: day | J99: 2012-04-08T00:00:00+02:00 | K99: 15.1 | M99: 2011-04-08T00:00:00.001000+02:00 | N99: 9999-04-08 | O99: 9999-04-08 | P99: 9.1
A100: [Record] | B100: 8d507f1a-98cb-a62c-fcfa-293dabdc1984 | C100: Feature | D100: 2016-11-18T10:27:32.940000 | E100: 2021-10-25T09:23:37.531109+00:00 | F100: 2012-04-08T00:00:00.001000+02:00 | G100: acc_heating_degree_days_17 | H100: manual | I100: day | J100: 2012-04-09T00:00:00+02:00 | K100: 14.7 | M100: 2011-04-09T00:00:00.001000+02:00 | N100: 9999-04-09 | O100: 9999-04-09 | P100: 8.9
A101: [Record] | B101: 85e3938f-7aad-daff-f8cc-859a57b3dc3f | C101: Feature | D101: 2016-11-18T10:27:33.518000 | E101: 2021-10-25T09:23:37.531225+00:00 | F101: 2012-04-09T00:00:00.001000+02:00 | G101: acc_heating_degree_days_17 | H101: manual | I101: day | J101: 2012-04-10T00:00:00+02:00 | K101: 11.6 | M101: 2011-04-10T00:00:00.001000+02:00 | N101: 9999-04-10 | O101: 9999-04-10 | P101: 7.7
A102: [Record] | B102: 66aa19f1-2329-39a2-6381-89ba2f4c5277 | C102: Feature | D102: 2016-11-18T10:27:33.719000 | E102: 2021-10-25T09:23:38.301652+00:00 | F102: 2012-04-10T00:00:00.001000+02:00 | G102: acc_heating_degree_days_17 | H102: manual | I102: day | J102: 2012-04-11T00:00:00+02:00 | K102: 9 | M102: 2011-04-11T00:00:00.001000+02:00 | N102: 9999-04-11 | O102: 9999-04-11 | P102: 7.6
A103: [Record] | B103: c17ecef9-d1a4-7e4c-50bf-8b1972195873 | C103: Feature | D103: 2016-11-18T10:27:33.910000 | E103: 2021-10-25T09:23:38.301904+00:00 | F103: 2012-04-11T00:00:00.001000+02:00 | G103: acc_heating_degree_days_17 | H103: manual | I103: day | J103: 2012-04-12T00:00:00+02:00 | K103: 9.7 | M103: 2011-04-12T00:00:00.001000+02:00 | N103: 9999-04-12 | O103: 9999-04-12 | P103: 10.1
A104: [Record] | B104: 74dccfd4-5f0c-eaec-73fe-7fea844a93bf | C104: Feature | D104: 2016-11-18T10:27:34.067000 | E104: 2021-10-25T09:23:38.302036+00:00 | F104: 2012-04-12T00:00:00.001000+02:00 | G104: acc_heating_degree_days_17 | H104: manual | I104: day | J104: 2012-04-13T00:00:00+02:00 | K104: 10.7 | M104: 2011-04-13T00:00:00.001000+02:00 | N104: 9999-04-13 | O104: 9999-04-13 | P104: 10.9
A105: [Record] | B105: ad9b0834-6033-6f21-c1e0-83084a774f4c | C105: Feature | D105: 2016-11-18T10:27:34.248000 | E105: 2021-10-25T09:23:39.037381+00:00 | F105: 2012-04-13T00:00:00.001000+02:00 | G105: acc_heating_degree_days_17 | H105: manual | I105: day | J105: 2012-04-14T00:00:00+02:00 | K105: 11.2 | M105: 2011-04-14T00:00:00.001000+02:00 | N105: 9999-04-14 | O105: 9999-04-14 | P105: 11.2
A106: [Record] | B106: 5614aa99-029e-9aba-b88d-7fa892d35c62 | C106: Feature | D106: 2016-11-18T10:27:34.384000 | E106: 2021-10-25T09:23:39.037148+00:00 | F106: 2012-04-14T00:00:00.001000+02:00 | G106: acc_heating_degree_days_17 | H106: manual | I106: day | J106: 2012-04-15T00:00:00+02:00 | K106: 11.2 | M106: 2011-04-15T00:00:00.001000+02:00 | N106: 9999-04-15 | O106: 9999-04-15 | P106: 9.3
A107: [Record] | B107: 1be5b1df-0c93-f3cd-9e0f-5974533f28ec | C107: Feature | D107: 2016-11-18T10:27:34.455000 | E107: 2021-10-25T09:23:39.037265+00:00 | F107: 2012-04-15T00:00:00.001000+02:00 | G107: acc_heating_degree_days_17 | H107: manual | I107: day | J107: 2012-04-16T00:00:00+02:00 | K107: 11.6 | M107: 2011-04-16T00:00:00.001000+02:00 | N107: 9999-04-16 | O107: 9999-04-16 | P107: 8.7
A108: [Record] | B108: 23093e48-ddb9-7548-999a-1756da9d8f72 | C108: Feature | D108: 2016-11-18T10:27:34.526000 | E108: 2021-10-25T09:23:39.631306+00:00 | F108: 2012-04-16T00:00:00.001000+02:00 | G108: acc_heating_degree_days_17 | H108: manual | I108: day | J108: 2012-04-17T00:00:00+02:00 | K108: 12.4 | M108: 2011-04-17T00:00:00.001000+02:00 | N108: 9999-04-17 | O108: 9999-04-17 | P108: 8.4
A109: [Record] | B109: e1f17df7-339b-5dbc-6874-44e8e81dbefd | C109: Feature | D109: 2016-11-18T10:27:34.621000 | E109: 2021-10-25T09:23:39.631720+00:00 | F109: 2012-04-17T00:00:00.001000+02:00 | G109: acc_heating_degree_days_17 | H109: manual | I109: day | J109: 2012-04-18T00:00:00+02:00 | K109: 12.4 | M109: 2011-04-18T00:00:00.001000+02:00 | N109: 9999-04-18 | O109: 9999-04-18 | P109: 7.6
A110: [Record] | B110: f13a58a9-af15-08ee-9d45-e0b9f222ea99 | C110: Feature | D110: 2016-11-18T10:27:34.693000 | E110: 2021-10-25T09:23:39.631541+00:00 | F110: 2012-04-18T00:00:00.001000+02:00 | G110: acc_heating_degree_days_17 | H110: manual | I110: day | J110: 2012-04-19T00:00:00+02:00 | K110: 10.3 | M110: 2011-04-19T00:00:00.001000+02:00 | N110: 9999-04-19 | O110: 9999-04-19 | P110: 6
A111: [Record] | B111: 9ec5ca03-4ee7-662b-ce2f-5572f5545e6a | C111: Feature | D111: 2016-11-18T10:27:34.767000 | E111: 2021-10-25T09:23:40.282529+00:00 | F111: 2012-04-19T00:00:00.001000+02:00 | G111: acc_heating_degree_days_17 | H111: manual | I111: day | J111: 2012-04-20T00:00:00+02:00 | K111: 8.3 | M111: 2011-04-20T00:00:00.001000+02:00 | N111: 9999-04-20 | O111: 9999-04-20 | P111: 4.4
A112: [Record] | B112: 910e1d00-a542-483d-4e9e-1c1ae10ba49c | C112: Feature | D112: 2016-11-18T10:27:34.839000 | E112: 2021-10-25T09:23:40.282644+00:00 | F112: 2012-04-20T00:00:00.001000+02:00 | G112: acc_heating_degree_days_17 | H112: manual | I112: day | J112: 2012-04-21T00:00:00+02:00 | K112: 10.5 | M112: 2011-04-21T00:00:00.001000+02:00 | N112: 9999-04-21 | O112: 9999-04-21 | P112: 3.3
A113: [Record] | B113: e3ed284b-6244-4036-5886-0ded3624afcd | C113: Feature | D113: 2016-11-18T10:27:34.911000 | E113: 2021-10-25T09:23:40.282299+00:00 | F113: 2012-04-21T00:00:00.001000+02:00 | G113: acc_heating_degree_days_17 | H113: manual | I113: day | J113: 2012-04-22T00:00:00+02:00 | K113: 10.1 | M113: 2011-04-22T00:00:00.001000+02:00 | N113: 9999-04-22 | O113: 9999-04-22 | P113: 3.6
A114: [Record] | B114: 4541f7a1-3916-ae89-89ef-42e39378692d | C114: Feature | D114: 2016-11-18T10:27:34.985000 | E114: 2021-10-25T09:23:40.858675+00:00 | F114: 2012-04-22T00:00:00.001000+02:00 | G114: acc_heating_degree_days_17 | H114: manual | I114: day | J114: 2012-04-23T00:00:00+02:00 | K114: 9.4 | M114: 2011-04-23T00:00:00.001000+02:00 | N114: 9999-04-23 | O114: 9999-04-23 | P114: 4.1
A115: [Record] | B115: 1cae5024-7408-3f65-d489-abafbe797434 | C115: Feature | D115: 2016-11-18T10:27:35.062000 | E115: 2021-10-25T09:23:40.858790+00:00 | F115: 2012-04-23T00:00:00.001000+02:00 | G115: acc_heating_degree_days_17 | H115: manual | I115: day | J115: 2012-04-24T00:00:00+02:00 | K115: 9.5 | M115: 2011-04-24T00:00:00.001000+02:00 | N115: 9999-04-24 | O115: 9999-04-24 | P115: 4.3
A116: [Record] | B116: 6a508062-fc07-dafa-b4f5-ea7ac8b5de93 | C116: Feature | D116: 2016-11-18T10:27:35.136000 | E116: 2021-10-25T09:23:40.858561+00:00 | F116: 2012-04-24T00:00:00.001000+02:00 | G116: acc_heating_degree_days_17 | H116: manual | I116: day | J116: 2012-04-25T00:00:00+02:00 | K116: 8.8 | M116: 2011-04-25T00:00:00.001000+02:00 | N116: 9999-04-25 | O116: 9999-04-25 | P116: 3.8
A117: [Record] | B117: f53ecef1-56de-8c3d-abea-80cf440662f0 | C117: Feature | D117: 2016-11-18T10:27:35.220000 | E117: 2021-10-25T09:23:41.464561+00:00 | F117: 2012-04-25T00:00:00.001000+02:00 | G117: acc_heating_degree_days_17 | H117: manual | I117: day | J117: 2012-04-26T00:00:00+02:00 | K117: 8.1 | M117: 2011-04-26T00:00:00.001000+02:00 | N117: 9999-04-26 | O117: 9999-04-26 | P117: 4.8
A118: [Record] | B118: f231be1f-2b04-57e3-5abc-e3150c95d450 | C118: Feature | D118: 2016-11-18T10:27:35.293000 | E118: 2021-10-25T09:23:41.464701+00:00 | F118: 2012-04-26T00:00:00.001000+02:00 | G118: acc_heating_degree_days_17 | H118: manual | I118: day | J118: 2012-04-27T00:00:00+02:00 | K118: 7.1 | M118: 2011-04-27T00:00:00.001000+02:00 | N118: 9999-04-27 | O118: 9999-04-27 | P118: 4.9
A119: [Record] | B119: 9de24951-28a8-6f85-38da-e9246052a44b | C119: Feature | D119: 2016-11-18T10:27:35.368000 | E119: 2021-10-25T09:23:41.464444+00:00 | F119: 2012-04-27T00:00:00.001000+02:00 | G119: acc_heating_degree_days_17 | H119: manual | I119: day | J119: 2012-04-28T00:00:00+02:00 | K119: 6.3 | M119: 2011-04-28T00:00:00.001000+02:00 | N119: 9999-04-28 | O119: 9999-04-28 | P119: 5
A120: [Record] | B120: 98106a1a-e1c3-da09-05e6-be0adf46d07c | C120: Feature | D120: 2016-11-18T10:27:35.441000 | E120: 2021-10-25T09:23:42.033011+00:00 | F120: 2012-04-28T00:00:00.001000+02:00 | G120: acc_heating_degree_days_17 | H120: manual | I120: day | J120: 2012-04-29T00:00:00+02:00 | K120: 9.9 | M120: 2011-04-29T00:00:00.001000+02:00 | N120: 9999-04-29 | O120: 9999-04-29 | P120: 5.2
A121: [Record] | B121: 811ef4b3-64d8-0d85-c723-d4fb26c3e403 | C121: Feature | D121: 2016-11-18T10:27:35.518000 | E121: 2021-10-25T09:23:42.032777+00:00 | F121: 2012-04-29T00:00:00.001000+02:00 | G121: acc_heating_degree_days_17 | H121: manual | I121: day | J121: 2012-04-30T00:00:00+02:00 | K121: 7.6 | M121: 2011-04-30T00:00:00.001000+02:00 | N121: 9999-04-30 | O121: 9999-04-30 | P121: 5.7
A122: [Record] | B122: 3bf62ad3-926f-8d3f-da9c-68a8098335ca | C122: Feature | D122: 2016-11-18T10:27:35.592000 | E122: 2021-10-25T09:23:42.032660+00:00 | F122: 2012-04-30T00:00:00.001000+02:00 | G122: acc_heating_degree_days_17 | H122: manual | I122: day | J122: 2012-05-01T00:00:00+02:00 | K122: 5.7 | M122: 2011-05-01T00:00:00.001000+02:00 | N122: 9999-05-01 | O122: 9999-05-01 | P122: 8.3
A123: [Record] | B123: faebcd08-d093-a62c-c022-15c81e1b9460 | C123: Feature | D123: 2016-11-18T10:27:35.708000 | E123: 2021-10-25T09:23:42.619891+00:00 | F123: 2012-05-01T00:00:00.001000+02:00 | G123: acc_heating_degree_days_17 | H123: manual | I123: day | J123: 2012-05-02T00:00:00+02:00 | K123: 5.1 | M123: 2011-05-02T00:00:00.001000+02:00 | N123: 9999-05-02 | O123: 9999-05-02 | P123: 10.4
A124: [Record] | B124: 1ee94cf4-6d9f-f497-d49b-f54f7007faab | C124: Feature | D124: 2016-11-18T10:27:35.805000 | E124: 2021-10-25T09:23:42.619640+00:00 | F124: 2012-05-02T00:00:00.001000+02:00 | G124: acc_heating_degree_days_17 | H124: manual | I124: day | J124: 2012-05-03T00:00:00+02:00 | K124: 4.6 | M124: 2011-05-03T00:00:00.001000+02:00 | N124: 9999-05-03 | O124: 9999-05-03 | P124: 11.9
A125: [Record] | B125: a1c3b36b-3fcf-54a3-f7f8-19f08d895bcf | C125: Feature | D125: 2016-11-18T10:27:35.976000 | E125: 2021-10-25T09:23:42.619517+00:00 | F125: 2012-05-03T00:00:00.001000+02:00 | G125: acc_heating_degree_days_17 | H125: manual | I125: day | J125: 2012-05-04T00:00:00+02:00 | K125: 5.1 | M125: 2011-05-04T00:00:00.001000+02:00 | N125: 9999-05-04 | O125: 9999-05-04 | P125: 10.9
A126: [Record] | B126: cd611754-e8e4-be12-bdd5-2a09e5d45090 | C126: Feature | D126: 2016-11-18T10:27:36.094000 | E126: 2021-10-25T09:23:43.198650+00:00 | F126: 2012-05-04T00:00:00.001000+02:00 | G126: acc_heating_degree_days_17 | H126: manual | I126: day | J126: 2012-05-05T00:00:00+02:00 | K126: 7.6 | M126: 2011-05-05T00:00:00.001000+02:00 | N126: 9999-05-05 | O126: 9999-05-05 | P126: 8.4
A127: [Record] | B127: dc54b5ec-aac3-0079-0497-eb4f703d7dc4 | C127: Feature | D127: 2016-11-18T10:27:36.178000 | E127: 2021-10-25T09:23:43.198772+00:00 | F127: 2012-05-05T00:00:00.001000+02:00 | G127: acc_heating_degree_days_17 | H127: manual | I127: day | J127: 2012-05-06T00:00:00+02:00 | K127: 10.1 | M127: 2011-05-06T00:00:00.001000+02:00 | N127: 9999-05-06 | O127: 9999-05-06 | P127: 6.7
A128: [Record] | B128: 7279fabf-6448-f648-cc3e-4464beab70c7 | C128: Feature | D128: 2016-11-18T10:27:36.259000 | E128: 2021-10-25T09:23:43.198919+00:00 | F128: 2012-05-06T00:00:00.001000+02:00 | G128: acc_heating_degree_days_17 | H128: manual | I128: day | J128: 2012-05-07T00:00:00+02:00 | K128: 11.2 | M128: 2011-05-07T00:00:00.001000+02:00 | N128: 9999-05-07 | O128: 9999-05-07 | P128: 3.8
A129: [Record] | B129: 238cdec8-331e-3539-afb0-5debce7de9c6 | C129: Feature | D129: 2016-11-18T10:27:36.350000 | E129: 2021-10-25T09:23:43.768763+00:00 | F129: 2012-05-07T00:00:00.001000+02:00 | G129: acc_heating_degree_days_17 | H129: manual | I129: day | J129: 2012-05-08T00:00:00+02:00 | K129: 10.4 | M129: 2011-05-08T00:00:00.001000+02:00 | N129: 9999-05-08 | O129: 9999-05-08 | P129: 4
A130: [Record] | B130: 3eac71bf-dfb1-e5b4-dc19-fa3ec6dce983 | C130: Feature | D130: 2016-11-18T10:27:36.441000 | E130: 2021-10-25T09:23:43.768527+00:00 | F130: 2012-05-08T00:00:00.001000+02:00 | G130: acc_heating_degree_days_17 | H130: manual | I130: day | J130: 2012-05-09T00:00:00+02:00 | K130: 7.9 | M130: 2011-05-09T00:00:00.001000+02:00 | N130: 9999-05-09 | O130: 9999-05-09 | P130: 2
A131: [Record] | B131: 7aa5707c-9f68-13f9-08d7-1ef4dcbb297c | C131: Feature | D131: 2016-11-18T10:27:36.526000 | E131: 2021-10-25T09:23:43.768411+00:00 | F131: 2012-05-09T00:00:00.001000+02:00 | G131: acc_heating_degree_days_17 | H131: manual | I131: day | J131: 2012-05-10T00:00:00+02:00 | K131: 4.7 | M131: 2011-05-10T00:00:00.001000+02:00 | N131: =DATE(9999,MID(M131,6,2),MID(M131,9,2)) -> 9999-05-10 | O131: 9999-05-10 | P131: 1.6
A132: [Record] | B132: f7103fb4-7852-ab9e-cfc7-551b6a58e65b | C132: Feature | D132: 2016-11-18T10:27:36.604000 | E132: 2021-10-25T09:23:44.342003+00:00 | F132: 2012-05-10T00:00:00.001000+02:00 | G132: acc_heating_degree_days_17 | H132: manual | I132: day | J132: 2012-05-11T00:00:00+02:00 | K132: 4.1 | M132: 2011-05-11T00:00:00.001000+02:00 | N132: 9999-05-11 | O132: 9999-05-11 | P132: 3.5
A133: [Record] | B133: 5bc92aab-5bae-e47f-be10-842be3ee43a1 | C133: Feature | D133: 2016-11-18T10:27:36.690000 | E133: 2021-10-25T09:23:44.341888+00:00 | F133: 2012-05-11T00:00:00.001000+02:00 | G133: acc_heating_degree_days_17 | H133: manual | I133: day | J133: 2012-05-12T00:00:00+02:00 | K133: 4.9 | M133: 2011-05-12T00:00:00.001000+02:00 | N133: 9999-05-12 | O133: 9999-05-12 | P133: 5.1
A134: [Record] | B134: 73e905a0-5e96-02fd-26d7-48340e69706f | C134: Feature | D134: 2016-11-18T10:27:36.780000 | E134: 2021-10-25T09:23:44.341772+00:00 | F134: 2012-05-12T00:00:00.001000+02:00 | G134: acc_heating_degree_days_17 | H134: manual | I134: day | J134: 2012-05-13T00:00:00+02:00 | K134: 9 | M134: 2011-05-13T00:00:00.001000+02:00 | N134: 9999-05-13 | O134: 9999-05-13 | P134: 5.8
A135: [Record] | B135: 19467815-e497-618b-3db3-eeb8deaf1674 | C135: Feature | D135: 2016-11-18T10:27:36.862000 | E135: 2021-10-25T09:23:44.965407+00:00 | F135: 2012-05-13T00:00:00.001000+02:00 | G135: acc_heating_degree_days_17 | H135: manual | I135: day | J135: 2012-05-14T00:00:00+02:00 | K135: 8.2 | M135: 2011-05-14T00:00:00.001000+02:00 | N135: 9999-05-14 | O135: 9999-05-14 | P135: 7.7
A136: [Record] | B136: 25de5e1a-5964-99de-a52b-a727a2b54f97 | C136: Feature | D136: 2016-11-18T10:27:36.977000 | E136: 2021-10-25T09:23:44.965523+00:00 | F136: 2012-05-14T00:00:00.001000+02:00 | G136: acc_heating_degree_days_17 | H136: manual | I136: day | J136: 2012-05-15T00:00:00+02:00 | K136: 7.4 | M136: 2011-05-15T00:00:00.001000+02:00 | N136: 9999-05-15 | O136: 9999-05-15 | P136: 7.5
A137: [Record] | B137: 6b8e1dbf-4dee-1c1e-8071-e4cdb82bf792 | C137: Feature | D137: 2016-11-18T10:27:37.063000 | E137: 2021-10-25T09:23:44.965638+00:00 | F137: 2012-05-15T00:00:00.001000+02:00 | G137: acc_heating_degree_days_17 | H137: manual | I137: day | J137: 2012-05-16T00:00:00+02:00 | K137: 7.5 | M137: 2011-05-16T00:00:00.001000+02:00 | N137: 9999-05-16 | O137: 9999-05-16 | P137: 6.8
A138: [Record] | B138: d46b88e3-6008-9068-b856-125682209a5f | C138: Feature | D138: 2016-11-18T10:27:37.180000 | E138: 2021-10-25T09:23:45.631325+00:00 | F138: 2012-05-16T00:00:00.001000+02:00 | G138: acc_heating_degree_days_17 | H138: manual | I138: day | J138: 2012-05-17T00:00:00+02:00 | K138: 9.2 | M138: 2011-05-17T00:00:00.001000+02:00 | N138: 9999-05-17 | O138: 9999-05-17 | P138: 5.6
A139: [Record] | B139: b71da540-3b87-8004-2e31-e78459993e1f | C139: Feature | D139: 2016-11-18T10:27:37.378000 | E139: 2021-10-25T09:23:45.631094+00:00 | F139: 2012-05-17T00:00:00.001000+02:00 | G139: acc_heating_degree_days_17 | H139: manual | I139: day | J139: 2012-05-18T00:00:00+02:00 | K139: 9.5 | M139: 2011-05-18T00:00:00.001000+02:00 | N139: 9999-05-18 | O139: 9999-05-18 | P139: 4.9
A140: [Record] | B140: 1672f343-eddc-d965-e6b5-32f0402d62b1 | C140: Feature | D140: 2016-11-18T10:27:37.577000 | E140: 2021-10-25T09:23:45.631440+00:00 | F140: 2012-05-18T00:00:00.001000+02:00 | G140: acc_heating_degree_days_17 | H140: manual | I140: day | J140: 2012-05-19T00:00:00+02:00 | K140: 7.4 | M140: 2011-05-19T00:00:00.001000+02:00 | N140: 9999-05-19 | O140: 9999-05-19 | P140: 4.6
A141: [Record] | B141: c436c5fa-e460-02e4-c862-b5188f9a5079 | C141: Feature | D141: 2016-11-18T10:27:37.804000 | E141: 2021-10-25T09:23:46.226884+00:00 | F141: 2012-05-19T00:00:00.001000+02:00 | G141: acc_heating_degree_days_17 | H141: manual | I141: day | J141: 2012-05-20T00:00:00+02:00 | K141: 5.2 | M141: 2011-05-20T00:00:00.001000+02:00 | N141: 9999-05-20 | O141: 9999-05-20 | P141: 5.9
A142: [Record] | B142: 83a0e287-30fc-868f-fdff-7d3faaa4c3c1 | C142: Feature | D142: 2016-11-18T10:27:37.972000 | E142: 2021-10-25T09:23:46.226999+00:00 | F142: 2012-05-20T00:00:00.001000+02:00 | G142: acc_heating_degree_days_17 | H142: manual | I142: day | J142: 2012-05-21T00:00:00+02:00 | K142: 2.2 | M142: 2011-05-21T00:00:00.001000+02:00 | N142: 9999-05-21 | O142: 9999-05-21 | P142: 3.9
A143: [Record] | B143: e4b3fa7d-9c4d-8cf7-060c-59fce395642a | C143: Feature | D143: 2016-11-18T10:27:38.214000 | E143: 2021-10-25T09:23:46.227113+00:00 | F143: 2012-05-21T00:00:00.001000+02:00 | G143: acc_heating_degree_days_17 | H143: manual | I143: day | J143: 2012-05-22T00:00:00+02:00 | K143: 0.4 | M143: 2011-05-22T00:00:00.001000+02:00 | N143: 9999-05-22 | O143: 9999-05-22 | P143: 3.5
A144: [Record] | B144: 51c163fc-96f1-184a-3bc6-a8522cc0769d | C144: Feature | D144: 2016-11-18T10:27:38.411000 | E144: 2021-10-25T09:23:46.803638+00:00 | F144: 2012-05-22T00:00:00.001000+02:00 | G144: acc_heating_degree_days_17 | H144: manual | I144: day | J144: 2012-05-23T00:00:00+02:00 | K144: 0.2 | M144: 2011-05-23T00:00:00.001000+02:00 | N144: 9999-05-23 | O144: 9999-05-23 | P144: 3.6
A145: [Record] | B145: 639c595f-3d58-3fc6-e2f5-899499a97b4a | C145: Feature | D145: 2016-11-18T10:27:38.615000 | E145: 2021-10-25T09:23:46.803408+00:00 | F145: 2012-05-23T00:00:00.001000+02:00 | G145: acc_heating_degree_days_17 | H145: manual | I145: day | J145: 2012-05-24T00:00:00+02:00 | K145: 0.2 | M145: 2011-05-24T00:00:00.001000+02:00 | N145: 9999-05-24 | O145: 9999-05-24 | P145: 5.5
A146: [Record] | B146: f33fc78a-db11-8ebd-11e6-a0eeee0a17f7 | C146: Feature | D146: 2016-11-18T10:27:38.820000 | E146: 2021-10-25T09:23:46.803292+00:00 | F146: 2012-05-24T00:00:00.001000+02:00 | G146: acc_heating_degree_days_17 | H146: manual | I146: day | J146: 2012-05-25T00:00:00+02:00 | K146: 0.4 | M146: 2011-05-25T00:00:00.001000+02:00 | N146: 9999-05-25 | O146: 9999-05-25 | P146: 6.3
A147: [Record] | B147: ee042fcc-bdc2-6929-b8d2-d653d2ecda72 | C147: Feature | D147: 2016-11-18T10:27:38.956000 | E147: 2021-10-25T09:23:47.370742+00:00 | F147: 2012-05-25T00:00:00.001000+02:00 | G147: acc_heating_degree_days_17 | H147: manual | I147: day | J147: 2012-05-26T00:00:00+02:00 | K147: 0.4 | M147: 2011-05-26T00:00:00.001000+02:00 | N147: 9999-05-26 | O147: 9999-05-26 | P147: 5
A148: [Record] | B148: f5697bc6-924f-2cfa-f69d-ac9a77bb5567 | C148: Feature | D148: 2016-11-18T10:27:39.070000 | E148: 2021-10-25T09:23:47.370857+00:00 | F148: 2012-05-26T00:00:00.001000+02:00 | G148: acc_heating_degree_days_17 | H148: manual | I148: day | J148: 2012-05-27T00:00:00+02:00 | K148: 0.3 | M148: 2011-05-27T00:00:00.001000+02:00 | N148: 9999-05-27 | O148: 9999-05-27 | P148: 5.8
A149: [Record] | B149: 990e2783-f0cb-1cce-5ec6-65e8908d58dd | C149: Feature | D149: 2016-11-18T10:27:39.226000 | E149: 2021-10-25T09:23:47.370626+00:00 | F149: 2012-05-27T00:00:00.001000+02:00 | G149: acc_heating_degree_days_17 | H149: manual | I149: day | J149: 2012-05-28T00:00:00+02:00 | K149: 0.3 | M149: 2011-05-28T00:00:00.001000+02:00 | N149: 9999-05-28 | O149: 9999-05-28 | P149: 6.5
A150: [Record] | B150: d64c7cf6-6fc1-18d8-c3b7-c3a23e097b43 | C150: Feature | D150: 2016-11-18T10:27:39.375000 | E150: 2021-10-25T09:23:47.966937+00:00 | F150: 2012-05-28T00:00:00.001000+02:00 | G150: acc_heating_degree_days_17 | H150: manual | I150: day | J150: 2012-05-29T00:00:00+02:00 | K150: 0.6 | M150: 2011-05-29T00:00:00.001000+02:00 | N150: 9999-05-29 | O150: 9999-05-29 | P150: 5.8
A151: [Record] | B151: 8569aa0b-565f-6080-0929-e52d427f1af5 | C151: Feature | D151: 2016-11-18T10:27:39.575000 | E151: 2021-10-25T09:23:47.967284+00:00 | F151: 2012-05-29T00:00:00.001000+02:00 | G151: acc_heating_degree_days_17 | H151: manual | I151: day | J151: 2012-05-30T00:00:00+02:00 | K151: 5.2 | M151: 2011-05-30T00:00:00.001000+02:00 | N151: 9999-05-30 | O151: 9999-05-30 | P151: 2.2
A152: [Record] | B152: a82b9a97-db02-dad6-5678-cd4e097d60c3 | C152: Feature | D152: 2016-11-18T10:27:39.815000 | E152: 2021-10-25T09:23:47.967169+00:00 | F152: 2012-05-30T00:00:00.001000+02:00 | G152: acc_heating_degree_days_17 | H152: manual | I152: day | J152: 2012-05-31T00:00:00+02:00 | K152: 6.5 | M152: 2011-05-31T00:00:00.001000+02:00 | N152: 9999-05-31 | O152: 9999-05-31 | P152: 3
A153: [Record] | B153: 92b2f2aa-f3cb-281a-8c8d-e364fd3e47c5 | C153: Feature | D153: 2016-11-18T10:27:40.018000 | E153: 2021-10-25T09:23:48.578487+00:00 | F153: 2012-05-31T00:00:00.001000+02:00 | G153: acc_heating_degree_days_17 | H153: manual | I153: day | J153: 2012-06-01T00:00:00+02:00 | K153: 6.6 | M153: 2011-06-01T00:00:00.001000+02:00 | N153: 9999-06-01 | O153: 9999-06-01 | P153: 4.9
A154: [Record] | B154: d6fc8aac-2e56-3ad0-e79d-d97e45e98768 | C154: Feature | D154: 2016-11-18T10:27:40.187000 | E154: 2021-10-25T09:23:48.578632+00:00 | F154: 2012-06-01T00:00:00.001000+02:00 | G154: acc_heating_degree_days_17 | H154: manual | I154: day | J154: 2012-06-02T00:00:00+02:00 | K154: 7.3 | M154: 2011-06-02T00:00:00.001000+02:00 | N154: 9999-06-02 | O154: 9999-06-02 | P154: 2.6
A155: [Record] | B155: e8189851-f5b8-4bbf-77df-187cfc09220b | C155: Feature | D155: 2016-11-18T10:27:40.266000 | E155: 2021-10-25T09:23:48.578343+00:00 | F155: 2012-06-02T00:00:00.001000+02:00 | G155: acc_heating_degree_days_17 | H155: manual | I155: day | J155: 2012-06-03T00:00:00+02:00 | K155: 8.2 | M155: 2011-06-03T00:00:00.001000+02:00 | N155: 9999-06-03 | O155: 9999-06-03 | P155: 0.6
A156: [Record] | B156: caf653ca-ca5b-9ab1-a860-137309373015 | C156: Feature | D156: 2016-11-18T10:27:40.356000 | E156: 2021-10-25T09:23:49.197607+00:00 | F156: 2012-06-03T00:00:00.001000+02:00 | G156: acc_heating_degree_days_17 | H156: manual | I156: day | J156: 2012-06-04T00:00:00+02:00 | K156: 7.6 | M156: 2011-06-04T00:00:00.001000+02:00 | N156: 9999-06-04 | O156: 9999-06-04 | P156: 0.8
A157: [Record] | B157: 98473c25-bb6e-e239-8ccf-04dc35af5bc0 | C157: Feature | D157: 2016-11-18T10:27:40.448000 | E157: 2021-10-25T09:23:49.198029+00:00 | F157: 2012-06-04T00:00:00.001000+02:00 | G157: acc_heating_degree_days_17 | H157: manual | I157: day | J157: 2012-06-05T00:00:00+02:00 | K157: 6.8 | M157: 2011-06-05T00:00:00.001000+02:00 | N157: 9999-06-05 | O157: 9999-06-05 | P157: 0.5
A158: [Record] | B158: d8dd5ab5-6833-631e-10fa-6535ce61b12a | C158: Feature | D158: 2016-11-18T10:27:40.527000 | E158: 2021-10-25T09:23:49.197773+00:00 | F158: 2012-06-05T00:00:00.001000+02:00 | G158: acc_heating_degree_days_17 | H158: manual | I158: day | J158: 2012-06-06T00:00:00+02:00 | K158: 6.7 | M158: 2011-06-06T00:00:00.001000+02:00 | N158: 9999-06-06 | O158: 9999-06-06 | P158: 0
A159: [Record] | B159: 716bb257-4733-ebf5-bf64-821d6afc84f0 | C159: Feature | D159: 2016-11-18T10:27:40.601000 | E159: 2021-10-25T09:23:49.729574+00:00 | F159: 2012-06-06T00:00:00.001000+02:00 | G159: acc_heating_degree_days_17 | H159: manual | I159: day | J159: 2012-06-07T00:00:00+02:00 | K159: 6.1 | M159: 2011-06-07T00:00:00.001000+02:00 | N159: 9999-06-07 | O159: 9999-06-07 | P159: 1.4
A160: [Record] | B160: 27b49455-bb4f-90cb-6d2a-72a01fac1e06 | C160: Feature | D160: 2016-11-18T10:27:40.676000 | E160: 2021-10-25T09:23:49.729806+00:00 | F160: 2012-06-07T00:00:00.001000+02:00 | G160: acc_heating_degree_days_17 | H160: manual | I160: day | J160: 2012-06-08T00:00:00+02:00 | K160: 4.7 | M160: 2011-06-08T00:00:00.001000+02:00 | N160: 9999-06-08 | O160: 9999-06-08 | P160: 0.7
A161: [Record] | B161: e69fd4ff-cef2-ee03-382f-3e5c5a8d4663 | C161: Feature | D161: 2016-11-18T10:27:40.750000 | E161: 2021-10-25T09:23:49.729458+00:00 | F161: 2012-06-08T00:00:00.001000+02:00 | G161: acc_heating_degree_days_17 | H161: manual | I161: day | J161: 2012-06-09T00:00:00+02:00 | K161: 3.8 | M161: 2011-06-09T00:00:00.001000+02:00 | N161: 9999-06-09 | O161: 9999-06-09 | P161: 2.5
A162: [Record] | B162: ae819ba0-088b-39ac-dbae-d94af0f38dbd | C162: Feature | D162: 2016-11-18T10:27:40.841000 | E162: 2021-10-25T09:23:50.281731+00:00 | F162: 2012-06-09T00:00:00.001000+02:00 | G162: acc_heating_degree_days_17 | H162: manual | I162: day | J162: 2012-06-10T00:00:00+02:00 | K162: 4.5 | M162: 2011-06-10T00:00:00.001000+02:00 | N162: 9999-06-10 | O162: 9999-06-10 | P162: 3.7
A163: [Record] | B163: 398e386f-2d0e-9b15-b1c6-dc44e3229cec | C163: Feature | D163: 2016-11-18T10:27:40.915000 | E163: 2021-10-25T09:23:50.281352+00:00 | F163: 2012-06-10T00:00:00.001000+02:00 | G163: acc_heating_degree_days_17 | H163: manual | I163: day | J163: 2012-06-11T00:00:00+02:00 | K163: 4.6 | M163: 2011-06-11T00:00:00.001000+02:00 | N163: 9999-06-11 | O163: 9999-06-11 | P163: 3.9
A164: [Record] | B164: 3524f533-01b9-96ef-07fa-ebc00641d4b1 | C164: Feature | D164: 2016-11-18T10:27:40.999000 | E164: 2021-10-25T09:23:50.281613+00:00 | F164: 2012-06-11T00:00:00.001000+02:00 | G164: acc_heating_degree_days_17 | H164: manual | I164: day | J164: 2012-06-12T00:00:00+02:00 | K164: 4.6 | M164: 2011-06-12T00:00:00.001000+02:00 | N164: 9999-06-12 | O164: 9999-06-12 | P164: 3.7
A165: [Record] | B165: b091ec4d-5b8a-5012-6054-f511385aba6f | C165: Feature | D165: 2016-11-18T10:27:41.079000 | E165: 2021-10-25T09:23:50.928627+00:00 | F165: 2012-06-12T00:00:00.001000+02:00 | G165: acc_heating_degree_days_17 | H165: manual | I165: day | J165: 2012-06-13T00:00:00+02:00 | K165: 4.7 | M165: 2011-06-13T00:00:00.001000+02:00 | N165: 9999-06-13 | O165: 9999-06-13 | P165: 2.7
A166: [Record] | B166: b2e10fc4-42a1-d74a-f874-c81144204d55 | C166: Feature | D166: 2016-11-18T10:27:41.181000 | E166: 2021-10-25T09:23:50.928510+00:00 | F166: 2012-06-13T00:00:00.001000+02:00 | G166: acc_heating_degree_days_17 | H166: manual | I166: day | J166: 2012-06-14T00:00:00+02:00 | K166: 4.8 | M166: 2011-06-14T00:00:00.001000+02:00 | N166: 9999-06-14 | O166: 9999-06-14 | P166: 2.5
A167: [Record] | B167: 2586c256-0b69-1ea0-c19e-36b3986ed233 | C167: Feature | D167: 2016-11-18T10:27:41.274000 | E167: 2021-10-25T09:23:50.928744+00:00 | F167: 2012-06-14T00:00:00.001000+02:00 | G167: acc_heating_degree_days_17 | H167: manual | I167: day | J167: 2012-06-15T00:00:00+02:00 | K167: 6.1 | M167: 2011-06-15T00:00:00.001000+02:00 | N167: 9999-06-15 | O167: 9999-06-15 | P167: 3.3
A168: [Record] | B168: 3bdc20db-803f-99c0-0a0f-c2b22d991885 | C168: Feature | D168: 2016-11-18T10:27:41.366000 | E168: 2021-10-25T09:23:51.520460+00:00 | F168: 2012-06-15T00:00:00.001000+02:00 | G168: acc_heating_degree_days_17 | H168: manual | I168: day | J168: 2012-06-16T00:00:00+02:00 | K168: 5.3 | M168: 2011-06-16T00:00:00.001000+02:00 | N168: 9999-06-16 | O168: 9999-06-16 | P168: 2.3
A169: [Record] | B169: c13dc47e-4217-2798-fce5-e71c554de528 | C169: Feature | D169: 2016-11-18T10:27:41.442000 | E169: 2021-10-25T09:23:51.520807+00:00 | F169: 2012-06-16T00:00:00.001000+02:00 | G169: acc_heating_degree_days_17 | H169: manual | I169: day | J169: 2012-06-17T00:00:00+02:00 | K169: 2 | M169: 2011-06-17T00:00:00.001000+02:00 | N169: 9999-06-17 | O169: 9999-06-17 | P169: 2.5
A170: [Record] | B170: 33d75d64-c73f-201b-f398-6155aa328598 | C170: Feature | D170: 2016-11-18T10:27:41.522000 | E170: 2021-10-25T09:23:51.520692+00:00 | F170: 2012-06-17T00:00:00.001000+02:00 | G170: acc_heating_degree_days_17 | H170: manual | I170: day | J170: 2012-06-18T00:00:00+02:00 | K170: 3.5 | M170: 2011-06-18T00:00:00.001000+02:00 | N170: 9999-06-18 | O170: 9999-06-18 | P170: 3.8
A171: [Record] | B171: d47bd484-5265-63dc-e956-c7a0c82b9868 | C171: Feature | D171: 2016-11-18T10:27:41.605000 | E171: 2021-10-25T09:23:52.084366+00:00 | F171: 2012-06-18T00:00:00.001000+02:00 | G171: acc_heating_degree_days_17 | H171: manual | I171: day | J171: 2012-06-19T00:00:00+02:00 | K171: 3.9 | M171: 2011-06-19T00:00:00.001000+02:00 | N171: 9999-06-19 | O171: 9999-06-19 | P171: 3.2
A172: [Record] | B172: b5ec4fab-c41c-793e-f109-4a3087425f20 | C172: Feature | D172: 2016-11-18T10:27:41.688000 | E172: 2021-10-25T09:23:52.084484+00:00 | F172: 2012-06-19T00:00:00.001000+02:00 | G172: acc_heating_degree_days_17 | H172: manual | I172: day | J172: 2012-06-20T00:00:00+02:00 | K172: 3.8 | M172: 2011-06-20T00:00:00.001000+02:00 | N172: 9999-06-20 | O172: 9999-06-20 | P172: 3
A173: [Record] | B173: e9ed14ad-899e-f4b2-6f9b-87bdcab52a8e | C173: Feature | D173: 2016-11-18T10:27:41.767000 | E173: 2021-10-25T09:23:52.084602+00:00 | F173: 2012-06-20T00:00:00.001000+02:00 | G173: acc_heating_degree_days_17 | H173: manual | I173: day | J173: 2012-06-21T00:00:00+02:00 | K173: 3 | M173: 2011-06-21T00:00:00.001000+02:00 | N173: 9999-06-21 | O173: 9999-06-21 | P173: 2.5
A174: [Record] | B174: 44a31189-dbae-e1d4-1189-4455c0929aba | C174: Feature | D174: 2016-11-18T10:27:41.847000 | E174: 2021-10-25T09:23:52.647653+00:00 | F174: 2012-06-21T00:00:00.001000+02:00 | G174: acc_heating_degree_days_17 | H174: manual | I174: day | J174: 2012-06-22T00:00:00+02:00 | K174: 1.6 | M174: 2011-06-22T00:00:00.001000+02:00 | N174: 9999-06-22 | O174: 9999-06-22 | P174: 1
A175: [Record] | B175: bf62420b-72a4-10cd-cfc4-101b4ba5f20b | C175: Feature | D175: 2016-11-18T10:27:41.927000 | E175: 2021-10-25T09:23:52.647384+00:00 | F175: 2012-06-22T00:00:00.001000+02:00 | G175: acc_heating_degree_days_17 | H175: manual | I175: day | J175: 2012-06-23T00:00:00+02:00 | K175: 2.3 | M175: 2011-06-23T00:00:00.001000+02:00 | N175: 9999-06-23 | O175: 9999-06-23 | P175: 2.6
A176: [Record] | B176: df13c713-e4cc-d1e5-254e-145fc39afc69 | C176: Feature | D176: 2016-11-18T10:27:42.008000 | E176: 2021-10-25T09:23:52.646880+00:00 | F176: 2012-06-23T00:00:00.001000+02:00 | G176: acc_heating_degree_days_17 | H176: manual | I176: day | J176: 2012-06-24T00:00:00+02:00 | K176: 2.6 | M176: 2011-06-24T00:00:00.001000+02:00 | N176: 9999-06-24 | O176: 9999-06-24 | P176: 4.2
A177: [Record] | B177: e952b85e-b36a-54d0-013c-175347dad128 | C177: Feature | D177: 2016-11-18T10:27:42.092000 | E177: 2021-10-25T09:23:53.255774+00:00 | F177: 2012-06-24T00:00:00.001000+02:00 | G177: acc_heating_degree_days_17 | H177: manual | I177: day | J177: 2012-06-25T00:00:00+02:00 | K177: 4.6 | M177: 2011-06-25T00:00:00.001000+02:00 | N177: 9999-06-25 | O177: 9999-06-25 | P177: 3.9
A178: [Record] | B178: e893a428-ea4d-0dac-1d37-a97f69b307a0 | C178: Feature | D178: 2016-11-18T10:27:42.177000 | E178: 2021-10-25T09:23:53.255530+00:00 | F178: 2012-06-25T00:00:00.001000+02:00 | G178: acc_heating_degree_days_17 | H178: manual | I178: day | J178: 2012-06-26T00:00:00+02:00 | K178: 4.2 | M178: 2011-06-26T00:00:00.001000+02:00 | N178: 9999-06-26 | O178: 9999-06-26 | P178: 1.9
A179: [Record] | B179: 950930d1-08ce-73f3-163f-9acd804fcd49 | C179: Feature | D179: 2016-11-18T10:27:42.260000 | E179: 2021-10-25T09:23:53.255651+00:00 | F179: 2012-06-26T00:00:00.001000+02:00 | G179: acc_heating_degree_days_17 | H179: manual | I179: day | J179: 2012-06-27T00:00:00+02:00 | K179: 3.7 | M179: 2011-06-27T00:00:00.001000+02:00 | N179: 9999-06-27 | O179: 9999-06-27 | P179: 0
A180: [Record] | B180: 25ed73ad-1a9e-5439-49cd-01202bccd544 | C180: Feature | D180: 2016-11-18T10:27:42.344000 | E180: 2021-10-25T09:23:53.889779+00:00 | F180: 2012-06-27T00:00:00.001000+02:00 | G180: acc_heating_degree_days_17 | H180: manual | I180: day | J180: 2012-06-28T00:00:00+02:00 | K180: 3.9 | M180: 2011-06-28T00:00:00.001000+02:00 | N180: 9999-06-28 | O180: 9999-06-28 | P180: 0
A181: [Record] | B181: 0aa46982-4624-3390-bbf3-2b549d46fce8 | C181: Feature | D181: 2016-11-18T10:27:42.430000 | E181: 2021-10-25T09:23:53.890036+00:00 | F181: 2012-06-28T00:00:00.001000+02:00 | G181: acc_heating_degree_days_17 | H181: manual | I181: day | J181: 2012-06-29T00:00:00+02:00 | K181: 3 | M181: 2011-06-29T00:00:00.001000+02:00 | N181: 9999-06-29 | O181: 9999-06-29 | P181: 0
A182: [Record] | B182: 024e6fa7-14b7-c620-7bba-46485e055181 | C182: Feature | D182: 2016-11-18T10:27:42.513000 | E182: 2021-10-25T09:23:53.890153+00:00 | F182: 2012-06-29T00:00:00.001000+02:00 | G182: acc_heating_degree_days_17 | H182: manual | I182: day | J182: 2012-06-30T00:00:00+02:00 | K182: 0.4 | M182: 2011-06-30T00:00:00.001000+02:00 | N182: 9999-06-30 | O182: 9999-06-30 | P182: 2.5
A183: [Record] | B183: c69c7a6f-e128-4829-90c0-c6bad9562850 | C183: Feature | D183: 2016-11-18T10:27:42.603000 | E183: 2021-10-25T09:23:54.513697+00:00 | F183: 2012-06-30T00:00:00.001000+02:00 | G183: acc_heating_degree_days_17 | H183: manual | I183: day | J183: 2012-07-01T00:00:00+02:00 | K183: 0.3 | M183: 2011-07-01T00:00:00.001000+02:00 | N183: 9999-07-01 | O183: 9999-07-01 | P183: 3
A184: [Record] | B184: 5ffec7a5-3881-74bb-5600-d0ed9770dd30 | C184: Feature | D184: 2016-11-18T10:27:42.682000 | E184: 2021-10-25T09:23:54.513840+00:00 | F184: 2012-07-01T00:00:00.001000+02:00 | G184: acc_heating_degree_days_17 | H184: manual | I184: day | J184: 2012-07-02T00:00:00+02:00 | K184: 1.2 | M184: 2011-07-02T00:00:00.001000+02:00 | N184: 9999-07-02 | O184: 9999-07-02 | P184: 2.2
A185: [Record] | B185: 574a9943-ddfc-79b1-62bc-951a79b909ac | C185: Feature | D185: 2016-11-18T10:27:42.763000 | E185: 2021-10-25T09:23:54.514094+00:00 | F185: 2012-07-02T00:00:00.001000+02:00 | G185: acc_heating_degree_days_17 | H185: manual | I185: day | J185: 2012-07-03T00:00:00+02:00 | K185: 1.6 | M185: 2011-07-03T00:00:00.001000+02:00 | N185: 9999-07-03 | O185: 9999-07-03 | P185: 0.8
A186: [Record] | B186: a2228c4b-03ac-af56-a95d-832e6b1ad9d8 | C186: Feature | D186: 2016-11-18T10:27:42.844000 | E186: 2021-10-25T09:23:55.185118+00:00 | F186: 2012-07-03T00:00:00.001000+02:00 | G186: acc_heating_degree_days_17 | H186: manual | I186: day | J186: 2012-07-04T00:00:00+02:00 | K186: 0.9 | M186: 2011-07-04T00:00:00.001000+02:00 | N186: 9999-07-04 | O186: 9999-07-04 | P186: 0.8
A187: [Record] | B187: b19e4164-fc8c-331c-e090-9dc55f9f166d | C187: Feature | D187: 2016-11-18T10:27:42.926000 | E187: 2021-10-25T09:23:55.184743+00:00 | F187: 2012-07-04T00:00:00.001000+02:00 | G187: acc_heating_degree_days_17 | H187: manual | I187: day | J187: 2012-07-05T00:00:00+02:00 | K187: 0.1 | M187: 2011-07-05T00:00:00.001000+02:00 | N187: 9999-07-05 | O187: 9999-07-05 | P187: 0.6
A188: [Record] | B188: 2bfaeca2-a840-fb52-df9f-4fcd76a129e4 | C188: Feature | D188: 2016-11-18T10:27:43.001000 | E188: 2021-10-25T09:23:55.184979+00:00 | F188: 2012-07-05T00:00:00.001000+02:00 | G188: acc_heating_degree_days_17 | H188: manual | I188: day | J188: 2012-07-06T00:00:00+02:00 | K188: 0.1 | M188: 2011-07-06T00:00:00.001000+02:00 | N188: 9999-07-06 | O188: 9999-07-06 | P188: 0.1
A189: [Record] | B189: fd9e5c90-7b19-a88c-0e80-b86bf237efcc | C189: Feature | D189: 2016-11-18T10:27:43.227000 | E189: 2021-10-25T09:23:55.918503+00:00 | F189: 2012-07-06T00:00:00.001000+02:00 | G189: acc_heating_degree_days_17 | H189: manual | I189: day | J189: 2012-07-07T00:00:00+02:00 | K189: 0 | M189: 2011-07-07T00:00:00.001000+02:00 | N189: 9999-07-07 | O189: 9999-07-07 | P189: 0.1
A190: [Record] | B190: 5086e814-e860-4d91-04ce-4316e4fbb225 | C190: Feature | D190: 2016-11-18T10:27:43.376000 | E190: 2021-10-25T09:23:55.918386+00:00 | F190: 2012-07-07T00:00:00.001000+02:00 | G190: acc_heating_degree_days_17 | H190: manual | I190: day | J190: 2012-07-08T00:00:00+02:00 | K190: 0.1 | M190: 2011-07-08T00:00:00.001000+02:00 | N190: 9999-07-08 | O190: 9999-07-08 | P190: 0.7
A191: [Record] | B191: 99b31c10-1049-f86b-0ab4-ec012eeb49ce | C191: Feature | D191: 2016-11-18T10:27:43.577000 | E191: 2021-10-25T09:23:55.918735+00:00 | F191: 2012-07-08T00:00:00.001000+02:00 | G191: acc_heating_degree_days_17 | H191: manual | I191: day | J191: 2012-07-09T00:00:00+02:00 | K191: 0 | M191: 2011-07-09T00:00:00.001000+02:00 | N191: 9999-07-09 | O191: 9999-07-09 | P191: 0.6
A192: [Record] | B192: 2e18b274-79f8-401f-73e7-8440796946ce | C192: Feature | D192: 2016-11-18T10:27:43.739000 | E192: 2021-10-25T09:23:56.646800+00:00 | F192: 2012-07-09T00:00:00.001000+02:00 | G192: acc_heating_degree_days_17 | H192: manual | I192: day | J192: 2012-07-10T00:00:00+02:00 | K192: 0.8 | M192: 2011-07-10T00:00:00.001000+02:00 | N192: 9999-07-10 | O192: 9999-07-10 | P192: 0.5
A193: [Record] | B193: ddd2bc9d-fd6c-f884-534c-4722fd9b65c8 | C193: Feature | D193: 2016-11-18T10:27:43.950000 | E193: 2021-10-25T09:23:56.646682+00:00 | F193: 2012-07-10T00:00:00.001000+02:00 | G193: acc_heating_degree_days_17 | H193: manual | I193: day | J193: 2012-07-11T00:00:00+02:00 | K193: 2.4 | M193: 2011-07-11T00:00:00.001000+02:00 | N193: 9999-07-11 | O193: 9999-07-11 | P193: 1
A194: [Record] | B194: 0750deb0-9e16-1f2a-d087-dbc450d09259 | C194: Feature | D194: 2016-11-18T10:27:44.140000 | E194: 2021-10-25T09:23:56.646917+00:00 | F194: 2012-07-11T00:00:00.001000+02:00 | G194: acc_heating_degree_days_17 | H194: manual | I194: day | J194: 2012-07-12T00:00:00+02:00 | K194: 2.5 | M194: 2011-07-12T00:00:00.001000+02:00 | N194: 9999-07-12 | O194: 9999-07-12 | P194: 1.9
A195: [Record] | B195: 11de7fa0-a63a-1a17-515a-95f86b538802 | C195: Feature | D195: 2016-11-18T10:27:44.294000 | E195: 2021-10-25T09:23:57.389672+00:00 | F195: 2012-07-12T00:00:00.001000+02:00 | G195: acc_heating_degree_days_17 | H195: manual | I195: day | J195: 2012-07-13T00:00:00+02:00 | K195: 3.1 | M195: 2011-07-13T00:00:00.001000+02:00 | N195: =DATE(9999,MID(M195,6,2),MID(M195,9,2)) -> 9999-07-13 | O195: 9999-07-13 | P195: 2.8
A196: [Record] | B196: 53969662-4e25-e565-826e-5b6738cbf0c3 | C196: Feature | D196: 2016-11-18T10:27:44.417000 | E196: 2021-10-25T09:23:57.389326+00:00 | F196: 2012-07-13T00:00:00.001000+02:00 | G196: acc_heating_degree_days_17 | H196: manual | I196: day | J196: 2012-07-14T00:00:00+02:00 | K196: 2.6 | M196: 2011-07-14T00:00:00.001000+02:00 | N196: 9999-07-14 | O196: 9999-07-14 | P196: 1.9
A197: [Record] | B197: 2906c054-43f8-a021-1da9-4c5893b60aaf | C197: Feature | D197: 2016-11-18T10:27:44.545000 | E197: 2021-10-25T09:23:57.389557+00:00 | F197: 2012-07-14T00:00:00.001000+02:00 | G197: acc_heating_degree_days_17 | H197: manual | I197: day | J197: 2012-07-15T00:00:00+02:00 | K197: 2.2 | M197: 2011-07-15T00:00:00.001000+02:00 | N197: 9999-07-15 | O197: 9999-07-15 | P197: 2.1
A198: [Record] | B198: 66b49f29-b538-098e-933f-88e580b455e0 | C198: Feature | D198: 2016-11-18T10:27:44.664000 | E198: 2021-10-25T09:23:58.022158+00:00 | F198: 2012-07-15T00:00:00.001000+02:00 | G198: acc_heating_degree_days_17 | H198: manual | I198: day | J198: 2012-07-16T00:00:00+02:00 | K198: 3.4 | M198: 2011-07-16T00:00:00.001000+02:00 | N198: 9999-07-16 | O198: 9999-07-16 | P198: 0.4
A199: [Record] | B199: 5513dde8-1925-2822-7af5-5182bf8d0010 | C199: Feature | D199: 2016-11-18T10:27:44.792000 | E199: 2021-10-25T09:23:58.022273+00:00 | F199: 2012-07-16T00:00:00.001000+02:00 | G199: acc_heating_degree_days_17 | H199: manual | I199: day | J199: 2012-07-17T00:00:00+02:00 | K199: 3.3 | M199: 2011-07-17T00:00:00.001000+02:00 | N199: 9999-07-17 | O199: 9999-07-17 | P199: 0.6
A200: [Record] | B200: 9923a04a-ef7f-d715-f346-803bc3acef9b | C200: Feature | D200: 2016-11-18T10:27:44.958000 | E200: 2021-10-25T09:23:58.022041+00:00 | F200: 2012-07-17T00:00:00.001000+02:00 | G200: acc_heating_degree_days_17 | H200: manual | I200: day | J200: 2012-07-18T00:00:00+02:00 | K200: 2.9 | M200: 2011-07-18T00:00:00.001000+02:00 | N200: 9999-07-18 | O200: 9999-07-18 | P200: 1.2
... 3819 more rows

Sheet Forespørgsel1 (hidden)
A1: geometry | B1: id | C1: type | D1: calculatedAt | E1: created | F1: from | G1: parameterId | H1: qcStatus | I1: timeResolution | J1: to | K1: value
A2: [Record] | B2: 0a3c2d34-0f30-bd0d-1cbc-746809a7d635 | C2: Feature | D2: 2023-01-02T07:29:54.061000 | E2: 2023-05-17T14:05:12.143820+00:00 | F2: 2023-01-01T00:00:00.001000+01:00 | G2: acc_heating_degree_days_17 | H2: manual | I2: day | J2: 2023-01-02T00:00:00+01:00 | K2: 9.3
A3: [Record] | B3: 6bae2fd2-a4f2-3fa2-39fe-1fce9e489c43 | C3: Feature | D3: 2023-01-03T07:29:34.784000 | E3: 2023-05-17T14:05:12.166567+00:00 | F3: 2023-01-02T00:00:00.001000+01:00 | G3: acc_heating_degree_days_17 | H3: manual | I3: day | J3: 2023-01-03T00:00:00+01:00 | K3: 10.3
A4: [Record] | B4: b990f141-f8e9-eaaa-073e-cbcfb21d4cdb | C4: Feature | D4: 2023-01-04T07:29:51.989000 | E4: 2023-05-17T14:05:12.208470+00:00 | F4: 2023-01-03T00:00:00.001000+01:00 | G4: acc_heating_degree_days_17 | H4: manual | I4: day | J4: 2023-01-04T00:00:00+01:00 | K4: 12.8
A5: [Record] | B5: f83299d9-d830-3a28-e29e-ff89eb24b091 | C5: Feature | D5: 2023-01-05T07:29:39.694000 | E5: 2023-05-17T14:05:13.395172+00:00 | F5: 2023-01-04T00:00:00.001000+01:00 | G5: acc_heating_degree_days_17 | H5: manual | I5: day | J5: 2023-01-05T00:00:00+01:00 | K5: 10
A6: [Record] | B6: 4b4afb6b-cbea-d021-55c1-5ea61ee5f52c | C6: Feature | D6: 2023-01-06T07:29:42.380000 | E6: 2023-05-17T14:05:13.379919+00:00 | F6: 2023-01-05T00:00:00.001000+01:00 | G6: acc_heating_degree_days_17 | H6: manual | I6: day | J6: 2023-01-06T00:00:00+01:00 | K6: 13.9
A7: [Record] | B7: 2d4dd5b2-dd63-8e68-8cf4-a69fd872b752 | C7: Feature | D7: 2023-01-07T07:29:06.954000 | E7: 2023-05-17T14:05:13.470823+00:00 | F7: 2023-01-06T00:00:00.001000+01:00 | G7: acc_heating_degree_days_17 | H7: manual | I7: day | J7: 2023-01-07T00:00:00+01:00 | K7: 11.7
A8: [Record] | B8: 79a55f08-c59a-1bc0-7ab1-df8c20a0c0ff | C8: Feature | D8: 2023-01-08T07:29:51.080000 | E8: 2023-05-17T14:05:14.632732+00:00 | F8: 2023-01-07T00:00:00.001000+01:00 | G8: acc_heating_degree_days_17 | H8: manual | I8: day | J8: 2023-01-08T00:00:00+01:00 | K8: 9.9
A9: [Record] | B9: 5a843626-858d-726e-a796-271e7074b3c4 | C9: Feature | D9: 2023-01-09T07:29:47.255000 | E9: 2023-05-17T14:05:14.628406+00:00 | F9: 2023-01-08T00:00:00.001000+01:00 | G9: acc_heating_degree_days_17 | H9: manual | I9: day | J9: 2023-01-09T00:00:00+01:00 | K9: 10.3
A10: [Record] | B10: 1e2f332e-9ec6-a0b5-ddc0-fe0be94c6f17 | C10: Feature | D10: 2023-01-10T07:29:44.477000 | E10: 2023-05-17T14:05:14.665522+00:00 | F10: 2023-01-09T00:00:00.001000+01:00 | G10: acc_heating_degree_days_17 | H10: manual | I10: day | J10: 2023-01-10T00:00:00+01:00 | K10: 11.6
A11: [Record] | B11: 0a7838b8-c92d-8e24-fb7d-fb579f31b84e | C11: Feature | D11: 2023-01-11T07:29:51.271000 | E11: 2023-05-17T14:05:15.805896+00:00 | F11: 2023-01-10T00:00:00.001000+01:00 | G11: acc_heating_degree_days_17 | H11: manual | I11: day | J11: 2023-01-11T00:00:00+01:00 | K11: 11.7
A12: [Record] | B12: 0773a7e2-206a-784a-2ff5-c2332e5074ea | C12: Feature | D12: 2023-01-12T07:29:42.982000 | E12: 2023-05-17T14:05:15.830061+00:00 | F12: 2023-01-11T00:00:00.001000+01:00 | G12: acc_heating_degree_days_17 | H12: manual | I12: day | J12: 2023-01-12T00:00:00+01:00 | K12: 10.3
A13: [Record] | B13: 41a2c0a3-fefa-3623-50d8-df486618a5f0 | C13: Feature | D13: 2023-01-13T07:29:37.038000 | E13: 2023-05-17T14:05:15.897208+00:00 | F13: 2023-01-12T00:00:00.001000+01:00 | G13: acc_heating_degree_days_17 | H13: manual | I13: day | J13: 2023-01-13T00:00:00+01:00 | K13: 11.3
A14: [Record] | B14: 1e6ca944-c141-a902-2714-3188c7b17871 | C14: Feature | D14: 2023-01-14T07:29:35.469000 | E14: 2023-05-17T14:05:17.373545+00:00 | F14: 2023-01-13T00:00:00.001000+01:00 | G14: acc_heating_degree_days_17 | H14: manual | I14: day | J14: 2023-01-14T00:00:00+01:00 | K14: 10.6
A15: [Record] | B15: 84511c31-2e3a-7337-51b1-4cb677e4f93f | C15: Feature | D15: 2023-01-15T07:29:33.267000 | E15: 2023-05-17T14:05:17.361653+00:00 | F15: 2023-01-14T00:00:00.001000+01:00 | G15: acc_heating_degree_days_17 | H15: manual | I15: day | J15: 2023-01-15T00:00:00+01:00 | K15: 11.3
A16: [Record] | B16: e2afedd5-cef7-bdae-4939-87fc6862aab0 | C16: Feature | D16: 2023-01-16T07:29:52.571000 | E16: 2023-05-17T14:05:17.451163+00:00 | F16: 2023-01-15T00:00:00.001000+01:00 | G16: acc_heating_degree_days_17 | H16: manual | I16: day | J16: 2023-01-16T00:00:00+01:00 | K16: 11.9
A17: [Record] | B17: 672760aa-9ff3-fc8b-1722-bc2e535b3a98 | C17: Feature | D17: 2023-01-17T07:29:57.426000 | E17: 2023-05-17T14:05:18.585099+00:00 | F17: 2023-01-16T00:00:00.001000+01:00 | G17: acc_heating_degree_days_17 | H17: manual | I17: day | J17: 2023-01-17T00:00:00+01:00 | K17: 13.4
A18: [Record] | B18: 9d46f270-3143-bf2a-c7c4-fe06ccae1c56 | C18: Feature | D18: 2023-01-18T07:29:37.763000 | E18: 2023-05-17T14:05:18.557298+00:00 | F18: 2023-01-17T00:00:00.001000+01:00 | G18: acc_heating_degree_days_17 | H18: manual | I18: day | J18: 2023-01-18T00:00:00+01:00 | K18: 14.7
A19: [Record] | B19: 4512cfa0-afed-0d31-b398-8224566143f6 | C19: Feature | D19: 2023-01-19T07:29:36.676000 | E19: 2023-05-17T14:05:18.620404+00:00 | F19: 2023-01-18T00:00:00.001000+01:00 | G19: acc_heating_degree_days_17 | H19: manual | I19: day | J19: 2023-01-19T00:00:00+01:00 | K19: 15.8
A20: [Record] | B20: 5012b3ba-c09e-a4bb-b79e-44b380d21fd3 | C20: Feature | D20: 2023-01-20T07:29:38.012000 | E20: 2023-05-17T14:05:19.825986+00:00 | F20: 2023-01-19T00:00:00.001000+01:00 | G20: acc_heating_degree_days_17 | H20: manual | I20: day | J20: 2023-01-20T00:00:00+01:00 | K20: 15.8
A21: [Record] | B21: 6e106c2c-f359-7aba-eb0e-6b519c0c642b | C21: Feature | D21: 2023-01-21T07:29:37.300000 | E21: 2023-05-17T14:05:19.804354+00:00 | F21: 2023-01-20T00:00:00.001000+01:00 | G21: acc_heating_degree_days_17 | H21: manual | I21: day | J21: 2023-01-21T00:00:00+01:00 | K21: 16.5
A22: [Record] | B22: 3d35fd69-a35a-e94b-daec-93ad4ac831f4 | C22: Feature | D22: 2023-01-22T07:29:42.844000 | E22: 2023-05-17T14:05:19.840436+00:00 | F22: 2023-01-21T00:00:00.001000+01:00 | G22: acc_heating_degree_days_17 | H22: manual | I22: day | J22: 2023-01-22T00:00:00+01:00 | K22: 17.1
A23: [Record] | B23: d3e16b9f-5f96-93c2-9f2f-7600681e956d | C23: Feature | D23: 2023-01-23T07:28:47.945000 | E23: 2023-05-17T14:05:21.001872+00:00 | F23: 2023-01-22T00:00:00.001000+01:00 | G23: acc_heating_degree_days_17 | H23: manual | I23: day | J23: 2023-01-23T00:00:00+01:00 | K23: 17.7
A24: [Record] | B24: aa948932-6d80-ebcd-ef9a-97fa3b7044f0 | C24: Feature | D24: 2023-01-24T07:29:46.602000 | E24: 2023-05-17T14:05:21.013430+00:00 | F24: 2023-01-23T00:00:00.001000+01:00 | G24: acc_heating_degree_days_17 | H24: manual | I24: day | J24: 2023-01-24T00:00:00+01:00 | K24: 17.2
A25: [Record] | B25: 4d924ec2-3f5a-00ad-28d7-ad38ac51bd7e | C25: Feature | D25: 2023-01-25T07:29:29.386000 | E25: 2023-05-17T14:05:21.009760+00:00 | F25: 2023-01-24T00:00:00.001000+01:00 | G25: acc_heating_degree_days_17 | H25: manual | I25: day | J25: 2023-01-25T00:00:00+01:00 | K25: 15.5
A26: [Record] | B26: 7928ff9d-0f21-bbe4-9eba-8bf58826cdec | C26: Feature | D26: 2023-01-26T07:29:39.929000 | E26: 2023-05-17T14:05:22.349617+00:00 | F26: 2023-01-25T00:00:00.001000+01:00 | G26: acc_heating_degree_days_17 | H26: manual | I26: day | J26: 2023-01-26T00:00:00+01:00 | K26: 14.6
A27: [Record] | B27: 5c7c4ede-ef40-558e-7587-0e1a285ce161 | C27: Feature | D27: 2023-01-27T07:29:42.392000 | E27: 2023-05-17T14:05:22.342283+00:00 | F27: 2023-01-26T00:00:00.001000+01:00 | G27: acc_heating_degree_days_17 | H27: manual | I27: day | J27: 2023-01-27T00:00:00+01:00 | K27: 13.9
A28: [Record] | B28: 2120fa45-94a7-0ba6-b4d4-307aebb92865 | C28: Feature | D28: 2023-01-28T07:29:44.083000 | E28: 2023-05-17T14:05:22.353486+00:00 | F28: 2023-01-27T00:00:00.001000+01:00 | G28: acc_heating_degree_days_17 | H28: manual | I28: day | J28: 2023-01-28T00:00:00+01:00 | K28: 17.4
A29: [Record] | B29: eb07b2a2-6254-bff1-a3f1-c8f287a1caef | C29: Feature | D29: 2023-01-29T07:29:49.237000 | E29: 2023-05-17T14:05:23.489187+00:00 | F29: 2023-01-28T00:00:00.001000+01:00 | G29: acc_heating_degree_days_17 | H29: manual | I29: day | J29: 2023-01-29T00:00:00+01:00 | K29: 15.4
A30: [Record] | B30: 018c9810-37f9-f721-b27e-55563b5dfea5 | C30: Feature | D30: 2023-01-30T07:29:37.314000 | E30: 2023-05-17T14:05:23.564201+00:00 | F30: 2023-01-29T00:00:00.001000+01:00 | G30: acc_heating_degree_days_17 | H30: manual | I30: day | J30: 2023-01-30T00:00:00+01:00 | K30: 12.5
A31: [Record] | B31: 51379880-a23e-e857-4f2f-107924d56b00 | C31: Feature | D31: 2023-01-31T07:29:42.794000 | E31: 2023-05-17T14:05:23.560412+00:00 | F31: 2023-01-30T00:00:00.001000+01:00 | G31: acc_heating_degree_days_17 | H31: manual | I31: day | J31: 2023-01-31T00:00:00+01:00 | K31: 12.6
A32: [Record] | B32: 6fdea7c9-8623-9ddc-b0c0-7ac1552b8d4f | C32: Feature | D32: 2023-02-01T07:29:46.653000 | E32: 2023-05-17T14:05:24.820411+00:00 | F32: 2023-01-31T00:00:00.001000+01:00 | G32: acc_heating_degree_days_17 | H32: manual | I32: day | J32: 2023-02-01T00:00:00+01:00 | K32: 13.2
A33: [Record] | B33: 970fed5d-8bad-5da6-6f8f-2f72b92d9d11 | C33: Feature | D33: 2023-02-02T07:29:44.765000 | E33: 2023-05-17T14:05:24.861918+00:00 | F33: 2023-02-01T00:00:00.001000+01:00 | G33: acc_heating_degree_days_17 | H33: manual | I33: day | J33: 2023-02-02T00:00:00+01:00 | K33: 12.8
A34: [Record] | B34: c76d1d96-b574-c807-7c3d-7b5e6327ea36 | C34: Feature | D34: 2023-02-03T07:29:48.144000 | E34: 2023-05-17T14:05:24.886279+00:00 | F34: 2023-02-02T00:00:00.001000+01:00 | G34: acc_heating_degree_days_17 | H34: manual | I34: day | J34: 2023-02-03T00:00:00+01:00 | K34: 14.9
A35: [Record] | B35: 6b17fb41-56d4-c7f3-32e8-832dcaea1336 | C35: Feature | D35: 2023-02-04T07:29:45.069000 | E35: 2023-05-17T14:05:26.046637+00:00 | F35: 2023-02-03T00:00:00.001000+01:00 | G35: acc_heating_degree_days_17 | H35: manual | I35: day | J35: 2023-02-04T00:00:00+01:00 | K35: 12.8
A36: [Record] | B36: a0d4be52-bdcc-b7c3-4e7c-5a1bce1a0434 | C36: Feature | D36: 2023-02-05T07:29:50.343000 | E36: 2023-05-17T14:05:26.040935+00:00 | F36: 2023-02-04T00:00:00.001000+01:00 | G36: acc_heating_degree_days_17 | H36: manual | I36: day | J36: 2023-02-05T00:00:00+01:00 | K36: 17.2
A37: [Record] | B37: f4ce5acb-e01b-71b1-8e38-f472060fb044 | C37: Feature | D37: 2023-02-06T07:29:52.123000 | E37: 2023-05-17T14:05:26.078573+00:00 | F37: 2023-02-05T00:00:00.001000+01:00 | G37: acc_heating_degree_days_17 | H37: manual | I37: day | J37: 2023-02-06T00:00:00+01:00 | K37: 15.6
A38: [Record] | B38: ad0b7c71-26ce-9bd1-51d0-d0f7423bb9d8 | C38: Feature | D38: 2023-02-07T07:29:35.472000 | E38: 2023-05-17T14:05:27.319225+00:00 | F38: 2023-02-06T00:00:00.001000+01:00 | G38: acc_heating_degree_days_17 | H38: manual | I38: day | J38: 2023-02-07T00:00:00+01:00 | K38: 15.6
A39: [Record] | B39: ae3dece5-7aeb-773b-2693-ff35b8106acb | C39: Feature | D39: 2023-02-08T07:29:34.946000 | E39: 2023-05-17T14:05:27.300853+00:00 | F39: 2023-02-07T00:00:00.001000+01:00 | G39: acc_heating_degree_days_17 | H39: manual | I39: day | J39: 2023-02-08T00:00:00+01:00 | K39: 14.7
A40: [Record] | B40: b00073da-210e-e5fb-ccb0-fcb4d6c1181d | C40: Feature | D40: 2023-02-09T07:29:57.828000 | E40: 2023-05-17T14:05:27.276229+00:00 | F40: 2023-02-08T00:00:00.001000+01:00 | G40: acc_heating_degree_days_17 | H40: manual | I40: day | J40: 2023-02-09T00:00:00+01:00 | K40: 15.2
A41: [Record] | B41: 883972ab-0784-1f08-989f-16d6954fb38f | C41: Feature | D41: 2023-02-10T07:30:46.491000 | E41: 2023-05-17T14:05:28.635980+00:00 | F41: 2023-02-09T00:00:00.001000+01:00 | G41: acc_heating_degree_days_17 | H41: manual | I41: day | J41: 2023-02-10T00:00:00+01:00 | K41: 13.8
A42: [Record] | B42: 752f796b-b443-b9a7-4dea-8692f76ae06f | C42: Feature | D42: 2023-02-11T07:29:48.902000 | E42: 2023-05-17T14:05:28.622929+00:00 | F42: 2023-02-10T00:00:00.001000+01:00 | G42: acc_heating_degree_days_17 | H42: manual | I42: day | J42: 2023-02-11T00:00:00+01:00 | K42: 12.1
A43: [Record] | B43: b08fe023-55b8-8233-ba27-3b84ceed7127 | C43: Feature | D43: 2023-02-12T07:29:36.699000 | E43: 2023-05-17T14:05:28.592960+00:00 | F43: 2023-02-11T00:00:00.001000+01:00 | G43: acc_heating_degree_days_17 | H43: manual | I43: day | J43: 2023-02-12T00:00:00+01:00 | K43: 9.9
A44: [Record] | B44: 093ee52a-4d95-b2df-f11a-141dd3f9af6e | C44: Feature | D44: 2023-02-13T07:29:31.315000 | E44: 2023-05-17T14:05:30.127397+00:00 | F44: 2023-02-12T00:00:00.001000+01:00 | G44: acc_heating_degree_days_17 | H44: manual | I44: day | J44: 2023-02-13T00:00:00+01:00 | K44: 10.4
A45: [Record] | B45: 954e7b05-ba55-944f-7a31-401f49ed7018 | C45: Feature | D45: 2023-02-14T07:29:46.830000 | E45: 2023-05-17T14:05:30.094335+00:00 | F45: 2023-02-13T00:00:00.001000+01:00 | G45: acc_heating_degree_days_17 | H45: manual | I45: day | J45: 2023-02-14T00:00:00+01:00 | K45: 11
A46: [Record] | B46: 3673f1b5-11ec-f66b-7950-a9262e9a8d69 | C46: Feature | D46: 2023-02-15T07:29:40.271000 | E46: 2023-05-17T14:05:30.159733+00:00 | F46: 2023-02-14T00:00:00.001000+01:00 | G46: acc_heating_degree_days_17 | H46: manual | I46: day | J46: 2023-02-15T00:00:00+01:00 | K46: 13.2
A47: [Record] | B47: 20414b30-227a-5702-f6f9-33e0476375d0 | C47: Feature | D47: 2023-02-16T07:29:27.712000 | E47: 2023-05-17T14:05:31.265913+00:00 | F47: 2023-02-15T00:00:00.001000+01:00 | G47: acc_heating_degree_days_17 | H47: manual | I47: day | J47: 2023-02-16T00:00:00+01:00 | K47: 14.3
A48: [Record] | B48: db074e5d-f4df-005b-15f1-075a1406e915 | C48: Feature | D48: 2023-02-17T07:29:59.237000 | E48: 2023-05-17T14:05:31.227543+00:00 | F48: 2023-02-16T00:00:00.001000+01:00 | G48: acc_heating_degree_days_17 | H48: manual | I48: day | J48: 2023-02-17T00:00:00+01:00 | K48: 12.1
A49: [Record] | B49: d00fe9bc-4e51-a6d9-30ec-0dc03fdbf660 | C49: Feature | D49: 2023-02-18T07:29:41.027000 | E49: 2023-05-17T14:05:31.293395+00:00 | F49: 2023-02-17T00:00:00.001000+01:00 | G49: acc_heating_degree_days_17 | H49: manual | I49: day | J49: 2023-02-18T00:00:00+01:00 | K49: 10.1
A50: [Record] | B50: 8273ac16-ba36-5f72-5a28-c99dc5a297ba | C50: Feature | D50: 2023-02-19T07:29:46.072000 | E50: 2023-05-17T14:05:32.406491+00:00 | F50: 2023-02-18T00:00:00.001000+01:00 | G50: acc_heating_degree_days_17 | H50: manual | I50: day | J50: 2023-02-19T00:00:00+01:00 | K50: 12.5
A51: [Record] | B51: 185de6ef-c405-f5d9-f567-582d5c6f31c1 | C51: Feature | D51: 2023-02-20T07:28:58.517000 | E51: 2023-05-17T14:05:32.475843+00:00 | F51: 2023-02-19T00:00:00.001000+01:00 | G51: acc_heating_degree_days_17 | H51: manual | I51: day | J51: 2023-02-20T00:00:00+01:00 | K51: 13.4
A52: [Record] | B52: 5efc25d1-6c86-103d-3de5-03956ba0c551 | C52: Feature | D52: 2023-02-21T07:29:22.482000 | E52: 2023-05-17T14:05:32.436164+00:00 | F52: 2023-02-20T00:00:00.001000+01:00 | G52: acc_heating_degree_days_17 | H52: manual | I52: day | J52: 2023-02-21T00:00:00+01:00 | K52: 10.2
A53: [Record] | B53: 0aa8ec85-8592-57d1-68c2-2a7a0e8385f8 | C53: Feature | D53: 2023-02-22T07:29:46.904000 | E53: 2023-05-17T14:05:33.603655+00:00 | F53: 2023-02-21T00:00:00.001000+01:00 | G53: acc_heating_degree_days_17 | H53: manual | I53: day | J53: 2023-02-22T00:00:00+01:00 | K53: 11.2
A54: [Record] | B54: 7b8180e6-a68b-ae55-ae74-0bda6a33b5ab | C54: Feature | D54: 2023-02-23T07:29:53.709000 | E54: 2023-05-17T14:05:33.561430+00:00 | F54: 2023-02-22T00:00:00.001000+01:00 | G54: acc_heating_degree_days_17 | H54: manual | I54: day | J54: 2023-02-23T00:00:00+01:00 | K54: 12.9
A55: [Record] | B55: a7b6c1cb-93da-79f3-0f57-fa02678e6886 | C55: Feature | D55: 2023-02-24T07:28:11.618000 | E55: 2023-05-17T14:05:33.605851+00:00 | F55: 2023-02-23T00:00:00.001000+01:00 | G55: acc_heating_degree_days_17 | H55: manual | I55: day | J55: 2023-02-24T00:00:00+01:00 | K55: 12.5
A56: [Record] | B56: 2799bf91-d402-1b7c-c394-1e1a0b8f00ba | C56: Feature | D56: 2023-02-25T07:29:56.382000 | E56: 2023-05-17T14:05:34.823655+00:00 | F56: 2023-02-24T00:00:00.001000+01:00 | G56: acc_heating_degree_days_17 | H56: manual | I56: day | J56: 2023-02-25T00:00:00+01:00 | K56: 13.1
A57: [Record] | B57: 40a2a7aa-b1e7-9637-314e-6176aba7f41b | C57: Feature | D57: 2023-02-26T07:35:14.991000 | E57: 2023-05-17T14:05:34.799388+00:00 | F57: 2023-02-25T00:00:00.001000+01:00 | G57: acc_heating_degree_days_17 | H57: manual | I57: day | J57: 2023-02-26T00:00:00+01:00 | K57: 15.7
A58: [Record] | B58: ecfc95b1-deea-6614-c6d1-13c6ebfed538 | C58: Feature | D58: 2023-02-27T07:29:47.946000 | E58: 2023-05-17T14:05:34.841202+00:00 | F58: 2023-02-26T00:00:00.001000+01:00 | G58: acc_heating_degree_days_17 | H58: manual | I58: day | J58: 2023-02-27T00:00:00+01:00 | K58: 15.9
A59: [Record] | B59: dae41421-a551-1e7e-2bf2-ac824e2a20e4 | C59: Feature | D59: 2023-02-28T07:29:50.295000 | E59: 2023-05-17T14:05:36.164550+00:00 | F59: 2023-02-27T00:00:00.001000+01:00 | G59: acc_heating_degree_days_17 | H59: manual | I59: day | J59: 2023-02-28T00:00:00+01:00 | K59: 14.3
A60: [Record] | B60: 65499190-37ec-0a6b-4065-9c9164ecc790 | C60: Feature | D60: 2023-03-01T07:29:49.647000 | E60: 2023-05-17T14:05:36.234029+00:00 | F60: 2023-02-28T00:00:00.001000+01:00 | G60: acc_heating_degree_days_17 | H60: manual | I60: day | J60: 2023-03-01T00:00:00+01:00 | K60: 14.7
A61: [Record] | B61: 6d70fbb9-b7d1-a605-266a-8c237eb26486 | C61: Feature | D61: 2023-03-02T07:29:47.521000 | E61: 2023-05-17T14:05:36.160694+00:00 | F61: 2023-03-01T00:00:00.001000+01:00 | G61: acc_heating_degree_days_17 | H61: manual | I61: day | J61: 2023-03-02T00:00:00+01:00 | K61: 15.5
A62: [Record] | B62: e0be7a58-e653-7e38-b05c-71ca077b5410 | C62: Feature | D62: 2023-03-03T07:29:39.176000 | E62: 2023-05-17T14:05:37.402228+00:00 | F62: 2023-03-02T00:00:00.001000+01:00 | G62: acc_heating_degree_days_17 | H62: manual | I62: day | J62: 2023-03-03T00:00:00+01:00 | K62: 14.7
A63: [Record] | B63: f89ba459-4c38-2901-243d-b9efa662d64c | C63: Feature | D63: 2023-03-04T07:29:51.666000 | E63: 2023-05-17T14:05:37.384259+00:00 | F63: 2023-03-03T00:00:00.001000+01:00 | G63: acc_heating_degree_days_17 | H63: manual | I63: day | J63: 2023-03-04T00:00:00+01:00 | K63: 13.7
A64: [Record] | B64: 9d626499-d770-da12-9232-e4a56ae1afb7 | C64: Feature | D64: 2023-03-05T07:29:44.247000 | E64: 2023-05-17T14:05:37.378361+00:00 | F64: 2023-03-04T00:00:00.001000+01:00 | G64: acc_heating_degree_days_17 | H64: manual | I64: day | J64: 2023-03-05T00:00:00+01:00 | K64: 14
A65: [Record] | B65: 91dee9e5-3d59-c5d4-fdd9-71f3baa43df9 | C65: Feature | D65: 2023-03-06T07:29:17.647000 | E65: 2023-05-17T14:05:38.666023+00:00 | F65: 2023-03-05T00:00:00.001000+01:00 | G65: acc_heating_degree_days_17 | H65: manual | I65: day | J65: 2023-03-06T00:00:00+01:00 | K65: 17
A66: [Record] | B66: ded607e7-b23f-3fe0-1332-3d4e83e81eb2 | C66: Feature | D66: 2023-03-07T07:29:27.300000 | E66: 2023-05-17T14:05:38.606480+00:00 | F66: 2023-03-06T00:00:00.001000+01:00 | G66: acc_heating_degree_days_17 | H66: manual | I66: day | J66: 2023-03-07T00:00:00+01:00 | K66: 17.3
A67: [Record] | B67: 7cba6bd2-659a-9442-4cb8-244fd1e7b80c | C67: Feature | D67: 2023-03-08T07:29:47.427000 | E67: 2023-05-17T14:05:38.642673+00:00 | F67: 2023-03-07T00:00:00.001000+01:00 | G67: acc_heating_degree_days_17 | H67: manual | I67: day | J67: 2023-03-08T00:00:00+01:00 | K67: 17
A68: [Record] | B68: fb3b96a1-400d-4c27-0b35-e6c59dbbea8e | C68: Feature | D68: 2023-03-09T07:28:59.826000 | E68: 2023-05-17T14:05:39.893100+00:00 | F68: 2023-03-08T00:00:00.001000+01:00 | G68: acc_heating_degree_days_17 | H68: manual | I68: day | J68: 2023-03-09T00:00:00+01:00 | K68: 18.9
A69: [Record] | B69: 33275ff0-cc45-2017-5f60-15a168e2767f | C69: Feature | D69: 2023-03-10T07:29:54.708000 | E69: 2023-05-17T14:05:39.842235+00:00 | F69: 2023-03-09T00:00:00.001000+01:00 | G69: acc_heating_degree_days_17 | H69: manual | I69: day | J69: 2023-03-10T00:00:00+01:00 | K69: 18.1
A70: [Record] | B70: d3ddefa0-fd1a-53b6-3b6a-5305a184b184 | C70: Feature | D70: 2023-03-11T07:29:33.663000 | E70: 2023-05-17T14:05:39.880775+00:00 | F70: 2023-03-10T00:00:00.001000+01:00 | G70: acc_heating_degree_days_17 | H70: manual | I70: day | J70: 2023-03-11T00:00:00+01:00 | K70: 17.6
A71: [Record] | B71: 90d769ef-528b-d3f4-2a0c-85aca0ff6a17 | C71: Feature | D71: 2023-03-12T07:29:38.338000 | E71: 2023-05-17T14:05:41.350337+00:00 | F71: 2023-03-11T00:00:00.001000+01:00 | G71: acc_heating_degree_days_17 | H71: manual | I71: day | J71: 2023-03-12T00:00:00+01:00 | K71: 17
A72: [Record] | B72: 14315483-3717-3a46-2f95-4d2adc5f9c4a | C72: Feature | D72: 2023-03-13T07:29:45.691000 | E72: 2023-05-17T14:05:41.282167+00:00 | F72: 2023-03-12T00:00:00.001000+01:00 | G72: acc_heating_degree_days_17 | H72: manual | I72: day | J72: 2023-03-13T00:00:00+01:00 | K72: 16.2
A73: [Record] | B73: f83bff7f-5939-044e-2b02-b97432bbf4c5 | C73: Feature | D73: 2023-03-14T07:29:58.699000 | E73: 2023-05-17T14:05:41.323612+00:00 | F73: 2023-03-13T00:00:00.001000+01:00 | G73: acc_heating_degree_days_17 | H73: manual | I73: day | J73: 2023-03-14T00:00:00+01:00 | K73: 9.9
A74: [Record] | B74: 5441a05b-2920-c351-c4c5-6e9171c0150c | C74: Feature | D74: 2023-03-15T07:29:01.122000 | E74: 2023-05-17T14:05:42.968216+00:00 | F74: 2023-03-14T00:00:00.001000+01:00 | G74: acc_heating_degree_days_17 | H74: manual | I74: day | J74: 2023-03-15T00:00:00+01:00 | K74: 12.7
A75: [Record] | B75: 97713f6d-ac63-f2a8-2b21-722e8245de01 | C75: Feature | D75: 2023-03-16T07:29:47.263000 | E75: 2023-05-17T14:05:42.911187+00:00 | F75: 2023-03-15T00:00:00.001000+01:00 | G75: acc_heating_degree_days_17 | H75: manual | I75: day | J75: 2023-03-16T00:00:00+01:00 | K75: 14.7
A76: [Record] | B76: 8561d19e-c765-456f-a37a-dbcef40bb6f4 | C76: Feature | D76: 2023-03-17T07:28:49.764000 | E76: 2023-05-17T14:05:42.940389+00:00 | F76: 2023-03-16T00:00:00.001000+01:00 | G76: acc_heating_degree_days_17 | H76: manual | I76: day | J76: 2023-03-17T00:00:00+01:00 | K76: 14.1
A77: [Record] | B77: 7fb01141-c62a-1820-6075-53faf0b3cd3d | C77: Feature | D77: 2023-03-18T07:29:13.077000 | E77: 2023-05-17T14:05:44.548508+00:00 | F77: 2023-03-17T00:00:00.001000+01:00 | G77: acc_heating_degree_days_17 | H77: manual | I77: day | J77: 2023-03-18T00:00:00+01:00 | K77: 11.2
A78: [Record] | B78: 3daac9ea-2ae2-da0c-b1d2-e42793bce0b2 | C78: Feature | D78: 2023-03-19T07:49:10.615000 | E78: 2023-05-17T14:05:44.474893+00:00 | F78: 2023-03-18T00:00:00.001000+01:00 | G78: acc_heating_degree_days_17 | H78: manual | I78: day | J78: 2023-03-19T00:00:00+01:00 | K78: 9.7
A79: [Record] | B79: aa008632-a9ec-f52c-7f8a-4d26ea0b91c3 | C79: Feature | D79: 2023-03-20T07:28:21.280000 | E79: 2023-05-17T14:05:44.500597+00:00 | F79: 2023-03-19T00:00:00.001000+01:00 | G79: acc_heating_degree_days_17 | H79: manual | I79: day | J79: 2023-03-20T00:00:00+01:00 | K79: 9.8
A80: [Record] | B80: d87c98ff-4edc-452d-cd4b-d04b6114abb8 | C80: Feature | D80: 2023-03-21T07:28:21.452000 | E80: 2023-05-17T14:05:45.834096+00:00 | F80: 2023-03-20T00:00:00.001000+01:00 | G80: acc_heating_degree_days_17 | H80: manual | I80: day | J80: 2023-03-21T00:00:00+01:00 | K80: 11.1
A81: [Record] | B81: 72d74762-a36e-353c-8459-173eb3352235 | C81: Feature | D81: 2023-03-22T07:28:28.543000 | E81: 2023-05-17T14:05:45.759414+00:00 | F81: 2023-03-21T00:00:00.001000+01:00 | G81: acc_heating_degree_days_17 | H81: manual | I81: day | J81: 2023-03-22T00:00:00+01:00 | K81: 11.5
A82: [Record] | B82: 1a55ebad-2ddc-1981-f5d6-05995ef0eac4 | C82: Feature | D82: 2023-03-23T07:29:59.352000 | E82: 2023-05-17T14:05:45.785269+00:00 | F82: 2023-03-22T00:00:00.001000+01:00 | G82: acc_heating_degree_days_17 | H82: manual | I82: day | J82: 2023-03-23T00:00:00+01:00 | K82: 9.3
A83: [Record] | B83: 77671ef2-0f43-3cc7-0ba3-f69369094d2e | C83: Feature | D83: 2023-03-24T07:29:07.118000 | E83: 2023-05-17T14:05:46.821453+00:00 | F83: 2023-03-23T00:00:00.001000+01:00 | G83: acc_heating_degree_days_17 | H83: manual | I83: day | J83: 2023-03-24T00:00:00+01:00 | K83: 8.9
A84: [Record] | B84: 799e91b0-4615-3fad-ddc7-0423eb1a5639 | C84: Feature | D84: 2023-03-25T07:29:34.775000 | E84: 2023-05-17T14:05:46.748773+00:00 | F84: 2023-03-24T00:00:00.001000+01:00 | G84: acc_heating_degree_days_17 | H84: manual | I84: day | J84: 2023-03-25T00:00:00+01:00 | K84: 9
A85: [Record] | B85: 845d66d6-bf7b-3af9-61a3-089159557b9a | C85: Feature | D85: 2023-03-26T07:29:49.517000 | E85: 2023-05-17T14:05:46.787837+00:00 | F85: 2023-03-25T00:00:00.001000+01:00 | G85: acc_heating_degree_days_17 | H85: manual | I85: day | J85: 2023-03-26T00:00:00+01:00 | K85: 9.8
A86: [Record] | B86: d3883e9a-a638-72c3-df32-59da2f944f45 | C86: Feature | D86: 2023-03-27T07:28:26.841000 | E86: 2023-05-17T14:05:47.899148+00:00 | F86: 2023-03-26T00:00:00.001000+01:00 | G86: acc_heating_degree_days_17 | H86: manual | I86: day | J86: 2023-03-27T00:00:00+02:00 | K86: 13.5
A87: [Record] | B87: 9b0ba209-66a3-e2ba-bc46-b1c3bd5728be | C87: Feature | D87: 2023-03-28T07:28:53.407000 | E87: 2023-05-17T14:05:47.944897+00:00 | F87: 2023-03-27T00:00:00.001000+02:00 | G87: acc_heating_degree_days_17 | H87: manual | I87: day | J87: 2023-03-28T00:00:00+02:00 | K87: 16
A88: [Record] | B88: 1d6c5f4b-7b79-5f00-fb87-90299dc9bd02 | C88: Feature | D88: 2023-03-29T07:29:56.855000 | E88: 2023-05-17T14:05:47.866327+00:00 | F88: 2023-03-28T00:00:00.001000+02:00 | G88: acc_heating_degree_days_17 | H88: manual | I88: day | J88: 2023-03-29T00:00:00+02:00 | K88: 15.4
A89: [Record] | B89: 47272578-7bb2-8471-a4cd-91b7bb6b1ca6 | C89: Feature | D89: 2023-03-30T07:28:58.237000 | E89: 2023-05-17T14:05:49.224140+00:00 | F89: 2023-03-29T00:00:00.001000+02:00 | G89: acc_heating_degree_days_17 | H89: manual | I89: day | J89: 2023-03-30T00:00:00+02:00 | K89: 12.5
A90: [Record] | B90: ab638f77-d637-14e2-4de9-6f7132a690aa | C90: Feature | D90: 2023-03-31T07:29:47.432000 | E90: 2023-05-17T14:05:49.252915+00:00 | F90: 2023-03-30T00:00:00.001000+02:00 | G90: acc_heating_degree_days_17 | H90: manual | I90: day | J90: 2023-03-31T00:00:00+02:00 | K90: 10.3
A91: [Record] | B91: ae140c69-1477-a613-1501-968b4fea2073 | C91: Feature | D91: 2023-04-01T07:30:06.530000 | E91: 2023-05-17T14:05:49.260776+00:00 | F91: 2023-03-31T00:00:00.001000+02:00 | G91: acc_heating_degree_days_17 | H91: manual | I91: day | J91: 2023-04-01T00:00:00+02:00 | K91: 10.7
A92: [Record] | B92: e4a84b27-f7a9-1af0-d1dd-0db4ac48af7c | C92: Feature | D92: 2023-04-02T07:28:48.243000 | E92: 2023-05-17T14:05:50.387932+00:00 | F92: 2023-04-01T00:00:00.001000+02:00 | G92: acc_heating_degree_days_17 | H92: manual | I92: day | J92: 2023-04-02T00:00:00+02:00 | K92: 13.7
A93: [Record] | B93: 309c7990-d2a3-2e07-2f1b-b8ed036dbdbf | C93: Feature | D93: 2023-04-03T07:30:09.588000 | E93: 2023-05-17T14:05:50.416091+00:00 | F93: 2023-04-02T00:00:00.001000+02:00 | G93: acc_heating_degree_days_17 | H93: manual | I93: day | J93: 2023-04-03T00:00:00+02:00 | K93: 13.8
A94: [Record] | B94: 91a9bbe2-1a5a-3ddc-f06d-4558df3c31e6 | C94: Feature | D94: 2023-04-04T07:28:55.348000 | E94: 2023-05-17T14:05:50.443709+00:00 | F94: 2023-04-03T00:00:00.001000+02:00 | G94: acc_heating_degree_days_17 | H94: manual | I94: day | J94: 2023-04-04T00:00:00+02:00 | K94: 14.5
A95: [Record] | B95: 57af608a-33ec-cb00-bfad-42b6fe1c731a | C95: Feature | D95: 2023-04-05T07:28:30.877000 | E95: 2023-05-17T14:05:51.655635+00:00 | F95: 2023-04-04T00:00:00.001000+02:00 | G95: acc_heating_degree_days_17 | H95: manual | I95: day | J95: 2023-04-05T00:00:00+02:00 | K95: 13.9
A96: [Record] | B96: aa0a0a8b-17b7-d0a5-87e6-158f00a08e36 | C96: Feature | D96: 2023-04-06T07:28:30.343000 | E96: 2023-05-17T14:05:51.689988+00:00 | F96: 2023-04-05T00:00:00.001000+02:00 | G96: acc_heating_degree_days_17 | H96: manual | I96: day | J96: 2023-04-06T00:00:00+02:00 | K96: 13.1
A97: [Record] | B97: c013d0e6-5e81-c1b9-a8b8-90f5cbd05113 | C97: Feature | D97: 2023-04-07T07:29:08.566000 | E97: 2023-05-17T14:05:51.721590+00:00 | F97: 2023-04-06T00:00:00.001000+02:00 | G97: acc_heating_degree_days_17 | H97: manual | I97: day | J97: 2023-04-07T00:00:00+02:00 | K97: 12.4
A98: [Record] | B98: 0f55a69b-f87a-d460-5e90-f57d48fe0d31 | C98: Feature | D98: 2023-04-08T07:28:22.954000 | E98: 2023-05-17T14:05:52.925510+00:00 | F98: 2023-04-07T00:00:00.001000+02:00 | G98: acc_heating_degree_days_17 | H98: manual | I98: day | J98: 2023-04-08T00:00:00+02:00 | K98: 12.1
A99: [Record] | B99: 708bb47b-4ff2-950c-0fdb-0f131d8799a3 | C99: Feature | D99: 2023-04-09T07:28:42.712000 | E99: 2023-05-17T14:05:52.852040+00:00 | F99: 2023-04-08T00:00:00.001000+02:00 | G99: acc_heating_degree_days_17 | H99: manual | I99: day | J99: 2023-04-09T00:00:00+02:00 | K99: 9.6
A100: [Record] | B100: 3ffed72d-0121-05bd-ba9f-6a4173479c94 | C100: Feature | D100: 2023-04-10T07:29:07.928000 | E100: 2023-05-17T14:05:52.877472+00:00 | F100: 2023-04-09T00:00:00.001000+02:00 | G100: acc_heating_degree_days_17 | H100: manual | I100: day | J100: 2023-04-10T00:00:00+02:00 | K100: 9.8
A101: [Record] | B101: d2171d28-38b1-b776-3a5b-7046e1be031c | C101: Feature | D101: 2023-04-11T07:28:50.428000 | E101: 2023-05-17T14:05:54.167288+00:00 | F101: 2023-04-10T00:00:00.001000+02:00 | G101: acc_heating_degree_days_17 | H101: manual | I101: day | J101: 2023-04-11T00:00:00+02:00 | K101: 8.8
A102: [Record] | B102: 9bb31ceb-6c67-eec2-2a18-2961e317be35 | C102: Feature | D102: 2023-04-12T07:29:05.330000 | E102: 2023-05-17T14:05:54.196015+00:00 | F102: 2023-04-11T00:00:00.001000+02:00 | G102: acc_heating_degree_days_17 | H102: manual | I102: day | J102: 2023-04-12T00:00:00+02:00 | K102: 9
A103: [Record] | B103: c816fd68-3839-40de-19b6-d7f21852bdce | C103: Feature | D103: 2023-04-13T07:29:52.759000 | E103: 2023-05-17T14:05:54.128368+00:00 | F103: 2023-04-12T00:00:00.001000+02:00 | G103: acc_heating_degree_days_17 | H103: manual | I103: day | J103: 2023-04-13T00:00:00+02:00 | K103: 10.5
A104: [Record] | B104: c2e9333f-b056-d457-a04d-dbd04d746cc0 | C104: Feature | D104: 2023-04-14T07:29:32.322000 | E104: 2023-05-17T14:05:55.432773+00:00 | F104: 2023-04-13T00:00:00.001000+02:00 | G104: acc_heating_degree_days_17 | H104: manual | I104: day | J104: 2023-04-14T00:00:00+02:00 | K104: 9.9
A105: [Record] | B105: c21a1bfe-e38c-1342-2e34-3d3693f5d7b6 | C105: Feature | D105: 2023-04-15T07:30:15.017000 | E105: 2023-05-17T14:05:55.465519+00:00 | F105: 2023-04-14T00:00:00.001000+02:00 | G105: acc_heating_degree_days_17 | H105: manual | I105: day | J105: 2023-04-15T00:00:00+02:00 | K105: 9.9
A106: [Record] | B106: a3ef83ae-64b9-d06d-47ca-b538455de807 | C106: Feature | D106: 2023-04-16T07:56:23.544000 | E106: 2023-05-17T14:05:55.502620+00:00 | F106: 2023-04-15T00:00:00.001000+02:00 | G106: acc_heating_degree_days_17 | H106: manual | I106: day | J106: 2023-04-16T00:00:00+02:00 | K106: 7.9
A107: [Record] | B107: 42f26f35-d585-3404-ff84-945a13e814ce | C107: Feature | D107: 2023-04-17T07:29:00.816000 | E107: 2023-05-17T14:05:56.752645+00:00 | F107: 2023-04-16T00:00:00.001000+02:00 | G107: acc_heating_degree_days_17 | H107: manual | I107: day | J107: 2023-04-17T00:00:00+02:00 | K107: 7.9
A108: [Record] | B108: ae1a0679-ddda-5dfc-04e4-d164b6fc75e6 | C108: Feature | D108: 2023-04-18T07:29:06.454000 | E108: 2023-05-17T14:05:56.786315+00:00 | F108: 2023-04-17T00:00:00.001000+02:00 | G108: acc_heating_degree_days_17 | H108: manual | I108: day | J108: 2023-04-18T00:00:00+02:00 | K108: 8.2
A109: [Record] | B109: c5b3865a-d561-24b7-ae98-f6bc7a97d3fb | C109: Feature | D109: 2023-04-19T07:28:48.226000 | E109: 2023-05-17T14:05:56.817771+00:00 | F109: 2023-04-18T00:00:00.001000+02:00 | G109: acc_heating_degree_days_17 | H109: manual | I109: day | J109: 2023-04-19T00:00:00+02:00 | K109: 8.5
A110: [Record] | B110: de47c54d-bfaf-5fa1-7171-257cc49e2808 | C110: Feature | D110: 2023-04-20T07:29:05.250000 | E110: 2023-05-17T14:05:57.879099+00:00 | F110: 2023-04-19T00:00:00.001000+02:00 | G110: acc_heating_degree_days_17 | H110: manual | I110: day | J110: 2023-04-20T00:00:00+02:00 | K110: 8.4
A111: [Record] | B111: 29c09c34-5304-16b9-a3a2-2b2cdb55a683 | C111: Feature | D111: 2023-04-21T07:28:51.977000 | E111: 2023-05-17T14:05:57.804321+00:00 | F111: 2023-04-20T00:00:00.001000+02:00 | G111: acc_heating_degree_days_17 | H111: manual | I111: day | J111: 2023-04-21T00:00:00+02:00 | K111: 7.2
A112: [Record] | B112: 63265d65-a351-dd62-5814-82edf13663ea | C112: Feature | D112: 2023-04-22T07:28:20.970000 | E112: 2023-05-17T14:05:57.835296+00:00 | F112: 2023-04-21T00:00:00.001000+02:00 | G112: acc_heating_degree_days_17 | H112: manual | I112: day | J112: 2023-04-22T00:00:00+02:00 | K112: 6.6
A113: [Record] | B113: 0a27487d-fa5a-abb8-17fe-de0d11a09007 | C113: Feature | D113: 2023-04-23T13:36:56.724000 | E113: 2023-05-17T14:05:59.066123+00:00 | F113: 2023-04-22T00:00:00.001000+02:00 | G113: acc_heating_degree_days_17 | H113: manual | I113: day | J113: 2023-04-23T00:00:00+02:00 | K113: 5.9
A114: [Record] | B114: c15aee19-8e69-a50b-e662-8498b0c5333b | C114: Feature | D114: 2023-04-24T07:28:45.357000 | E114: 2023-05-17T14:05:59.095544+00:00 | F114: 2023-04-23T00:00:00.001000+02:00 | G114: acc_heating_degree_days_17 | H114: manual | I114: day | J114: 2023-04-24T00:00:00+02:00 | K114: 6.4
A115: [Record] | B115: fb0116dd-2e7b-6460-7b30-9c776512f846 | C115: Feature | D115: 2023-04-25T07:29:09.246000 | E115: 2023-05-17T14:05:59.105420+00:00 | F115: 2023-04-24T00:00:00.001000+02:00 | G115: acc_heating_degree_days_17 | H115: manual | I115: day | J115: 2023-04-25T00:00:00+02:00 | K115: 7.5
A116: [Record] | B116: 1f914903-82b9-ec78-04e5-d2ef63677a7e | C116: Feature | D116: 2023-04-26T07:29:05.394000 | E116: 2023-05-17T14:06:00.173629+00:00 | F116: 2023-04-25T00:00:00.001000+02:00 | G116: acc_heating_degree_days_17 | H116: manual | I116: day | J116: 2023-04-26T00:00:00+02:00 | K116: 10.6
A117: [Record] | B117: 869d35c5-05fd-b8f8-3bb5-e0d54e082382 | C117: Feature | D117: 2023-04-27T07:28:58.059000 | E117: 2023-05-17T14:06:00.085061+00:00 | F117: 2023-04-26T00:00:00.001000+02:00 | G117: acc_heating_degree_days_17 | H117: manual | I117: day | J117: 2023-04-27T00:00:00+02:00 | K117: 11.3
A118: [Record] | B118: 8c19eca6-0949-8bd4-ddfb-545be2d766db | C118: Feature | D118: 2023-04-28T07:29:08.824000 | E118: 2023-05-17T14:06:00.132940+00:00 | F118: 2023-04-27T00:00:00.001000+02:00 | G118: acc_heating_degree_days_17 | H118: manual | I118: day | J118: 2023-04-28T00:00:00+02:00 | K118: 11.3
A119: [Record] | B119: 7759612b-cab9-6560-a5f1-7cf06800cd5b | C119: Feature | D119: 2023-04-29T07:28:57.512000 | E119: 2023-05-17T14:06:01.142385+00:00 | F119: 2023-04-28T00:00:00.001000+02:00 | G119: acc_heating_degree_days_17 | H119: manual | I119: day | J119: 2023-04-29T00:00:00+02:00 | K119: 10.7
A120: [Record] | B120: 2614eabd-314d-6c57-c4b0-bafde3d4a40a | C120: Feature | D120: 2023-04-30T07:45:41.243000 | E120: 2023-05-17T14:06:01.183061+00:00 | F120: 2023-04-29T00:00:00.001000+02:00 | G120: acc_heating_degree_days_17 | H120: manual | I120: day | J120: 2023-04-30T00:00:00+02:00 | K120: 9.5
A121: [Record] | B121: fcadb1f6-046d-6721-4632-e031bd473619 | C121: Feature | D121: 2023-05-01T07:29:08.557000 | E121: 2023-05-17T14:06:01.106545+00:00 | F121: 2023-04-30T00:00:00.001000+02:00 | G121: acc_heating_degree_days_17 | H121: manual | I121: day | J121: 2023-05-01T00:00:00+02:00 | K121: 10.5
A122: [Record] | B122: efc7a150-b6fd-2698-e347-0e6733c9e0a5 | C122: Feature | D122: 2023-05-02T07:28:52.444000 | E122: 2023-05-17T14:06:01.999032+00:00 | F122: 2023-05-01T00:00:00.001000+02:00 | G122: acc_heating_degree_days_17 | H122: manual | I122: day | J122: 2023-05-02T00:00:00+02:00 | K122: 7.6
A123: [Record] | B123: f86a6f87-2024-3c3d-ee59-5d35f40007ca | C123: Feature | D123: 2023-05-03T07:28:50.582000 | E123: 2023-05-17T14:06:02.035661+00:00 | F123: 2023-05-02T00:00:00.001000+02:00 | G123: acc_heating_degree_days_17 | H123: manual | I123: day | J123: 2023-05-03T00:00:00+02:00 | K123: 9.6
A124: [Record] | B124: 62eaa12e-1368-7e2a-eefd-df51753ea0dd | C124: Feature | D124: 2023-05-04T07:28:50.020000 | E124: 2023-05-17T14:06:02.075461+00:00 | F124: 2023-05-03T00:00:00.001000+02:00 | G124: acc_heating_degree_days_17 | H124: manual | I124: day | J124: 2023-05-04T00:00:00+02:00 | K124: 9.7
A125: [Record] | B125: f121b89a-e886-74fb-513a-0216ae510778 | C125: Feature | D125: 2023-05-05T07:29:09.309000 | E125: 2023-05-17T14:06:02.875666+00:00 | F125: 2023-05-04T00:00:00.001000+02:00 | G125: acc_heating_degree_days_17 | H125: manual | I125: day | J125: 2023-05-05T00:00:00+02:00 | K125: 9.6
A126: [Record] | B126: 7fcf9db1-071f-6290-d122-8b66287fb25f | C126: Feature | D126: 2023-05-06T07:29:07.110000 | E126: 2023-05-17T14:06:02.909497+00:00 | F126: 2023-05-05T00:00:00.001000+02:00 | G126: acc_heating_degree_days_17 | H126: manual | I126: day | J126: 2023-05-06T00:00:00+02:00 | K126: 9.8
A127: [Record] | B127: 212d7cf2-f7b9-2aba-40f5-d42d34145098 | C127: Feature | D127: 2023-05-07T07:29:02.311000 | E127: 2023-05-17T14:06:02.941719+00:00 | F127: 2023-05-06T00:00:00.001000+02:00 | G127: acc_heating_degree_days_17 | H127: manual | I127: day | J127: 2023-05-07T00:00:00+02:00 | K127: 10.2
A128: [Record] | B128: 45a3f3f0-4693-de1b-f73c-0a88f775fa26 | C128: Feature | D128: 2023-05-08T07:29:09.602000 | E128: 2023-05-17T14:06:04.072598+00:00 | F128: 2023-05-07T00:00:00.001000+02:00 | G128: acc_heating_degree_days_17 | H128: manual | I128: day | J128: 2023-05-08T00:00:00+02:00 | K128: 7.8
A129: [Record] | B129: c3a22891-fc8d-c77c-0def-17ed1811f838 | C129: Feature | D129: 2023-05-09T07:28:58.254000 | E129: 2023-05-17T14:06:04.107760+00:00 | F129: 2023-05-08T00:00:00.001000+02:00 | G129: acc_heating_degree_days_17 | H129: manual | I129: day | J129: 2023-05-09T00:00:00+02:00 | K129: 5.9
A130: [Record] | B130: b56b9ff7-3a96-edc6-6221-0050784139e3 | C130: Feature | D130: 2023-05-10T07:29:27.539000 | E130: 2023-05-17T14:06:04.030636+00:00 | F130: 2023-05-09T00:00:00.001000+02:00 | G130: acc_heating_degree_days_17 | H130: manual | I130: day | J130: 2023-05-10T00:00:00+02:00 | K130: 4.1
A131: [Record] | B131: e2bcb826-2845-2204-d50f-d1bbdc7a90db | C131: Feature | D131: 2023-05-11T07:29:09.604000 | E131: 2023-05-17T14:06:04.923390+00:00 | F131: 2023-05-10T00:00:00.001000+02:00 | G131: acc_heating_degree_days_17 | H131: manual | I131: day | J131: 2023-05-11T00:00:00+02:00 | K131: 4
A132: [Record] | B132: 41ca0cc9-56c5-9e27-9fc2-c7888a1da6f2 | C132: Feature | D132: 2023-05-12T07:29:04.682000 | E132: 2023-05-17T14:36:34.252890+00:00 | F132: 2023-05-11T00:00:00.001000+02:00 | G132: acc_heating_degree_days_17 | H132: manual | I132: day | J132: 2023-05-12T00:00:00+02:00 | K132: 4.7
A133: [Record] | B133: ff793399-cf3f-2ba3-cddd-b9191d882954 | C133: Feature | D133: 2023-05-13T07:28:59.326000 | E133: 2023-05-17T15:15:21.726280+00:00 | F133: 2023-05-12T00:00:00.001000+02:00 | G133: acc_heating_degree_days_17 | H133: manual | I133: day | J133: 2023-05-13T00:00:00+02:00 | K133: 2.5
A134: [Record] | B134: 2e9432ab-b8d6-45fc-8721-cfd4bdadabc0 | C134: Feature | D134: 2023-05-14T07:29:04.324000 | E134: 2023-05-17T18:01:59.540591+00:00 | F134: 2023-05-13T00:00:00.001000+02:00 | G134: acc_heating_degree_days_17 | H134: manual | I134: day | J134: 2023-05-14T00:00:00+02:00 | K134: 3.3
A135: [Record] | B135: 2be545c0-b424-2576-9cdc-a5be0a693197 | C135: Feature | D135: 2023-05-15T07:28:32.587000 | E135: 2023-05-17T20:24:52.191921+00:00 | F135: 2023-05-14T00:00:00.001000+02:00 | G135: acc_heating_degree_days_17 | H135: manual | I135: day | J135: 2023-05-15T00:00:00+02:00 | K135: 3
A136: [Record] | B136: ef9ad4f6-3575-a0b0-982b-6c791142d580 | C136: Feature | D136: 2023-05-16T07:29:03.472000 | E136: 2023-05-17T22:02:34.385185+00:00 | F136: 2023-05-15T00:00:00.001000+02:00 | G136: acc_heating_degree_days_17 | H136: manual | I136: day | J136: 2023-05-16T00:00:00+02:00 | K136: 4
A137: [Record] | B137: ae42d078-b456-b495-83d0-d827266b962c | C137: Feature | D137: 2023-05-17T07:28:50.931000 | E137: 2023-05-18T00:30:30.833176+00:00 | F137: 2023-05-16T00:00:00.001000+02:00 | G137: acc_heating_degree_days_17 | H137: manual | I137: day | J137: 2023-05-17T00:00:00+02:00 | K137: 7.3
A138: [Record] | B138: ed179a28-5020-66e2-13af-6ed64c9450e6 | C138: Feature | D138: 2023-05-18T07:29:08.976000 | E138: 2023-05-22T13:29:39.973470+00:00 | F138: 2023-05-17T00:00:00.001000+02:00 | G138: acc_heating_degree_days_17 | H138: manual | I138: day | J138: 2023-05-18T00:00:00+02:00 | K138: 8.9
A139: [Record] | B139: d4d6c32f-5f9b-6225-5e5a-8bf29542365f | C139: Feature | D139: 2023-05-19T07:29:05.360000 | E139: 2023-05-22T13:29:39.973727+00:00 | F139: 2023-05-18T00:00:00.001000+02:00 | G139: acc_heating_degree_days_17 | H139: manual | I139: day | J139: 2023-05-19T00:00:00+02:00 | K139: 7.8
A140: [Record] | B140: 69982397-c189-19ff-a5e3-0f3380fa61c9 | C140: Feature | D140: 2023-05-20T07:29:08.207000 | E140: 2023-05-22T13:29:39.460257+00:00 | F140: 2023-05-19T00:00:00.001000+02:00 | G140: acc_heating_degree_days_17 | H140: manual | I140: day | J140: 2023-05-20T00:00:00+02:00 | K140: 6.4
A141: [Record] | B141: 34dcb843-f9e6-ed33-c987-98b2509b8f14 | C141: Feature | D141: 2023-05-21T07:29:04.219000 | E141: 2023-05-22T13:29:40.611176+00:00 | F141: 2023-05-20T00:00:00.001000+02:00 | G141: acc_heating_degree_days_17 | H141: manual | I141: day | J141: 2023-05-21T00:00:00+02:00 | K141: 4.9
A142: [Record] | B142: 8ddc4dc0-f931-bb4b-e95b-468c08451ca2 | C142: Feature | D142: 2023-05-22T07:29:05.764000 | E142: 2023-05-22T13:29:40.611432+00:00 | F142: 2023-05-21T00:00:00.001000+02:00 | G142: acc_heating_degree_days_17 | H142: manual | I142: day | J142: 2023-05-22T00:00:00+02:00 | K142: 2.3
A143: [Record] | B143: 71753e85-76d4-27fa-b8af-9d8b1d0a3439 | C143: Feature | D143: 2023-05-23T07:28:47.139000 | E143: 2023-05-23T08:59:44.456634+00:00 | F143: 2023-05-22T00:00:00.001000+02:00 | G143: acc_heating_degree_days_17 | H143: manual | I143: day | J143: 2023-05-23T00:00:00+02:00 | K143: 0.5
A144: [Record] | B144: 5d4c22e9-629a-c0ed-6bbc-a8176db1ef13 | C144: Feature | D144: 2023-05-24T07:29:02.036000 | E144: 2023-05-24T10:43:05.069936+00:00 | F144: 2023-05-23T00:00:00.001000+02:00 | G144: acc_heating_degree_days_17 | H144: manual | I144: day | J144: 2023-05-24T00:00:00+02:00 | K144: 5.4
A145: [Record] | B145: 59b2e268-2072-0abc-63a2-2332a8210483 | C145: Feature | D145: 2023-05-25T07:29:08.009000 | E145: 2023-05-25T09:45:06.759467+00:00 | F145: 2023-05-24T00:00:00.001000+02:00 | G145: acc_heating_degree_days_17 | H145: manual | I145: day | J145: 2023-05-25T00:00:00+02:00 | K145: 4.3
A146: [Record] | B146: 781aaa2c-4d17-6172-3b8e-392ec074a5f1 | C146: Feature | D146: 2023-05-26T07:28:49.441000 | E146: 2023-05-26T14:00:55.217428+00:00 | F146: 2023-05-25T00:00:00.001000+02:00 | G146: acc_heating_degree_days_17 | H146: manual | I146: day | J146: 2023-05-26T00:00:00+02:00 | K146: 5.5
A147: [Record] | B147: d04edcca-8bfc-5ce2-1f3c-2531b818b313 | C147: Feature | D147: 2023-05-27T07:28:48.896000 | E147: 2023-05-30T12:39:33.476994+00:00 | F147: 2023-05-26T00:00:00.001000+02:00 | G147: acc_heating_degree_days_17 | H147: manual | I147: day | J147: 2023-05-27T00:00:00+02:00 | K147: 6.1
A148: [Record] | B148: d15ff4bf-6680-2690-92af-aa7525d3bd9c | C148: Feature | D148: 2023-05-28T07:28:44.709000 | E148: 2023-05-30T12:39:34.613807+00:00 | F148: 2023-05-27T00:00:00.001000+02:00 | G148: acc_heating_degree_days_17 | H148: manual | I148: day | J148: 2023-05-28T00:00:00+02:00 | K148: 5.9
A149: [Record] | B149: 8609f2a8-09bb-8091-01e4-67bbc1db8a0a | C149: Feature | D149: 2023-05-29T07:28:45.537000 | E149: 2023-05-30T12:39:35.364929+00:00 | F149: 2023-05-28T00:00:00.001000+02:00 | G149: acc_heating_degree_days_17 | H149: manual | I149: day | J149: 2023-05-29T00:00:00+02:00 | K149: 5.4
A150: [Record] | B150: e8514441-73ae-bec5-4611-cd6e4aebfe23 | C150: Feature | D150: 2023-05-30T07:28:49.286000 | E150: 2023-05-30T12:39:36.031536+00:00 | F150: 2023-05-29T00:00:00.001000+02:00 | G150: acc_heating_degree_days_17 | H150: manual | I150: day | J150: 2023-05-30T00:00:00+02:00 | K150: 5.7
A151: [Record] | B151: d36b569a-2865-a018-3fbd-558b29076499 | C151: Feature | D151: 2023-05-31T07:28:48.764000 | E151: 2023-05-31T10:01:21.376097+00:00 | F151: 2023-05-30T00:00:00.001000+02:00 | G151: acc_heating_degree_days_17 | H151: manual | I151: day | J151: 2023-05-31T00:00:00+02:00 | K151: 3.1
A152: [Record] | B152: fdb9917e-d7eb-de30-5f5e-124c593856c3 | C152: Feature | D152: 2023-06-01T07:28:34.536000 | E152: 2023-06-01T07:56:31.805539+00:00 | F152: 2023-05-31T00:00:00.001000+02:00 | G152: acc_heating_degree_days_17 | H152: manual | I152: day | J152: 2023-06-01T00:00:00+02:00 | K152: 4.1
A153: [Record] | B153: c6dff71a-3ced-a248-f976-a06b1602cfdc | C153: Feature | D153: 2023-06-02T07:29:02.432000 | E153: 2023-06-02T13:38:42.084181+00:00 | F153: 2023-06-01T00:00:00.001000+02:00 | G153: acc_heating_degree_days_17 | H153: manual | I153: day | J153: 2023-06-02T00:00:00+02:00 | K153: 4
A154: [Record] | B154: dca814af-2eb6-e622-3b80-1623dae11861 | C154: Feature | D154: 2023-06-03T07:28:58.727000 | E154: 2023-06-06T12:52:15.420067+00:00 | F154: 2023-06-02T00:00:00.001000+02:00 | G154: acc_heating_degree_days_17 | H154: manual | I154: day | J154: 2023-06-03T00:00:00+02:00 | K154: 4.3
A155: [Record] | B155: 6a337694-7e43-218b-155c-d78035099dde | C155: Feature | D155: 2023-06-04T07:28:51.142000 | E155: 2023-06-06T12:52:17.872463+00:00 | F155: 2023-06-03T00:00:00.001000+02:00 | G155: acc_heating_degree_days_17 | H155: manual | I155: day | J155: 2023-06-04T00:00:00+02:00 | K155: 4.7
A156: [Record] | B156: 8b7481c0-a363-56dd-a613-2803f4658f0f | C156: Feature | D156: 2023-06-05T07:29:04.811000 | E156: 2023-06-06T12:52:17.873008+00:00 | F156: 2023-06-04T00:00:00.001000+02:00 | G156: acc_heating_degree_days_17 | H156: manual | I156: day | J156: 2023-06-05T00:00:00+02:00 | K156: 4.8
A157: [Record] | B157: 94745aa2-62e8-761a-26ef-80ef2cc115c4 | C157: Feature | D157: 2023-06-06T07:28:55.049000 | E157: 2023-06-06T12:52:16.528593+00:00 | F157: 2023-06-05T00:00:00.001000+02:00 | G157: acc_heating_degree_days_17 | H157: manual | I157: day | J157: 2023-06-06T00:00:00+02:00 | K157: 3.7
A158: [Record] | B158: d393e6b6-4935-ef39-bad6-961960ebbae0 | C158: Feature | D158: 2023-06-07T07:28:48.373000 | E158: 2023-06-07T12:34:15.729363+00:00 | F158: 2023-06-06T00:00:00.001000+02:00 | G158: acc_heating_degree_days_17 | H158: manual | I158: day | J158: 2023-06-07T00:00:00+02:00 | K158: 3.3
A159: [Record] | B159: adb4468c-a9f6-4fe7-73d9-eae725c4d749 | C159: Feature | D159: 2023-06-08T07:28:45.863000 | E159: 2023-06-09T12:11:22.856748+00:00 | F159: 2023-06-07T00:00:00.001000+02:00 | G159: acc_heating_degree_days_17 | H159: manual | I159: day | J159: 2023-06-08T00:00:00+02:00 | K159: 3.4
A160: [Record] | B160: e89f0618-f4a3-951b-db82-b76bfe7c105b | C160: Feature | D160: 2023-06-09T07:29:03.904000 | E160: 2023-06-09T12:11:22.857069+00:00 | F160: 2023-06-08T00:00:00.001000+02:00 | G160: acc_heating_degree_days_17 | H160: manual | I160: day | J160: 2023-06-09T00:00:00+02:00 | K160: 2.9
A161: [Record] | B161: 6ef9bdbf-b368-2e6c-603b-8ca3252451cd | C161: Feature | D161: 2023-06-10T07:28:45.061000 | E161: 2023-06-12T12:34:18.840025+00:00 | F161: 2023-06-09T00:00:00.001000+02:00 | G161: acc_heating_degree_days_17 | H161: manual | I161: day | J161: 2023-06-10T00:00:00+02:00 | K161: 2
A162: [Record] | B162: 902d0227-e51f-dd7f-8b44-428c0fcbcdfe | C162: Feature | D162: 2023-06-11T07:56:32.676000 | E162: 2023-06-12T12:34:20.896324+00:00 | F162: 2023-06-10T00:00:00.001000+02:00 | G162: acc_heating_degree_days_17 | H162: manual | I162: day | J162: 2023-06-11T00:00:00+02:00 | K162: 0.6
A163: [Record] | B163: dba93cbf-aa8a-ee40-11f2-ffa4f40e1869 | C163: Feature | D163: 2023-06-12T07:28:52.740000 | E163: 2023-06-12T12:34:20.896619+00:00 | F163: 2023-06-11T00:00:00.001000+02:00 | G163: acc_heating_degree_days_17 | H163: manual | I163: day | J163: 2023-06-12T00:00:00+02:00 | K163: 0.4
A164: [Record] | B164: 7decfd3e-303c-fcf9-3ac1-8b9aa0c8e001 | C164: Feature | D164: 2023-06-13T07:28:51.025000 | E164: 2023-06-13T09:18:28.775422+00:00 | F164: 2023-06-12T00:00:00.001000+02:00 | G164: acc_heating_degree_days_17 | H164: manual | I164: day | J164: 2023-06-13T00:00:00+02:00 | K164: 0.2
A165: [Record] | B165: fe881233-8481-5a9d-9c31-3bea8aa582c6 | C165: Feature | D165: 2023-06-14T07:28:53.357000 | E165: 2023-06-14T11:08:48.350050+00:00 | F165: 2023-06-13T00:00:00.001000+02:00 | G165: acc_heating_degree_days_17 | H165: manual | I165: day | J165: 2023-06-14T00:00:00+02:00 | K165: 0.2
A166: [Record] | B166: 7af1d036-dee5-0dd9-5aab-aa3ff021a8ad | C166: Feature | D166: 2023-06-15T07:28:54.659000 | E166: 2023-06-15T08:55:30.328301+00:00 | F166: 2023-06-14T00:00:00.001000+02:00 | G166: acc_heating_degree_days_17 | H166: manual | I166: day | J166: 2023-06-15T00:00:00+02:00 | K166: 0.1
A167: [Record] | B167: 27039ad9-4c68-e07a-427e-ca7cd1925de1 | C167: Feature | D167: 2023-06-16T07:29:00.727000 | E167: 2023-06-16T12:27:57.614704+00:00 | F167: 2023-06-15T00:00:00.001000+02:00 | G167: acc_heating_degree_days_17 | H167: manual | I167: day | J167: 2023-06-16T00:00:00+02:00 | K167: 0.2
A168: [Record] | B168: 4ae0dea5-21fc-7d97-f5ee-386737667e44 | C168: Feature | D168: 2023-06-17T07:28:56.857000 | E168: 2023-06-19T11:47:32.058314+00:00 | F168: 2023-06-16T00:00:00.001000+02:00 | G168: acc_heating_degree_days_17 | H168: manual | I168: day | J168: 2023-06-17T00:00:00+02:00 | K168: 0
A169: [Record] | B169: bf2af940-1d2c-cc12-3007-8e76ff7f06e1 | C169: Feature | D169: 2023-06-18T07:29:04.196000 | E169: 2023-06-19T11:47:33.354439+00:00 | F169: 2023-06-17T00:00:00.001000+02:00 | G169: acc_heating_degree_days_17 | H169: manual | I169: day | J169: 2023-06-18T00:00:00+02:00 | K169: 0
A170: [Record] | B170: e1b1cae6-5ecd-77ab-ac02-787c95f54439 | C170: Feature | D170: 2023-06-19T07:29:07.278000 | E170: 2023-06-19T11:47:34.482635+00:00 | F170: 2023-06-18T00:00:00.001000+02:00 | G170: acc_heating_degree_days_17 | H170: manual | I170: day | J170: 2023-06-19T00:00:00+02:00 | K170: 0
A171: [Record] | B171: 936cbb1e-a378-1c37-a440-5257287b4761 | C171: Feature | D171: 2023-06-20T07:29:03.722000 | E171: 2023-06-20T09:44:51.063882+00:00 | F171: 2023-06-19T00:00:00.001000+02:00 | G171: acc_heating_degree_days_17 | H171: manual | I171: day | J171: 2023-06-20T00:00:00+02:00 | K171: 0
A172: [Record] | B172: 4dfe0def-3fae-04e1-641a-d1a39a8a861a | C172: Feature | D172: 2023-06-21T07:28:48.206000 | E172: 2023-06-21T09:19:53.786219+00:00 | F172: 2023-06-20T00:00:00.001000+02:00 | G172: acc_heating_degree_days_17 | H172: manual | I172: day | J172: 2023-06-21T00:00:00+02:00 | K172: 0
A173: [Record] | B173: 4263dd29-89cb-63f9-f060-39468a137f1e | C173: Feature | D173: 2023-06-22T07:28:51.627000 | E173: 2023-06-23T14:19:05.808841+00:00 | F173: 2023-06-21T00:00:00.001000+02:00 | G173: acc_heating_degree_days_17 | H173: manual | I173: day | J173: 2023-06-22T00:00:00+02:00 | K173: 0
A174: [Record] | B174: 23e3aa21-bfc3-7d9e-f8eb-9f36199d8163 | C174: Feature | D174: 2023-06-23T07:29:07.244000 | E174: 2023-06-23T14:19:05.809087+00:00 | F174: 2023-06-22T00:00:00.001000+02:00 | G174: acc_heating_degree_days_17 | H174: manual | I174: day | J174: 2023-06-23T00:00:00+02:00 | K174: 0
A175: [Record] | B175: a734d8ec-23fb-3c67-6cd2-aaeb75f9e792 | C175: Feature | D175: 2023-06-24T07:29:03.714000 | E175: 2023-06-26T12:10:21.776181+00:00 | F175: 2023-06-23T00:00:00.001000+02:00 | G175: acc_heating_degree_days_17 | H175: manual | I175: day | J175: 2023-06-24T00:00:00+02:00 | K175: 0.5
A176: [Record] | B176: eda09a99-3908-4a92-081b-0f1f6ba3e607 | C176: Feature | D176: 2023-06-25T07:28:43.783000 | E176: 2023-06-26T12:10:21.776598+00:00 | F176: 2023-06-24T00:00:00.001000+02:00 | G176: acc_heating_degree_days_17 | H176: manual | I176: day | J176: 2023-06-25T00:00:00+02:00 | K176: 0
A177: [Record] | B177: e2c1112e-7f46-3c00-db4c-bb4d4595af35 | C177: Feature | D177: 2023-06-26T07:28:59.603000 | E177: 2023-06-26T12:10:22.587132+00:00 | F177: 2023-06-25T00:00:00.001000+02:00 | G177: acc_heating_degree_days_17 | H177: manual | I177: day | J177: 2023-06-26T00:00:00+02:00 | K177: 0
A178: [Record] | B178: c10c2efb-b6a1-cb73-406a-d2a93b0749f0 | C178: Feature | D178: 2023-06-27T07:28:53.993000 | E178: 2023-06-27T11:06:48.734681+00:00 | F178: 2023-06-26T00:00:00.001000+02:00 | G178: acc_heating_degree_days_17 | H178: manual | I178: day | J178: 2023-06-27T00:00:00+02:00 | K178: 0
A179: [Record] | B179: 0cfd3d98-e7e7-2a96-baa9-fd890be8e15f | C179: Feature | D179: 2023-06-28T07:28:45.298000 | E179: 2023-06-28T11:41:34.256276+00:00 | F179: 2023-06-27T00:00:00.001000+02:00 | G179: acc_heating_degree_days_17 | H179: manual | I179: day | J179: 2023-06-28T00:00:00+02:00 | K179: 1.3
A180: [Record] | B180: adfd33bc-8ecd-8aec-1b4d-3b4d97d1daf1 | C180: Feature | D180: 2023-06-29T07:29:07.402000 | E180: 2023-06-29T12:16:34.510218+00:00 | F180: 2023-06-28T00:00:00.001000+02:00 | G180: acc_heating_degree_days_17 | H180: manual | I180: day | J180: 2023-06-29T00:00:00+02:00 | K180: 0.4
A181: [Record] | B181: 3ab82b98-d7cf-7b07-a589-340294464a15 | C181: Feature | D181: 2023-06-30T07:28:51.277000 | E181: 2023-07-03T11:26:27.007050+00:00 | F181: 2023-06-29T00:00:00.001000+02:00 | G181: acc_heating_degree_days_17 | H181: manual | I181: day | J181: 2023-06-30T00:00:00+02:00 | K181: 0
A182: [Record] | B182: 2d80a3e3-f595-df15-2f07-1fe2f822830f | C182: Feature | D182: 2023-07-01T07:28:44.774000 | E182: 2023-07-03T11:26:27.007365+00:00 | F182: 2023-06-30T00:00:00.001000+02:00 | G182: acc_heating_degree_days_17 | H182: manual | I182: day | J182: 2023-07-01T00:00:00+02:00 | K182: 0.9
A183: [Record] | B183: 1ac1e7aa-c0a0-b388-d68d-66b82b45011c | C183: Feature | D183: 2023-07-02T07:43:14.322000 | E183: 2023-07-05T11:44:34.650191+00:00 | F183: 2023-07-01T00:00:00.001000+02:00 | G183: acc_heating_degree_days_17 | H183: manual | I183: day | J183: 2023-07-02T00:00:00+02:00 | K183: 1.6
A184: [Record] | B184: e9d421c1-255a-1be8-c1e8-ef2166e91306 | C184: Feature | D184: 2023-07-03T07:29:20.185000 | E184: 2023-07-05T11:44:34.650488+00:00 | F184: 2023-07-02T00:00:00.001000+02:00 | G184: acc_heating_degree_days_17 | H184: manual | I184: day | J184: 2023-07-03T00:00:00+02:00 | K184: 2.3
A185: [Record] | B185: 082f4fdf-d409-868e-2f0c-a04964d35563 | C185: Feature | D185: 2023-07-04T07:29:06.490000 | E185: 2023-07-05T11:44:33.917331+00:00 | F185: 2023-07-03T00:00:00.001000+02:00 | G185: acc_heating_degree_days_17 | H185: manual | I185: day | J185: 2023-07-04T00:00:00+02:00 | K185: 3.1
A186: [Record] | B186: 252a4da7-fee1-6ae4-4f85-04dc68764668 | C186: Feature | D186: 2023-07-05T07:28:28.117000 | E186: 2023-07-05T11:44:33.070114+00:00 | F186: 2023-07-04T00:00:00.001000+02:00 | G186: acc_heating_degree_days_17 | H186: manual | I186: day | J186: 2023-07-05T00:00:00+02:00 | K186: 3.6
A187: [Record] | B187: a0fed29a-4a04-873d-9c58-9200808f5305 | C187: Feature | D187: 2023-07-06T07:28:54.512000 | E187: 2023-07-06T11:33:38.535324+00:00 | F187: 2023-07-05T00:00:00.001000+02:00 | G187: acc_heating_degree_days_17 | H187: manual | I187: day | J187: 2023-07-06T00:00:00+02:00 | K187: 3.7
A188: [Record] | B188: c52def22-94aa-0b4e-c2a9-856fe4430740 | C188: Feature | D188: 2023-07-07T07:28:50.692000 | E188: 2023-07-07T15:30:35.279539+00:00 | F188: 2023-07-06T00:00:00.001000+02:00 | G188: acc_heating_degree_days_17 | H188: manual | I188: day | J188: 2023-07-07T00:00:00+02:00 | K188: 2
A189: [Record] | B189: a9ba53a4-747a-e3f5-9239-17cf6f083ccd | C189: Feature | D189: 2023-07-08T07:28:51.293000 | E189: 2023-07-14T13:47:18.962032+00:00 | F189: 2023-07-07T00:00:00.001000+02:00 | G189: acc_heating_degree_days_17 | H189: manual | I189: day | J189: 2023-07-08T00:00:00+02:00 | K189: 0.5
A190: [Record] | B190: 9419565c-5510-9beb-aa9e-871256c9085f | C190: Feature | D190: 2023-07-09T07:28:58.408000 | E190: 2023-07-14T13:47:18.962599+00:00 | F190: 2023-07-08T00:00:00.001000+02:00 | G190: acc_heating_degree_days_17 | H190: manual | I190: day | J190: 2023-07-09T00:00:00+02:00 | K190: 0
A191: [Record] | B191: f1082db9-5ea8-a235-b56e-67a23111df2b | C191: Feature | D191: 2023-07-10T07:29:06.718000 | E191: 2023-07-14T13:47:19.580355+00:00 | F191: 2023-07-09T00:00:00.001000+02:00 | G191: acc_heating_degree_days_17 | H191: manual | I191: day | J191: 2023-07-10T00:00:00+02:00 | K191: 0
A192: [Record] | B192: d01f1362-2b8c-1f6c-f1b4-ad08cbcbc9be | C192: Feature | D192: 2023-07-11T07:29:29.259000 | E192: 2023-07-14T13:47:20.213570+00:00 | F192: 2023-07-10T00:00:00.001000+02:00 | G192: acc_heating_degree_days_17 | H192: manual | I192: day | J192: 2023-07-11T00:00:00+02:00 | K192: 0.1
A193: [Record] | B193: ee347d91-cf58-3fa1-ef44-0593925463b8 | C193: Feature | D193: 2023-07-12T07:28:05.040000 | E193: 2023-07-14T13:47:20.214015+00:00 | F193: 2023-07-11T00:00:00.001000+02:00 | G193: acc_heating_degree_days_17 | H193: manual | I193: day | J193: 2023-07-12T00:00:00+02:00 | K193: 0.5
A194: [Record] | B194: 60d90008-fb4c-3e51-a277-cb41cf860b7c | C194: Feature | D194: 2023-07-13T07:30:04.630000 | E194: 2023-07-14T13:47:21.107417+00:00 | F194: 2023-07-12T00:00:00.001000+02:00 | G194: acc_heating_degree_days_17 | H194: manual | I194: day | J194: 2023-07-13T00:00:00+02:00 | K194: 0.2
A195: [Record] | B195: 23cbe4aa-7698-dedc-364a-76b31a7c7f7b | C195: Feature | D195: 2023-07-14T07:28:53.894000 | E195: 2023-07-14T13:47:21.107673+00:00 | F195: 2023-07-13T00:00:00.001000+02:00 | G195: acc_heating_degree_days_17 | H195: manual | I195: day | J195: 2023-07-14T00:00:00+02:00 | K195: 1.1
A196: [Record] | B196: dca16b4f-222b-73fd-abf9-03d7dcc8f46f | C196: Feature | D196: 2023-07-15T07:28:42.706000 | E196: 2023-07-18T09:12:42.240725+00:00 | F196: 2023-07-14T00:00:00.001000+02:00 | G196: acc_heating_degree_days_17 | H196: manual | I196: day | J196: 2023-07-15T00:00:00+02:00 | K196: 0.6
A197: [Record] | B197: c376857e-d8fb-d542-dd69-e437277383da | C197: Feature | D197: 2023-07-16T07:28:55.123000 | E197: 2023-07-18T09:12:43.594475+00:00 | F197: 2023-07-15T00:00:00.001000+02:00 | G197: acc_heating_degree_days_17 | H197: manual | I197: day | J197: 2023-07-16T00:00:00+02:00 | K197: 0
A198: [Record] | B198: 9c196340-e127-1cb7-e416-2b54c4ff3a04 | C198: Feature | D198: 2023-07-17T07:28:58.414000 | E198: 2023-07-18T09:12:45.891096+00:00 | F198: 2023-07-16T00:00:00.001000+02:00 | G198: acc_heating_degree_days_17 | H198: manual | I198: day | J198: 2023-07-17T00:00:00+02:00 | K198: 0.1
A199: [Record] | B199: ce51d282-d556-a61b-f5e2-d1aaf12bbd46 | C199: Feature | D199: 2023-07-18T07:29:01.546000 | E199: 2023-07-18T09:12:45.891355+00:00 | F199: 2023-07-17T00:00:00.001000+02:00 | G199: acc_heating_degree_days_17 | H199: manual | I199: day | J199: 2023-07-18T00:00:00+02:00 | K199: 0.9
A200: [Record] | B200: 42ef9663-ebd0-2d83-c278-05c8a22c16f8 | C200: Feature | D200: 2023-07-19T07:29:01.649000 | E200: 2023-07-19T12:05:37.145866+00:00 | F200: 2023-07-18T00:00:00.001000+02:00 | G200: acc_heating_degree_days_17 | H200: manual | I200: day | J200: 2023-07-19T00:00:00+02:00 | K200: 1.8
... 42 more rows

Sheet Forespørgsel2 (hidden)
A1: geometry | B1: id | C1: type | D1: calculatedAt | E1: created | F1: from | G1: municipalityId | H1: municipalityName | I1: parameterId | J1: qcStatus | K1: timeResolution | L1: to | M1: value
A2: [Record] | B2: 809d2d03-9783-22e0-0ffb-8d88904ab965 | C2: Feature | D2: 2023-01-02T07:29:43.686000 | E2: 2023-05-22T19:51:06.213304+00:00 | F2: 2023-01-01T00:00:00.001000+01:00 | G2: 0621 | H2: Kolding | I2: acc_heating_degree_days_17 | J2: manual | K2: day | L2: 2023-01-02T00:00:00+01:00 | M2: 8.2
A3: [Record] | B3: 6b721e85-abe2-4296-1b8d-c978a4857fe6 | C3: Feature | D3: 2023-01-03T07:29:24.102000 | E3: 2023-05-22T19:51:12.848833+00:00 | F3: 2023-01-02T00:00:00.001000+01:00 | G3: 0621 | H3: Kolding | I3: acc_heating_degree_days_17 | J3: manual | K3: day | L3: 2023-01-03T00:00:00+01:00 | M3: 10.3
A4: [Record] | B4: cae2cd3f-30fc-7867-48c3-f3500a23e773 | C4: Feature | D4: 2023-01-04T07:29:39.872000 | E4: 2023-05-22T19:51:16.589261+00:00 | F4: 2023-01-03T00:00:00.001000+01:00 | G4: 0621 | H4: Kolding | I4: acc_heating_degree_days_17 | J4: manual | K4: day | L4: 2023-01-04T00:00:00+01:00 | M4: 12.8
A5: [Record] | B5: fdd54817-56ce-c0ed-7af2-2044d5b8e432 | C5: Feature | D5: 2023-01-05T07:29:29.241000 | E5: 2023-05-22T19:51:31.257896+00:00 | F5: 2023-01-04T00:00:00.001000+01:00 | G5: 0621 | H5: Kolding | I5: acc_heating_degree_days_17 | J5: manual | K5: day | L5: 2023-01-05T00:00:00+01:00 | M5: 9.4
A6: [Record] | B6: e910c4f5-698d-9b71-0c9b-d72ad115d236 | C6: Feature | D6: 2023-01-06T07:29:28.230000 | E6: 2023-05-22T19:51:34.891857+00:00 | F6: 2023-01-05T00:00:00.001000+01:00 | G6: 0621 | H6: Kolding | I6: acc_heating_degree_days_17 | J6: manual | K6: day | L6: 2023-01-06T00:00:00+01:00 | M6: 13.3
A7: [Record] | B7: 18eb209c-6791-5beb-2eed-839e08133e96 | C7: Feature | D7: 2023-01-07T07:28:50.071000 | E7: 2023-05-22T19:51:38.617781+00:00 | F7: 2023-01-06T00:00:00.001000+01:00 | G7: 0621 | H7: Kolding | I7: acc_heating_degree_days_17 | J7: manual | K7: day | L7: 2023-01-07T00:00:00+01:00 | M7: 10.6
A8: [Record] | B8: 2a7eb6b9-2ee0-d791-486b-e017d6a17451 | C8: Feature | D8: 2023-01-08T07:29:35.788000 | E8: 2023-05-22T19:51:52.266182+00:00 | F8: 2023-01-07T00:00:00.001000+01:00 | G8: 0621 | H8: Kolding | I8: acc_heating_degree_days_17 | J8: manual | K8: day | L8: 2023-01-08T00:00:00+01:00 | M8: 9.3
A9: [Record] | B9: 500332f3-a5fb-2555-4d13-0f659a1e5a94 | C9: Feature | D9: 2023-01-09T07:29:33.068000 | E9: 2023-05-22T19:51:56.054318+00:00 | F9: 2023-01-08T00:00:00.001000+01:00 | G9: 0621 | H9: Kolding | I9: acc_heating_degree_days_17 | J9: manual | K9: day | L9: 2023-01-09T00:00:00+01:00 | M9: 10.4
A10: [Record] | B10: 51776592-07e4-57ea-0201-219dbed5d0d5 | C10: Feature | D10: 2023-01-10T07:29:29.536000 | E10: 2023-05-22T19:51:59.430417+00:00 | F10: 2023-01-09T00:00:00.001000+01:00 | G10: 0621 | H10: Kolding | I10: acc_heating_degree_days_17 | J10: manual | K10: day | L10: 2023-01-10T00:00:00+01:00 | M10: 11.6
A11: [Record] | B11: a4d96518-c0f2-4bd4-b7e8-15bec91f8774 | C11: Feature | D11: 2023-01-11T07:29:35.742000 | E11: 2023-05-22T19:52:12.517606+00:00 | F11: 2023-01-10T00:00:00.001000+01:00 | G11: 0621 | H11: Kolding | I11: acc_heating_degree_days_17 | J11: manual | K11: day | L11: 2023-01-11T00:00:00+01:00 | M11: 11.5
A12: [Record] | B12: b8df4268-c15c-0fe9-926f-a5670a82754b | C12: Feature | D12: 2023-01-12T07:29:33.375000 | E12: 2023-05-22T19:52:16.192894+00:00 | F12: 2023-01-11T00:00:00.001000+01:00 | G12: 0621 | H12: Kolding | I12: acc_heating_degree_days_17 | J12: manual | K12: day | L12: 2023-01-12T00:00:00+01:00 | M12: 9.8
A13: [Record] | B13: 8afe775d-1aa0-4aa4-c6dc-fdad37d4615e | C13: Feature | D13: 2023-01-13T07:29:23.554000 | E13: 2023-05-22T19:52:19.789626+00:00 | F13: 2023-01-12T00:00:00.001000+01:00 | G13: 0621 | H13: Kolding | I13: acc_heating_degree_days_17 | J13: manual | K13: day | L13: 2023-01-13T00:00:00+01:00 | M13: 10.8
A14: [Record] | B14: 7bfe48f7-a09d-435f-d694-0b549bfca6d6 | C14: Feature | D14: 2023-01-14T07:29:25.380000 | E14: 2023-05-22T19:52:34.022506+00:00 | F14: 2023-01-13T00:00:00.001000+01:00 | G14: 0621 | H14: Kolding | I14: acc_heating_degree_days_17 | J14: manual | K14: day | L14: 2023-01-14T00:00:00+01:00 | M14: 10.3
A15: [Record] | B15: 128d6a38-d97f-cdf5-702c-33a8c832866b | C15: Feature | D15: 2023-01-15T07:29:19.272000 | E15: 2023-05-22T19:52:37.743955+00:00 | F15: 2023-01-14T00:00:00.001000+01:00 | G15: 0621 | H15: Kolding | I15: acc_heating_degree_days_17 | J15: manual | K15: day | L15: 2023-01-15T00:00:00+01:00 | M15: 10.9
A16: [Record] | B16: 9eaba194-9814-0e9a-a10c-297ba73658e4 | C16: Feature | D16: 2023-01-16T07:29:37.015000 | E16: 2023-05-22T19:52:41.950384+00:00 | F16: 2023-01-15T00:00:00.001000+01:00 | G16: 0621 | H16: Kolding | I16: acc_heating_degree_days_17 | J16: manual | K16: day | L16: 2023-01-16T00:00:00+01:00 | M16: 11.6
A17: [Record] | B17: 476a4d8a-1bf7-9fec-c0ab-7b1c6891718b | C17: Feature | D17: 2023-01-17T07:29:42.648000 | E17: 2023-05-22T19:52:55.570522+00:00 | F17: 2023-01-16T00:00:00.001000+01:00 | G17: 0621 | H17: Kolding | I17: acc_heating_degree_days_17 | J17: manual | K17: day | L17: 2023-01-17T00:00:00+01:00 | M17: 13.3
A18: [Record] | B18: f0d09818-61ac-5c55-c816-7cd130480418 | C18: Feature | D18: 2023-01-18T07:29:23.402000 | E18: 2023-05-22T19:52:59.299117+00:00 | F18: 2023-01-17T00:00:00.001000+01:00 | G18: 0621 | H18: Kolding | I18: acc_heating_degree_days_17 | J18: manual | K18: day | L18: 2023-01-18T00:00:00+01:00 | M18: 15.1
A19: [Record] | B19: a24868eb-445e-baf9-65b5-c518bd805f7b | C19: Feature | D19: 2023-01-19T07:29:22.644000 | E19: 2023-05-22T19:53:03.191698+00:00 | F19: 2023-01-18T00:00:00.001000+01:00 | G19: 0621 | H19: Kolding | I19: acc_heating_degree_days_17 | J19: manual | K19: day | L19: 2023-01-19T00:00:00+01:00 | M19: 16
A20: [Record] | B20: 1ec2c080-4e25-eded-e307-8380a328b9fc | C20: Feature | D20: 2023-01-20T07:29:30.735000 | E20: 2023-05-22T19:53:18.195743+00:00 | F20: 2023-01-19T00:00:00.001000+01:00 | G20: 0621 | H20: Kolding | I20: acc_heating_degree_days_17 | J20: manual | K20: day | L20: 2023-01-20T00:00:00+01:00 | M20: 15.8
A21: [Record] | B21: 1817e9af-3186-d044-376c-16a25b10466a | C21: Feature | D21: 2023-01-21T07:29:30.047000 | E21: 2023-05-22T19:53:21.734317+00:00 | F21: 2023-01-20T00:00:00.001000+01:00 | G21: 0621 | H21: Kolding | I21: acc_heating_degree_days_17 | J21: manual | K21: day | L21: 2023-01-21T00:00:00+01:00 | M21: 16.9
A22: [Record] | B22: e593103c-c32f-3639-eb43-60b4c9203435 | C22: Feature | D22: 2023-01-22T07:29:28.159000 | E22: 2023-05-22T19:53:25.916603+00:00 | F22: 2023-01-21T00:00:00.001000+01:00 | G22: 0621 | H22: Kolding | I22: acc_heating_degree_days_17 | J22: manual | K22: day | L22: 2023-01-22T00:00:00+01:00 | M22: 16.9
A23: [Record] | B23: cd7a50d8-70cd-2ac2-9ee5-35744d1940f1 | C23: Feature | D23: 2023-01-23T07:28:34.138000 | E23: 2023-05-22T19:53:38.560901+00:00 | F23: 2023-01-22T00:00:00.001000+01:00 | G23: 0621 | H23: Kolding | I23: acc_heating_degree_days_17 | J23: manual | K23: day | L23: 2023-01-23T00:00:00+01:00 | M23: 17.2
A24: [Record] | B24: 0cdbb7c9-3892-3028-7db7-df1512f9982e | C24: Feature | D24: 2023-01-24T07:29:31.362000 | E24: 2023-05-22T19:53:42.590050+00:00 | F24: 2023-01-23T00:00:00.001000+01:00 | G24: 0621 | H24: Kolding | I24: acc_heating_degree_days_17 | J24: manual | K24: day | L24: 2023-01-24T00:00:00+01:00 | M24: 16.6
A25: [Record] | B25: c9931a23-8f32-5479-5c42-759eb6cc426c | C25: Feature | D25: 2023-01-25T07:29:15.404000 | E25: 2023-05-22T19:53:46.290777+00:00 | F25: 2023-01-24T00:00:00.001000+01:00 | G25: 0621 | H25: Kolding | I25: acc_heating_degree_days_17 | J25: manual | K25: day | L25: 2023-01-25T00:00:00+01:00 | M25: 15.4
A26: [Record] | B26: a0a873e3-a4cc-f7b2-787d-b0ed12824749 | C26: Feature | D26: 2023-01-26T07:29:29.521000 | E26: 2023-05-22T19:53:59.777113+00:00 | F26: 2023-01-25T00:00:00.001000+01:00 | G26: 0621 | H26: Kolding | I26: acc_heating_degree_days_17 | J26: manual | K26: day | L26: 2023-01-26T00:00:00+01:00 | M26: 15
A27: [Record] | B27: 5a5f8ece-e0c6-88bf-23fe-bfd2256449a4 | C27: Feature | D27: 2023-01-27T07:29:27.898000 | E27: 2023-05-22T19:54:03.530687+00:00 | F27: 2023-01-26T00:00:00.001000+01:00 | G27: 0621 | H27: Kolding | I27: acc_heating_degree_days_17 | J27: manual | K27: day | L27: 2023-01-27T00:00:00+01:00 | M27: 13.4
A28: [Record] | B28: 1b27b0b6-9216-9a3b-c2cd-443945621309 | C28: Feature | D28: 2023-01-28T07:29:33.071000 | E28: 2023-05-22T19:54:07.290629+00:00 | F28: 2023-01-27T00:00:00.001000+01:00 | G28: 0621 | H28: Kolding | I28: acc_heating_degree_days_17 | J28: manual | K28: day | L28: 2023-01-28T00:00:00+01:00 | M28: 17
A29: [Record] | B29: 225f86a2-2674-903d-409d-7db2548033e3 | C29: Feature | D29: 2023-01-29T07:29:34.557000 | E29: 2023-05-22T19:54:19.951319+00:00 | F29: 2023-01-28T00:00:00.001000+01:00 | G29: 0621 | H29: Kolding | I29: acc_heating_degree_days_17 | J29: manual | K29: day | L29: 2023-01-29T00:00:00+01:00 | M29: 16.1
A30: [Record] | B30: f900f055-40f0-cfee-b5d9-95475ab5174c | C30: Feature | D30: 2023-01-30T07:29:23.725000 | E30: 2023-05-22T19:54:23.438463+00:00 | F30: 2023-01-29T00:00:00.001000+01:00 | G30: 0621 | H30: Kolding | I30: acc_heating_degree_days_17 | J30: manual | K30: day | L30: 2023-01-30T00:00:00+01:00 | M30: 12.5
A31: [Record] | B31: 0f5888b5-0a73-9648-f05d-a2fdb4be8aec | C31: Feature | D31: 2023-01-31T07:29:33.289000 | E31: 2023-05-22T19:54:27.003342+00:00 | F31: 2023-01-30T00:00:00.001000+01:00 | G31: 0621 | H31: Kolding | I31: acc_heating_degree_days_17 | J31: manual | K31: day | L31: 2023-01-31T00:00:00+01:00 | M31: 12.4
A32: [Record] | B32: 00ed50f9-83b0-2989-abdb-af15d5efe341 | C32: Feature | D32: 2023-02-01T07:29:32.120000 | E32: 2023-05-22T19:54:41.714578+00:00 | F32: 2023-01-31T00:00:00.001000+01:00 | G32: 0621 | H32: Kolding | I32: acc_heating_degree_days_17 | J32: manual | K32: day | L32: 2023-02-01T00:00:00+01:00 | M32: 12.5
A33: [Record] | B33: 96a14139-5a5f-0489-01d1-c6dc35b26c95 | C33: Feature | D33: 2023-02-02T07:29:30.366000 | E33: 2023-05-22T19:54:45.367263+00:00 | F33: 2023-02-01T00:00:00.001000+01:00 | G33: 0621 | H33: Kolding | I33: acc_heating_degree_days_17 | J33: manual | K33: day | L33: 2023-02-02T00:00:00+01:00 | M33: 12.4
A34: [Record] | B34: 29bfce06-c46c-9e8d-5f32-0513900c122c | C34: Feature | D34: 2023-02-03T07:29:35.828000 | E34: 2023-05-22T19:54:49.736037+00:00 | F34: 2023-02-02T00:00:00.001000+01:00 | G34: 0621 | H34: Kolding | I34: acc_heating_degree_days_17 | J34: manual | K34: day | L34: 2023-02-03T00:00:00+01:00 | M34: 13.6
A35: [Record] | B35: f92d8e51-f1a4-6b5b-0314-7e5808e0cab6 | C35: Feature | D35: 2023-02-04T07:29:30.833000 | E35: 2023-05-22T19:55:03.810349+00:00 | F35: 2023-02-03T00:00:00.001000+01:00 | G35: 0621 | H35: Kolding | I35: acc_heating_degree_days_17 | J35: manual | K35: day | L35: 2023-02-04T00:00:00+01:00 | M35: 11.4
A36: [Record] | B36: 6349e9c1-024e-3df6-3406-521507e14978 | C36: Feature | D36: 2023-02-05T07:29:36.375000 | E36: 2023-05-22T19:55:07.446523+00:00 | F36: 2023-02-04T00:00:00.001000+01:00 | G36: 0621 | H36: Kolding | I36: acc_heating_degree_days_17 | J36: manual | K36: day | L36: 2023-02-05T00:00:00+01:00 | M36: 16.4
A37: [Record] | B37: 732bdd8e-3fa0-4a60-c200-66621c7775fa | C37: Feature | D37: 2023-02-06T07:29:34.540000 | E37: 2023-05-22T19:55:11.347990+00:00 | F37: 2023-02-05T00:00:00.001000+01:00 | G37: 0621 | H37: Kolding | I37: acc_heating_degree_days_17 | J37: manual | K37: day | L37: 2023-02-06T00:00:00+01:00 | M37: 15.5
A38: [Record] | B38: 0f031ca4-285f-54ae-de07-d26eaba8dac8 | C38: Feature | D38: 2023-02-07T07:29:25.225000 | E38: 2023-05-22T19:55:25.995225+00:00 | F38: 2023-02-06T00:00:00.001000+01:00 | G38: 0621 | H38: Kolding | I38: acc_heating_degree_days_17 | J38: manual | K38: day | L38: 2023-02-07T00:00:00+01:00 | M38: 15.7
A39: [Record] | B39: 67914f3a-a270-8545-fa6e-37b7f3d5f6c2 | C39: Feature | D39: 2023-02-08T07:29:24.450000 | E39: 2023-05-22T19:55:29.646360+00:00 | F39: 2023-02-07T00:00:00.001000+01:00 | G39: 0621 | H39: Kolding | I39: acc_heating_degree_days_17 | J39: manual | K39: day | L39: 2023-02-08T00:00:00+01:00 | M39: 15.5
A40: [Record] | B40: c8978bf8-ab84-8e7e-d355-6d6183fe5752 | C40: Feature | D40: 2023-02-09T07:29:45.043000 | E40: 2023-05-22T19:55:33.625746+00:00 | F40: 2023-02-08T00:00:00.001000+01:00 | G40: 0621 | H40: Kolding | I40: acc_heating_degree_days_17 | J40: manual | K40: day | L40: 2023-02-09T00:00:00+01:00 | M40: 16.2
A41: [Record] | B41: ce35f099-0856-a6d2-7e10-7d56a5fbc9cf | C41: Feature | D41: 2023-02-10T07:30:30.985000 | E41: 2023-05-22T19:55:46.449226+00:00 | F41: 2023-02-09T00:00:00.001000+01:00 | G41: 0621 | H41: Kolding | I41: acc_heating_degree_days_17 | J41: manual | K41: day | L41: 2023-02-10T00:00:00+01:00 | M41: 14
A42: [Record] | B42: 84c92287-95fc-6c1b-65ac-b3122a7a13a4 | C42: Feature | D42: 2023-02-11T07:29:38.002000 | E42: 2023-05-22T19:55:50.083942+00:00 | F42: 2023-02-10T00:00:00.001000+01:00 | G42: 0621 | H42: Kolding | I42: acc_heating_degree_days_17 | J42: manual | K42: day | L42: 2023-02-11T00:00:00+01:00 | M42: 11.6
A43: [Record] | B43: 27956747-a223-d731-f30e-1fe9b88077a3 | C43: Feature | D43: 2023-02-12T07:29:25.207000 | E43: 2023-05-22T19:55:54.125533+00:00 | F43: 2023-02-11T00:00:00.001000+01:00 | G43: 0621 | H43: Kolding | I43: acc_heating_degree_days_17 | J43: manual | K43: day | L43: 2023-02-12T00:00:00+01:00 | M43: 9.3
A44: [Record] | B44: 0a996681-793a-493f-539c-153f7cb710a3 | C44: Feature | D44: 2023-02-13T07:29:20.092000 | E44: 2023-05-22T19:56:07.776631+00:00 | F44: 2023-02-12T00:00:00.001000+01:00 | G44: 0621 | H44: Kolding | I44: acc_heating_degree_days_17 | J44: manual | K44: day | L44: 2023-02-13T00:00:00+01:00 | M44: 10.1
A45: [Record] | B45: fc849f2e-a866-b755-d9eb-ddf437647fc1 | C45: Feature | D45: 2023-02-14T07:29:34.558000 | E45: 2023-05-22T19:56:11.277874+00:00 | F45: 2023-02-13T00:00:00.001000+01:00 | G45: 0621 | H45: Kolding | I45: acc_heating_degree_days_17 | J45: manual | K45: day | L45: 2023-02-14T00:00:00+01:00 | M45: 10.9
A46: [Record] | B46: 2e6e1e01-f979-6eb6-e02e-c9136357806e | C46: Feature | D46: 2023-02-15T07:29:28.157000 | E46: 2023-05-22T19:56:15.382090+00:00 | F46: 2023-02-14T00:00:00.001000+01:00 | G46: 0621 | H46: Kolding | I46: acc_heating_degree_days_17 | J46: manual | K46: day | L46: 2023-02-15T00:00:00+01:00 | M46: 13.1
A47: [Record] | B47: ae110568-f5a4-ba12-5fde-0de3cc329dcd | C47: Feature | D47: 2023-02-16T07:29:17.596000 | E47: 2023-05-22T19:56:27.819596+00:00 | F47: 2023-02-15T00:00:00.001000+01:00 | G47: 0621 | H47: Kolding | I47: acc_heating_degree_days_17 | J47: manual | K47: day | L47: 2023-02-16T00:00:00+01:00 | M47: 14.3
A48: [Record] | B48: 7567968e-043b-7858-cd3e-61e2195cf3fb | C48: Feature | D48: 2023-02-17T07:29:46.413000 | E48: 2023-05-22T19:56:31.975417+00:00 | F48: 2023-02-16T00:00:00.001000+01:00 | G48: 0621 | H48: Kolding | I48: acc_heating_degree_days_17 | J48: manual | K48: day | L48: 2023-02-17T00:00:00+01:00 | M48: 11.7
A49: [Record] | B49: d3a64bdc-d4ef-bb39-4875-afd8ad95a379 | C49: Feature | D49: 2023-02-18T07:29:30.407000 | E49: 2023-05-22T19:56:35.410628+00:00 | F49: 2023-02-17T00:00:00.001000+01:00 | G49: 0621 | H49: Kolding | I49: acc_heating_degree_days_17 | J49: manual | K49: day | L49: 2023-02-18T00:00:00+01:00 | M49: 9.4
A50: [Record] | B50: 6092de3a-500c-91a6-a42b-8645ea653fc0 | C50: Feature | D50: 2023-02-19T07:29:33.144000 | E50: 2023-05-22T19:56:50.219929+00:00 | F50: 2023-02-18T00:00:00.001000+01:00 | G50: 0621 | H50: Kolding | I50: acc_heating_degree_days_17 | J50: manual | K50: day | L50: 2023-02-19T00:00:00+01:00 | M50: 12.4
A51: [Record] | B51: 07e3f568-d105-5127-82c5-eac445bdc17e | C51: Feature | D51: 2023-02-20T07:28:44.391000 | E51: 2023-05-22T19:56:53.769830+00:00 | F51: 2023-02-19T00:00:00.001000+01:00 | G51: 0621 | H51: Kolding | I51: acc_heating_degree_days_17 | J51: manual | K51: day | L51: 2023-02-20T00:00:00+01:00 | M51: 13.3
A52: [Record] | B52: 31cbd71a-6db6-37da-423a-c079dd480a13 | C52: Feature | D52: 2023-02-21T07:29:10.982000 | E52: 2023-05-22T19:56:57.521120+00:00 | F52: 2023-02-20T00:00:00.001000+01:00 | G52: 0621 | H52: Kolding | I52: acc_heating_degree_days_17 | J52: manual | K52: day | L52: 2023-02-21T00:00:00+01:00 | M52: 9.7
A53: [Record] | B53: a1de10bd-6f06-4059-7926-af55ac9bea1e | C53: Feature | D53: 2023-02-22T07:29:40.178000 | E53: 2023-05-22T19:57:11.422079+00:00 | F53: 2023-02-21T00:00:00.001000+01:00 | G53: 0621 | H53: Kolding | I53: acc_heating_degree_days_17 | J53: manual | K53: day | L53: 2023-02-22T00:00:00+01:00 | M53: 11
A54: [Record] | B54: 5e93aef8-26c9-6374-a261-bda04f0a36b9 | C54: Feature | D54: 2023-02-23T07:29:40.809000 | E54: 2023-05-22T19:57:15.277885+00:00 | F54: 2023-02-22T00:00:00.001000+01:00 | G54: 0621 | H54: Kolding | I54: acc_heating_degree_days_17 | J54: manual | K54: day | L54: 2023-02-23T00:00:00+01:00 | M54: 11.7
A55: [Record] | B55: d3b6c952-d80c-fc99-2ad5-6c81a9e1c216 | C55: Feature | D55: 2023-02-24T07:27:59.507000 | E55: 2023-05-22T19:57:18.778075+00:00 | F55: 2023-02-23T00:00:00.001000+01:00 | G55: 0621 | H55: Kolding | I55: acc_heating_degree_days_17 | J55: manual | K55: day | L55: 2023-02-24T00:00:00+01:00 | M55: 11.7
A56: [Record] | B56: b94e9969-e1cc-7acf-903b-380547d6ab51 | C56: Feature | D56: 2023-02-25T07:29:41.462000 | E56: 2023-05-22T19:57:33.353268+00:00 | F56: 2023-02-24T00:00:00.001000+01:00 | G56: 0621 | H56: Kolding | I56: acc_heating_degree_days_17 | J56: manual | K56: day | L56: 2023-02-25T00:00:00+01:00 | M56: 12.3
A57: [Record] | B57: 70a00de0-c1d7-e9fb-bcc9-8638e90a051b | C57: Feature | D57: 2023-02-26T07:34:59.913000 | E57: 2023-05-22T19:57:37.123718+00:00 | F57: 2023-02-25T00:00:00.001000+01:00 | G57: 0621 | H57: Kolding | I57: acc_heating_degree_days_17 | J57: manual | K57: day | L57: 2023-02-26T00:00:00+01:00 | M57: 15.6
A58: [Record] | B58: f544569e-ba56-d1d8-aa76-531e72739562 | C58: Feature | D58: 2023-02-27T07:29:32.815000 | E58: 2023-05-22T19:57:41.209539+00:00 | F58: 2023-02-26T00:00:00.001000+01:00 | G58: 0621 | H58: Kolding | I58: acc_heating_degree_days_17 | J58: manual | K58: day | L58: 2023-02-27T00:00:00+01:00 | M58: 16.3
A59: [Record] | B59: 1c33061b-11a9-6caf-105f-dc004136c856 | C59: Feature | D59: 2023-02-28T07:29:38.031000 | E59: 2023-05-22T19:57:54.362046+00:00 | F59: 2023-02-27T00:00:00.001000+01:00 | G59: 0621 | H59: Kolding | I59: acc_heating_degree_days_17 | J59: manual | K59: day | L59: 2023-02-28T00:00:00+01:00 | M59: 13.8
A60: [Record] | B60: 66981d02-df0f-c47b-e51b-a1a265b1f915 | C60: Feature | D60: 2023-03-01T07:29:34.964000 | E60: 2023-05-22T19:57:58.309264+00:00 | F60: 2023-02-28T00:00:00.001000+01:00 | G60: 0621 | H60: Kolding | I60: acc_heating_degree_days_17 | J60: manual | K60: day | L60: 2023-03-01T00:00:00+01:00 | M60: 14.4
A61: [Record] | B61: 48a450a7-d12c-eb28-352a-470750874ad1 | C61: Feature | D61: 2023-03-02T07:29:40.878000 | E61: 2023-05-22T19:58:02.418099+00:00 | F61: 2023-03-01T00:00:00.001000+01:00 | G61: 0621 | H61: Kolding | I61: acc_heating_degree_days_17 | J61: manual | K61: day | L61: 2023-03-02T00:00:00+01:00 | M61: 15.6
A62: [Record] | B62: ac58b0d2-e6c4-7976-f2b4-ddd252c1c683 | C62: Feature | D62: 2023-03-03T07:29:26.675000 | E62: 2023-05-22T19:58:17.450213+00:00 | F62: 2023-03-02T00:00:00.001000+01:00 | G62: 0621 | H62: Kolding | I62: acc_heating_degree_days_17 | J62: manual | K62: day | L62: 2023-03-03T00:00:00+01:00 | M62: 14.4
A63: [Record] | B63: 390c419b-08df-64c6-fc87-b11c893d800b | C63: Feature | D63: 2023-03-04T07:29:35.866000 | E63: 2023-05-22T19:58:21.386304+00:00 | F63: 2023-03-03T00:00:00.001000+01:00 | G63: 0621 | H63: Kolding | I63: acc_heating_degree_days_17 | J63: manual | K63: day | L63: 2023-03-04T00:00:00+01:00 | M63: 12.7
A64: [Record] | B64: 6e29d5e8-41cf-e6fb-52a6-502dba73caa7 | C64: Feature | D64: 2023-03-05T07:29:38.105000 | E64: 2023-05-22T19:58:24.790439+00:00 | F64: 2023-03-04T00:00:00.001000+01:00 | G64: 0621 | H64: Kolding | I64: acc_heating_degree_days_17 | J64: manual | K64: day | L64: 2023-03-05T00:00:00+01:00 | M64: 12.9
A65: [Record] | B65: b6f6afa4-5cdd-4285-8cef-bd864b245e35 | C65: Feature | D65: 2023-03-06T07:29:03.497000 | E65: 2023-05-22T19:58:39.582183+00:00 | F65: 2023-03-05T00:00:00.001000+01:00 | G65: 0621 | H65: Kolding | I65: acc_heating_degree_days_17 | J65: manual | K65: day | L65: 2023-03-06T00:00:00+01:00 | M65: 16.3
A66: [Record] | B66: 2cb7090e-cb25-7841-c33b-668a76f175e9 | C66: Feature | D66: 2023-03-07T07:29:17.422000 | E66: 2023-05-22T19:58:43.131544+00:00 | F66: 2023-03-06T00:00:00.001000+01:00 | G66: 0621 | H66: Kolding | I66: acc_heating_degree_days_17 | J66: manual | K66: day | L66: 2023-03-07T00:00:00+01:00 | M66: 16.6
A67: [Record] | B67: fabc37d5-0d06-53a2-34d1-8b7769e836db | C67: Feature | D67: 2023-03-08T07:29:32.021000 | E67: 2023-05-22T19:58:46.825701+00:00 | F67: 2023-03-07T00:00:00.001000+01:00 | G67: 0621 | H67: Kolding | I67: acc_heating_degree_days_17 | J67: manual | K67: day | L67: 2023-03-08T00:00:00+01:00 | M67: 16.6
A68: [Record] | B68: f75df091-ebc2-b544-e3f3-40f3c5d965c0 | C68: Feature | D68: 2023-03-09T07:28:53.053000 | E68: 2023-05-22T19:59:01.774388+00:00 | F68: 2023-03-08T00:00:00.001000+01:00 | G68: 0621 | H68: Kolding | I68: acc_heating_degree_days_17 | J68: manual | K68: day | L68: 2023-03-09T00:00:00+01:00 | M68: 18.1
A69: [Record] | B69: dd262cc7-7136-1142-c134-895f78aae1df | C69: Feature | D69: 2023-03-10T07:29:39.391000 | E69: 2023-05-22T19:59:05.383594+00:00 | F69: 2023-03-09T00:00:00.001000+01:00 | G69: 0621 | H69: Kolding | I69: acc_heating_degree_days_17 | J69: manual | K69: day | L69: 2023-03-10T00:00:00+01:00 | M69: 17.9
A70: [Record] | B70: 5d5a35aa-0fe5-2475-51c1-81ea5896b4a5 | C70: Feature | D70: 2023-03-11T07:29:20.897000 | E70: 2023-05-22T19:59:09.054598+00:00 | F70: 2023-03-10T00:00:00.001000+01:00 | G70: 0621 | H70: Kolding | I70: acc_heating_degree_days_17 | J70: manual | K70: day | L70: 2023-03-11T00:00:00+01:00 | M70: 17.3
A71: [Record] | B71: 0749f7ef-7eb2-c9bb-bb71-a1497938d9e8 | C71: Feature | D71: 2023-03-12T07:29:23.278000 | E71: 2023-05-22T19:59:23.228552+00:00 | F71: 2023-03-11T00:00:00.001000+01:00 | G71: 0621 | H71: Kolding | I71: acc_heating_degree_days_17 | J71: manual | K71: day | L71: 2023-03-12T00:00:00+01:00 | M71: 17
A72: [Record] | B72: fb602c16-269e-984b-3d1f-92a87cf660dc | C72: Feature | D72: 2023-03-13T07:29:30.227000 | E72: 2023-05-22T19:59:27.138264+00:00 | F72: 2023-03-12T00:00:00.001000+01:00 | G72: 0621 | H72: Kolding | I72: acc_heating_degree_days_17 | J72: manual | K72: day | L72: 2023-03-13T00:00:00+01:00 | M72: 15.9
A73: [Record] | B73: 7b09bab4-e68a-427d-436e-b66b33228b70 | C73: Feature | D73: 2023-03-14T07:29:43.264000 | E73: 2023-05-22T19:59:30.838319+00:00 | F73: 2023-03-13T00:00:00.001000+01:00 | G73: 0621 | H73: Kolding | I73: acc_heating_degree_days_17 | J73: manual | K73: day | L73: 2023-03-14T00:00:00+01:00 | M73: 8.8
A74: [Record] | B74: 2aec1e50-b1ba-2994-98ff-a32644d5a122 | C74: Feature | D74: 2023-03-15T07:28:45.838000 | E74: 2023-05-22T19:59:44.158114+00:00 | F74: 2023-03-14T00:00:00.001000+01:00 | G74: 0621 | H74: Kolding | I74: acc_heating_degree_days_17 | J74: manual | K74: day | L74: 2023-03-15T00:00:00+01:00 | M74: 12.6
A75: [Record] | B75: f5083ba0-694d-4231-4e99-c05566927fff | C75: Feature | D75: 2023-03-16T07:29:32.343000 | E75: 2023-05-22T19:59:48.108516+00:00 | F75: 2023-03-15T00:00:00.001000+01:00 | G75: 0621 | H75: Kolding | I75: acc_heating_degree_days_17 | J75: manual | K75: day | L75: 2023-03-16T00:00:00+01:00 | M75: 14.3
A76: [Record] | B76: 830711ad-d1eb-9d1f-4a1d-4ecce4cf1fcd | C76: Feature | D76: 2023-03-17T07:28:35.388000 | E76: 2023-05-22T19:59:51.729339+00:00 | F76: 2023-03-16T00:00:00.001000+01:00 | G76: 0621 | H76: Kolding | I76: acc_heating_degree_days_17 | J76: manual | K76: day | L76: 2023-03-17T00:00:00+01:00 | M76: 13
A77: [Record] | B77: 350ca6ae-4b83-626c-9580-9b67e30ab20c | C77: Feature | D77: 2023-03-18T07:29:00.036000 | E77: 2023-05-22T20:00:06.543666+00:00 | F77: 2023-03-17T00:00:00.001000+01:00 | G77: 0621 | H77: Kolding | I77: acc_heating_degree_days_17 | J77: manual | K77: day | L77: 2023-03-18T00:00:00+01:00 | M77: 9.7
A78: [Record] | B78: ce0bc2d9-97a1-883a-85c3-993e2693a70a | C78: Feature | D78: 2023-03-19T07:48:59.573000 | E78: 2023-05-22T20:00:10.402282+00:00 | F78: 2023-03-18T00:00:00.001000+01:00 | G78: 0621 | H78: Kolding | I78: acc_heating_degree_days_17 | J78: manual | K78: day | L78: 2023-03-19T00:00:00+01:00 | M78: 8.8
A79: [Record] | B79: 5136ccef-52a4-7574-b28e-8198edd8eeb6 | C79: Feature | D79: 2023-03-20T07:28:11.724000 | E79: 2023-05-22T20:00:13.992877+00:00 | F79: 2023-03-19T00:00:00.001000+01:00 | G79: 0621 | H79: Kolding | I79: acc_heating_degree_days_17 | J79: manual | K79: day | L79: 2023-03-20T00:00:00+01:00 | M79: 9
A80: [Record] | B80: 12591981-a9a2-6822-a985-4d9988e7139d | C80: Feature | D80: 2023-03-21T07:28:11.609000 | E80: 2023-05-22T20:00:28.196399+00:00 | F80: 2023-03-20T00:00:00.001000+01:00 | G80: 0621 | H80: Kolding | I80: acc_heating_degree_days_17 | J80: manual | K80: day | L80: 2023-03-21T00:00:00+01:00 | M80: 10.7
A81: [Record] | B81: 2451df2a-41fb-32d2-c0e8-5f9d2dd886e8 | C81: Feature | D81: 2023-03-22T07:28:21.632000 | E81: 2023-05-22T20:00:32.158382+00:00 | F81: 2023-03-21T00:00:00.001000+01:00 | G81: 0621 | H81: Kolding | I81: acc_heating_degree_days_17 | J81: manual | K81: day | L81: 2023-03-22T00:00:00+01:00 | M81: 9.9
A82: [Record] | B82: 647b6f9a-8fdf-20b2-193e-7bfa428ecc2f | C82: Feature | D82: 2023-03-23T07:29:44.355000 | E82: 2023-05-22T20:00:35.872868+00:00 | F82: 2023-03-22T00:00:00.001000+01:00 | G82: 0621 | H82: Kolding | I82: acc_heating_degree_days_17 | J82: manual | K82: day | L82: 2023-03-23T00:00:00+01:00 | M82: 8.5
A83: [Record] | B83: 375517c2-7727-e442-8a71-de5adbb211ba | C83: Feature | D83: 2023-03-24T07:28:50.720000 | E83: 2023-05-22T20:00:50.309456+00:00 | F83: 2023-03-23T00:00:00.001000+01:00 | G83: 0621 | H83: Kolding | I83: acc_heating_degree_days_17 | J83: manual | K83: day | L83: 2023-03-24T00:00:00+01:00 | M83: 8.2
A84: [Record] | B84: d77a8db5-f7b4-ca0a-ba56-8ead710bab8a | C84: Feature | D84: 2023-03-25T07:29:20.646000 | E84: 2023-05-22T20:00:54.311566+00:00 | F84: 2023-03-24T00:00:00.001000+01:00 | G84: 0621 | H84: Kolding | I84: acc_heating_degree_days_17 | J84: manual | K84: day | L84: 2023-03-25T00:00:00+01:00 | M84: 8.4
A85: [Record] | B85: 228847b9-b7db-0746-bd98-25f891165ce6 | C85: Feature | D85: 2023-03-26T07:29:43.516000 | E85: 2023-05-22T20:00:57.770013+00:00 | F85: 2023-03-25T00:00:00.001000+01:00 | G85: 0621 | H85: Kolding | I85: acc_heating_degree_days_17 | J85: manual | K85: day | L85: 2023-03-26T00:00:00+01:00 | M85: 9.2
A86: [Record] | B86: 0add174f-3b55-807f-7fda-0051cc28b18a | C86: Feature | D86: 2023-03-27T07:28:20.713000 | E86: 2023-05-22T20:01:10.945692+00:00 | F86: 2023-03-26T00:00:00.001000+01:00 | G86: 0621 | H86: Kolding | I86: acc_heating_degree_days_17 | J86: manual | K86: day | L86: 2023-03-27T00:00:00+02:00 | M86: 12.6
A87: [Record] | B87: b53ff763-42c7-420b-7726-06b72db519b1 | C87: Feature | D87: 2023-03-28T07:28:38.187000 | E87: 2023-05-22T20:01:14.734826+00:00 | F87: 2023-03-27T00:00:00.001000+02:00 | G87: 0621 | H87: Kolding | I87: acc_heating_degree_days_17 | J87: manual | K87: day | L87: 2023-03-28T00:00:00+02:00 | M87: 15.7
A88: [Record] | B88: a819e5bf-f5f5-dfa1-83e4-d937333735c4 | C88: Feature | D88: 2023-03-29T07:29:41.836000 | E88: 2023-05-22T20:01:18.464627+00:00 | F88: 2023-03-28T00:00:00.001000+02:00 | G88: 0621 | H88: Kolding | I88: acc_heating_degree_days_17 | J88: manual | K88: day | L88: 2023-03-29T00:00:00+02:00 | M88: 15.4
A89: [Record] | B89: d49efe80-2753-b6fc-47ad-3c2c7ec7f73f | C89: Feature | D89: 2023-03-30T07:28:47.007000 | E89: 2023-05-22T20:01:33.538213+00:00 | F89: 2023-03-29T00:00:00.001000+02:00 | G89: 0621 | H89: Kolding | I89: acc_heating_degree_days_17 | J89: manual | K89: day | L89: 2023-03-30T00:00:00+02:00 | M89: 11.9
A90: [Record] | B90: 844c564b-289d-e121-7200-820da557df4e | C90: Feature | D90: 2023-03-31T07:29:32.921000 | E90: 2023-05-22T20:01:37.344317+00:00 | F90: 2023-03-30T00:00:00.001000+02:00 | G90: 0621 | H90: Kolding | I90: acc_heating_degree_days_17 | J90: manual | K90: day | L90: 2023-03-31T00:00:00+02:00 | M90: 9.1
A91: [Record] | B91: 00261963-c261-3757-7d3e-d85fbe9d4c70 | C91: Feature | D91: 2023-04-01T07:29:50.652000 | E91: 2023-05-22T20:01:41.385779+00:00 | F91: 2023-03-31T00:00:00.001000+02:00 | G91: 0621 | H91: Kolding | I91: acc_heating_degree_days_17 | J91: manual | K91: day | L91: 2023-04-01T00:00:00+02:00 | M91: 9
A92: [Record] | B92: 363f45a8-0b44-9340-cff6-3ca405711dc8 | C92: Feature | D92: 2023-04-02T07:28:42.556000 | E92: 2023-05-22T20:01:56.812482+00:00 | F92: 2023-04-01T00:00:00.001000+02:00 | G92: 0621 | H92: Kolding | I92: acc_heating_degree_days_17 | J92: manual | K92: day | L92: 2023-04-02T00:00:00+02:00 | M92: 13.1
A93: [Record] | B93: e75f6fda-95b2-375d-411d-606996d2d16e | C93: Feature | D93: 2023-04-03T07:29:54.637000 | E93: 2023-05-22T20:02:01.489120+00:00 | F93: 2023-04-02T00:00:00.001000+02:00 | G93: 0621 | H93: Kolding | I93: acc_heating_degree_days_17 | J93: manual | K93: day | L93: 2023-04-03T00:00:00+02:00 | M93: 13.6
A94: [Record] | B94: f8e9f809-8754-02f0-ffbc-436b45614385 | C94: Feature | D94: 2023-04-04T07:28:40.506000 | E94: 2023-05-22T20:02:05.367840+00:00 | F94: 2023-04-03T00:00:00.001000+02:00 | G94: 0621 | H94: Kolding | I94: acc_heating_degree_days_17 | J94: manual | K94: day | L94: 2023-04-04T00:00:00+02:00 | M94: 14.8
A95: [Record] | B95: 0ad3547c-50b8-aacd-dbe3-f7c288d858af | C95: Feature | D95: 2023-04-05T07:28:16.449000 | E95: 2023-05-22T20:02:21.524767+00:00 | F95: 2023-04-04T00:00:00.001000+02:00 | G95: 0621 | H95: Kolding | I95: acc_heating_degree_days_17 | J95: manual | K95: day | L95: 2023-04-05T00:00:00+02:00 | M95: 14.3
A96: [Record] | B96: 2423797b-1157-0c5c-b5e4-68e0863b58b4 | C96: Feature | D96: 2023-04-06T07:28:23.074000 | E96: 2023-05-22T20:02:25.136020+00:00 | F96: 2023-04-05T00:00:00.001000+02:00 | G96: 0621 | H96: Kolding | I96: acc_heating_degree_days_17 | J96: manual | K96: day | L96: 2023-04-06T00:00:00+02:00 | M96: 12.5
A97: [Record] | B97: 60747391-8ada-2aa7-600b-6b48f9dc2cc0 | C97: Feature | D97: 2023-04-07T07:28:58.344000 | E97: 2023-05-22T20:02:28.792745+00:00 | F97: 2023-04-06T00:00:00.001000+02:00 | G97: 0621 | H97: Kolding | I97: acc_heating_degree_days_17 | J97: manual | K97: day | L97: 2023-04-07T00:00:00+02:00 | M97: 11.7
